{"text_format":"1","workbook":"xlsx","n_sheets":11,"sheets":["Übersicht","1. Personalkosten","2-3. Reise&Unterkunftskosten","4. Ausrüstungskosten","5. Kosten für Unteraufträge","B. Spezieller Mob. - Student","B. Spezieller Mob. - Personal","Kofinanzierung","Aufschlüsselung des Budgets","Rates","Kosten und Finanzierung"],"not_rendered":{"charts":0,"images":2,"macros":1,"external_links":0,"defined_names":51,"comments":0,"pivot_tables":0},"unopened":[],"bounds":{"document_bytes":16777216,"sheet_cells":100000,"rows_first":2000,"rows_last":500,"rows_between":2000,"halvings":0,"cell_chars":16384,"cell_head_chars":4096},"cells_cut":0,"cells_raw":0,"read":"whole","date_system":"1900"}

{"sheet":"Übersicht","index":0,"n_rows":87,"n_cols":12,"rows_kept":87,"cut":false,"hidden":false,"merged":[[30,1,30,11],[17,1,17,2],[18,1,18,2],[19,1,19,2],[20,1,20,2],[28,1,28,2],[21,1,21,2],[21,4,21,11],[28,4,28,11],[20,4,20,11],[19,4,19,11],[18,4,18,11],[17,4,17,11],[23,1,26,2],[23,3,26,3],[23,4,26,5],[16,4,16,11],[6,1,6,11],[7,1,7,11],[8,1,8,11],[10,1,10,2],[11,1,11,2],[12,1,12,2],[15,1,15,11],[16,1,16,2],[12,4,12,11],[11,4,11,11],[10,4,10,11],[13,1,13,2],[13,3,13,11],[23,8,26,8],[23,10,26,10],[26,6,26,7],[25,6,25,7],[24,6,24,7],[23,6,23,7]]}
[]
[]
[null,null,null,"Leitaktion 2: Zusammenarbeit zur Förderung von Innovation und zum Austausch über bewährte Verfahren"]
[null,null,null,"Kapazitätsaufbau im Hochschulbereich"]
[]
[]
[null,"Bevor Sie diese Tabelle ausfüllen, lesen Sie bitte sorgfältig die Anweisungen auf"]
[null,"AUFFORDERUNG ZUR EINREICHUNG VON VORSCHLÄGEN 2017 – EAC/A03/2016 - Erasmus+ Programme (C2016/386/09)"]
[null,"Programmleitfaden und Anweisungen für Antragsteller"]
[]
[null,"Aktion",null,null,{"$f":"IF(D11=\"\",\"Bitte Art der Maßnahme auswählen\",IF(OR(D11=\"Algemeen Projekt\",D11=\"Structurele Projekt\"),\"\",\"Fehler Art der Maßnahme\"))","v":"Bitte Art der Maßnahme auswählen"}]
[null,"Dauer (Anzahl der Monate)",null,null,{"$f":"IF(D12=\"\",\"Bitte Dauer auswählen\",IF(OR(D12=24,D12=36),\"\",\"Fehler Dauer\"))","v":"Bitte Dauer auswählen"}]
[null,"Projektakronym",null,null,{"$f":"IF(D13=\"\",\"Bitte Projektakronym angeben\",\"\")","v":"Bitte Projektakronym angeben"}]
[null,"Projekttitel"]
[]
[null,"VON DER EU BEANTRAGTER ZUSCHUSS (IN EUR)"]
[null,"1. Personalkosten",null,{"$f":"'1. Personalkosten'!D9","v":0},{"$f":"\"Darf 40% des Gesamtbetrags unter A nicht überschreiten.\"","v":"Darf 40% des Gesamtbetrags unter A nicht überschreiten."}]
[null,"2. Reisekosten",null,{"$f":"'2-3. Reise&Unterkunftskosten'!D8","v":0}]
[null,"3. Unterkunftskosten",null,{"$f":"'2-3. Reise&Unterkunftskosten'!D9","v":0}]
[null,"4. Ausrüstungskosten",null,{"$f":"'4. Ausrüstungskosten'!C4","v":0},{"$f":"\"Darf 30% des Gesamtbetrags unter A nicht überschreiten.\"","v":"Darf 30% des Gesamtbetrags unter A nicht überschreiten."}]
[null,"5. Kosten für Unteraufträge",null,{"$f":"'5. Kosten für Unteraufträge'!C4","v":0},{"$f":"\"Darf 10% des Gesamtbetrags unter A nicht überschreiten.\"","v":"Darf 10% des Gesamtbetrags unter A nicht überschreiten."}]
[null,"A. Förderung für Projektaktivitäten",null,{"$f":"SUM(D17:D21)","v":0},{"$f":"\"Muss gleich oder grösser als EUR 500.000,00 sein und darf EUR 1.000.000,00 nicht überschreiten\"","v":"Muss gleich oder grösser als EUR 500.000,00 sein und darf EUR 1.000.000,00 nicht überschreiten"}]
[]
[null,"B. Zusätzliche Förderung für den speziellen Mobilitätsbereich",null,{"$f":"SUM(J24:J27)","v":0},"Darf 80% des Gesamtbetrags unter A nicht überschreiten.",null,"Student von Partnerländer",null,"Beträge\n(in EUR)",{"$f":"SUMIF('B. Spezieller Mob. - Student'!E:E,G24,'B. Spezieller Mob. - Student'!N:N)","v":0},"Anzahl der Teilnehmer",{"$f":"SUMIFS('B. Spezieller Mob. - Student'!G:G,'B. Spezieller Mob. - Student'!E:E,G24,'B. Spezieller Mob. - Student'!O:O,\"<>Fehler\")","v":0}]
[null,null,null,null,null,null,"Student von Programmländer",null,null,{"$f":"SUMIF('B. Spezieller Mob. - Student'!E:E,G25,'B. Spezieller Mob. - Student'!N:N)","v":0},null,{"$f":"SUMIFS('B. Spezieller Mob. - Student'!G:G,'B. Spezieller Mob. - Student'!E:E,G25,'B. Spezieller Mob. - Student'!O:O,\"<>Fehler\")","v":0}]
[null,null,null,null,null,null,"Personal von Partnerländer",null,null,{"$f":"SUMIF('B. Spezieller Mob. - Personal'!E:E,G26,'B. Spezieller Mob. - Personal'!N:N)","v":0},null,{"$f":"SUMIFS('B. Spezieller Mob. - Personal'!G:G,'B. Spezieller Mob. - Personal'!E:E,G26,'B. Spezieller Mob. - Personal'!O:O,\"<>Fehler\")","v":0}]
[null,null,null,null,null,null,"Personal von Programmländer",null,null,{"$f":"SUMIF('B. Spezieller Mob. - Personal'!E:E,G27,'B. Spezieller Mob. - Personal'!N:N)","v":0},null,{"$f":"SUMIFS('B. Spezieller Mob. - Personal'!G:G,'B. Spezieller Mob. - Personal'!E:E,G27,'B. Spezieller Mob. - Personal'!O:O,\"<>Fehler\")","v":0}]
[]
[null,"Gesamtbetrag der von der EU beantragten Finanzhilfe (A + B)",null,{"$f":"D22+D24","v":0}]
[]
[null,"UMVERTEILUNG DER FINANZHILFE PRO ORGANISATION (in EUR)"]
[null,"Partner \nNr.","Name des Partners","Land","PR/PA","1. Personalkosten","2. Reisekosten","3. Unterkunftskosten","4. Ausrüstungskosten","5. Kosten für \nUnteraufträge","B. Spezieller Mobilitätsbereich","Gesamtkosten"]
[null,"P1",null,null,{"$f":"IFERROR(IF(D33<>\"\",VLOOKUP(D33,CountryType,2,FALSE),\"\"),\"Land nicht gefunden\")","v":""},{"$f":"SUMIF('1. Personalkosten'!C:C,B33,'1. Personalkosten'!S:S)","v":0},{"$f":"SUMIF('2-3. Reise&Unterkunftskosten'!C:C,B33,'2-3. Reise&Unterkunftskosten'!L:L)","v":0},{"$f":"SUMIF('2-3. Reise&Unterkunftskosten'!C:C,B33,'2-3. Reise&Unterkunftskosten'!M:M)","v":0},{"$f":"SUMIF('4. Ausrüstungskosten'!C:C,B33,'4. Ausrüstungskosten'!H:H)","v":0},{"$f":"SUMIF('5. Kosten für Unteraufträge'!C:C,B33,'5. Kosten für Unteraufträge'!H:H)","v":0},{"$f":"SUMIF('B. Spezieller Mob. - Student'!B:B,B33,'B. Spezieller Mob. - Student'!N:N)+SUMIF('B. Spezieller Mob. - Personal'!B:B,B33,'B. Spezieller Mob. - Personal'!N:N)","v":0},{"$f":"SUM(F33:K33)","v":0}]
[null,"P2",null,null,"",{"$f":"SUMIF('1. Personalkosten'!C:C,B34,'1. Personalkosten'!S:S)","v":0},{"$f":"SUMIF('2-3. Reise&Unterkunftskosten'!C:C,B34,'2-3. Reise&Unterkunftskosten'!L:L)","v":0},{"$f":"SUMIF('2-3. Reise&Unterkunftskosten'!C:C,B34,'2-3. Reise&Unterkunftskosten'!M:M)","v":0},{"$f":"SUMIF('4. Ausrüstungskosten'!C:C,B34,'4. Ausrüstungskosten'!H:H)","v":0},{"$f":"SUMIF('5. Kosten für Unteraufträge'!C:C,B34,'5. Kosten für Unteraufträge'!H:H)","v":0},{"$f":"SUMIF('B. Spezieller Mob. - Student'!B:B,B34,'B. Spezieller Mob. - Student'!N:N)+SUMIF('B. Spezieller Mob. - Personal'!B:B,B34,'B. Spezieller Mob. - Personal'!N:N)","v":0},{"$f":"SUM(F34:K34)","v":0}]
[null,"P3",null,null,"",{"$f":"SUMIF('1. Personalkosten'!C:C,B35,'1. Personalkosten'!S:S)","v":0},{"$f":"SUMIF('2-3. Reise&Unterkunftskosten'!C:C,B35,'2-3. Reise&Unterkunftskosten'!L:L)","v":0},{"$f":"SUMIF('2-3. Reise&Unterkunftskosten'!C:C,B35,'2-3. Reise&Unterkunftskosten'!M:M)","v":0},{"$f":"SUMIF('4. Ausrüstungskosten'!C:C,B35,'4. Ausrüstungskosten'!H:H)","v":0},{"$f":"SUMIF('5. Kosten für Unteraufträge'!C:C,B35,'5. Kosten für Unteraufträge'!H:H)","v":0},{"$f":"SUMIF('B. Spezieller Mob. - Student'!B:B,B35,'B. Spezieller Mob. - Student'!N:N)+SUMIF('B. Spezieller Mob. - Personal'!B:B,B35,'B. Spezieller Mob. - Personal'!N:N)","v":0},0]
[null,"P4",null,null,"",{"$f":"SUMIF('1. Personalkosten'!C:C,B36,'1. Personalkosten'!S:S)","v":0},{"$f":"SUMIF('2-3. Reise&Unterkunftskosten'!C:C,B36,'2-3. Reise&Unterkunftskosten'!L:L)","v":0},{"$f":"SUMIF('2-3. Reise&Unterkunftskosten'!C:C,B36,'2-3. Reise&Unterkunftskosten'!M:M)","v":0},{"$f":"SUMIF('4. Ausrüstungskosten'!C:C,B36,'4. Ausrüstungskosten'!H:H)","v":0},{"$f":"SUMIF('5. Kosten für Unteraufträge'!C:C,B36,'5. Kosten für Unteraufträge'!H:H)","v":0},{"$f":"SUMIF('B. Spezieller Mob. - Student'!B:B,B36,'B. Spezieller Mob. - Student'!N:N)+SUMIF('B. Spezieller Mob. - Personal'!B:B,B36,'B. Spezieller Mob. - Personal'!N:N)","v":0},0]
[null,"P5",null,null,"",{"$f":"SUMIF('1. Personalkosten'!C:C,B37,'1. Personalkosten'!S:S)","v":0},{"$f":"SUMIF('2-3. Reise&Unterkunftskosten'!C:C,B37,'2-3. Reise&Unterkunftskosten'!L:L)","v":0},{"$f":"SUMIF('2-3. Reise&Unterkunftskosten'!C:C,B37,'2-3. Reise&Unterkunftskosten'!M:M)","v":0},{"$f":"SUMIF('4. Ausrüstungskosten'!C:C,B37,'4. Ausrüstungskosten'!H:H)","v":0},{"$f":"SUMIF('5. Kosten für Unteraufträge'!C:C,B37,'5. Kosten für Unteraufträge'!H:H)","v":0},{"$f":"SUMIF('B. Spezieller Mob. - Student'!B:B,B37,'B. Spezieller Mob. - Student'!N:N)+SUMIF('B. Spezieller Mob. - Personal'!B:B,B37,'B. Spezieller Mob. - Personal'!N:N)","v":0},0]
[null,"P6",null,null,"",{"$f":"SUMIF('1. Personalkosten'!C:C,B38,'1. Personalkosten'!S:S)","v":0},{"$f":"SUMIF('2-3. Reise&Unterkunftskosten'!C:C,B38,'2-3. Reise&Unterkunftskosten'!L:L)","v":0},{"$f":"SUMIF('2-3. Reise&Unterkunftskosten'!C:C,B38,'2-3. Reise&Unterkunftskosten'!M:M)","v":0},{"$f":"SUMIF('4. Ausrüstungskosten'!C:C,B38,'4. Ausrüstungskosten'!H:H)","v":0},{"$f":"SUMIF('5. Kosten für Unteraufträge'!C:C,B38,'5. Kosten für Unteraufträge'!H:H)","v":0},{"$f":"SUMIF('B. Spezieller Mob. - Student'!B:B,B38,'B. Spezieller Mob. - Student'!N:N)+SUMIF('B. Spezieller Mob. - Personal'!B:B,B38,'B. Spezieller Mob. - Personal'!N:N)","v":0},0]
[null,"P7",null,null,"",{"$f":"SUMIF('1. Personalkosten'!C:C,B39,'1. Personalkosten'!S:S)","v":0},{"$f":"SUMIF('2-3. Reise&Unterkunftskosten'!C:C,B39,'2-3. Reise&Unterkunftskosten'!L:L)","v":0},{"$f":"SUMIF('2-3. Reise&Unterkunftskosten'!C:C,B39,'2-3. Reise&Unterkunftskosten'!M:M)","v":0},{"$f":"SUMIF('4. Ausrüstungskosten'!C:C,B39,'4. Ausrüstungskosten'!H:H)","v":0},{"$f":"SUMIF('5. Kosten für Unteraufträge'!C:C,B39,'5. Kosten für Unteraufträge'!H:H)","v":0},{"$f":"SUMIF('B. Spezieller Mob. - Student'!B:B,B39,'B. Spezieller Mob. - Student'!N:N)+SUMIF('B. Spezieller Mob. - Personal'!B:B,B39,'B. Spezieller Mob. - Personal'!N:N)","v":0},0]
[null,"P8",null,null,"",{"$f":"SUMIF('1. Personalkosten'!C:C,B40,'1. Personalkosten'!S:S)","v":0},{"$f":"SUMIF('2-3. Reise&Unterkunftskosten'!C:C,B40,'2-3. Reise&Unterkunftskosten'!L:L)","v":0},{"$f":"SUMIF('2-3. Reise&Unterkunftskosten'!C:C,B40,'2-3. Reise&Unterkunftskosten'!M:M)","v":0},{"$f":"SUMIF('4. Ausrüstungskosten'!C:C,B40,'4. Ausrüstungskosten'!H:H)","v":0},{"$f":"SUMIF('5. Kosten für Unteraufträge'!C:C,B40,'5. Kosten für Unteraufträge'!H:H)","v":0},{"$f":"SUMIF('B. Spezieller Mob. - Student'!B:B,B40,'B. Spezieller Mob. - Student'!N:N)+SUMIF('B. Spezieller Mob. - Personal'!B:B,B40,'B. Spezieller Mob. - Personal'!N:N)","v":0},0]
[null,"P9",null,null,"",{"$f":"SUMIF('1. Personalkosten'!C:C,B41,'1. Personalkosten'!S:S)","v":0},{"$f":"SUMIF('2-3. Reise&Unterkunftskosten'!C:C,B41,'2-3. Reise&Unterkunftskosten'!L:L)","v":0},{"$f":"SUMIF('2-3. Reise&Unterkunftskosten'!C:C,B41,'2-3. Reise&Unterkunftskosten'!M:M)","v":0},{"$f":"SUMIF('4. Ausrüstungskosten'!C:C,B41,'4. Ausrüstungskosten'!H:H)","v":0},{"$f":"SUMIF('5. Kosten für Unteraufträge'!C:C,B41,'5. Kosten für Unteraufträge'!H:H)","v":0},{"$f":"SUMIF('B. Spezieller Mob. - Student'!B:B,B41,'B. Spezieller Mob. - Student'!N:N)+SUMIF('B. Spezieller Mob. - Personal'!B:B,B41,'B. Spezieller Mob. - Personal'!N:N)","v":0},0]
[null,"P10",null,null,"",{"$f":"SUMIF('1. Personalkosten'!C:C,B42,'1. Personalkosten'!S:S)","v":0},{"$f":"SUMIF('2-3. Reise&Unterkunftskosten'!C:C,B42,'2-3. Reise&Unterkunftskosten'!L:L)","v":0},{"$f":"SUMIF('2-3. Reise&Unterkunftskosten'!C:C,B42,'2-3. Reise&Unterkunftskosten'!M:M)","v":0},{"$f":"SUMIF('4. Ausrüstungskosten'!C:C,B42,'4. Ausrüstungskosten'!H:H)","v":0},{"$f":"SUMIF('5. Kosten für Unteraufträge'!C:C,B42,'5. Kosten für Unteraufträge'!H:H)","v":0},{"$f":"SUMIF('B. Spezieller Mob. - Student'!B:B,B42,'B. Spezieller Mob. - Student'!N:N)+SUMIF('B. Spezieller Mob. - Personal'!B:B,B42,'B. Spezieller Mob. - Personal'!N:N)","v":0},0]
[null,"P11",null,null,"",{"$f":"SUMIF('1. Personalkosten'!C:C,B43,'1. Personalkosten'!S:S)","v":0},{"$f":"SUMIF('2-3. Reise&Unterkunftskosten'!C:C,B43,'2-3. Reise&Unterkunftskosten'!L:L)","v":0},{"$f":"SUMIF('2-3. Reise&Unterkunftskosten'!C:C,B43,'2-3. Reise&Unterkunftskosten'!M:M)","v":0},{"$f":"SUMIF('4. Ausrüstungskosten'!C:C,B43,'4. Ausrüstungskosten'!H:H)","v":0},{"$f":"SUMIF('5. Kosten für Unteraufträge'!C:C,B43,'5. Kosten für Unteraufträge'!H:H)","v":0},{"$f":"SUMIF('B. Spezieller Mob. - Student'!B:B,B43,'B. Spezieller Mob. - Student'!N:N)+SUMIF('B. Spezieller Mob. - Personal'!B:B,B43,'B. Spezieller Mob. - Personal'!N:N)","v":0},0]
[null,"P12",null,null,"",{"$f":"SUMIF('1. Personalkosten'!C:C,B44,'1. Personalkosten'!S:S)","v":0},{"$f":"SUMIF('2-3. Reise&Unterkunftskosten'!C:C,B44,'2-3. Reise&Unterkunftskosten'!L:L)","v":0},{"$f":"SUMIF('2-3. Reise&Unterkunftskosten'!C:C,B44,'2-3. Reise&Unterkunftskosten'!M:M)","v":0},{"$f":"SUMIF('4. Ausrüstungskosten'!C:C,B44,'4. Ausrüstungskosten'!H:H)","v":0},{"$f":"SUMIF('5. Kosten für Unteraufträge'!C:C,B44,'5. Kosten für Unteraufträge'!H:H)","v":0},{"$f":"SUMIF('B. Spezieller Mob. - Student'!B:B,B44,'B. Spezieller Mob. - Student'!N:N)+SUMIF('B. Spezieller Mob. - Personal'!B:B,B44,'B. Spezieller Mob. - Personal'!N:N)","v":0},0]
[null,"P13",null,null,"",{"$f":"SUMIF('1. Personalkosten'!C:C,B45,'1. Personalkosten'!S:S)","v":0},{"$f":"SUMIF('2-3. Reise&Unterkunftskosten'!C:C,B45,'2-3. Reise&Unterkunftskosten'!L:L)","v":0},{"$f":"SUMIF('2-3. Reise&Unterkunftskosten'!C:C,B45,'2-3. Reise&Unterkunftskosten'!M:M)","v":0},{"$f":"SUMIF('4. Ausrüstungskosten'!C:C,B45,'4. Ausrüstungskosten'!H:H)","v":0},{"$f":"SUMIF('5. Kosten für Unteraufträge'!C:C,B45,'5. Kosten für Unteraufträge'!H:H)","v":0},{"$f":"SUMIF('B. Spezieller Mob. - Student'!B:B,B45,'B. Spezieller Mob. - Student'!N:N)+SUMIF('B. Spezieller Mob. - Personal'!B:B,B45,'B. Spezieller Mob. - Personal'!N:N)","v":0},0]
[null,"P14",null,null,"",{"$f":"SUMIF('1. Personalkosten'!C:C,B46,'1. Personalkosten'!S:S)","v":0},{"$f":"SUMIF('2-3. Reise&Unterkunftskosten'!C:C,B46,'2-3. Reise&Unterkunftskosten'!L:L)","v":0},{"$f":"SUMIF('2-3. Reise&Unterkunftskosten'!C:C,B46,'2-3. Reise&Unterkunftskosten'!M:M)","v":0},{"$f":"SUMIF('4. Ausrüstungskosten'!C:C,B46,'4. Ausrüstungskosten'!H:H)","v":0},{"$f":"SUMIF('5. Kosten für Unteraufträge'!C:C,B46,'5. Kosten für Unteraufträge'!H:H)","v":0},{"$f":"SUMIF('B. Spezieller Mob. - Student'!B:B,B46,'B. Spezieller Mob. - Student'!N:N)+SUMIF('B. Spezieller Mob. - Personal'!B:B,B46,'B. Spezieller Mob. - Personal'!N:N)","v":0},0]
[null,"P15",null,null,"",{"$f":"SUMIF('1. Personalkosten'!C:C,B47,'1. Personalkosten'!S:S)","v":0},{"$f":"SUMIF('2-3. Reise&Unterkunftskosten'!C:C,B47,'2-3. Reise&Unterkunftskosten'!L:L)","v":0},{"$f":"SUMIF('2-3. Reise&Unterkunftskosten'!C:C,B47,'2-3. Reise&Unterkunftskosten'!M:M)","v":0},{"$f":"SUMIF('4. Ausrüstungskosten'!C:C,B47,'4. Ausrüstungskosten'!H:H)","v":0},{"$f":"SUMIF('5. Kosten für Unteraufträge'!C:C,B47,'5. Kosten für Unteraufträge'!H:H)","v":0},{"$f":"SUMIF('B. Spezieller Mob. - Student'!B:B,B47,'B. Spezieller Mob. - Student'!N:N)+SUMIF('B. Spezieller Mob. - Personal'!B:B,B47,'B. Spezieller Mob. - Personal'!N:N)","v":0},0]
[null,"P16",null,null,"",{"$f":"SUMIF('1. Personalkosten'!C:C,B48,'1. Personalkosten'!S:S)","v":0},{"$f":"SUMIF('2-3. Reise&Unterkunftskosten'!C:C,B48,'2-3. Reise&Unterkunftskosten'!L:L)","v":0},{"$f":"SUMIF('2-3. Reise&Unterkunftskosten'!C:C,B48,'2-3. Reise&Unterkunftskosten'!M:M)","v":0},{"$f":"SUMIF('4. Ausrüstungskosten'!C:C,B48,'4. Ausrüstungskosten'!H:H)","v":0},{"$f":"SUMIF('5. Kosten für Unteraufträge'!C:C,B48,'5. Kosten für Unteraufträge'!H:H)","v":0},{"$f":"SUMIF('B. Spezieller Mob. - Student'!B:B,B48,'B. Spezieller Mob. - Student'!N:N)+SUMIF('B. Spezieller Mob. - Personal'!B:B,B48,'B. Spezieller Mob. - Personal'!N:N)","v":0},0]
[null,"P17",null,null,"",{"$f":"SUMIF('1. Personalkosten'!C:C,B49,'1. Personalkosten'!S:S)","v":0},{"$f":"SUMIF('2-3. Reise&Unterkunftskosten'!C:C,B49,'2-3. Reise&Unterkunftskosten'!L:L)","v":0},{"$f":"SUMIF('2-3. Reise&Unterkunftskosten'!C:C,B49,'2-3. Reise&Unterkunftskosten'!M:M)","v":0},{"$f":"SUMIF('4. Ausrüstungskosten'!C:C,B49,'4. Ausrüstungskosten'!H:H)","v":0},{"$f":"SUMIF('5. Kosten für Unteraufträge'!C:C,B49,'5. Kosten für Unteraufträge'!H:H)","v":0},{"$f":"SUMIF('B. Spezieller Mob. - Student'!B:B,B49,'B. Spezieller Mob. - Student'!N:N)+SUMIF('B. Spezieller Mob. - Personal'!B:B,B49,'B. Spezieller Mob. - Personal'!N:N)","v":0},0]
[null,"P18",null,null,"",{"$f":"SUMIF('1. Personalkosten'!C:C,B50,'1. Personalkosten'!S:S)","v":0},{"$f":"SUMIF('2-3. Reise&Unterkunftskosten'!C:C,B50,'2-3. Reise&Unterkunftskosten'!L:L)","v":0},{"$f":"SUMIF('2-3. Reise&Unterkunftskosten'!C:C,B50,'2-3. Reise&Unterkunftskosten'!M:M)","v":0},{"$f":"SUMIF('4. Ausrüstungskosten'!C:C,B50,'4. Ausrüstungskosten'!H:H)","v":0},{"$f":"SUMIF('5. Kosten für Unteraufträge'!C:C,B50,'5. Kosten für Unteraufträge'!H:H)","v":0},{"$f":"SUMIF('B. Spezieller Mob. - Student'!B:B,B50,'B. Spezieller Mob. - Student'!N:N)+SUMIF('B. Spezieller Mob. - Personal'!B:B,B50,'B. Spezieller Mob. - Personal'!N:N)","v":0},0]
[null,"P19",null,null,"",{"$f":"SUMIF('1. Personalkosten'!C:C,B51,'1. Personalkosten'!S:S)","v":0},{"$f":"SUMIF('2-3. Reise&Unterkunftskosten'!C:C,B51,'2-3. Reise&Unterkunftskosten'!L:L)","v":0},{"$f":"SUMIF('2-3. Reise&Unterkunftskosten'!C:C,B51,'2-3. Reise&Unterkunftskosten'!M:M)","v":0},{"$f":"SUMIF('4. Ausrüstungskosten'!C:C,B51,'4. Ausrüstungskosten'!H:H)","v":0},{"$f":"SUMIF('5. Kosten für Unteraufträge'!C:C,B51,'5. Kosten für Unteraufträge'!H:H)","v":0},{"$f":"SUMIF('B. Spezieller Mob. - Student'!B:B,B51,'B. Spezieller Mob. - Student'!N:N)+SUMIF('B. Spezieller Mob. - Personal'!B:B,B51,'B. Spezieller Mob. - Personal'!N:N)","v":0},0]
[null,"P20",null,null,"",{"$f":"SUMIF('1. Personalkosten'!C:C,B52,'1. Personalkosten'!S:S)","v":0},{"$f":"SUMIF('2-3. Reise&Unterkunftskosten'!C:C,B52,'2-3. Reise&Unterkunftskosten'!L:L)","v":0},{"$f":"SUMIF('2-3. Reise&Unterkunftskosten'!C:C,B52,'2-3. Reise&Unterkunftskosten'!M:M)","v":0},{"$f":"SUMIF('4. Ausrüstungskosten'!C:C,B52,'4. Ausrüstungskosten'!H:H)","v":0},{"$f":"SUMIF('5. Kosten für Unteraufträge'!C:C,B52,'5. Kosten für Unteraufträge'!H:H)","v":0},{"$f":"SUMIF('B. Spezieller Mob. - Student'!B:B,B52,'B. Spezieller Mob. - Student'!N:N)+SUMIF('B. Spezieller Mob. - Personal'!B:B,B52,'B. Spezieller Mob. - Personal'!N:N)","v":0},0]
[null,"P21",null,null,"",{"$f":"SUMIF('1. Personalkosten'!C:C,B53,'1. Personalkosten'!S:S)","v":0},{"$f":"SUMIF('2-3. Reise&Unterkunftskosten'!C:C,B53,'2-3. Reise&Unterkunftskosten'!L:L)","v":0},{"$f":"SUMIF('2-3. Reise&Unterkunftskosten'!C:C,B53,'2-3. Reise&Unterkunftskosten'!M:M)","v":0},{"$f":"SUMIF('4. Ausrüstungskosten'!C:C,B53,'4. Ausrüstungskosten'!H:H)","v":0},{"$f":"SUMIF('5. Kosten für Unteraufträge'!C:C,B53,'5. Kosten für Unteraufträge'!H:H)","v":0},{"$f":"SUMIF('B. Spezieller Mob. - Student'!B:B,B53,'B. Spezieller Mob. - Student'!N:N)+SUMIF('B. Spezieller Mob. - Personal'!B:B,B53,'B. Spezieller Mob. - Personal'!N:N)","v":0},0]
[null,"P22",null,null,"",{"$f":"SUMIF('1. Personalkosten'!C:C,B54,'1. Personalkosten'!S:S)","v":0},{"$f":"SUMIF('2-3. Reise&Unterkunftskosten'!C:C,B54,'2-3. Reise&Unterkunftskosten'!L:L)","v":0},{"$f":"SUMIF('2-3. Reise&Unterkunftskosten'!C:C,B54,'2-3. Reise&Unterkunftskosten'!M:M)","v":0},{"$f":"SUMIF('4. Ausrüstungskosten'!C:C,B54,'4. Ausrüstungskosten'!H:H)","v":0},{"$f":"SUMIF('5. Kosten für Unteraufträge'!C:C,B54,'5. Kosten für Unteraufträge'!H:H)","v":0},{"$f":"SUMIF('B. Spezieller Mob. - Student'!B:B,B54,'B. Spezieller Mob. - Student'!N:N)+SUMIF('B. Spezieller Mob. - Personal'!B:B,B54,'B. Spezieller Mob. - Personal'!N:N)","v":0},0]
[null,"P23",null,null,"",{"$f":"SUMIF('1. Personalkosten'!C:C,B55,'1. Personalkosten'!S:S)","v":0},{"$f":"SUMIF('2-3. Reise&Unterkunftskosten'!C:C,B55,'2-3. Reise&Unterkunftskosten'!L:L)","v":0},{"$f":"SUMIF('2-3. Reise&Unterkunftskosten'!C:C,B55,'2-3. Reise&Unterkunftskosten'!M:M)","v":0},{"$f":"SUMIF('4. Ausrüstungskosten'!C:C,B55,'4. Ausrüstungskosten'!H:H)","v":0},{"$f":"SUMIF('5. Kosten für Unteraufträge'!C:C,B55,'5. Kosten für Unteraufträge'!H:H)","v":0},{"$f":"SUMIF('B. Spezieller Mob. - Student'!B:B,B55,'B. Spezieller Mob. - Student'!N:N)+SUMIF('B. Spezieller Mob. - Personal'!B:B,B55,'B. Spezieller Mob. - Personal'!N:N)","v":0},0]
[null,"P24",null,null,"",{"$f":"SUMIF('1. Personalkosten'!C:C,B56,'1. Personalkosten'!S:S)","v":0},{"$f":"SUMIF('2-3. Reise&Unterkunftskosten'!C:C,B56,'2-3. Reise&Unterkunftskosten'!L:L)","v":0},{"$f":"SUMIF('2-3. Reise&Unterkunftskosten'!C:C,B56,'2-3. Reise&Unterkunftskosten'!M:M)","v":0},{"$f":"SUMIF('4. Ausrüstungskosten'!C:C,B56,'4. Ausrüstungskosten'!H:H)","v":0},{"$f":"SUMIF('5. Kosten für Unteraufträge'!C:C,B56,'5. Kosten für Unteraufträge'!H:H)","v":0},{"$f":"SUMIF('B. Spezieller Mob. - Student'!B:B,B56,'B. Spezieller Mob. - Student'!N:N)+SUMIF('B. Spezieller Mob. - Personal'!B:B,B56,'B. Spezieller Mob. - Personal'!N:N)","v":0},0]
[null,"P25",null,null,"",{"$f":"SUMIF('1. Personalkosten'!C:C,B57,'1. Personalkosten'!S:S)","v":0},{"$f":"SUMIF('2-3. Reise&Unterkunftskosten'!C:C,B57,'2-3. Reise&Unterkunftskosten'!L:L)","v":0},{"$f":"SUMIF('2-3. Reise&Unterkunftskosten'!C:C,B57,'2-3. Reise&Unterkunftskosten'!M:M)","v":0},{"$f":"SUMIF('4. Ausrüstungskosten'!C:C,B57,'4. Ausrüstungskosten'!H:H)","v":0},{"$f":"SUMIF('5. Kosten für Unteraufträge'!C:C,B57,'5. Kosten für Unteraufträge'!H:H)","v":0},{"$f":"SUMIF('B. Spezieller Mob. - Student'!B:B,B57,'B. Spezieller Mob. - Student'!N:N)+SUMIF('B. Spezieller Mob. - Personal'!B:B,B57,'B. Spezieller Mob. - Personal'!N:N)","v":0},0]
[null,"P26",null,null,"",{"$f":"SUMIF('1. Personalkosten'!C:C,B58,'1. Personalkosten'!S:S)","v":0},{"$f":"SUMIF('2-3. Reise&Unterkunftskosten'!C:C,B58,'2-3. Reise&Unterkunftskosten'!L:L)","v":0},{"$f":"SUMIF('2-3. Reise&Unterkunftskosten'!C:C,B58,'2-3. Reise&Unterkunftskosten'!M:M)","v":0},{"$f":"SUMIF('4. Ausrüstungskosten'!C:C,B58,'4. Ausrüstungskosten'!H:H)","v":0},{"$f":"SUMIF('5. Kosten für Unteraufträge'!C:C,B58,'5. Kosten für Unteraufträge'!H:H)","v":0},{"$f":"SUMIF('B. Spezieller Mob. - Student'!B:B,B58,'B. Spezieller Mob. - Student'!N:N)+SUMIF('B. Spezieller Mob. - Personal'!B:B,B58,'B. Spezieller Mob. - Personal'!N:N)","v":0},0]
[null,"P27",null,null,"",{"$f":"SUMIF('1. Personalkosten'!C:C,B59,'1. Personalkosten'!S:S)","v":0},{"$f":"SUMIF('2-3. Reise&Unterkunftskosten'!C:C,B59,'2-3. Reise&Unterkunftskosten'!L:L)","v":0},{"$f":"SUMIF('2-3. Reise&Unterkunftskosten'!C:C,B59,'2-3. Reise&Unterkunftskosten'!M:M)","v":0},{"$f":"SUMIF('4. Ausrüstungskosten'!C:C,B59,'4. Ausrüstungskosten'!H:H)","v":0},{"$f":"SUMIF('5. Kosten für Unteraufträge'!C:C,B59,'5. Kosten für Unteraufträge'!H:H)","v":0},{"$f":"SUMIF('B. Spezieller Mob. - Student'!B:B,B59,'B. Spezieller Mob. - Student'!N:N)+SUMIF('B. Spezieller Mob. - Personal'!B:B,B59,'B. Spezieller Mob. - Personal'!N:N)","v":0},0]
[null,"P28",null,null,"",{"$f":"SUMIF('1. Personalkosten'!C:C,B60,'1. Personalkosten'!S:S)","v":0},{"$f":"SUMIF('2-3. Reise&Unterkunftskosten'!C:C,B60,'2-3. Reise&Unterkunftskosten'!L:L)","v":0},{"$f":"SUMIF('2-3. Reise&Unterkunftskosten'!C:C,B60,'2-3. Reise&Unterkunftskosten'!M:M)","v":0},{"$f":"SUMIF('4. Ausrüstungskosten'!C:C,B60,'4. Ausrüstungskosten'!H:H)","v":0},{"$f":"SUMIF('5. Kosten für Unteraufträge'!C:C,B60,'5. Kosten für Unteraufträge'!H:H)","v":0},{"$f":"SUMIF('B. Spezieller Mob. - Student'!B:B,B60,'B. Spezieller Mob. - Student'!N:N)+SUMIF('B. Spezieller Mob. - Personal'!B:B,B60,'B. Spezieller Mob. - Personal'!N:N)","v":0},0]
[null,"P29",null,null,"",{"$f":"SUMIF('1. Personalkosten'!C:C,B61,'1. Personalkosten'!S:S)","v":0},{"$f":"SUMIF('2-3. Reise&Unterkunftskosten'!C:C,B61,'2-3. Reise&Unterkunftskosten'!L:L)","v":0},{"$f":"SUMIF('2-3. Reise&Unterkunftskosten'!C:C,B61,'2-3. Reise&Unterkunftskosten'!M:M)","v":0},{"$f":"SUMIF('4. Ausrüstungskosten'!C:C,B61,'4. Ausrüstungskosten'!H:H)","v":0},{"$f":"SUMIF('5. Kosten für Unteraufträge'!C:C,B61,'5. Kosten für Unteraufträge'!H:H)","v":0},{"$f":"SUMIF('B. Spezieller Mob. - Student'!B:B,B61,'B. Spezieller Mob. - Student'!N:N)+SUMIF('B. Spezieller Mob. - Personal'!B:B,B61,'B. Spezieller Mob. - Personal'!N:N)","v":0},0]
[null,"P30",null,null,"",{"$f":"SUMIF('1. Personalkosten'!C:C,B62,'1. Personalkosten'!S:S)","v":0},{"$f":"SUMIF('2-3. Reise&Unterkunftskosten'!C:C,B62,'2-3. Reise&Unterkunftskosten'!L:L)","v":0},{"$f":"SUMIF('2-3. Reise&Unterkunftskosten'!C:C,B62,'2-3. Reise&Unterkunftskosten'!M:M)","v":0},{"$f":"SUMIF('4. Ausrüstungskosten'!C:C,B62,'4. Ausrüstungskosten'!H:H)","v":0},{"$f":"SUMIF('5. Kosten für Unteraufträge'!C:C,B62,'5. Kosten für Unteraufträge'!H:H)","v":0},{"$f":"SUMIF('B. Spezieller Mob. - Student'!B:B,B62,'B. Spezieller Mob. - Student'!N:N)+SUMIF('B. Spezieller Mob. - Personal'!B:B,B62,'B. Spezieller Mob. - Personal'!N:N)","v":0},0]
[null,"P31",null,null,"",{"$f":"SUMIF('1. Personalkosten'!C:C,B63,'1. Personalkosten'!S:S)","v":0},{"$f":"SUMIF('2-3. Reise&Unterkunftskosten'!C:C,B63,'2-3. Reise&Unterkunftskosten'!L:L)","v":0},{"$f":"SUMIF('2-3. Reise&Unterkunftskosten'!C:C,B63,'2-3. Reise&Unterkunftskosten'!M:M)","v":0},{"$f":"SUMIF('4. Ausrüstungskosten'!C:C,B63,'4. Ausrüstungskosten'!H:H)","v":0},{"$f":"SUMIF('5. Kosten für Unteraufträge'!C:C,B63,'5. Kosten für Unteraufträge'!H:H)","v":0},{"$f":"SUMIF('B. Spezieller Mob. - Student'!B:B,B63,'B. Spezieller Mob. - Student'!N:N)+SUMIF('B. Spezieller Mob. - Personal'!B:B,B63,'B. Spezieller Mob. - Personal'!N:N)","v":0},0]
[null,"P32",null,null,"",{"$f":"SUMIF('1. Personalkosten'!C:C,B64,'1. Personalkosten'!S:S)","v":0},{"$f":"SUMIF('2-3. Reise&Unterkunftskosten'!C:C,B64,'2-3. Reise&Unterkunftskosten'!L:L)","v":0},{"$f":"SUMIF('2-3. Reise&Unterkunftskosten'!C:C,B64,'2-3. Reise&Unterkunftskosten'!M:M)","v":0},{"$f":"SUMIF('4. Ausrüstungskosten'!C:C,B64,'4. Ausrüstungskosten'!H:H)","v":0},{"$f":"SUMIF('5. Kosten für Unteraufträge'!C:C,B64,'5. Kosten für Unteraufträge'!H:H)","v":0},{"$f":"SUMIF('B. Spezieller Mob. - Student'!B:B,B64,'B. Spezieller Mob. - Student'!N:N)+SUMIF('B. Spezieller Mob. - Personal'!B:B,B64,'B. Spezieller Mob. - Personal'!N:N)","v":0},0]
[null,"P33",null,null,{"$f":"IFERROR(IF(D65<>\"\",VLOOKUP(D65,CountryType,2,FALSE),\"\"),\"Land nicht gefunden\")","v":""},{"$f":"SUMIF('1. Personalkosten'!C:C,B65,'1. Personalkosten'!S:S)","v":0},{"$f":"SUMIF('2-3. Reise&Unterkunftskosten'!C:C,B65,'2-3. Reise&Unterkunftskosten'!L:L)","v":0},{"$f":"SUMIF('2-3. Reise&Unterkunftskosten'!C:C,B65,'2-3. Reise&Unterkunftskosten'!M:M)","v":0},{"$f":"SUMIF('4. Ausrüstungskosten'!C:C,B65,'4. Ausrüstungskosten'!H:H)","v":0},{"$f":"SUMIF('5. Kosten für Unteraufträge'!C:C,B65,'5. Kosten für Unteraufträge'!H:H)","v":0},{"$f":"SUMIF('B. Spezieller Mob. - Student'!B:B,B65,'B. Spezieller Mob. - Student'!N:N)+SUMIF('B. Spezieller Mob. - Personal'!B:B,B65,'B. Spezieller Mob. - Personal'!N:N)","v":0},0]
[null,"P34",null,null,"",{"$f":"SUMIF('1. Personalkosten'!C:C,B66,'1. Personalkosten'!S:S)","v":0},{"$f":"SUMIF('2-3. Reise&Unterkunftskosten'!C:C,B66,'2-3. Reise&Unterkunftskosten'!L:L)","v":0},{"$f":"SUMIF('2-3. Reise&Unterkunftskosten'!C:C,B66,'2-3. Reise&Unterkunftskosten'!M:M)","v":0},{"$f":"SUMIF('4. Ausrüstungskosten'!C:C,B66,'4. Ausrüstungskosten'!H:H)","v":0},{"$f":"SUMIF('5. Kosten für Unteraufträge'!C:C,B66,'5. Kosten für Unteraufträge'!H:H)","v":0},{"$f":"SUMIF('B. Spezieller Mob. - Student'!B:B,B66,'B. Spezieller Mob. - Student'!N:N)+SUMIF('B. Spezieller Mob. - Personal'!B:B,B66,'B. Spezieller Mob. - Personal'!N:N)","v":0},0]
[null,"P35",null,null,"",{"$f":"SUMIF('1. Personalkosten'!C:C,B67,'1. Personalkosten'!S:S)","v":0},{"$f":"SUMIF('2-3. Reise&Unterkunftskosten'!C:C,B67,'2-3. Reise&Unterkunftskosten'!L:L)","v":0},{"$f":"SUMIF('2-3. Reise&Unterkunftskosten'!C:C,B67,'2-3. Reise&Unterkunftskosten'!M:M)","v":0},{"$f":"SUMIF('4. Ausrüstungskosten'!C:C,B67,'4. Ausrüstungskosten'!H:H)","v":0},{"$f":"SUMIF('5. Kosten für Unteraufträge'!C:C,B67,'5. Kosten für Unteraufträge'!H:H)","v":0},{"$f":"SUMIF('B. Spezieller Mob. - Student'!B:B,B67,'B. Spezieller Mob. - Student'!N:N)+SUMIF('B. Spezieller Mob. - Personal'!B:B,B67,'B. Spezieller Mob. - Personal'!N:N)","v":0},0]
[null,"P36",null,null,"",{"$f":"SUMIF('1. Personalkosten'!C:C,B68,'1. Personalkosten'!S:S)","v":0},{"$f":"SUMIF('2-3. Reise&Unterkunftskosten'!C:C,B68,'2-3. Reise&Unterkunftskosten'!L:L)","v":0},{"$f":"SUMIF('2-3. Reise&Unterkunftskosten'!C:C,B68,'2-3. Reise&Unterkunftskosten'!M:M)","v":0},{"$f":"SUMIF('4. Ausrüstungskosten'!C:C,B68,'4. Ausrüstungskosten'!H:H)","v":0},{"$f":"SUMIF('5. Kosten für Unteraufträge'!C:C,B68,'5. Kosten für Unteraufträge'!H:H)","v":0},{"$f":"SUMIF('B. Spezieller Mob. - Student'!B:B,B68,'B. Spezieller Mob. - Student'!N:N)+SUMIF('B. Spezieller Mob. - Personal'!B:B,B68,'B. Spezieller Mob. - Personal'!N:N)","v":0},0]
[null,"P37",null,null,"",{"$f":"SUMIF('1. Personalkosten'!C:C,B69,'1. Personalkosten'!S:S)","v":0},{"$f":"SUMIF('2-3. Reise&Unterkunftskosten'!C:C,B69,'2-3. Reise&Unterkunftskosten'!L:L)","v":0},{"$f":"SUMIF('2-3. Reise&Unterkunftskosten'!C:C,B69,'2-3. Reise&Unterkunftskosten'!M:M)","v":0},{"$f":"SUMIF('4. Ausrüstungskosten'!C:C,B69,'4. Ausrüstungskosten'!H:H)","v":0},{"$f":"SUMIF('5. Kosten für Unteraufträge'!C:C,B69,'5. Kosten für Unteraufträge'!H:H)","v":0},{"$f":"SUMIF('B. Spezieller Mob. - Student'!B:B,B69,'B. Spezieller Mob. - Student'!N:N)+SUMIF('B. Spezieller Mob. - Personal'!B:B,B69,'B. Spezieller Mob. - Personal'!N:N)","v":0},0]
[null,"P38",null,null,"",{"$f":"SUMIF('1. Personalkosten'!C:C,B70,'1. Personalkosten'!S:S)","v":0},{"$f":"SUMIF('2-3. Reise&Unterkunftskosten'!C:C,B70,'2-3. Reise&Unterkunftskosten'!L:L)","v":0},{"$f":"SUMIF('2-3. Reise&Unterkunftskosten'!C:C,B70,'2-3. Reise&Unterkunftskosten'!M:M)","v":0},{"$f":"SUMIF('4. Ausrüstungskosten'!C:C,B70,'4. Ausrüstungskosten'!H:H)","v":0},{"$f":"SUMIF('5. Kosten für Unteraufträge'!C:C,B70,'5. Kosten für Unteraufträge'!H:H)","v":0},{"$f":"SUMIF('B. Spezieller Mob. - Student'!B:B,B70,'B. Spezieller Mob. - Student'!N:N)+SUMIF('B. Spezieller Mob. - Personal'!B:B,B70,'B. Spezieller Mob. - Personal'!N:N)","v":0},0]
[null,"P39",null,null,"",{"$f":"SUMIF('1. Personalkosten'!C:C,B71,'1. Personalkosten'!S:S)","v":0},{"$f":"SUMIF('2-3. Reise&Unterkunftskosten'!C:C,B71,'2-3. Reise&Unterkunftskosten'!L:L)","v":0},{"$f":"SUMIF('2-3. Reise&Unterkunftskosten'!C:C,B71,'2-3. Reise&Unterkunftskosten'!M:M)","v":0},{"$f":"SUMIF('4. Ausrüstungskosten'!C:C,B71,'4. Ausrüstungskosten'!H:H)","v":0},{"$f":"SUMIF('5. Kosten für Unteraufträge'!C:C,B71,'5. Kosten für Unteraufträge'!H:H)","v":0},{"$f":"SUMIF('B. Spezieller Mob. - Student'!B:B,B71,'B. Spezieller Mob. - Student'!N:N)+SUMIF('B. Spezieller Mob. - Personal'!B:B,B71,'B. Spezieller Mob. - Personal'!N:N)","v":0},0]
[null,"P40",null,null,"",{"$f":"SUMIF('1. Personalkosten'!C:C,B72,'1. Personalkosten'!S:S)","v":0},{"$f":"SUMIF('2-3. Reise&Unterkunftskosten'!C:C,B72,'2-3. Reise&Unterkunftskosten'!L:L)","v":0},{"$f":"SUMIF('2-3. Reise&Unterkunftskosten'!C:C,B72,'2-3. Reise&Unterkunftskosten'!M:M)","v":0},{"$f":"SUMIF('4. Ausrüstungskosten'!C:C,B72,'4. Ausrüstungskosten'!H:H)","v":0},{"$f":"SUMIF('5. Kosten für Unteraufträge'!C:C,B72,'5. Kosten für Unteraufträge'!H:H)","v":0},{"$f":"SUMIF('B. Spezieller Mob. - Student'!B:B,B72,'B. Spezieller Mob. - Student'!N:N)+SUMIF('B. Spezieller Mob. - Personal'!B:B,B72,'B. Spezieller Mob. - Personal'!N:N)","v":0},0]
[null,"P41",null,null,"",{"$f":"SUMIF('1. Personalkosten'!C:C,B73,'1. Personalkosten'!S:S)","v":0},{"$f":"SUMIF('2-3. Reise&Unterkunftskosten'!C:C,B73,'2-3. Reise&Unterkunftskosten'!L:L)","v":0},{"$f":"SUMIF('2-3. Reise&Unterkunftskosten'!C:C,B73,'2-3. Reise&Unterkunftskosten'!M:M)","v":0},{"$f":"SUMIF('4. Ausrüstungskosten'!C:C,B73,'4. Ausrüstungskosten'!H:H)","v":0},{"$f":"SUMIF('5. Kosten für Unteraufträge'!C:C,B73,'5. Kosten für Unteraufträge'!H:H)","v":0},{"$f":"SUMIF('B. Spezieller Mob. - Student'!B:B,B73,'B. Spezieller Mob. - Student'!N:N)+SUMIF('B. Spezieller Mob. - Personal'!B:B,B73,'B. Spezieller Mob. - Personal'!N:N)","v":0},0]
[null,"P42",null,null,"",{"$f":"SUMIF('1. Personalkosten'!C:C,B74,'1. Personalkosten'!S:S)","v":0},{"$f":"SUMIF('2-3. Reise&Unterkunftskosten'!C:C,B74,'2-3. Reise&Unterkunftskosten'!L:L)","v":0},{"$f":"SUMIF('2-3. Reise&Unterkunftskosten'!C:C,B74,'2-3. Reise&Unterkunftskosten'!M:M)","v":0},{"$f":"SUMIF('4. Ausrüstungskosten'!C:C,B74,'4. Ausrüstungskosten'!H:H)","v":0},{"$f":"SUMIF('5. Kosten für Unteraufträge'!C:C,B74,'5. Kosten für Unteraufträge'!H:H)","v":0},{"$f":"SUMIF('B. Spezieller Mob. - Student'!B:B,B74,'B. Spezieller Mob. - Student'!N:N)+SUMIF('B. Spezieller Mob. - Personal'!B:B,B74,'B. Spezieller Mob. - Personal'!N:N)","v":0},0]
[null,"P43",null,null,"",{"$f":"SUMIF('1. Personalkosten'!C:C,B75,'1. Personalkosten'!S:S)","v":0},{"$f":"SUMIF('2-3. Reise&Unterkunftskosten'!C:C,B75,'2-3. Reise&Unterkunftskosten'!L:L)","v":0},{"$f":"SUMIF('2-3. Reise&Unterkunftskosten'!C:C,B75,'2-3. Reise&Unterkunftskosten'!M:M)","v":0},{"$f":"SUMIF('4. Ausrüstungskosten'!C:C,B75,'4. Ausrüstungskosten'!H:H)","v":0},{"$f":"SUMIF('5. Kosten für Unteraufträge'!C:C,B75,'5. Kosten für Unteraufträge'!H:H)","v":0},{"$f":"SUMIF('B. Spezieller Mob. - Student'!B:B,B75,'B. Spezieller Mob. - Student'!N:N)+SUMIF('B. Spezieller Mob. - Personal'!B:B,B75,'B. Spezieller Mob. - Personal'!N:N)","v":0},0]
[null,"P44",null,null,"",{"$f":"SUMIF('1. Personalkosten'!C:C,B76,'1. Personalkosten'!S:S)","v":0},{"$f":"SUMIF('2-3. Reise&Unterkunftskosten'!C:C,B76,'2-3. Reise&Unterkunftskosten'!L:L)","v":0},{"$f":"SUMIF('2-3. Reise&Unterkunftskosten'!C:C,B76,'2-3. Reise&Unterkunftskosten'!M:M)","v":0},{"$f":"SUMIF('4. Ausrüstungskosten'!C:C,B76,'4. Ausrüstungskosten'!H:H)","v":0},{"$f":"SUMIF('5. Kosten für Unteraufträge'!C:C,B76,'5. Kosten für Unteraufträge'!H:H)","v":0},{"$f":"SUMIF('B. Spezieller Mob. - Student'!B:B,B76,'B. Spezieller Mob. - Student'!N:N)+SUMIF('B. Spezieller Mob. - Personal'!B:B,B76,'B. Spezieller Mob. - Personal'!N:N)","v":0},0]
[null,"P45",null,null,"",{"$f":"SUMIF('1. Personalkosten'!C:C,B77,'1. Personalkosten'!S:S)","v":0},{"$f":"SUMIF('2-3. Reise&Unterkunftskosten'!C:C,B77,'2-3. Reise&Unterkunftskosten'!L:L)","v":0},{"$f":"SUMIF('2-3. Reise&Unterkunftskosten'!C:C,B77,'2-3. Reise&Unterkunftskosten'!M:M)","v":0},{"$f":"SUMIF('4. Ausrüstungskosten'!C:C,B77,'4. Ausrüstungskosten'!H:H)","v":0},{"$f":"SUMIF('5. Kosten für Unteraufträge'!C:C,B77,'5. Kosten für Unteraufträge'!H:H)","v":0},{"$f":"SUMIF('B. Spezieller Mob. - Student'!B:B,B77,'B. Spezieller Mob. - Student'!N:N)+SUMIF('B. Spezieller Mob. - Personal'!B:B,B77,'B. Spezieller Mob. - Personal'!N:N)","v":0},0]
[null,"P46",null,null,"",{"$f":"SUMIF('1. Personalkosten'!C:C,B78,'1. Personalkosten'!S:S)","v":0},{"$f":"SUMIF('2-3. Reise&Unterkunftskosten'!C:C,B78,'2-3. Reise&Unterkunftskosten'!L:L)","v":0},{"$f":"SUMIF('2-3. Reise&Unterkunftskosten'!C:C,B78,'2-3. Reise&Unterkunftskosten'!M:M)","v":0},{"$f":"SUMIF('4. Ausrüstungskosten'!C:C,B78,'4. Ausrüstungskosten'!H:H)","v":0},{"$f":"SUMIF('5. Kosten für Unteraufträge'!C:C,B78,'5. Kosten für Unteraufträge'!H:H)","v":0},{"$f":"SUMIF('B. Spezieller Mob. - Student'!B:B,B78,'B. Spezieller Mob. - Student'!N:N)+SUMIF('B. Spezieller Mob. - Personal'!B:B,B78,'B. Spezieller Mob. - Personal'!N:N)","v":0},0]
[null,"P47",null,null,"",{"$f":"SUMIF('1. Personalkosten'!C:C,B79,'1. Personalkosten'!S:S)","v":0},{"$f":"SUMIF('2-3. Reise&Unterkunftskosten'!C:C,B79,'2-3. Reise&Unterkunftskosten'!L:L)","v":0},{"$f":"SUMIF('2-3. Reise&Unterkunftskosten'!C:C,B79,'2-3. Reise&Unterkunftskosten'!M:M)","v":0},{"$f":"SUMIF('4. Ausrüstungskosten'!C:C,B79,'4. Ausrüstungskosten'!H:H)","v":0},{"$f":"SUMIF('5. Kosten für Unteraufträge'!C:C,B79,'5. Kosten für Unteraufträge'!H:H)","v":0},{"$f":"SUMIF('B. Spezieller Mob. - Student'!B:B,B79,'B. Spezieller Mob. - Student'!N:N)+SUMIF('B. Spezieller Mob. - Personal'!B:B,B79,'B. Spezieller Mob. - Personal'!N:N)","v":0},0]
[null,"P48",null,null,"",{"$f":"SUMIF('1. Personalkosten'!C:C,B80,'1. Personalkosten'!S:S)","v":0},{"$f":"SUMIF('2-3. Reise&Unterkunftskosten'!C:C,B80,'2-3. Reise&Unterkunftskosten'!L:L)","v":0},{"$f":"SUMIF('2-3. Reise&Unterkunftskosten'!C:C,B80,'2-3. Reise&Unterkunftskosten'!M:M)","v":0},{"$f":"SUMIF('4. Ausrüstungskosten'!C:C,B80,'4. Ausrüstungskosten'!H:H)","v":0},{"$f":"SUMIF('5. Kosten für Unteraufträge'!C:C,B80,'5. Kosten für Unteraufträge'!H:H)","v":0},{"$f":"SUMIF('B. Spezieller Mob. - Student'!B:B,B80,'B. Spezieller Mob. - Student'!N:N)+SUMIF('B. Spezieller Mob. - Personal'!B:B,B80,'B. Spezieller Mob. - Personal'!N:N)","v":0},0]
[null,"P49",null,null,"",{"$f":"SUMIF('1. Personalkosten'!C:C,B81,'1. Personalkosten'!S:S)","v":0},{"$f":"SUMIF('2-3. Reise&Unterkunftskosten'!C:C,B81,'2-3. Reise&Unterkunftskosten'!L:L)","v":0},{"$f":"SUMIF('2-3. Reise&Unterkunftskosten'!C:C,B81,'2-3. Reise&Unterkunftskosten'!M:M)","v":0},{"$f":"SUMIF('4. Ausrüstungskosten'!C:C,B81,'4. Ausrüstungskosten'!H:H)","v":0},{"$f":"SUMIF('5. Kosten für Unteraufträge'!C:C,B81,'5. Kosten für Unteraufträge'!H:H)","v":0},{"$f":"SUMIF('B. Spezieller Mob. - Student'!B:B,B81,'B. Spezieller Mob. - Student'!N:N)+SUMIF('B. Spezieller Mob. - Personal'!B:B,B81,'B. Spezieller Mob. - Personal'!N:N)","v":0},0]
[null,"P50",null,null,"",{"$f":"SUMIF('1. Personalkosten'!C:C,B82,'1. Personalkosten'!S:S)","v":0},{"$f":"SUMIF('2-3. Reise&Unterkunftskosten'!C:C,B82,'2-3. Reise&Unterkunftskosten'!L:L)","v":0},{"$f":"SUMIF('2-3. Reise&Unterkunftskosten'!C:C,B82,'2-3. Reise&Unterkunftskosten'!M:M)","v":0},{"$f":"SUMIF('4. Ausrüstungskosten'!C:C,B82,'4. Ausrüstungskosten'!H:H)","v":0},{"$f":"SUMIF('5. Kosten für Unteraufträge'!C:C,B82,'5. Kosten für Unteraufträge'!H:H)","v":0},{"$f":"SUMIF('B. Spezieller Mob. - Student'!B:B,B82,'B. Spezieller Mob. - Student'!N:N)+SUMIF('B. Spezieller Mob. - Personal'!B:B,B82,'B. Spezieller Mob. - Personal'!N:N)","v":0},0]
[null,"P51",null,null,"",{"$f":"SUMIF('1. Personalkosten'!C:C,B83,'1. Personalkosten'!S:S)","v":0},{"$f":"SUMIF('2-3. Reise&Unterkunftskosten'!C:C,B83,'2-3. Reise&Unterkunftskosten'!L:L)","v":0},{"$f":"SUMIF('2-3. Reise&Unterkunftskosten'!C:C,B83,'2-3. Reise&Unterkunftskosten'!M:M)","v":0},{"$f":"SUMIF('4. Ausrüstungskosten'!C:C,B83,'4. Ausrüstungskosten'!H:H)","v":0},{"$f":"SUMIF('5. Kosten für Unteraufträge'!C:C,B83,'5. Kosten für Unteraufträge'!H:H)","v":0},{"$f":"SUMIF('B. Spezieller Mob. - Student'!B:B,B83,'B. Spezieller Mob. - Student'!N:N)+SUMIF('B. Spezieller Mob. - Personal'!B:B,B83,'B. Spezieller Mob. - Personal'!N:N)","v":0},0]
[null,"P52",null,null,"",{"$f":"SUMIF('1. Personalkosten'!C:C,B84,'1. Personalkosten'!S:S)","v":0},{"$f":"SUMIF('2-3. Reise&Unterkunftskosten'!C:C,B84,'2-3. Reise&Unterkunftskosten'!L:L)","v":0},{"$f":"SUMIF('2-3. Reise&Unterkunftskosten'!C:C,B84,'2-3. Reise&Unterkunftskosten'!M:M)","v":0},{"$f":"SUMIF('4. Ausrüstungskosten'!C:C,B84,'4. Ausrüstungskosten'!H:H)","v":0},{"$f":"SUMIF('5. Kosten für Unteraufträge'!C:C,B84,'5. Kosten für Unteraufträge'!H:H)","v":0},{"$f":"SUMIF('B. Spezieller Mob. - Student'!B:B,B84,'B. Spezieller Mob. - Student'!N:N)+SUMIF('B. Spezieller Mob. - Personal'!B:B,B84,'B. Spezieller Mob. - Personal'!N:N)","v":0},0]
[null,"P53",null,null,"",{"$f":"SUMIF('1. Personalkosten'!C:C,B85,'1. Personalkosten'!S:S)","v":0},{"$f":"SUMIF('2-3. Reise&Unterkunftskosten'!C:C,B85,'2-3. Reise&Unterkunftskosten'!L:L)","v":0},{"$f":"SUMIF('2-3. Reise&Unterkunftskosten'!C:C,B85,'2-3. Reise&Unterkunftskosten'!M:M)","v":0},{"$f":"SUMIF('4. Ausrüstungskosten'!C:C,B85,'4. Ausrüstungskosten'!H:H)","v":0},{"$f":"SUMIF('5. Kosten für Unteraufträge'!C:C,B85,'5. Kosten für Unteraufträge'!H:H)","v":0},{"$f":"SUMIF('B. Spezieller Mob. - Student'!B:B,B85,'B. Spezieller Mob. - Student'!N:N)+SUMIF('B. Spezieller Mob. - Personal'!B:B,B85,'B. Spezieller Mob. - Personal'!N:N)","v":0},0]
[null,"P54",null,null,"",{"$f":"SUMIF('1. Personalkosten'!C:C,B86,'1. Personalkosten'!S:S)","v":0},{"$f":"SUMIF('2-3. Reise&Unterkunftskosten'!C:C,B86,'2-3. Reise&Unterkunftskosten'!L:L)","v":0},{"$f":"SUMIF('2-3. Reise&Unterkunftskosten'!C:C,B86,'2-3. Reise&Unterkunftskosten'!M:M)","v":0},{"$f":"SUMIF('4. Ausrüstungskosten'!C:C,B86,'4. Ausrüstungskosten'!H:H)","v":0},{"$f":"SUMIF('5. Kosten für Unteraufträge'!C:C,B86,'5. Kosten für Unteraufträge'!H:H)","v":0},{"$f":"SUMIF('B. Spezieller Mob. - Student'!B:B,B86,'B. Spezieller Mob. - Student'!N:N)+SUMIF('B. Spezieller Mob. - Personal'!B:B,B86,'B. Spezieller Mob. - Personal'!N:N)","v":0},0]
[null,"P55",null,null,"",{"$f":"SUMIF('1. Personalkosten'!C:C,B87,'1. Personalkosten'!S:S)","v":0},{"$f":"SUMIF('2-3. Reise&Unterkunftskosten'!C:C,B87,'2-3. Reise&Unterkunftskosten'!L:L)","v":0},{"$f":"SUMIF('2-3. Reise&Unterkunftskosten'!C:C,B87,'2-3. Reise&Unterkunftskosten'!M:M)","v":0},{"$f":"SUMIF('4. Ausrüstungskosten'!C:C,B87,'4. Ausrüstungskosten'!H:H)","v":0},{"$f":"SUMIF('5. Kosten für Unteraufträge'!C:C,B87,'5. Kosten für Unteraufträge'!H:H)","v":0},{"$f":"SUMIF('B. Spezieller Mob. - Student'!B:B,B87,'B. Spezieller Mob. - Student'!N:N)+SUMIF('B. Spezieller Mob. - Personal'!B:B,B87,'B. Spezieller Mob. - Personal'!N:N)","v":0},0]

{"sheet":"1. Personalkosten","index":1,"n_rows":14,"n_cols":20,"rows_kept":14,"cut":false,"hidden":false,"merged":[[10,19,11,19],[1,1,1,19],[10,18,11,18],[10,5,10,7],[10,8,10,10],[10,11,10,13],[10,14,10,16],[9,1,9,18],[3,6,8,19],[10,1,11,1],[10,4,11,4],[10,3,11,3],[10,2,11,2],[7,1,7,2],[6,1,6,2],[5,1,5,2],[4,1,4,2],[3,1,3,2],[8,1,8,2],[2,1,2,18],[10,17,11,17]]}
[]
[null,"1. Personalkosten"]
[]
[null,null,null,"Gesamtbetrag (EUR)","Anzahl von Tagen"]
[null,"Manager",null,{"$f":"SUM(H:H)","v":0},{"$f":"SUMIF(T:T,\"<>Fehler\",F:F)","v":0}]
[null,"Lehrkraft/Ausbilder/Forscher",null,{"$f":"SUM(K:K)","v":0},{"$f":"SUMIF(T:T,\"<>Fehler\",I:I)","v":0}]
[null,"Techniker",null,{"$f":"SUM(N:N)","v":0},{"$f":"SUMIF(T:T,\"<>Fehler\",L:L)","v":0}]
[null,"Verwaltungskraft",null,{"$f":"SUM(Q:Q)","v":0},{"$f":"SUMIF(T:T,\"<>Fehler\",O:O)","v":0}]
[null,null,null,{"$f":"SUM(D5:D8)","v":0},{"$f":"SUM(E5:E8)","v":0}]
[]
[null,"Arbeitspaket","Partner \nNr.","Name des Partners\n(ins Übersichtsblatt eingeben)","Land\n(ins Übersichtsblatt eingeben)",{"$f":"Rates!E3","v":"Manager"},null,null,{"$f":"Rates!F3","v":"Lehrkraft/Ausbilder/Forscher"},null,null,{"$f":"Rates!G3","v":"Techniker"},null,null,{"$f":"Rates!H3","v":"Verwaltungskraft"},null,null,"Gesamtanzahl\nvon Tagen","Gesamtbetrag (EUR)","Codierungsfehler"]
[null,null,null,null,null,"Anzahl \nvon Tagen","Kosten je \nEinheit pro Tag","Gesamtbetrag (EUR)","Anzahl \nvon Tagen","Kosten je \nEinheit pro Tag","Gesamtbetrag (EUR)","Anzahl \nvon Tagen","Kosten je \nEinheit pro Tag","Gesamtbetrag (EUR)","Anzahl \nvon Tagen","Kosten je \nEinheit pro Tag","Gesamtbetrag (EUR)"]
[null,null,null,{"$f":"IFERROR(IF(VLOOKUP(C13,PartnerN°Ref,2,FALSE)=0,\"\",VLOOKUP(C13,PartnerN°Ref,2,FALSE)),\"\")","v":""},{"$f":"IFERROR(IF(OR(VLOOKUP(C13,PartnerN°Ref,4,FALSE)=\"Land nicht gefunden\",VLOOKUP(C13,PartnerN°Ref,3,FALSE)=0),\"\",VLOOKUP(C13,PartnerN°Ref,3,FALSE)),\"\")","v":""},0,{"$f":"IF(T13=\"Fehler\",0,INDEX(Rates,MATCH(E13,CountryALL,0),MATCH($F$11,Category,0)))","v":0},{"$f":"IFERROR(IF(T13=\"Fehler\",0,ROUND(F13*G13,2)),0)","v":0},0,{"$f":"IF(T13=\"Fehler\",0,INDEX(Rates,MATCH(E13,CountryALL,0),MATCH($I$11,Category,0)))","v":0},{"$f":"IFERROR(IF(T13=\"Fehler\",0,ROUND(I13*J13,2)),0)","v":0},0,{"$f":"IF(T13=\"Fehler\",0,INDEX(Rates,MATCH(E13,CountryALL,0),MATCH($L$11,Category,0)))","v":0},{"$f":"IFERROR(IF(T13=\"Fehler\",0,ROUND(L13*M13,2)),0)","v":0},0,{"$f":"IF(T13=\"Fehler\",0,INDEX(Rates,MATCH(E13,CountryALL,0),MATCH($O$11,Category,0)))","v":0},{"$f":"IFERROR(IF(T13=\"Fehler\",0,ROUND(O13*P13,2)),0)","v":0},{"$f":"IF(T13=\"Fehler\",0,F13+I13+L13+O13)","v":0},{"$f":"IF(T13=\"Fehler\",0,H13+K13+N13+Q13)","v":0},{"$f":"IF(OR(COUNTIF(WorkPackage,B13)=0,COUNTIF(PartnerN°,C13)=0,D13=\"\",COUNTIF(CountryALL,E13)=0,ISNUMBER(F13)=FALSE,ISNUMBER(I13)=FALSE,ISNUMBER(L13)=FALSE,ISNUMBER(O13)=FALSE,IF(ISNUMBER(F13)=TRUE,F13=INT(F13*10)/10=FALSE),IF(ISNUMBER(I13)=TRUE,I13=INT(I13*10)/10=FALSE),IF(ISNUMBER(L13)=TRUE,L13=INT(L13*10)/10=FALSE),IF(ISNUMBER(O13)=TRUE,O13=INT(O13*10)/10=FALSE)),\"Fehler\",\"\")","v":"Fehler"}]
[null,null,null,{"$f":"IFERROR(IF(VLOOKUP(C14,PartnerN°Ref,2,FALSE)=0,\"\",VLOOKUP(C14,PartnerN°Ref,2,FALSE)),\"\")","v":""},{"$f":"IFERROR(IF(OR(VLOOKUP(C14,PartnerN°Ref,4,FALSE)=\"Land nicht gefunden\",VLOOKUP(C14,PartnerN°Ref,3,FALSE)=0),\"\",VLOOKUP(C14,PartnerN°Ref,3,FALSE)),\"\")","v":""},0,{"$f":"IF(T14=\"Fehler\",0,INDEX(Rates,MATCH(E14,CountryALL,0),MATCH($F$11,Category,0)))","v":0},{"$f":"IFERROR(IF(T14=\"Fehler\",0,ROUND(F14*G14,2)),0)","v":0},0,{"$f":"IF(T14=\"Fehler\",0,INDEX(Rates,MATCH(E14,CountryALL,0),MATCH($I$11,Category,0)))","v":0},{"$f":"IFERROR(IF(T14=\"Fehler\",0,ROUND(I14*J14,2)),0)","v":0},0,{"$f":"IF(T14=\"Fehler\",0,INDEX(Rates,MATCH(E14,CountryALL,0),MATCH($L$11,Category,0)))","v":0},{"$f":"IFERROR(IF(T14=\"Fehler\",0,ROUND(L14*M14,2)),0)","v":0},0,{"$f":"IF(T14=\"Fehler\",0,INDEX(Rates,MATCH(E14,CountryALL,0),MATCH($O$11,Category,0)))","v":0},{"$f":"IFERROR(IF(T14=\"Fehler\",0,ROUND(O14*P14,2)),0)","v":0},{"$f":"IF(T14=\"Fehler\",0,F14+I14+L14+O14)","v":0},{"$f":"IF(T14=\"Fehler\",0,H14+K14+N14+Q14)","v":0},{"$f":"IF(OR(COUNTIF(WorkPackage,B14)=0,COUNTIF(PartnerN°,C14)=0,D14=\"\",COUNTIF(CountryALL,E14)=0,ISNUMBER(F14)=FALSE,ISNUMBER(I14)=FALSE,ISNUMBER(L14)=FALSE,ISNUMBER(O14)=FALSE,IF(ISNUMBER(F14)=TRUE,F14=INT(F14*10)/10=FALSE),IF(ISNUMBER(I14)=TRUE,I14=INT(I14*10)/10=FALSE),IF(ISNUMBER(L14)=TRUE,L14=INT(L14*10)/10=FALSE),IF(ISNUMBER(O14)=TRUE,O14=INT(O14*10)/10=FALSE)),\"Fehler\",\"\")","v":"Fehler"}]

{"sheet":"2-3. Reise&Unterkunftskosten","index":2,"n_rows":14,"n_cols":15,"rows_kept":14,"cut":false,"hidden":false,"merged":[[7,4,8,4],[5,4,6,4],[3,4,4,4],[10,1,11,1],[10,2,11,2],[8,1,8,2],[7,1,7,2],[6,1,6,2],[5,1,5,2],[4,1,4,2],[3,1,3,2],[10,14,11,14],[1,1,1,14],[10,5,11,5],[10,8,11,8],[10,7,11,7],[10,6,11,6],[10,4,11,4],[10,3,11,3],[10,13,11,13],[10,12,11,12],[10,11,11,11],[10,10,11,10],[10,9,11,9],[7,5,8,5],[5,5,6,5],[3,5,4,5]]}
[]
[null,"2-3. Reise&Unterkunftskosten"]
[]
[null,"Reisekosten Student (EUR)",null,{"$f":"SUMIF(G:G,\"Student\",L:L)","v":0},{"$f":"D4+D5","v":0},{"$f":"SUMIFS(H:H,G:G,\"Student\",O:O,\"<>Fehler\")","v":0}]
[null,"Unterhaltskosten Student (EUR)",null,{"$f":"SUMIF(G:G,\"Student\",M:M)","v":0}]
[null,"Reisekosten Personal (EUR)",null,{"$f":"SUMIF(G:G,\"Personal\",L:L)","v":0},{"$f":"D6+D7","v":0},{"$f":"SUMIFS(H:H,G:G,\"Personal\",O:O,\"<>Fehler\")","v":0}]
[null,"Unterhaltskosten Personal (EUR)",null,{"$f":"SUMIF(G:G,\"Personal\",M:M)","v":0}]
[null,"Gesamtbetrag Reisekosten (EUR)",null,{"$f":"SUM(L:L)","v":0},{"$f":"D8+D9","v":0},{"$f":"F4+F6","v":0}]
[null,"Gesamtbetrag Unterhaltskosten (EUR)",null,{"$f":"SUM(M:M)","v":0}]
[]
[null,"Arbeitspaket","Partner \nNr.","Name des Partners\n(ins Übersichtsblatt eingeben)","Land\n(ins Übersichtsblatt eingeben)","Stadt der Abreise","Student/Personal","Anzahl der Teilnehmer","Stadt der Ankunft","Reiseentfernung","Anzahl von Tagen (je Teilnehmer)","Reisekosten \n(EUR)","Unterkunftskosten\n(EUR)","Gesamtbetrag (EUR)","Codierungsfehler"]
[]
[null,null,null,{"$f":"IFERROR(IF(VLOOKUP(C13,PartnerN°Ref,2,FALSE)=0,\"\",VLOOKUP(C13,PartnerN°Ref,2,FALSE)),\"\")","v":""},{"$f":"IFERROR(IF(OR(VLOOKUP(C13,PartnerN°Ref,4,FALSE)=\"Land nicht gefunden\",VLOOKUP(C13,PartnerN°Ref,3,FALSE)=0),\"\",VLOOKUP(C13,PartnerN°Ref,3,FALSE)),\"\")","v":""},null,null,0,null,null,0,{"$f":"IF(O13=\"Fehler\",0,ROUND(ROUND(H13,0)*(VLOOKUP(J13,TravelCosts,2,FALSE)),2))","v":0},{"$f":"IF(O13=\"Fehler\",0,IF(AND(G13=\"Personal\",K13>0,K13<15),(120*K13)*H13,IF(AND(G13=\"Personal\",K13>14,K13<61),(1680+((K13-14)*70))*H13,IF(AND(G13=\"Personal\",K13>60,K13<91),(4900+((K13-60)*50))*H13,IF(AND(G13=\"Student\",K13>0,K13<15),(55*K13)*H13,IF(AND(G13=\"Student\",K13>14,K13<91),(770+((K13-14)*40))*H13,0))))))","v":0},{"$f":"L13+M13","v":0},{"$f":"IF(OR(COUNTIF(WorkPackage,B13)=0,COUNTIF(PartnerN°,C13)=0,D13=\"\",COUNTIF(CountryALL,E13)=0,F13=\"\",COUNTIF(Category2,G13)=0,ISNUMBER(H13)=FALSE,I13=\"\",COUNTIF(TravelBands,J13)=0,ISNUMBER(K13)=FALSE,OR(K13<0,K13>90),IF(ISNUMBER(H13)=TRUE,H13=INT(H13*1)/1=FALSE),IF(ISNUMBER(K13)=TRUE,K13=INT(K13*1)/1=FALSE)),\"Fehler\",\"\")","v":"Fehler"}]
[null,null,null,{"$f":"IFERROR(IF(VLOOKUP(C14,PartnerN°Ref,2,FALSE)=0,\"\",VLOOKUP(C14,PartnerN°Ref,2,FALSE)),\"\")","v":""},{"$f":"IFERROR(IF(OR(VLOOKUP(C14,PartnerN°Ref,4,FALSE)=\"Land nicht gefunden\",VLOOKUP(C14,PartnerN°Ref,3,FALSE)=0),\"\",VLOOKUP(C14,PartnerN°Ref,3,FALSE)),\"\")","v":""},null,null,0,null,null,0,{"$f":"IF(O14=\"Fehler\",0,ROUND(ROUND(H14,0)*(VLOOKUP(J14,TravelCosts,2,FALSE)),2))","v":0},{"$f":"IF(O14=\"Fehler\",0,IF(AND(G14=\"Personal\",K14>0,K14<15),(120*K14)*H14,IF(AND(G14=\"Personal\",K14>14,K14<61),(1680+((K14-14)*70))*H14,IF(AND(G14=\"Personal\",K14>60,K14<91),(4900+((K14-60)*50))*H14,IF(AND(G14=\"Student\",K14>0,K14<15),(55*K14)*H14,IF(AND(G14=\"Student\",K14>14,K14<91),(770+((K14-14)*40))*H14,0))))))","v":0},{"$f":"L14+M14","v":0},{"$f":"IF(OR(COUNTIF(WorkPackage,B14)=0,COUNTIF(PartnerN°,C14)=0,D14=\"\",COUNTIF(CountryALL,E14)=0,F14=\"\",COUNTIF(Category2,G14)=0,ISNUMBER(H14)=FALSE,I14=\"\",COUNTIF(TravelBands,J14)=0,ISNUMBER(K14)=FALSE,OR(K14<0,K14>90),IF(ISNUMBER(H14)=TRUE,H14=INT(H14*1)/1=FALSE),IF(ISNUMBER(K14)=TRUE,K14=INT(K14*1)/1=FALSE)),\"Fehler\",\"\")","v":"Fehler"}]

{"sheet":"4. Ausrüstungskosten","index":3,"n_rows":14,"n_cols":9,"rows_kept":14,"cut":false,"hidden":false,"merged":[[10,8,11,8],[1,1,1,8],[10,7,11,7],[10,6,11,6],[10,5,11,5],[10,4,11,4],[3,1,8,1],[3,2,8,3],[10,3,11,3],[10,1,11,1],[10,2,11,2]]}
[]
[null,"4. Ausrüstungskosten"]
[]
[null,"GESAMTBETRAG \n(EUR)",{"$f":"SUM(H:H)","v":0}]
[]
[]
[]
[]
[]
[]
[null,"Arbeitspaket","Partner \nNr.","Name des Partners\n(ins Übersichtsblatt eingeben)","Land\n(ins Übersichtsblatt eingeben)","Art, Modell und Beschreibung des Rechnungspostens","Betrag \nohne MwSt \n(EUR)","Gesamtbetrag (EUR)","Codierungsfehler"]
[]
[null,null,null,{"$f":"IFERROR(IF(VLOOKUP(C13,PartnerN°Ref,2,FALSE)=0,\"\",VLOOKUP(C13,PartnerN°Ref,2,FALSE)),\"\")","v":""},{"$f":"IFERROR(IF(OR(VLOOKUP(C13,PartnerN°Ref,4,FALSE)=\"Land nicht gefunden\",VLOOKUP(C13,PartnerN°Ref,3,FALSE)=0),\"\",VLOOKUP(C13,PartnerN°Ref,3,FALSE)),\"\")","v":""},null,0,{"$f":"IF(I13=\"Fehler\",0,ROUND(G13,2))","v":0},{"$f":"IF(OR(COUNTIF(WorkPackage,B13)=0,COUNTIF(PartnerN°,C13)=0,D13=\"\",COUNTIF(CountryEligEquip,E13)=0,F13=\"\",ISNUMBER(G13)=FALSE,IF(ISNUMBER(G13)=TRUE,G13=INT(G13*100)/100=FALSE)),\"Fehler\",\"\")","v":"Fehler"}]
[null,null,null,{"$f":"IFERROR(IF(VLOOKUP(C14,PartnerN°Ref,2,FALSE)=0,\"\",VLOOKUP(C14,PartnerN°Ref,2,FALSE)),\"\")","v":""},{"$f":"IFERROR(IF(OR(VLOOKUP(C14,PartnerN°Ref,4,FALSE)=\"Land nicht gefunden\",VLOOKUP(C14,PartnerN°Ref,3,FALSE)=0),\"\",VLOOKUP(C14,PartnerN°Ref,3,FALSE)),\"\")","v":""},null,0,{"$f":"IF(I14=\"Fehler\",0,ROUND(G14,2))","v":0},{"$f":"IF(OR(COUNTIF(WorkPackage,B14)=0,COUNTIF(PartnerN°,C14)=0,D14=\"\",COUNTIF(CountryEligEquip,E14)=0,F14=\"\",ISNUMBER(G14)=FALSE,IF(ISNUMBER(G14)=TRUE,G14=INT(G14*100)/100=FALSE)),\"Fehler\",\"\")","v":"Fehler"}]

{"sheet":"5. Kosten für Unteraufträge","index":4,"n_rows":14,"n_cols":9,"rows_kept":14,"cut":false,"hidden":false,"merged":[[10,8,11,8],[1,1,1,8],[10,7,11,7],[3,1,8,1],[3,2,8,3],[10,1,11,1],[10,2,11,2],[10,3,11,3],[10,4,11,4],[10,5,11,5],[10,6,11,6]]}
[]
[null,"5. Kosten für Unteraufträge"]
[]
[null,"GESAMTBETRAG \n(EUR)",{"$f":"SUM(H:H)","v":0}]
[]
[]
[]
[]
[]
[]
[null,"Arbeitspaket","Partner \nNr.","Name des Partners\n(ins Übersichtsblatt eingeben)","Land\n(ins Übersichtsblatt eingeben)","Art, Modell und Beschreibung des Rechnungspostens","Betrag \nohne MwSt \n(EUR)","Gesamtbetrag (EUR)","Codierungsfehler"]
[]
[null,null,null,{"$f":"IFERROR(IF(VLOOKUP(C13,PartnerN°Ref,2,FALSE)=0,\"\",VLOOKUP(C13,PartnerN°Ref,2,FALSE)),\"\")","v":""},{"$f":"IFERROR(IF(OR(VLOOKUP(C13,PartnerN°Ref,4,FALSE)=\"Land nicht gefunden\",VLOOKUP(C13,PartnerN°Ref,3,FALSE)=0),\"\",VLOOKUP(C13,PartnerN°Ref,3,FALSE)),\"\")","v":""},null,0,{"$f":"IF(I13=\"Fehler\",0,ROUND(G13,2))","v":0},{"$f":"IF(OR(COUNTIF(WorkPackage,B13)=0,COUNTIF(PartnerN°,C13)=0,D13=\"\",COUNTIF(CountryALL,E13)=0,F13=\"\",ISNUMBER(G13)=FALSE,IF(ISNUMBER(G13)=TRUE,G13=INT(G13*100)/100=FALSE)),\"Fehler\",\"\")","v":"Fehler"}]
[null,null,null,{"$f":"IFERROR(IF(VLOOKUP(C14,PartnerN°Ref,2,FALSE)=0,\"\",VLOOKUP(C14,PartnerN°Ref,2,FALSE)),\"\")","v":""},{"$f":"IFERROR(IF(OR(VLOOKUP(C14,PartnerN°Ref,4,FALSE)=\"Land nicht gefunden\",VLOOKUP(C14,PartnerN°Ref,3,FALSE)=0),\"\",VLOOKUP(C14,PartnerN°Ref,3,FALSE)),\"\")","v":""},null,0,{"$f":"IF(I14=\"Fehler\",0,ROUND(G14,2))","v":0},{"$f":"IF(OR(COUNTIF(WorkPackage,B14)=0,COUNTIF(PartnerN°,C14)=0,D14=\"\",COUNTIF(CountryALL,E14)=0,F14=\"\",ISNUMBER(G14)=FALSE,IF(ISNUMBER(G14)=TRUE,G14=INT(G14*100)/100=FALSE)),\"Fehler\",\"\")","v":"Fehler"}]

{"sheet":"B. Spezieller Mob. - Student","index":5,"n_rows":14,"n_cols":18,"rows_kept":14,"cut":false,"hidden":false,"merged":[[10,14,11,14],[1,1,1,14],[10,10,11,10],[10,11,11,11],[10,12,11,12],[10,13,11,13],[10,8,11,8],[10,9,11,9],[3,1,4,1],[3,2,4,2],[5,1,6,1],[5,2,6,2],[7,1,8,1],[7,2,8,2],[10,5,11,5],[10,7,11,7],[10,1,11,1],[10,2,11,2],[10,3,11,3],[10,4,11,4],[10,6,11,6]]}
[]
[null,"B. Spezieller Mobilitätsbereich - Student"]
[]
[null,"Reisekosten",{"$f":"SUM(L:L)","v":0}]
[]
[null,"Unterhaltskosten",{"$f":"SUM(M:M)","v":0}]
[]
[null,"Gesamtbetrag (EUR)",{"$f":"C4+C6","v":0}]
[]
[]
[null,"Partner \nNr.","Name des Partners\n(ins Übersichtsblatt eingeben)","Land\n(ins Übersichtsblatt eingeben)","Kategorie","Stadt der Abreise","Anzahl der Teilnehmer","Empfängerland","Stadt der Ankunft","Reiseentfernung","Anzahl von Monaten (je Teilnehmer)","Reisekosten\n(EUR)","Unterhaltskosten (EUR)","Gesamtbetrag (EUR)","Codierungsfehler"]
[]
[null,null,{"$f":"IFERROR(IF(VLOOKUP(B13,PartnerN°Ref,2,FALSE)=0,\"\",VLOOKUP(B13,PartnerN°Ref,2,FALSE)),\"\")","v":""},{"$f":"IFERROR(IF(OR(VLOOKUP(B13,PartnerN°Ref,4,FALSE)=\"Land nicht gefunden\",VLOOKUP(B13,PartnerN°Ref,3,FALSE)=0),\"\",VLOOKUP(B13,PartnerN°Ref,3,FALSE)),\"\")","v":""},{"$f":"IF(D13=\"\",\"\",CONCATENATE(\"Student von\",\" \",VLOOKUP(D13,CountryType,2,FALSE)))","v":""},null,0,null,null,null,null,{"$f":"IF(O13=\"Fehler\",0,ROUND(ROUND(G13,0)*(VLOOKUP(J13,TravelCosts,2,FALSE)),2))","v":0},{"$f":"IF(O13=\"Fehler\",0,ROUND(ROUND(G13,0)*(ROUND(K13,0)*(INDEX(Rates,MATCH(H13,CountryALL,0),MATCH(E13,Category,0)))),2))","v":0},{"$f":"L13+M13","v":0},{"$f":"IF(OR(COUNTIF(PartnerN°,B13)=0,C13=\"\",COUNTIF(SMSCountry,D13)=0,COUNTIF(Category,E13)=0,F13=\"\",ISNUMBER(G13)=FALSE,COUNTIF(SMSCountry,H13)=0,I13=\"\",COUNTIF(TravelBands,J13)=0,ISNUMBER(K13)=FALSE,COUNTIF(StudentSMSMonths,K13)=0,P13=1,Q13=1,R13=1,IF(ISNUMBER(G13)=TRUE,G13=INT(G13*1)/1=FALSE),IF(ISNUMBER(K13)=TRUE,K13=INT(K13*1)/1=FALSE)),\"Fehler\",\"\")","v":"Fehler"},{"$f":"IF(AND(COUNTIF(EUCountry,D13)=1,COUNTIF(EUCountry,H13)=1),1,0)","v":0},{"$f":"IF(AND(D13<>\"\",COUNTIF(SMSCountry,D13)=0),1,0)","v":0},{"$f":"IF(AND(H13<>\"\",COUNTIF(SMSCountry,H13)=0),1,0)","v":0}]
[null,null,{"$f":"IFERROR(IF(VLOOKUP(B14,PartnerN°Ref,2,FALSE)=0,\"\",VLOOKUP(B14,PartnerN°Ref,2,FALSE)),\"\")","v":""},{"$f":"IFERROR(IF(OR(VLOOKUP(B14,PartnerN°Ref,4,FALSE)=\"Land nicht gefunden\",VLOOKUP(B14,PartnerN°Ref,3,FALSE)=0),\"\",VLOOKUP(B14,PartnerN°Ref,3,FALSE)),\"\")","v":""},{"$f":"IF(D14=\"\",\"\",CONCATENATE(\"Student von\",\" \",VLOOKUP(D14,CountryType,2,FALSE)))","v":""},null,0,null,null,null,null,{"$f":"IF(O14=\"Fehler\",0,ROUND(ROUND(G14,0)*(VLOOKUP(J14,TravelCosts,2,FALSE)),2))","v":0},{"$f":"IF(O14=\"Fehler\",0,ROUND(ROUND(G14,0)*(ROUND(K14,0)*(INDEX(Rates,MATCH(H14,CountryALL,0),MATCH(E14,Category,0)))),2))","v":0},{"$f":"L14+M14","v":0},{"$f":"IF(OR(COUNTIF(PartnerN°,B14)=0,C14=\"\",COUNTIF(SMSCountry,D14)=0,COUNTIF(Category,E14)=0,F14=\"\",ISNUMBER(G14)=FALSE,COUNTIF(SMSCountry,H14)=0,I14=\"\",COUNTIF(TravelBands,J14)=0,ISNUMBER(K14)=FALSE,COUNTIF(StudentSMSMonths,K14)=0,P14=1,Q14=1,R14=1,IF(ISNUMBER(G14)=TRUE,G14=INT(G14*1)/1=FALSE),IF(ISNUMBER(K14)=TRUE,K14=INT(K14*1)/1=FALSE)),\"Fehler\",\"\")","v":"Fehler"},{"$f":"IF(AND(COUNTIF(EUCountry,D14)=1,COUNTIF(EUCountry,H14)=1),1,0)","v":0},{"$f":"IF(AND(D14<>\"\",COUNTIF(SMSCountry,D14)=0),1,0)","v":0},{"$f":"IF(AND(H14<>\"\",COUNTIF(SMSCountry,H14)=0),1,0)","v":0}]

{"sheet":"B. Spezieller Mob. - Personal","index":6,"n_rows":14,"n_cols":18,"rows_kept":14,"cut":false,"hidden":false,"merged":[[10,14,11,14],[1,1,1,14],[10,4,11,4],[10,5,11,5],[10,13,11,13],[10,7,11,7],[10,8,11,8],[10,9,11,9],[10,10,11,10],[10,11,11,11],[10,12,11,12],[10,6,11,6],[7,1,8,1],[7,2,8,2],[10,1,11,1],[10,2,11,2],[10,3,11,3],[3,1,4,1],[3,2,4,2],[5,1,6,1],[5,2,6,2]]}
[]
[null,"B. Spezieller Mobilitätsbereich - Personal"]
[]
[null,"Reisekosten",{"$f":"SUM(L:L)","v":0}]
[]
[null,"Unterhaltskosten",{"$f":"SUM(M:M)","v":0}]
[]
[null,"Gesamtbetrag (EUR)",{"$f":"C4+C6","v":0}]
[]
[]
[null,"Partner \nNr.","Name des Partners\n(ins Übersichtsblatt eingeben)","Land\n(ins Übersichtsblatt eingeben)","Kategorie","Stadt der Abreise","Anzahl der Teilnehmer","Empfängerland","Stadt der Ankunft","Reiseentfernung","Anzahl von Tagen (je Teilnehmer)","Reisekosten\n(EUR)","Unterhaltskosten (EUR)","Gesamtbetrag (EUR)","Codierungsfehler"]
[]
[null,null,{"$f":"IFERROR(IF(VLOOKUP(B13,PartnerN°Ref,2,FALSE)=0,\"\",VLOOKUP(B13,PartnerN°Ref,2,FALSE)),\"\")","v":""},{"$f":"IFERROR(IF(OR(VLOOKUP(B13,PartnerN°Ref,4,FALSE)=\"Land nicht gefunden\",VLOOKUP(B13,PartnerN°Ref,3,FALSE)=0),\"\",VLOOKUP(B13,PartnerN°Ref,3,FALSE)),\"\")","v":""},{"$f":"IF(D13=\"\",\"\",CONCATENATE(\"Personal von\",\" \",VLOOKUP(D13,CountryType,2,FALSE)))","v":""},null,0,null,null,null,null,{"$f":"IF(O13=\"Fehler\",0,ROUND(ROUND(G13,0)*(VLOOKUP(J13,TravelCosts,2,FALSE)),2))","v":0},{"$f":"IF(O13=\"Fehler\",0,ROUND(IF(AND(ROUND(K13,0)>0,ROUND(K13,0)<=14),ROUND(G13,0)*(ROUND(K13,0)*(INDEX(Rates,MATCH(H13,CountryALL,0),MATCH(E13,Category,0)))),IF(AND(ROUND(K13,0)>14,ROUND(K13,0)<=60),ROUND(G13,0)*((14*(INDEX(Rates,MATCH(H13,CountryALL,0),MATCH(E13,Category,0)))))+ROUND(G13,0)*(((ROUND(K13,0)-14)*(0.7*INDEX(Rates,MATCH(H13,CountryALL,0),MATCH(E13,Category,0))))),IF(ROUND(K13,0)>60,0))),2))","v":0},{"$f":"L13+M13","v":0},{"$f":"IF(OR(COUNTIF(PartnerN°,B13)=0,C13=\"\",COUNTIF(SMSCountry,D13)=0,COUNTIF(Category,E13)=0,F13=\"\",ISNUMBER(G13)=FALSE,COUNTIF(SMSCountry,H13)=0,I13=\"\",COUNTIF(TravelBands,J13)=0,ISNUMBER(K13)=FALSE,COUNTIF(StaffSMSDays,K13)=0,P13=1,Q13=1,R13=1,IF(ISNUMBER(G13)=TRUE,G13=INT(G13*1)/1=FALSE),IF(ISNUMBER(K13)=TRUE,K13=INT(K13*1)/1=FALSE)),\"Fehler\",\"\")","v":"Fehler"},{"$f":"IF(AND(COUNTIF(EUCountry,D13)=1,COUNTIF(EUCountry,H13)=1),1,0)","v":0},{"$f":"IF(AND(D13<>\"\",COUNTIF(SMSCountry,D13)=0),1,0)","v":0},{"$f":"IF(AND(H13<>\"\",COUNTIF(SMSCountry,H13)=0),1,0)","v":0}]
[null,null,{"$f":"IFERROR(IF(VLOOKUP(B14,PartnerN°Ref,2,FALSE)=0,\"\",VLOOKUP(B14,PartnerN°Ref,2,FALSE)),\"\")","v":""},{"$f":"IFERROR(IF(OR(VLOOKUP(B14,PartnerN°Ref,4,FALSE)=\"Land nicht gefunden\",VLOOKUP(B14,PartnerN°Ref,3,FALSE)=0),\"\",VLOOKUP(B14,PartnerN°Ref,3,FALSE)),\"\")","v":""},{"$f":"IF(D14=\"\",\"\",CONCATENATE(\"Personal von\",\" \",VLOOKUP(D14,CountryType,2,FALSE)))","v":""},null,0,null,null,null,null,{"$f":"IF(O14=\"Fehler\",0,ROUND(ROUND(G14,0)*(VLOOKUP(J14,TravelCosts,2,FALSE)),2))","v":0},{"$f":"IF(O14=\"Fehler\",0,ROUND(IF(AND(ROUND(K14,0)>0,ROUND(K14,0)<=14),ROUND(G14,0)*(ROUND(K14,0)*(INDEX(Rates,MATCH(H14,CountryALL,0),MATCH(E14,Category,0)))),IF(AND(ROUND(K14,0)>14,ROUND(K14,0)<=60),ROUND(G14,0)*((14*(INDEX(Rates,MATCH(H14,CountryALL,0),MATCH(E14,Category,0)))))+ROUND(G14,0)*(((ROUND(K14,0)-14)*(0.7*INDEX(Rates,MATCH(H14,CountryALL,0),MATCH(E14,Category,0))))),IF(ROUND(K14,0)>60,0))),2))","v":0},0,{"$f":"IF(OR(COUNTIF(PartnerN°,B14)=0,C14=\"\",COUNTIF(SMSCountry,D14)=0,COUNTIF(Category,E14)=0,F14=\"\",ISNUMBER(G14)=FALSE,COUNTIF(SMSCountry,H14)=0,I14=\"\",COUNTIF(TravelBands,J14)=0,ISNUMBER(K14)=FALSE,COUNTIF(StaffSMSDays,K14)=0,P14=1,Q14=1,R14=1,IF(ISNUMBER(G14)=TRUE,G14=INT(G14*1)/1=FALSE),IF(ISNUMBER(K14)=TRUE,K14=INT(K14*1)/1=FALSE)),\"Fehler\",\"\")","v":"Fehler"},{"$f":"IF(AND(COUNTIF(EUCountry,D14)=1,COUNTIF(EUCountry,H14)=1),1,0)","v":0},{"$f":"IF(AND(D14<>\"\",COUNTIF(SMSCountry,D14)=0),1,0)","v":0},{"$f":"IF(AND(H14<>\"\",COUNTIF(SMSCountry,H14)=0),1,0)","v":0}]

{"sheet":"Kofinanzierung","index":7,"n_rows":18,"n_cols":10,"rows_kept":18,"cut":false,"hidden":false,"merged":[[10,9,11,9],[1,1,1,9],[10,8,11,8],[10,5,11,5],[3,2,8,2],[3,1,8,1],[10,1,11,1],[10,2,11,2],[10,3,11,3],[10,6,11,6],[10,7,11,7],[10,4,11,4]]}
[]
[null,"Information zur Kofinanzierung"]
[]
[null,"GESAMTBETRAG \n(EUR)",{"$f":"SUM(I:I)","v":0}]
[]
[]
[]
[]
[]
[]
[null,"Partner Nr.","Name des Partners\n(ins Übersichtsblatt eingeben)","Land\n(ins Übersichtsblatt eingeben)","Rechungsposten*","Quelle der Kofinanzierung**","Rechtfertigung / Erklärung***","Betrag \nohne MwSt \n(EUR)","Gesamtbetrag (EUR)","Codierungsfehler"]
[]
[null,null,{"$f":"IFERROR(IF(VLOOKUP(B13,PartnerN°Ref,2,FALSE)=0,\"\",VLOOKUP(B13,PartnerN°Ref,2,FALSE)),\"\")","v":""},{"$f":"IFERROR(IF(OR(VLOOKUP(B13,PartnerN°Ref,4,FALSE)=\"Land nicht gefunden\",VLOOKUP(B13,PartnerN°Ref,3,FALSE)=0),\"\",VLOOKUP(B13,PartnerN°Ref,3,FALSE)),\"\")","v":""},null,null,null,0,{"$f":"IF(J13=\"Fehler\",0,ROUND(H13,2))","v":0},{"$f":"IF(OR(COUNTIF(PartnerN°,B13)=0,C13=\"\",COUNTIF(CountryALL,D13)=0,E13=\"\",F13=\"\",G13=\"\",ISNUMBER(H13)=FALSE,IF(ISNUMBER(H13)=TRUE,H13=INT(H13*100)/100=FALSE)),\"Fehler\",\"\")","v":"Fehler"}]
[null,null,{"$f":"IFERROR(IF(VLOOKUP(B14,PartnerN°Ref,2,FALSE)=0,\"\",VLOOKUP(B14,PartnerN°Ref,2,FALSE)),\"\")","v":""},{"$f":"IFERROR(IF(OR(VLOOKUP(B14,PartnerN°Ref,4,FALSE)=\"Land nicht gefunden\",VLOOKUP(B14,PartnerN°Ref,3,FALSE)=0),\"\",VLOOKUP(B14,PartnerN°Ref,3,FALSE)),\"\")","v":""},null,null,null,0,{"$f":"IF(J14=\"Fehler\",0,ROUND(H14,2))","v":0},{"$f":"IF(OR(COUNTIF(PartnerN°,B14)=0,C14=\"\",COUNTIF(CountryALL,D14)=0,E14=\"\",F14=\"\",G14=\"\",ISNUMBER(H14)=FALSE,IF(ISNUMBER(H14)=TRUE,H14=INT(H14*100)/100=FALSE)),\"Fehler\",\"\")","v":"Fehler"}]
[]
[null,"* z.B.: Ausrüstung, Personalkosten, Reise- und/oder Unterkunftskosten, Druckerei- und Verlagskosten"]
[null,"** z.B.: Staatliche Finanzhilfe, Eigenmittel der Organisation/Einrichtung"]
[null,"*** z.B.: Erstellung von Lehrmaterial –  2 Tage x 7,5 Stunden x 3 Pers. x € 25"]

{"sheet":"Aufschlüsselung des Budgets","index":8,"n_rows":81,"n_cols":9,"rows_kept":81,"cut":false,"hidden":false,"merged":[[1,1,1,8],[13,1,13,8],[4,7,8,7],[22,1,22,8]]}
[]
[null,"Aufschlüsselung des Budgets nach Arbeitspaketen/Haushaltslinien"]
[]
[null,"Arbeitspaket","1. Personalkosten","2. Reisekosten","3. Unterkunftskosten","4. Ausrüstungskosten","5. Kosten für Unteraufträge","B. Spezieller Mobilitätsbereich","Gesamtbetrag\n(EUR)"]
[null,{"$f":"Rates!P14","v":"Vorbereitung"},{"$f":"SUMIF('1. Personalkosten'!B:B,B5,'1. Personalkosten'!S:S)","v":0},{"$f":"SUMIF('2-3. Reise&Unterkunftskosten'!B:B,B5,'2-3. Reise&Unterkunftskosten'!L:L)","v":0},{"$f":"SUMIF('2-3. Reise&Unterkunftskosten'!B:B,B5,'2-3. Reise&Unterkunftskosten'!M:M)","v":0},{"$f":"SUMIF('4. Ausrüstungskosten'!B:B,B5,'4. Ausrüstungskosten'!H:H)","v":0},{"$f":"SUMIF('5. Kosten für Unteraufträge'!B:B,B5,'5. Kosten für Unteraufträge'!H:H)","v":0},null,{"$f":"SUM(C5:G5)","v":0}]
[null,{"$f":"Rates!P15","v":"Entwicklung"},{"$f":"SUMIF('1. Personalkosten'!B:B,B6,'1. Personalkosten'!S:S)","v":0},{"$f":"SUMIF('2-3. Reise&Unterkunftskosten'!B:B,B6,'2-3. Reise&Unterkunftskosten'!L:L)","v":0},{"$f":"SUMIF('2-3. Reise&Unterkunftskosten'!B:B,B6,'2-3. Reise&Unterkunftskosten'!M:M)","v":0},{"$f":"SUMIF('4. Ausrüstungskosten'!B:B,B6,'4. Ausrüstungskosten'!H:H)","v":0},{"$f":"SUMIF('5. Kosten für Unteraufträge'!B:B,B6,'5. Kosten für Unteraufträge'!H:H)","v":0},null,{"$f":"SUM(C6:G6)","v":0}]
[null,{"$f":"Rates!P16","v":"Qualitätssicherungsplan"},{"$f":"SUMIF('1. Personalkosten'!B:B,B7,'1. Personalkosten'!S:S)","v":0},{"$f":"SUMIF('2-3. Reise&Unterkunftskosten'!B:B,B7,'2-3. Reise&Unterkunftskosten'!L:L)","v":0},{"$f":"SUMIF('2-3. Reise&Unterkunftskosten'!B:B,B7,'2-3. Reise&Unterkunftskosten'!M:M)","v":0},{"$f":"SUMIF('4. Ausrüstungskosten'!B:B,B7,'4. Ausrüstungskosten'!H:H)","v":0},{"$f":"SUMIF('5. Kosten für Unteraufträge'!B:B,B7,'5. Kosten für Unteraufträge'!H:H)","v":0},null,0]
[null,{"$f":"Rates!P17","v":"Verbeitung und Nutzung der Ergebnisse"},{"$f":"SUMIF('1. Personalkosten'!B:B,B8,'1. Personalkosten'!S:S)","v":0},{"$f":"SUMIF('2-3. Reise&Unterkunftskosten'!B:B,B8,'2-3. Reise&Unterkunftskosten'!L:L)","v":0},{"$f":"SUMIF('2-3. Reise&Unterkunftskosten'!B:B,B8,'2-3. Reise&Unterkunftskosten'!M:M)","v":0},{"$f":"SUMIF('4. Ausrüstungskosten'!B:B,B8,'4. Ausrüstungskosten'!H:H)","v":0},{"$f":"SUMIF('5. Kosten für Unteraufträge'!B:B,B8,'5. Kosten für Unteraufträge'!H:H)","v":0},null,0]
[null,{"$f":"Rates!P18","v":"Verwaltung"},{"$f":"SUMIF('1. Personalkosten'!B:B,B9,'1. Personalkosten'!S:S)","v":0},{"$f":"SUMIF('2-3. Reise&Unterkunftskosten'!B:B,B9,'2-3. Reise&Unterkunftskosten'!L:L)","v":0},{"$f":"SUMIF('2-3. Reise&Unterkunftskosten'!B:B,B9,'2-3. Reise&Unterkunftskosten'!M:M)","v":0},{"$f":"SUMIF('4. Ausrüstungskosten'!B:B,B9,'4. Ausrüstungskosten'!H:H)","v":0},{"$f":"SUMIF('5. Kosten für Unteraufträge'!B:B,B9,'5. Kosten für Unteraufträge'!H:H)","v":0},null,0]
[null,"Gesamtbetrag",{"$f":"SUM(C5:C9)","v":0},0,0,0,{"$f":"SUM(G5:G9)","v":0},{"$f":"'B. Spezieller Mob. - Student'!C8+'B. Spezieller Mob. - Personal'!C8","v":0},{"$f":"SUM(C10:H10)","v":0}]
[]
[]
[]
[null,"Aufschlüsselung des Budgets nach Programm oder Partnerländern/Haushaltslinien"]
[]
[null,"Landen","1. Personalkosten","2. Reisekosten","3. Unterkunftskosten","4. Ausrüstungskosten","5. Kosten für Unteraufträge","B. Spezieller Mobilitätsbereich","Gesamtbetrag\n(EUR)"]
[null,"Programmländer",{"$f":"SUMIF(Übersicht!$E$33:$E$87,B17,Übersicht!$F$33:$F$87)","v":0},{"$f":"SUMIF(Übersicht!$E$33:$E$87,B17,Übersicht!$G$33:$G$87)","v":0},{"$f":"SUMIF(Übersicht!$E$33:$E$87,B17,Übersicht!$H$33:$H$87)","v":0},{"$f":"SUMIF(Übersicht!$E$33:$E$87,B17,Übersicht!$I$33:$I$87)","v":0},{"$f":"SUMIF(Übersicht!$E$33:$E$87,B17,Übersicht!$J$33:$J$87)","v":0},{"$f":"SUMIF(Übersicht!$E$33:$E$87,B17,Übersicht!$K$33:$K$87)","v":0},{"$f":"SUM(C17:H17)","v":0}]
[null,"Partnerländer",{"$f":"SUMIF(Übersicht!$E$33:$E$87,B18,Übersicht!$F$33:$F$87)","v":0},{"$f":"SUMIF(Übersicht!$E$33:$E$87,B18,Übersicht!$G$33:$G$87)","v":0},{"$f":"SUMIF(Übersicht!$E$33:$E$87,B18,Übersicht!$H$33:$H$87)","v":0},{"$f":"SUMIF(Übersicht!$E$33:$E$87,B18,Übersicht!$I$33:$I$87)","v":0},{"$f":"SUMIF(Übersicht!$E$33:$E$87,B18,Übersicht!$J$33:$J$87)","v":0},{"$f":"SUMIF(Übersicht!$E$33:$E$87,B18,Übersicht!$K$33:$K$87)","v":0},{"$f":"SUM(C18:H18)","v":0}]
[null,"Gesamtbetrag",{"$f":"SUM(C17:C18)","v":0},0,0,0,0,0,{"$f":"SUM(C19:H19)","v":0}]
[]
[]
[]
[null,"Aufschlüsselung des Budgets nach Partnern/Arbeitspaketen"]
[]
[null,"Partner\nNr.",{"$f":"Rates!P14","v":"Vorbereitung"},{"$f":"Rates!P15","v":"Entwicklung"},{"$f":"Rates!P16","v":"Qualitätssicherungsplan"},{"$f":"Rates!P17","v":"Verbeitung und Nutzung der Ergebnisse"},{"$f":"Rates!P18","v":"Verwaltung"},"B. Spezieller Mobilitätsbereich","Gesamtbetrag\n(EUR)"]
[null,"P1",{"$f":"SUMIFS('1. Personalkosten'!S:S,'1. Personalkosten'!C:C,B26,'1. Personalkosten'!B:B,$C$25)+SUMIFS('2-3. Reise&Unterkunftskosten'!N:N,'2-3. Reise&Unterkunftskosten'!C:C,B26,'2-3. Reise&Unterkunftskosten'!B:B,$C$25)+SUMIFS('4. Ausrüstungskosten'!H:H,'4. Ausrüstungskosten'!C:C,B26,'4. Ausrüstungskosten'!B:B,$C$25)+SUMIFS('5. Kosten für Unteraufträge'!H:H,'5. Kosten für Unteraufträge'!C:C,B26,'5. Kosten für Unteraufträge'!B:B,$C$25)","v":0},{"$f":"SUMIFS('1. Personalkosten'!S:S,'1. Personalkosten'!C:C,B26,'1. Personalkosten'!B:B,$D$25)+SUMIFS('2-3. Reise&Unterkunftskosten'!N:N,'2-3. Reise&Unterkunftskosten'!C:C,B26,'2-3. Reise&Unterkunftskosten'!B:B,$D$25)+SUMIFS('4. Ausrüstungskosten'!H:H,'4. Ausrüstungskosten'!C:C,B26,'4. Ausrüstungskosten'!B:B,$D$25)+SUMIFS('5. Kosten für Unteraufträge'!H:H,'5. Kosten für Unteraufträge'!C:C,B26,'5. Kosten für Unteraufträge'!B:B,$D$25)","v":0},{"$f":"SUMIFS('1. Personalkosten'!S:S,'1. Personalkosten'!C:C,B26,'1. Personalkosten'!B:B,$E$25)+SUMIFS('2-3. Reise&Unterkunftskosten'!N:N,'2-3. Reise&Unterkunftskosten'!C:C,B26,'2-3. Reise&Unterkunftskosten'!B:B,$E$25)+SUMIFS('4. Ausrüstungskosten'!H:H,'4. Ausrüstungskosten'!C:C,B26,'4. Ausrüstungskosten'!B:B,$E$25)+SUMIFS('5. Kosten für Unteraufträge'!H:H,'5. Kosten für Unteraufträge'!C:C,B26,'5. Kosten für Unteraufträge'!B:B,$E$25)","v":0},{"$f":"SUMIFS('1. Personalkosten'!S:S,'1. Personalkosten'!C:C,B26,'1. Personalkosten'!B:B,$B$8)+SUMIFS('2-3. Reise&Unterkunftskosten'!N:N,'2-3. Reise&Unterkunftskosten'!C:C,B26,'2-3. Reise&Unterkunftskosten'!B:B,$B$8)+SUMIFS('4. Ausrüstungskosten'!H:H,'4. Ausrüstungskosten'!C:C,B26,'4. Ausrüstungskosten'!B:B,$B$8)+SUMIFS('5. Kosten für Unteraufträge'!H:H,'5. Kosten für Unteraufträge'!C:C,B26,'5. Kosten für Unteraufträge'!B:B,$B$8)","v":0},{"$f":"SUMIFS('1. Personalkosten'!S:S,'1. Personalkosten'!C:C,B26,'1. Personalkosten'!B:B,$G$25)+SUMIFS('2-3. Reise&Unterkunftskosten'!N:N,'2-3. Reise&Unterkunftskosten'!C:C,B26,'2-3. Reise&Unterkunftskosten'!B:B,$G$25)+SUMIFS('4. Ausrüstungskosten'!H:H,'4. Ausrüstungskosten'!C:C,B26,'4. Ausrüstungskosten'!B:B,$G$25)+SUMIFS('5. Kosten für Unteraufträge'!H:H,'5. Kosten für Unteraufträge'!C:C,B26,'5. Kosten für Unteraufträge'!B:B,$G$25)","v":0},{"$f":"SUMIF('B. Spezieller Mob. - Student'!B:B,B26,'B. Spezieller Mob. - Student'!N:N)+SUMIF('B. Spezieller Mob. - Personal'!B:B,B26,'B. Spezieller Mob. - Personal'!N:N)","v":0},{"$f":"SUM(C26:H26)","v":0}]
[null,"P2",{"$f":"SUMIFS('1. Personalkosten'!S:S,'1. Personalkosten'!C:C,B27,'1. Personalkosten'!B:B,$C$25)+SUMIFS('2-3. Reise&Unterkunftskosten'!N:N,'2-3. Reise&Unterkunftskosten'!C:C,B27,'2-3. Reise&Unterkunftskosten'!B:B,$C$25)+SUMIFS('4. Ausrüstungskosten'!H:H,'4. Ausrüstungskosten'!C:C,B27,'4. Ausrüstungskosten'!B:B,$C$25)+SUMIFS('5. Kosten für Unteraufträge'!H:H,'5. Kosten für Unteraufträge'!C:C,B27,'5. Kosten für Unteraufträge'!B:B,$C$25)","v":0},{"$f":"SUMIFS('1. Personalkosten'!S:S,'1. Personalkosten'!C:C,B27,'1. Personalkosten'!B:B,$D$25)+SUMIFS('2-3. Reise&Unterkunftskosten'!N:N,'2-3. Reise&Unterkunftskosten'!C:C,B27,'2-3. Reise&Unterkunftskosten'!B:B,$D$25)+SUMIFS('4. Ausrüstungskosten'!H:H,'4. Ausrüstungskosten'!C:C,B27,'4. Ausrüstungskosten'!B:B,$D$25)+SUMIFS('5. Kosten für Unteraufträge'!H:H,'5. Kosten für Unteraufträge'!C:C,B27,'5. Kosten für Unteraufträge'!B:B,$D$25)","v":0},{"$f":"SUMIFS('1. Personalkosten'!S:S,'1. Personalkosten'!C:C,B27,'1. Personalkosten'!B:B,$E$25)+SUMIFS('2-3. Reise&Unterkunftskosten'!N:N,'2-3. Reise&Unterkunftskosten'!C:C,B27,'2-3. Reise&Unterkunftskosten'!B:B,$E$25)+SUMIFS('4. Ausrüstungskosten'!H:H,'4. Ausrüstungskosten'!C:C,B27,'4. Ausrüstungskosten'!B:B,$E$25)+SUMIFS('5. Kosten für Unteraufträge'!H:H,'5. Kosten für Unteraufträge'!C:C,B27,'5. Kosten für Unteraufträge'!B:B,$E$25)","v":0},{"$f":"SUMIFS('1. Personalkosten'!S:S,'1. Personalkosten'!C:C,B27,'1. Personalkosten'!B:B,$B$8)+SUMIFS('2-3. Reise&Unterkunftskosten'!N:N,'2-3. Reise&Unterkunftskosten'!C:C,B27,'2-3. Reise&Unterkunftskosten'!B:B,$B$8)+SUMIFS('4. Ausrüstungskosten'!H:H,'4. Ausrüstungskosten'!C:C,B27,'4. Ausrüstungskosten'!B:B,$B$8)+SUMIFS('5. Kosten für Unteraufträge'!H:H,'5. Kosten für Unteraufträge'!C:C,B27,'5. Kosten für Unteraufträge'!B:B,$B$8)","v":0},{"$f":"SUMIFS('1. Personalkosten'!S:S,'1. Personalkosten'!C:C,B27,'1. Personalkosten'!B:B,$G$25)+SUMIFS('2-3. Reise&Unterkunftskosten'!N:N,'2-3. Reise&Unterkunftskosten'!C:C,B27,'2-3. Reise&Unterkunftskosten'!B:B,$G$25)+SUMIFS('4. Ausrüstungskosten'!H:H,'4. Ausrüstungskosten'!C:C,B27,'4. Ausrüstungskosten'!B:B,$G$25)+SUMIFS('5. Kosten für Unteraufträge'!H:H,'5. Kosten für Unteraufträge'!C:C,B27,'5. Kosten für Unteraufträge'!B:B,$G$25)","v":0},{"$f":"SUMIF('B. Spezieller Mob. - Student'!B:B,B27,'B. Spezieller Mob. - Student'!N:N)+SUMIF('B. Spezieller Mob. - Personal'!B:B,B27,'B. Spezieller Mob. - Personal'!N:N)","v":0},{"$f":"SUM(C27:H27)","v":0}]
[null,"P3",{"$f":"SUMIFS('1. Personalkosten'!S:S,'1. Personalkosten'!C:C,B28,'1. Personalkosten'!B:B,$C$25)+SUMIFS('2-3. Reise&Unterkunftskosten'!N:N,'2-3. Reise&Unterkunftskosten'!C:C,B28,'2-3. Reise&Unterkunftskosten'!B:B,$C$25)+SUMIFS('4. Ausrüstungskosten'!H:H,'4. Ausrüstungskosten'!C:C,B28,'4. Ausrüstungskosten'!B:B,$C$25)+SUMIFS('5. Kosten für Unteraufträge'!H:H,'5. Kosten für Unteraufträge'!C:C,B28,'5. Kosten für Unteraufträge'!B:B,$C$25)","v":0},{"$f":"SUMIFS('1. Personalkosten'!S:S,'1. Personalkosten'!C:C,B28,'1. Personalkosten'!B:B,$D$25)+SUMIFS('2-3. Reise&Unterkunftskosten'!N:N,'2-3. Reise&Unterkunftskosten'!C:C,B28,'2-3. Reise&Unterkunftskosten'!B:B,$D$25)+SUMIFS('4. Ausrüstungskosten'!H:H,'4. Ausrüstungskosten'!C:C,B28,'4. Ausrüstungskosten'!B:B,$D$25)+SUMIFS('5. Kosten für Unteraufträge'!H:H,'5. Kosten für Unteraufträge'!C:C,B28,'5. Kosten für Unteraufträge'!B:B,$D$25)","v":0},{"$f":"SUMIFS('1. Personalkosten'!S:S,'1. Personalkosten'!C:C,B28,'1. Personalkosten'!B:B,$E$25)+SUMIFS('2-3. Reise&Unterkunftskosten'!N:N,'2-3. Reise&Unterkunftskosten'!C:C,B28,'2-3. Reise&Unterkunftskosten'!B:B,$E$25)+SUMIFS('4. Ausrüstungskosten'!H:H,'4. Ausrüstungskosten'!C:C,B28,'4. Ausrüstungskosten'!B:B,$E$25)+SUMIFS('5. Kosten für Unteraufträge'!H:H,'5. Kosten für Unteraufträge'!C:C,B28,'5. Kosten für Unteraufträge'!B:B,$E$25)","v":0},{"$f":"SUMIFS('1. Personalkosten'!S:S,'1. Personalkosten'!C:C,B28,'1. Personalkosten'!B:B,$B$8)+SUMIFS('2-3. Reise&Unterkunftskosten'!N:N,'2-3. Reise&Unterkunftskosten'!C:C,B28,'2-3. Reise&Unterkunftskosten'!B:B,$B$8)+SUMIFS('4. Ausrüstungskosten'!H:H,'4. Ausrüstungskosten'!C:C,B28,'4. Ausrüstungskosten'!B:B,$B$8)+SUMIFS('5. Kosten für Unteraufträge'!H:H,'5. Kosten für Unteraufträge'!C:C,B28,'5. Kosten für Unteraufträge'!B:B,$B$8)","v":0},{"$f":"SUMIFS('1. Personalkosten'!S:S,'1. Personalkosten'!C:C,B28,'1. Personalkosten'!B:B,$G$25)+SUMIFS('2-3. Reise&Unterkunftskosten'!N:N,'2-3. Reise&Unterkunftskosten'!C:C,B28,'2-3. Reise&Unterkunftskosten'!B:B,$G$25)+SUMIFS('4. Ausrüstungskosten'!H:H,'4. Ausrüstungskosten'!C:C,B28,'4. Ausrüstungskosten'!B:B,$G$25)+SUMIFS('5. Kosten für Unteraufträge'!H:H,'5. Kosten für Unteraufträge'!C:C,B28,'5. Kosten für Unteraufträge'!B:B,$G$25)","v":0},{"$f":"SUMIF('B. Spezieller Mob. - Student'!B:B,B28,'B. Spezieller Mob. - Student'!N:N)+SUMIF('B. Spezieller Mob. - Personal'!B:B,B28,'B. Spezieller Mob. - Personal'!N:N)","v":0},0]
[null,"P4",{"$f":"SUMIFS('1. Personalkosten'!S:S,'1. Personalkosten'!C:C,B29,'1. Personalkosten'!B:B,$C$25)+SUMIFS('2-3. Reise&Unterkunftskosten'!N:N,'2-3. Reise&Unterkunftskosten'!C:C,B29,'2-3. Reise&Unterkunftskosten'!B:B,$C$25)+SUMIFS('4. Ausrüstungskosten'!H:H,'4. Ausrüstungskosten'!C:C,B29,'4. Ausrüstungskosten'!B:B,$C$25)+SUMIFS('5. Kosten für Unteraufträge'!H:H,'5. Kosten für Unteraufträge'!C:C,B29,'5. Kosten für Unteraufträge'!B:B,$C$25)","v":0},{"$f":"SUMIFS('1. Personalkosten'!S:S,'1. Personalkosten'!C:C,B29,'1. Personalkosten'!B:B,$D$25)+SUMIFS('2-3. Reise&Unterkunftskosten'!N:N,'2-3. Reise&Unterkunftskosten'!C:C,B29,'2-3. Reise&Unterkunftskosten'!B:B,$D$25)+SUMIFS('4. Ausrüstungskosten'!H:H,'4. Ausrüstungskosten'!C:C,B29,'4. Ausrüstungskosten'!B:B,$D$25)+SUMIFS('5. Kosten für Unteraufträge'!H:H,'5. Kosten für Unteraufträge'!C:C,B29,'5. Kosten für Unteraufträge'!B:B,$D$25)","v":0},{"$f":"SUMIFS('1. Personalkosten'!S:S,'1. Personalkosten'!C:C,B29,'1. Personalkosten'!B:B,$E$25)+SUMIFS('2-3. Reise&Unterkunftskosten'!N:N,'2-3. Reise&Unterkunftskosten'!C:C,B29,'2-3. Reise&Unterkunftskosten'!B:B,$E$25)+SUMIFS('4. Ausrüstungskosten'!H:H,'4. Ausrüstungskosten'!C:C,B29,'4. Ausrüstungskosten'!B:B,$E$25)+SUMIFS('5. Kosten für Unteraufträge'!H:H,'5. Kosten für Unteraufträge'!C:C,B29,'5. Kosten für Unteraufträge'!B:B,$E$25)","v":0},{"$f":"SUMIFS('1. Personalkosten'!S:S,'1. Personalkosten'!C:C,B29,'1. Personalkosten'!B:B,$B$8)+SUMIFS('2-3. Reise&Unterkunftskosten'!N:N,'2-3. Reise&Unterkunftskosten'!C:C,B29,'2-3. Reise&Unterkunftskosten'!B:B,$B$8)+SUMIFS('4. Ausrüstungskosten'!H:H,'4. Ausrüstungskosten'!C:C,B29,'4. Ausrüstungskosten'!B:B,$B$8)+SUMIFS('5. Kosten für Unteraufträge'!H:H,'5. Kosten für Unteraufträge'!C:C,B29,'5. Kosten für Unteraufträge'!B:B,$B$8)","v":0},{"$f":"SUMIFS('1. Personalkosten'!S:S,'1. Personalkosten'!C:C,B29,'1. Personalkosten'!B:B,$G$25)+SUMIFS('2-3. Reise&Unterkunftskosten'!N:N,'2-3. Reise&Unterkunftskosten'!C:C,B29,'2-3. Reise&Unterkunftskosten'!B:B,$G$25)+SUMIFS('4. Ausrüstungskosten'!H:H,'4. Ausrüstungskosten'!C:C,B29,'4. Ausrüstungskosten'!B:B,$G$25)+SUMIFS('5. Kosten für Unteraufträge'!H:H,'5. Kosten für Unteraufträge'!C:C,B29,'5. Kosten für Unteraufträge'!B:B,$G$25)","v":0},{"$f":"SUMIF('B. Spezieller Mob. - Student'!B:B,B29,'B. Spezieller Mob. - Student'!N:N)+SUMIF('B. Spezieller Mob. - Personal'!B:B,B29,'B. Spezieller Mob. - Personal'!N:N)","v":0},0]
[null,"P5",{"$f":"SUMIFS('1. Personalkosten'!S:S,'1. Personalkosten'!C:C,B30,'1. Personalkosten'!B:B,$C$25)+SUMIFS('2-3. Reise&Unterkunftskosten'!N:N,'2-3. Reise&Unterkunftskosten'!C:C,B30,'2-3. Reise&Unterkunftskosten'!B:B,$C$25)+SUMIFS('4. Ausrüstungskosten'!H:H,'4. Ausrüstungskosten'!C:C,B30,'4. Ausrüstungskosten'!B:B,$C$25)+SUMIFS('5. Kosten für Unteraufträge'!H:H,'5. Kosten für Unteraufträge'!C:C,B30,'5. Kosten für Unteraufträge'!B:B,$C$25)","v":0},{"$f":"SUMIFS('1. Personalkosten'!S:S,'1. Personalkosten'!C:C,B30,'1. Personalkosten'!B:B,$D$25)+SUMIFS('2-3. Reise&Unterkunftskosten'!N:N,'2-3. Reise&Unterkunftskosten'!C:C,B30,'2-3. Reise&Unterkunftskosten'!B:B,$D$25)+SUMIFS('4. Ausrüstungskosten'!H:H,'4. Ausrüstungskosten'!C:C,B30,'4. Ausrüstungskosten'!B:B,$D$25)+SUMIFS('5. Kosten für Unteraufträge'!H:H,'5. Kosten für Unteraufträge'!C:C,B30,'5. Kosten für Unteraufträge'!B:B,$D$25)","v":0},{"$f":"SUMIFS('1. Personalkosten'!S:S,'1. Personalkosten'!C:C,B30,'1. Personalkosten'!B:B,$E$25)+SUMIFS('2-3. Reise&Unterkunftskosten'!N:N,'2-3. Reise&Unterkunftskosten'!C:C,B30,'2-3. Reise&Unterkunftskosten'!B:B,$E$25)+SUMIFS('4. Ausrüstungskosten'!H:H,'4. Ausrüstungskosten'!C:C,B30,'4. Ausrüstungskosten'!B:B,$E$25)+SUMIFS('5. Kosten für Unteraufträge'!H:H,'5. Kosten für Unteraufträge'!C:C,B30,'5. Kosten für Unteraufträge'!B:B,$E$25)","v":0},{"$f":"SUMIFS('1. Personalkosten'!S:S,'1. Personalkosten'!C:C,B30,'1. Personalkosten'!B:B,$B$8)+SUMIFS('2-3. Reise&Unterkunftskosten'!N:N,'2-3. Reise&Unterkunftskosten'!C:C,B30,'2-3. Reise&Unterkunftskosten'!B:B,$B$8)+SUMIFS('4. Ausrüstungskosten'!H:H,'4. Ausrüstungskosten'!C:C,B30,'4. Ausrüstungskosten'!B:B,$B$8)+SUMIFS('5. Kosten für Unteraufträge'!H:H,'5. Kosten für Unteraufträge'!C:C,B30,'5. Kosten für Unteraufträge'!B:B,$B$8)","v":0},{"$f":"SUMIFS('1. Personalkosten'!S:S,'1. Personalkosten'!C:C,B30,'1. Personalkosten'!B:B,$G$25)+SUMIFS('2-3. Reise&Unterkunftskosten'!N:N,'2-3. Reise&Unterkunftskosten'!C:C,B30,'2-3. Reise&Unterkunftskosten'!B:B,$G$25)+SUMIFS('4. Ausrüstungskosten'!H:H,'4. Ausrüstungskosten'!C:C,B30,'4. Ausrüstungskosten'!B:B,$G$25)+SUMIFS('5. Kosten für Unteraufträge'!H:H,'5. Kosten für Unteraufträge'!C:C,B30,'5. Kosten für Unteraufträge'!B:B,$G$25)","v":0},{"$f":"SUMIF('B. Spezieller Mob. - Student'!B:B,B30,'B. Spezieller Mob. - Student'!N:N)+SUMIF('B. Spezieller Mob. - Personal'!B:B,B30,'B. Spezieller Mob. - Personal'!N:N)","v":0},0]
[null,"P6",{"$f":"SUMIFS('1. Personalkosten'!S:S,'1. Personalkosten'!C:C,B31,'1. Personalkosten'!B:B,$C$25)+SUMIFS('2-3. Reise&Unterkunftskosten'!N:N,'2-3. Reise&Unterkunftskosten'!C:C,B31,'2-3. Reise&Unterkunftskosten'!B:B,$C$25)+SUMIFS('4. Ausrüstungskosten'!H:H,'4. Ausrüstungskosten'!C:C,B31,'4. Ausrüstungskosten'!B:B,$C$25)+SUMIFS('5. Kosten für Unteraufträge'!H:H,'5. Kosten für Unteraufträge'!C:C,B31,'5. Kosten für Unteraufträge'!B:B,$C$25)","v":0},{"$f":"SUMIFS('1. Personalkosten'!S:S,'1. Personalkosten'!C:C,B31,'1. Personalkosten'!B:B,$D$25)+SUMIFS('2-3. Reise&Unterkunftskosten'!N:N,'2-3. Reise&Unterkunftskosten'!C:C,B31,'2-3. Reise&Unterkunftskosten'!B:B,$D$25)+SUMIFS('4. Ausrüstungskosten'!H:H,'4. Ausrüstungskosten'!C:C,B31,'4. Ausrüstungskosten'!B:B,$D$25)+SUMIFS('5. Kosten für Unteraufträge'!H:H,'5. Kosten für Unteraufträge'!C:C,B31,'5. Kosten für Unteraufträge'!B:B,$D$25)","v":0},{"$f":"SUMIFS('1. Personalkosten'!S:S,'1. Personalkosten'!C:C,B31,'1. Personalkosten'!B:B,$E$25)+SUMIFS('2-3. Reise&Unterkunftskosten'!N:N,'2-3. Reise&Unterkunftskosten'!C:C,B31,'2-3. Reise&Unterkunftskosten'!B:B,$E$25)+SUMIFS('4. Ausrüstungskosten'!H:H,'4. Ausrüstungskosten'!C:C,B31,'4. Ausrüstungskosten'!B:B,$E$25)+SUMIFS('5. Kosten für Unteraufträge'!H:H,'5. Kosten für Unteraufträge'!C:C,B31,'5. Kosten für Unteraufträge'!B:B,$E$25)","v":0},{"$f":"SUMIFS('1. Personalkosten'!S:S,'1. Personalkosten'!C:C,B31,'1. Personalkosten'!B:B,$B$8)+SUMIFS('2-3. Reise&Unterkunftskosten'!N:N,'2-3. Reise&Unterkunftskosten'!C:C,B31,'2-3. Reise&Unterkunftskosten'!B:B,$B$8)+SUMIFS('4. Ausrüstungskosten'!H:H,'4. Ausrüstungskosten'!C:C,B31,'4. Ausrüstungskosten'!B:B,$B$8)+SUMIFS('5. Kosten für Unteraufträge'!H:H,'5. Kosten für Unteraufträge'!C:C,B31,'5. Kosten für Unteraufträge'!B:B,$B$8)","v":0},{"$f":"SUMIFS('1. Personalkosten'!S:S,'1. Personalkosten'!C:C,B31,'1. Personalkosten'!B:B,$G$25)+SUMIFS('2-3. Reise&Unterkunftskosten'!N:N,'2-3. Reise&Unterkunftskosten'!C:C,B31,'2-3. Reise&Unterkunftskosten'!B:B,$G$25)+SUMIFS('4. Ausrüstungskosten'!H:H,'4. Ausrüstungskosten'!C:C,B31,'4. Ausrüstungskosten'!B:B,$G$25)+SUMIFS('5. Kosten für Unteraufträge'!H:H,'5. Kosten für Unteraufträge'!C:C,B31,'5. Kosten für Unteraufträge'!B:B,$G$25)","v":0},{"$f":"SUMIF('B. Spezieller Mob. - Student'!B:B,B31,'B. Spezieller Mob. - Student'!N:N)+SUMIF('B. Spezieller Mob. - Personal'!B:B,B31,'B. Spezieller Mob. - Personal'!N:N)","v":0},0]
[null,"P7",{"$f":"SUMIFS('1. Personalkosten'!S:S,'1. Personalkosten'!C:C,B32,'1. Personalkosten'!B:B,$C$25)+SUMIFS('2-3. Reise&Unterkunftskosten'!N:N,'2-3. Reise&Unterkunftskosten'!C:C,B32,'2-3. Reise&Unterkunftskosten'!B:B,$C$25)+SUMIFS('4. Ausrüstungskosten'!H:H,'4. Ausrüstungskosten'!C:C,B32,'4. Ausrüstungskosten'!B:B,$C$25)+SUMIFS('5. Kosten für Unteraufträge'!H:H,'5. Kosten für Unteraufträge'!C:C,B32,'5. Kosten für Unteraufträge'!B:B,$C$25)","v":0},{"$f":"SUMIFS('1. Personalkosten'!S:S,'1. Personalkosten'!C:C,B32,'1. Personalkosten'!B:B,$D$25)+SUMIFS('2-3. Reise&Unterkunftskosten'!N:N,'2-3. Reise&Unterkunftskosten'!C:C,B32,'2-3. Reise&Unterkunftskosten'!B:B,$D$25)+SUMIFS('4. Ausrüstungskosten'!H:H,'4. Ausrüstungskosten'!C:C,B32,'4. Ausrüstungskosten'!B:B,$D$25)+SUMIFS('5. Kosten für Unteraufträge'!H:H,'5. Kosten für Unteraufträge'!C:C,B32,'5. Kosten für Unteraufträge'!B:B,$D$25)","v":0},{"$f":"SUMIFS('1. Personalkosten'!S:S,'1. Personalkosten'!C:C,B32,'1. Personalkosten'!B:B,$E$25)+SUMIFS('2-3. Reise&Unterkunftskosten'!N:N,'2-3. Reise&Unterkunftskosten'!C:C,B32,'2-3. Reise&Unterkunftskosten'!B:B,$E$25)+SUMIFS('4. Ausrüstungskosten'!H:H,'4. Ausrüstungskosten'!C:C,B32,'4. Ausrüstungskosten'!B:B,$E$25)+SUMIFS('5. Kosten für Unteraufträge'!H:H,'5. Kosten für Unteraufträge'!C:C,B32,'5. Kosten für Unteraufträge'!B:B,$E$25)","v":0},{"$f":"SUMIFS('1. Personalkosten'!S:S,'1. Personalkosten'!C:C,B32,'1. Personalkosten'!B:B,$B$8)+SUMIFS('2-3. Reise&Unterkunftskosten'!N:N,'2-3. Reise&Unterkunftskosten'!C:C,B32,'2-3. Reise&Unterkunftskosten'!B:B,$B$8)+SUMIFS('4. Ausrüstungskosten'!H:H,'4. Ausrüstungskosten'!C:C,B32,'4. Ausrüstungskosten'!B:B,$B$8)+SUMIFS('5. Kosten für Unteraufträge'!H:H,'5. Kosten für Unteraufträge'!C:C,B32,'5. Kosten für Unteraufträge'!B:B,$B$8)","v":0},{"$f":"SUMIFS('1. Personalkosten'!S:S,'1. Personalkosten'!C:C,B32,'1. Personalkosten'!B:B,$G$25)+SUMIFS('2-3. Reise&Unterkunftskosten'!N:N,'2-3. Reise&Unterkunftskosten'!C:C,B32,'2-3. Reise&Unterkunftskosten'!B:B,$G$25)+SUMIFS('4. Ausrüstungskosten'!H:H,'4. Ausrüstungskosten'!C:C,B32,'4. Ausrüstungskosten'!B:B,$G$25)+SUMIFS('5. Kosten für Unteraufträge'!H:H,'5. Kosten für Unteraufträge'!C:C,B32,'5. Kosten für Unteraufträge'!B:B,$G$25)","v":0},{"$f":"SUMIF('B. Spezieller Mob. - Student'!B:B,B32,'B. Spezieller Mob. - Student'!N:N)+SUMIF('B. Spezieller Mob. - Personal'!B:B,B32,'B. Spezieller Mob. - Personal'!N:N)","v":0},0]
[null,"P8",{"$f":"SUMIFS('1. Personalkosten'!S:S,'1. Personalkosten'!C:C,B33,'1. Personalkosten'!B:B,$C$25)+SUMIFS('2-3. Reise&Unterkunftskosten'!N:N,'2-3. Reise&Unterkunftskosten'!C:C,B33,'2-3. Reise&Unterkunftskosten'!B:B,$C$25)+SUMIFS('4. Ausrüstungskosten'!H:H,'4. Ausrüstungskosten'!C:C,B33,'4. Ausrüstungskosten'!B:B,$C$25)+SUMIFS('5. Kosten für Unteraufträge'!H:H,'5. Kosten für Unteraufträge'!C:C,B33,'5. Kosten für Unteraufträge'!B:B,$C$25)","v":0},{"$f":"SUMIFS('1. Personalkosten'!S:S,'1. Personalkosten'!C:C,B33,'1. Personalkosten'!B:B,$D$25)+SUMIFS('2-3. Reise&Unterkunftskosten'!N:N,'2-3. Reise&Unterkunftskosten'!C:C,B33,'2-3. Reise&Unterkunftskosten'!B:B,$D$25)+SUMIFS('4. Ausrüstungskosten'!H:H,'4. Ausrüstungskosten'!C:C,B33,'4. Ausrüstungskosten'!B:B,$D$25)+SUMIFS('5. Kosten für Unteraufträge'!H:H,'5. Kosten für Unteraufträge'!C:C,B33,'5. Kosten für Unteraufträge'!B:B,$D$25)","v":0},{"$f":"SUMIFS('1. Personalkosten'!S:S,'1. Personalkosten'!C:C,B33,'1. Personalkosten'!B:B,$E$25)+SUMIFS('2-3. Reise&Unterkunftskosten'!N:N,'2-3. Reise&Unterkunftskosten'!C:C,B33,'2-3. Reise&Unterkunftskosten'!B:B,$E$25)+SUMIFS('4. Ausrüstungskosten'!H:H,'4. Ausrüstungskosten'!C:C,B33,'4. Ausrüstungskosten'!B:B,$E$25)+SUMIFS('5. Kosten für Unteraufträge'!H:H,'5. Kosten für Unteraufträge'!C:C,B33,'5. Kosten für Unteraufträge'!B:B,$E$25)","v":0},{"$f":"SUMIFS('1. Personalkosten'!S:S,'1. Personalkosten'!C:C,B33,'1. Personalkosten'!B:B,$B$8)+SUMIFS('2-3. Reise&Unterkunftskosten'!N:N,'2-3. Reise&Unterkunftskosten'!C:C,B33,'2-3. Reise&Unterkunftskosten'!B:B,$B$8)+SUMIFS('4. Ausrüstungskosten'!H:H,'4. Ausrüstungskosten'!C:C,B33,'4. Ausrüstungskosten'!B:B,$B$8)+SUMIFS('5. Kosten für Unteraufträge'!H:H,'5. Kosten für Unteraufträge'!C:C,B33,'5. Kosten für Unteraufträge'!B:B,$B$8)","v":0},{"$f":"SUMIFS('1. Personalkosten'!S:S,'1. Personalkosten'!C:C,B33,'1. Personalkosten'!B:B,$G$25)+SUMIFS('2-3. Reise&Unterkunftskosten'!N:N,'2-3. Reise&Unterkunftskosten'!C:C,B33,'2-3. Reise&Unterkunftskosten'!B:B,$G$25)+SUMIFS('4. Ausrüstungskosten'!H:H,'4. Ausrüstungskosten'!C:C,B33,'4. Ausrüstungskosten'!B:B,$G$25)+SUMIFS('5. Kosten für Unteraufträge'!H:H,'5. Kosten für Unteraufträge'!C:C,B33,'5. Kosten für Unteraufträge'!B:B,$G$25)","v":0},{"$f":"SUMIF('B. Spezieller Mob. - Student'!B:B,B33,'B. Spezieller Mob. - Student'!N:N)+SUMIF('B. Spezieller Mob. - Personal'!B:B,B33,'B. Spezieller Mob. - Personal'!N:N)","v":0},0]
[null,"P9",{"$f":"SUMIFS('1. Personalkosten'!S:S,'1. Personalkosten'!C:C,B34,'1. Personalkosten'!B:B,$C$25)+SUMIFS('2-3. Reise&Unterkunftskosten'!N:N,'2-3. Reise&Unterkunftskosten'!C:C,B34,'2-3. Reise&Unterkunftskosten'!B:B,$C$25)+SUMIFS('4. Ausrüstungskosten'!H:H,'4. Ausrüstungskosten'!C:C,B34,'4. Ausrüstungskosten'!B:B,$C$25)+SUMIFS('5. Kosten für Unteraufträge'!H:H,'5. Kosten für Unteraufträge'!C:C,B34,'5. Kosten für Unteraufträge'!B:B,$C$25)","v":0},{"$f":"SUMIFS('1. Personalkosten'!S:S,'1. Personalkosten'!C:C,B34,'1. Personalkosten'!B:B,$D$25)+SUMIFS('2-3. Reise&Unterkunftskosten'!N:N,'2-3. Reise&Unterkunftskosten'!C:C,B34,'2-3. Reise&Unterkunftskosten'!B:B,$D$25)+SUMIFS('4. Ausrüstungskosten'!H:H,'4. Ausrüstungskosten'!C:C,B34,'4. Ausrüstungskosten'!B:B,$D$25)+SUMIFS('5. Kosten für Unteraufträge'!H:H,'5. Kosten für Unteraufträge'!C:C,B34,'5. Kosten für Unteraufträge'!B:B,$D$25)","v":0},{"$f":"SUMIFS('1. Personalkosten'!S:S,'1. Personalkosten'!C:C,B34,'1. Personalkosten'!B:B,$E$25)+SUMIFS('2-3. Reise&Unterkunftskosten'!N:N,'2-3. Reise&Unterkunftskosten'!C:C,B34,'2-3. Reise&Unterkunftskosten'!B:B,$E$25)+SUMIFS('4. Ausrüstungskosten'!H:H,'4. Ausrüstungskosten'!C:C,B34,'4. Ausrüstungskosten'!B:B,$E$25)+SUMIFS('5. Kosten für Unteraufträge'!H:H,'5. Kosten für Unteraufträge'!C:C,B34,'5. Kosten für Unteraufträge'!B:B,$E$25)","v":0},{"$f":"SUMIFS('1. Personalkosten'!S:S,'1. Personalkosten'!C:C,B34,'1. Personalkosten'!B:B,$B$8)+SUMIFS('2-3. Reise&Unterkunftskosten'!N:N,'2-3. Reise&Unterkunftskosten'!C:C,B34,'2-3. Reise&Unterkunftskosten'!B:B,$B$8)+SUMIFS('4. Ausrüstungskosten'!H:H,'4. Ausrüstungskosten'!C:C,B34,'4. Ausrüstungskosten'!B:B,$B$8)+SUMIFS('5. Kosten für Unteraufträge'!H:H,'5. Kosten für Unteraufträge'!C:C,B34,'5. Kosten für Unteraufträge'!B:B,$B$8)","v":0},{"$f":"SUMIFS('1. Personalkosten'!S:S,'1. Personalkosten'!C:C,B34,'1. Personalkosten'!B:B,$G$25)+SUMIFS('2-3. Reise&Unterkunftskosten'!N:N,'2-3. Reise&Unterkunftskosten'!C:C,B34,'2-3. Reise&Unterkunftskosten'!B:B,$G$25)+SUMIFS('4. Ausrüstungskosten'!H:H,'4. Ausrüstungskosten'!C:C,B34,'4. Ausrüstungskosten'!B:B,$G$25)+SUMIFS('5. Kosten für Unteraufträge'!H:H,'5. Kosten für Unteraufträge'!C:C,B34,'5. Kosten für Unteraufträge'!B:B,$G$25)","v":0},{"$f":"SUMIF('B. Spezieller Mob. - Student'!B:B,B34,'B. Spezieller Mob. - Student'!N:N)+SUMIF('B. Spezieller Mob. - Personal'!B:B,B34,'B. Spezieller Mob. - Personal'!N:N)","v":0},0]
[null,"P10",{"$f":"SUMIFS('1. Personalkosten'!S:S,'1. Personalkosten'!C:C,B35,'1. Personalkosten'!B:B,$C$25)+SUMIFS('2-3. Reise&Unterkunftskosten'!N:N,'2-3. Reise&Unterkunftskosten'!C:C,B35,'2-3. Reise&Unterkunftskosten'!B:B,$C$25)+SUMIFS('4. Ausrüstungskosten'!H:H,'4. Ausrüstungskosten'!C:C,B35,'4. Ausrüstungskosten'!B:B,$C$25)+SUMIFS('5. Kosten für Unteraufträge'!H:H,'5. Kosten für Unteraufträge'!C:C,B35,'5. Kosten für Unteraufträge'!B:B,$C$25)","v":0},{"$f":"SUMIFS('1. Personalkosten'!S:S,'1. Personalkosten'!C:C,B35,'1. Personalkosten'!B:B,$D$25)+SUMIFS('2-3. Reise&Unterkunftskosten'!N:N,'2-3. Reise&Unterkunftskosten'!C:C,B35,'2-3. Reise&Unterkunftskosten'!B:B,$D$25)+SUMIFS('4. Ausrüstungskosten'!H:H,'4. Ausrüstungskosten'!C:C,B35,'4. Ausrüstungskosten'!B:B,$D$25)+SUMIFS('5. Kosten für Unteraufträge'!H:H,'5. Kosten für Unteraufträge'!C:C,B35,'5. Kosten für Unteraufträge'!B:B,$D$25)","v":0},{"$f":"SUMIFS('1. Personalkosten'!S:S,'1. Personalkosten'!C:C,B35,'1. Personalkosten'!B:B,$E$25)+SUMIFS('2-3. Reise&Unterkunftskosten'!N:N,'2-3. Reise&Unterkunftskosten'!C:C,B35,'2-3. Reise&Unterkunftskosten'!B:B,$E$25)+SUMIFS('4. Ausrüstungskosten'!H:H,'4. Ausrüstungskosten'!C:C,B35,'4. Ausrüstungskosten'!B:B,$E$25)+SUMIFS('5. Kosten für Unteraufträge'!H:H,'5. Kosten für Unteraufträge'!C:C,B35,'5. Kosten für Unteraufträge'!B:B,$E$25)","v":0},{"$f":"SUMIFS('1. Personalkosten'!S:S,'1. Personalkosten'!C:C,B35,'1. Personalkosten'!B:B,$B$8)+SUMIFS('2-3. Reise&Unterkunftskosten'!N:N,'2-3. Reise&Unterkunftskosten'!C:C,B35,'2-3. Reise&Unterkunftskosten'!B:B,$B$8)+SUMIFS('4. Ausrüstungskosten'!H:H,'4. Ausrüstungskosten'!C:C,B35,'4. Ausrüstungskosten'!B:B,$B$8)+SUMIFS('5. Kosten für Unteraufträge'!H:H,'5. Kosten für Unteraufträge'!C:C,B35,'5. Kosten für Unteraufträge'!B:B,$B$8)","v":0},{"$f":"SUMIFS('1. Personalkosten'!S:S,'1. Personalkosten'!C:C,B35,'1. Personalkosten'!B:B,$G$25)+SUMIFS('2-3. Reise&Unterkunftskosten'!N:N,'2-3. Reise&Unterkunftskosten'!C:C,B35,'2-3. Reise&Unterkunftskosten'!B:B,$G$25)+SUMIFS('4. Ausrüstungskosten'!H:H,'4. Ausrüstungskosten'!C:C,B35,'4. Ausrüstungskosten'!B:B,$G$25)+SUMIFS('5. Kosten für Unteraufträge'!H:H,'5. Kosten für Unteraufträge'!C:C,B35,'5. Kosten für Unteraufträge'!B:B,$G$25)","v":0},{"$f":"SUMIF('B. Spezieller Mob. - Student'!B:B,B35,'B. Spezieller Mob. - Student'!N:N)+SUMIF('B. Spezieller Mob. - Personal'!B:B,B35,'B. Spezieller Mob. - Personal'!N:N)","v":0},0]
[null,"P11",{"$f":"SUMIFS('1. Personalkosten'!S:S,'1. Personalkosten'!C:C,B36,'1. Personalkosten'!B:B,$C$25)+SUMIFS('2-3. Reise&Unterkunftskosten'!N:N,'2-3. Reise&Unterkunftskosten'!C:C,B36,'2-3. Reise&Unterkunftskosten'!B:B,$C$25)+SUMIFS('4. Ausrüstungskosten'!H:H,'4. Ausrüstungskosten'!C:C,B36,'4. Ausrüstungskosten'!B:B,$C$25)+SUMIFS('5. Kosten für Unteraufträge'!H:H,'5. Kosten für Unteraufträge'!C:C,B36,'5. Kosten für Unteraufträge'!B:B,$C$25)","v":0},{"$f":"SUMIFS('1. Personalkosten'!S:S,'1. Personalkosten'!C:C,B36,'1. Personalkosten'!B:B,$D$25)+SUMIFS('2-3. Reise&Unterkunftskosten'!N:N,'2-3. Reise&Unterkunftskosten'!C:C,B36,'2-3. Reise&Unterkunftskosten'!B:B,$D$25)+SUMIFS('4. Ausrüstungskosten'!H:H,'4. Ausrüstungskosten'!C:C,B36,'4. Ausrüstungskosten'!B:B,$D$25)+SUMIFS('5. Kosten für Unteraufträge'!H:H,'5. Kosten für Unteraufträge'!C:C,B36,'5. Kosten für Unteraufträge'!B:B,$D$25)","v":0},{"$f":"SUMIFS('1. Personalkosten'!S:S,'1. Personalkosten'!C:C,B36,'1. Personalkosten'!B:B,$E$25)+SUMIFS('2-3. Reise&Unterkunftskosten'!N:N,'2-3. Reise&Unterkunftskosten'!C:C,B36,'2-3. Reise&Unterkunftskosten'!B:B,$E$25)+SUMIFS('4. Ausrüstungskosten'!H:H,'4. Ausrüstungskosten'!C:C,B36,'4. Ausrüstungskosten'!B:B,$E$25)+SUMIFS('5. Kosten für Unteraufträge'!H:H,'5. Kosten für Unteraufträge'!C:C,B36,'5. Kosten für Unteraufträge'!B:B,$E$25)","v":0},{"$f":"SUMIFS('1. Personalkosten'!S:S,'1. Personalkosten'!C:C,B36,'1. Personalkosten'!B:B,$B$8)+SUMIFS('2-3. Reise&Unterkunftskosten'!N:N,'2-3. Reise&Unterkunftskosten'!C:C,B36,'2-3. Reise&Unterkunftskosten'!B:B,$B$8)+SUMIFS('4. Ausrüstungskosten'!H:H,'4. Ausrüstungskosten'!C:C,B36,'4. Ausrüstungskosten'!B:B,$B$8)+SUMIFS('5. Kosten für Unteraufträge'!H:H,'5. Kosten für Unteraufträge'!C:C,B36,'5. Kosten für Unteraufträge'!B:B,$B$8)","v":0},{"$f":"SUMIFS('1. Personalkosten'!S:S,'1. Personalkosten'!C:C,B36,'1. Personalkosten'!B:B,$G$25)+SUMIFS('2-3. Reise&Unterkunftskosten'!N:N,'2-3. Reise&Unterkunftskosten'!C:C,B36,'2-3. Reise&Unterkunftskosten'!B:B,$G$25)+SUMIFS('4. Ausrüstungskosten'!H:H,'4. Ausrüstungskosten'!C:C,B36,'4. Ausrüstungskosten'!B:B,$G$25)+SUMIFS('5. Kosten für Unteraufträge'!H:H,'5. Kosten für Unteraufträge'!C:C,B36,'5. Kosten für Unteraufträge'!B:B,$G$25)","v":0},{"$f":"SUMIF('B. Spezieller Mob. - Student'!B:B,B36,'B. Spezieller Mob. - Student'!N:N)+SUMIF('B. Spezieller Mob. - Personal'!B:B,B36,'B. Spezieller Mob. - Personal'!N:N)","v":0},0]
[null,"P12",{"$f":"SUMIFS('1. Personalkosten'!S:S,'1. Personalkosten'!C:C,B37,'1. Personalkosten'!B:B,$C$25)+SUMIFS('2-3. Reise&Unterkunftskosten'!N:N,'2-3. Reise&Unterkunftskosten'!C:C,B37,'2-3. Reise&Unterkunftskosten'!B:B,$C$25)+SUMIFS('4. Ausrüstungskosten'!H:H,'4. Ausrüstungskosten'!C:C,B37,'4. Ausrüstungskosten'!B:B,$C$25)+SUMIFS('5. Kosten für Unteraufträge'!H:H,'5. Kosten für Unteraufträge'!C:C,B37,'5. Kosten für Unteraufträge'!B:B,$C$25)","v":0},{"$f":"SUMIFS('1. Personalkosten'!S:S,'1. Personalkosten'!C:C,B37,'1. Personalkosten'!B:B,$D$25)+SUMIFS('2-3. Reise&Unterkunftskosten'!N:N,'2-3. Reise&Unterkunftskosten'!C:C,B37,'2-3. Reise&Unterkunftskosten'!B:B,$D$25)+SUMIFS('4. Ausrüstungskosten'!H:H,'4. Ausrüstungskosten'!C:C,B37,'4. Ausrüstungskosten'!B:B,$D$25)+SUMIFS('5. Kosten für Unteraufträge'!H:H,'5. Kosten für Unteraufträge'!C:C,B37,'5. Kosten für Unteraufträge'!B:B,$D$25)","v":0},{"$f":"SUMIFS('1. Personalkosten'!S:S,'1. Personalkosten'!C:C,B37,'1. Personalkosten'!B:B,$E$25)+SUMIFS('2-3. Reise&Unterkunftskosten'!N:N,'2-3. Reise&Unterkunftskosten'!C:C,B37,'2-3. Reise&Unterkunftskosten'!B:B,$E$25)+SUMIFS('4. Ausrüstungskosten'!H:H,'4. Ausrüstungskosten'!C:C,B37,'4. Ausrüstungskosten'!B:B,$E$25)+SUMIFS('5. Kosten für Unteraufträge'!H:H,'5. Kosten für Unteraufträge'!C:C,B37,'5. Kosten für Unteraufträge'!B:B,$E$25)","v":0},{"$f":"SUMIFS('1. Personalkosten'!S:S,'1. Personalkosten'!C:C,B37,'1. Personalkosten'!B:B,$B$8)+SUMIFS('2-3. Reise&Unterkunftskosten'!N:N,'2-3. Reise&Unterkunftskosten'!C:C,B37,'2-3. Reise&Unterkunftskosten'!B:B,$B$8)+SUMIFS('4. Ausrüstungskosten'!H:H,'4. Ausrüstungskosten'!C:C,B37,'4. Ausrüstungskosten'!B:B,$B$8)+SUMIFS('5. Kosten für Unteraufträge'!H:H,'5. Kosten für Unteraufträge'!C:C,B37,'5. Kosten für Unteraufträge'!B:B,$B$8)","v":0},{"$f":"SUMIFS('1. Personalkosten'!S:S,'1. Personalkosten'!C:C,B37,'1. Personalkosten'!B:B,$G$25)+SUMIFS('2-3. Reise&Unterkunftskosten'!N:N,'2-3. Reise&Unterkunftskosten'!C:C,B37,'2-3. Reise&Unterkunftskosten'!B:B,$G$25)+SUMIFS('4. Ausrüstungskosten'!H:H,'4. Ausrüstungskosten'!C:C,B37,'4. Ausrüstungskosten'!B:B,$G$25)+SUMIFS('5. Kosten für Unteraufträge'!H:H,'5. Kosten für Unteraufträge'!C:C,B37,'5. Kosten für Unteraufträge'!B:B,$G$25)","v":0},{"$f":"SUMIF('B. Spezieller Mob. - Student'!B:B,B37,'B. Spezieller Mob. - Student'!N:N)+SUMIF('B. Spezieller Mob. - Personal'!B:B,B37,'B. Spezieller Mob. - Personal'!N:N)","v":0},0]
[null,"P13",{"$f":"SUMIFS('1. Personalkosten'!S:S,'1. Personalkosten'!C:C,B38,'1. Personalkosten'!B:B,$C$25)+SUMIFS('2-3. Reise&Unterkunftskosten'!N:N,'2-3. Reise&Unterkunftskosten'!C:C,B38,'2-3. Reise&Unterkunftskosten'!B:B,$C$25)+SUMIFS('4. Ausrüstungskosten'!H:H,'4. Ausrüstungskosten'!C:C,B38,'4. Ausrüstungskosten'!B:B,$C$25)+SUMIFS('5. Kosten für Unteraufträge'!H:H,'5. Kosten für Unteraufträge'!C:C,B38,'5. Kosten für Unteraufträge'!B:B,$C$25)","v":0},{"$f":"SUMIFS('1. Personalkosten'!S:S,'1. Personalkosten'!C:C,B38,'1. Personalkosten'!B:B,$D$25)+SUMIFS('2-3. Reise&Unterkunftskosten'!N:N,'2-3. Reise&Unterkunftskosten'!C:C,B38,'2-3. Reise&Unterkunftskosten'!B:B,$D$25)+SUMIFS('4. Ausrüstungskosten'!H:H,'4. Ausrüstungskosten'!C:C,B38,'4. Ausrüstungskosten'!B:B,$D$25)+SUMIFS('5. Kosten für Unteraufträge'!H:H,'5. Kosten für Unteraufträge'!C:C,B38,'5. Kosten für Unteraufträge'!B:B,$D$25)","v":0},{"$f":"SUMIFS('1. Personalkosten'!S:S,'1. Personalkosten'!C:C,B38,'1. Personalkosten'!B:B,$E$25)+SUMIFS('2-3. Reise&Unterkunftskosten'!N:N,'2-3. Reise&Unterkunftskosten'!C:C,B38,'2-3. Reise&Unterkunftskosten'!B:B,$E$25)+SUMIFS('4. Ausrüstungskosten'!H:H,'4. Ausrüstungskosten'!C:C,B38,'4. Ausrüstungskosten'!B:B,$E$25)+SUMIFS('5. Kosten für Unteraufträge'!H:H,'5. Kosten für Unteraufträge'!C:C,B38,'5. Kosten für Unteraufträge'!B:B,$E$25)","v":0},{"$f":"SUMIFS('1. Personalkosten'!S:S,'1. Personalkosten'!C:C,B38,'1. Personalkosten'!B:B,$B$8)+SUMIFS('2-3. Reise&Unterkunftskosten'!N:N,'2-3. Reise&Unterkunftskosten'!C:C,B38,'2-3. Reise&Unterkunftskosten'!B:B,$B$8)+SUMIFS('4. Ausrüstungskosten'!H:H,'4. Ausrüstungskosten'!C:C,B38,'4. Ausrüstungskosten'!B:B,$B$8)+SUMIFS('5. Kosten für Unteraufträge'!H:H,'5. Kosten für Unteraufträge'!C:C,B38,'5. Kosten für Unteraufträge'!B:B,$B$8)","v":0},{"$f":"SUMIFS('1. Personalkosten'!S:S,'1. Personalkosten'!C:C,B38,'1. Personalkosten'!B:B,$G$25)+SUMIFS('2-3. Reise&Unterkunftskosten'!N:N,'2-3. Reise&Unterkunftskosten'!C:C,B38,'2-3. Reise&Unterkunftskosten'!B:B,$G$25)+SUMIFS('4. Ausrüstungskosten'!H:H,'4. Ausrüstungskosten'!C:C,B38,'4. Ausrüstungskosten'!B:B,$G$25)+SUMIFS('5. Kosten für Unteraufträge'!H:H,'5. Kosten für Unteraufträge'!C:C,B38,'5. Kosten für Unteraufträge'!B:B,$G$25)","v":0},{"$f":"SUMIF('B. Spezieller Mob. - Student'!B:B,B38,'B. Spezieller Mob. - Student'!N:N)+SUMIF('B. Spezieller Mob. - Personal'!B:B,B38,'B. Spezieller Mob. - Personal'!N:N)","v":0},0]
[null,"P14",{"$f":"SUMIFS('1. Personalkosten'!S:S,'1. Personalkosten'!C:C,B39,'1. Personalkosten'!B:B,$C$25)+SUMIFS('2-3. Reise&Unterkunftskosten'!N:N,'2-3. Reise&Unterkunftskosten'!C:C,B39,'2-3. Reise&Unterkunftskosten'!B:B,$C$25)+SUMIFS('4. Ausrüstungskosten'!H:H,'4. Ausrüstungskosten'!C:C,B39,'4. Ausrüstungskosten'!B:B,$C$25)+SUMIFS('5. Kosten für Unteraufträge'!H:H,'5. Kosten für Unteraufträge'!C:C,B39,'5. Kosten für Unteraufträge'!B:B,$C$25)","v":0},{"$f":"SUMIFS('1. Personalkosten'!S:S,'1. Personalkosten'!C:C,B39,'1. Personalkosten'!B:B,$D$25)+SUMIFS('2-3. Reise&Unterkunftskosten'!N:N,'2-3. Reise&Unterkunftskosten'!C:C,B39,'2-3. Reise&Unterkunftskosten'!B:B,$D$25)+SUMIFS('4. Ausrüstungskosten'!H:H,'4. Ausrüstungskosten'!C:C,B39,'4. Ausrüstungskosten'!B:B,$D$25)+SUMIFS('5. Kosten für Unteraufträge'!H:H,'5. Kosten für Unteraufträge'!C:C,B39,'5. Kosten für Unteraufträge'!B:B,$D$25)","v":0},{"$f":"SUMIFS('1. Personalkosten'!S:S,'1. Personalkosten'!C:C,B39,'1. Personalkosten'!B:B,$E$25)+SUMIFS('2-3. Reise&Unterkunftskosten'!N:N,'2-3. Reise&Unterkunftskosten'!C:C,B39,'2-3. Reise&Unterkunftskosten'!B:B,$E$25)+SUMIFS('4. Ausrüstungskosten'!H:H,'4. Ausrüstungskosten'!C:C,B39,'4. Ausrüstungskosten'!B:B,$E$25)+SUMIFS('5. Kosten für Unteraufträge'!H:H,'5. Kosten für Unteraufträge'!C:C,B39,'5. Kosten für Unteraufträge'!B:B,$E$25)","v":0},{"$f":"SUMIFS('1. Personalkosten'!S:S,'1. Personalkosten'!C:C,B39,'1. Personalkosten'!B:B,$B$8)+SUMIFS('2-3. Reise&Unterkunftskosten'!N:N,'2-3. Reise&Unterkunftskosten'!C:C,B39,'2-3. Reise&Unterkunftskosten'!B:B,$B$8)+SUMIFS('4. Ausrüstungskosten'!H:H,'4. Ausrüstungskosten'!C:C,B39,'4. Ausrüstungskosten'!B:B,$B$8)+SUMIFS('5. Kosten für Unteraufträge'!H:H,'5. Kosten für Unteraufträge'!C:C,B39,'5. Kosten für Unteraufträge'!B:B,$B$8)","v":0},{"$f":"SUMIFS('1. Personalkosten'!S:S,'1. Personalkosten'!C:C,B39,'1. Personalkosten'!B:B,$G$25)+SUMIFS('2-3. Reise&Unterkunftskosten'!N:N,'2-3. Reise&Unterkunftskosten'!C:C,B39,'2-3. Reise&Unterkunftskosten'!B:B,$G$25)+SUMIFS('4. Ausrüstungskosten'!H:H,'4. Ausrüstungskosten'!C:C,B39,'4. Ausrüstungskosten'!B:B,$G$25)+SUMIFS('5. Kosten für Unteraufträge'!H:H,'5. Kosten für Unteraufträge'!C:C,B39,'5. Kosten für Unteraufträge'!B:B,$G$25)","v":0},{"$f":"SUMIF('B. Spezieller Mob. - Student'!B:B,B39,'B. Spezieller Mob. - Student'!N:N)+SUMIF('B. Spezieller Mob. - Personal'!B:B,B39,'B. Spezieller Mob. - Personal'!N:N)","v":0},0]
[null,"P15",{"$f":"SUMIFS('1. Personalkosten'!S:S,'1. Personalkosten'!C:C,B40,'1. Personalkosten'!B:B,$C$25)+SUMIFS('2-3. Reise&Unterkunftskosten'!N:N,'2-3. Reise&Unterkunftskosten'!C:C,B40,'2-3. Reise&Unterkunftskosten'!B:B,$C$25)+SUMIFS('4. Ausrüstungskosten'!H:H,'4. Ausrüstungskosten'!C:C,B40,'4. Ausrüstungskosten'!B:B,$C$25)+SUMIFS('5. Kosten für Unteraufträge'!H:H,'5. Kosten für Unteraufträge'!C:C,B40,'5. Kosten für Unteraufträge'!B:B,$C$25)","v":0},{"$f":"SUMIFS('1. Personalkosten'!S:S,'1. Personalkosten'!C:C,B40,'1. Personalkosten'!B:B,$D$25)+SUMIFS('2-3. Reise&Unterkunftskosten'!N:N,'2-3. Reise&Unterkunftskosten'!C:C,B40,'2-3. Reise&Unterkunftskosten'!B:B,$D$25)+SUMIFS('4. Ausrüstungskosten'!H:H,'4. Ausrüstungskosten'!C:C,B40,'4. Ausrüstungskosten'!B:B,$D$25)+SUMIFS('5. Kosten für Unteraufträge'!H:H,'5. Kosten für Unteraufträge'!C:C,B40,'5. Kosten für Unteraufträge'!B:B,$D$25)","v":0},{"$f":"SUMIFS('1. Personalkosten'!S:S,'1. Personalkosten'!C:C,B40,'1. Personalkosten'!B:B,$E$25)+SUMIFS('2-3. Reise&Unterkunftskosten'!N:N,'2-3. Reise&Unterkunftskosten'!C:C,B40,'2-3. Reise&Unterkunftskosten'!B:B,$E$25)+SUMIFS('4. Ausrüstungskosten'!H:H,'4. Ausrüstungskosten'!C:C,B40,'4. Ausrüstungskosten'!B:B,$E$25)+SUMIFS('5. Kosten für Unteraufträge'!H:H,'5. Kosten für Unteraufträge'!C:C,B40,'5. Kosten für Unteraufträge'!B:B,$E$25)","v":0},{"$f":"SUMIFS('1. Personalkosten'!S:S,'1. Personalkosten'!C:C,B40,'1. Personalkosten'!B:B,$B$8)+SUMIFS('2-3. Reise&Unterkunftskosten'!N:N,'2-3. Reise&Unterkunftskosten'!C:C,B40,'2-3. Reise&Unterkunftskosten'!B:B,$B$8)+SUMIFS('4. Ausrüstungskosten'!H:H,'4. Ausrüstungskosten'!C:C,B40,'4. Ausrüstungskosten'!B:B,$B$8)+SUMIFS('5. Kosten für Unteraufträge'!H:H,'5. Kosten für Unteraufträge'!C:C,B40,'5. Kosten für Unteraufträge'!B:B,$B$8)","v":0},{"$f":"SUMIFS('1. Personalkosten'!S:S,'1. Personalkosten'!C:C,B40,'1. Personalkosten'!B:B,$G$25)+SUMIFS('2-3. Reise&Unterkunftskosten'!N:N,'2-3. Reise&Unterkunftskosten'!C:C,B40,'2-3. Reise&Unterkunftskosten'!B:B,$G$25)+SUMIFS('4. Ausrüstungskosten'!H:H,'4. Ausrüstungskosten'!C:C,B40,'4. Ausrüstungskosten'!B:B,$G$25)+SUMIFS('5. Kosten für Unteraufträge'!H:H,'5. Kosten für Unteraufträge'!C:C,B40,'5. Kosten für Unteraufträge'!B:B,$G$25)","v":0},{"$f":"SUMIF('B. Spezieller Mob. - Student'!B:B,B40,'B. Spezieller Mob. - Student'!N:N)+SUMIF('B. Spezieller Mob. - Personal'!B:B,B40,'B. Spezieller Mob. - Personal'!N:N)","v":0},0]
[null,"P16",{"$f":"SUMIFS('1. Personalkosten'!S:S,'1. Personalkosten'!C:C,B41,'1. Personalkosten'!B:B,$C$25)+SUMIFS('2-3. Reise&Unterkunftskosten'!N:N,'2-3. Reise&Unterkunftskosten'!C:C,B41,'2-3. Reise&Unterkunftskosten'!B:B,$C$25)+SUMIFS('4. Ausrüstungskosten'!H:H,'4. Ausrüstungskosten'!C:C,B41,'4. Ausrüstungskosten'!B:B,$C$25)+SUMIFS('5. Kosten für Unteraufträge'!H:H,'5. Kosten für Unteraufträge'!C:C,B41,'5. Kosten für Unteraufträge'!B:B,$C$25)","v":0},{"$f":"SUMIFS('1. Personalkosten'!S:S,'1. Personalkosten'!C:C,B41,'1. Personalkosten'!B:B,$D$25)+SUMIFS('2-3. Reise&Unterkunftskosten'!N:N,'2-3. Reise&Unterkunftskosten'!C:C,B41,'2-3. Reise&Unterkunftskosten'!B:B,$D$25)+SUMIFS('4. Ausrüstungskosten'!H:H,'4. Ausrüstungskosten'!C:C,B41,'4. Ausrüstungskosten'!B:B,$D$25)+SUMIFS('5. Kosten für Unteraufträge'!H:H,'5. Kosten für Unteraufträge'!C:C,B41,'5. Kosten für Unteraufträge'!B:B,$D$25)","v":0},{"$f":"SUMIFS('1. Personalkosten'!S:S,'1. Personalkosten'!C:C,B41,'1. Personalkosten'!B:B,$E$25)+SUMIFS('2-3. Reise&Unterkunftskosten'!N:N,'2-3. Reise&Unterkunftskosten'!C:C,B41,'2-3. Reise&Unterkunftskosten'!B:B,$E$25)+SUMIFS('4. Ausrüstungskosten'!H:H,'4. Ausrüstungskosten'!C:C,B41,'4. Ausrüstungskosten'!B:B,$E$25)+SUMIFS('5. Kosten für Unteraufträge'!H:H,'5. Kosten für Unteraufträge'!C:C,B41,'5. Kosten für Unteraufträge'!B:B,$E$25)","v":0},{"$f":"SUMIFS('1. Personalkosten'!S:S,'1. Personalkosten'!C:C,B41,'1. Personalkosten'!B:B,$B$8)+SUMIFS('2-3. Reise&Unterkunftskosten'!N:N,'2-3. Reise&Unterkunftskosten'!C:C,B41,'2-3. Reise&Unterkunftskosten'!B:B,$B$8)+SUMIFS('4. Ausrüstungskosten'!H:H,'4. Ausrüstungskosten'!C:C,B41,'4. Ausrüstungskosten'!B:B,$B$8)+SUMIFS('5. Kosten für Unteraufträge'!H:H,'5. Kosten für Unteraufträge'!C:C,B41,'5. Kosten für Unteraufträge'!B:B,$B$8)","v":0},{"$f":"SUMIFS('1. Personalkosten'!S:S,'1. Personalkosten'!C:C,B41,'1. Personalkosten'!B:B,$G$25)+SUMIFS('2-3. Reise&Unterkunftskosten'!N:N,'2-3. Reise&Unterkunftskosten'!C:C,B41,'2-3. Reise&Unterkunftskosten'!B:B,$G$25)+SUMIFS('4. Ausrüstungskosten'!H:H,'4. Ausrüstungskosten'!C:C,B41,'4. Ausrüstungskosten'!B:B,$G$25)+SUMIFS('5. Kosten für Unteraufträge'!H:H,'5. Kosten für Unteraufträge'!C:C,B41,'5. Kosten für Unteraufträge'!B:B,$G$25)","v":0},{"$f":"SUMIF('B. Spezieller Mob. - Student'!B:B,B41,'B. Spezieller Mob. - Student'!N:N)+SUMIF('B. Spezieller Mob. - Personal'!B:B,B41,'B. Spezieller Mob. - Personal'!N:N)","v":0},0]
[null,"P17",{"$f":"SUMIFS('1. Personalkosten'!S:S,'1. Personalkosten'!C:C,B42,'1. Personalkosten'!B:B,$C$25)+SUMIFS('2-3. Reise&Unterkunftskosten'!N:N,'2-3. Reise&Unterkunftskosten'!C:C,B42,'2-3. Reise&Unterkunftskosten'!B:B,$C$25)+SUMIFS('4. Ausrüstungskosten'!H:H,'4. Ausrüstungskosten'!C:C,B42,'4. Ausrüstungskosten'!B:B,$C$25)+SUMIFS('5. Kosten für Unteraufträge'!H:H,'5. Kosten für Unteraufträge'!C:C,B42,'5. Kosten für Unteraufträge'!B:B,$C$25)","v":0},{"$f":"SUMIFS('1. Personalkosten'!S:S,'1. Personalkosten'!C:C,B42,'1. Personalkosten'!B:B,$D$25)+SUMIFS('2-3. Reise&Unterkunftskosten'!N:N,'2-3. Reise&Unterkunftskosten'!C:C,B42,'2-3. Reise&Unterkunftskosten'!B:B,$D$25)+SUMIFS('4. Ausrüstungskosten'!H:H,'4. Ausrüstungskosten'!C:C,B42,'4. Ausrüstungskosten'!B:B,$D$25)+SUMIFS('5. Kosten für Unteraufträge'!H:H,'5. Kosten für Unteraufträge'!C:C,B42,'5. Kosten für Unteraufträge'!B:B,$D$25)","v":0},{"$f":"SUMIFS('1. Personalkosten'!S:S,'1. Personalkosten'!C:C,B42,'1. Personalkosten'!B:B,$E$25)+SUMIFS('2-3. Reise&Unterkunftskosten'!N:N,'2-3. Reise&Unterkunftskosten'!C:C,B42,'2-3. Reise&Unterkunftskosten'!B:B,$E$25)+SUMIFS('4. Ausrüstungskosten'!H:H,'4. Ausrüstungskosten'!C:C,B42,'4. Ausrüstungskosten'!B:B,$E$25)+SUMIFS('5. Kosten für Unteraufträge'!H:H,'5. Kosten für Unteraufträge'!C:C,B42,'5. Kosten für Unteraufträge'!B:B,$E$25)","v":0},{"$f":"SUMIFS('1. Personalkosten'!S:S,'1. Personalkosten'!C:C,B42,'1. Personalkosten'!B:B,$B$8)+SUMIFS('2-3. Reise&Unterkunftskosten'!N:N,'2-3. Reise&Unterkunftskosten'!C:C,B42,'2-3. Reise&Unterkunftskosten'!B:B,$B$8)+SUMIFS('4. Ausrüstungskosten'!H:H,'4. Ausrüstungskosten'!C:C,B42,'4. Ausrüstungskosten'!B:B,$B$8)+SUMIFS('5. Kosten für Unteraufträge'!H:H,'5. Kosten für Unteraufträge'!C:C,B42,'5. Kosten für Unteraufträge'!B:B,$B$8)","v":0},{"$f":"SUMIFS('1. Personalkosten'!S:S,'1. Personalkosten'!C:C,B42,'1. Personalkosten'!B:B,$G$25)+SUMIFS('2-3. Reise&Unterkunftskosten'!N:N,'2-3. Reise&Unterkunftskosten'!C:C,B42,'2-3. Reise&Unterkunftskosten'!B:B,$G$25)+SUMIFS('4. Ausrüstungskosten'!H:H,'4. Ausrüstungskosten'!C:C,B42,'4. Ausrüstungskosten'!B:B,$G$25)+SUMIFS('5. Kosten für Unteraufträge'!H:H,'5. Kosten für Unteraufträge'!C:C,B42,'5. Kosten für Unteraufträge'!B:B,$G$25)","v":0},{"$f":"SUMIF('B. Spezieller Mob. - Student'!B:B,B42,'B. Spezieller Mob. - Student'!N:N)+SUMIF('B. Spezieller Mob. - Personal'!B:B,B42,'B. Spezieller Mob. - Personal'!N:N)","v":0},0]
[null,"P18",{"$f":"SUMIFS('1. Personalkosten'!S:S,'1. Personalkosten'!C:C,B43,'1. Personalkosten'!B:B,$C$25)+SUMIFS('2-3. Reise&Unterkunftskosten'!N:N,'2-3. Reise&Unterkunftskosten'!C:C,B43,'2-3. Reise&Unterkunftskosten'!B:B,$C$25)+SUMIFS('4. Ausrüstungskosten'!H:H,'4. Ausrüstungskosten'!C:C,B43,'4. Ausrüstungskosten'!B:B,$C$25)+SUMIFS('5. Kosten für Unteraufträge'!H:H,'5. Kosten für Unteraufträge'!C:C,B43,'5. Kosten für Unteraufträge'!B:B,$C$25)","v":0},{"$f":"SUMIFS('1. Personalkosten'!S:S,'1. Personalkosten'!C:C,B43,'1. Personalkosten'!B:B,$D$25)+SUMIFS('2-3. Reise&Unterkunftskosten'!N:N,'2-3. Reise&Unterkunftskosten'!C:C,B43,'2-3. Reise&Unterkunftskosten'!B:B,$D$25)+SUMIFS('4. Ausrüstungskosten'!H:H,'4. Ausrüstungskosten'!C:C,B43,'4. Ausrüstungskosten'!B:B,$D$25)+SUMIFS('5. Kosten für Unteraufträge'!H:H,'5. Kosten für Unteraufträge'!C:C,B43,'5. Kosten für Unteraufträge'!B:B,$D$25)","v":0},{"$f":"SUMIFS('1. Personalkosten'!S:S,'1. Personalkosten'!C:C,B43,'1. Personalkosten'!B:B,$E$25)+SUMIFS('2-3. Reise&Unterkunftskosten'!N:N,'2-3. Reise&Unterkunftskosten'!C:C,B43,'2-3. Reise&Unterkunftskosten'!B:B,$E$25)+SUMIFS('4. Ausrüstungskosten'!H:H,'4. Ausrüstungskosten'!C:C,B43,'4. Ausrüstungskosten'!B:B,$E$25)+SUMIFS('5. Kosten für Unteraufträge'!H:H,'5. Kosten für Unteraufträge'!C:C,B43,'5. Kosten für Unteraufträge'!B:B,$E$25)","v":0},{"$f":"SUMIFS('1. Personalkosten'!S:S,'1. Personalkosten'!C:C,B43,'1. Personalkosten'!B:B,$B$8)+SUMIFS('2-3. Reise&Unterkunftskosten'!N:N,'2-3. Reise&Unterkunftskosten'!C:C,B43,'2-3. Reise&Unterkunftskosten'!B:B,$B$8)+SUMIFS('4. Ausrüstungskosten'!H:H,'4. Ausrüstungskosten'!C:C,B43,'4. Ausrüstungskosten'!B:B,$B$8)+SUMIFS('5. Kosten für Unteraufträge'!H:H,'5. Kosten für Unteraufträge'!C:C,B43,'5. Kosten für Unteraufträge'!B:B,$B$8)","v":0},{"$f":"SUMIFS('1. Personalkosten'!S:S,'1. Personalkosten'!C:C,B43,'1. Personalkosten'!B:B,$G$25)+SUMIFS('2-3. Reise&Unterkunftskosten'!N:N,'2-3. Reise&Unterkunftskosten'!C:C,B43,'2-3. Reise&Unterkunftskosten'!B:B,$G$25)+SUMIFS('4. Ausrüstungskosten'!H:H,'4. Ausrüstungskosten'!C:C,B43,'4. Ausrüstungskosten'!B:B,$G$25)+SUMIFS('5. Kosten für Unteraufträge'!H:H,'5. Kosten für Unteraufträge'!C:C,B43,'5. Kosten für Unteraufträge'!B:B,$G$25)","v":0},{"$f":"SUMIF('B. Spezieller Mob. - Student'!B:B,B43,'B. Spezieller Mob. - Student'!N:N)+SUMIF('B. Spezieller Mob. - Personal'!B:B,B43,'B. Spezieller Mob. - Personal'!N:N)","v":0},0]
[null,"P19",{"$f":"SUMIFS('1. Personalkosten'!S:S,'1. Personalkosten'!C:C,B44,'1. Personalkosten'!B:B,$C$25)+SUMIFS('2-3. Reise&Unterkunftskosten'!N:N,'2-3. Reise&Unterkunftskosten'!C:C,B44,'2-3. Reise&Unterkunftskosten'!B:B,$C$25)+SUMIFS('4. Ausrüstungskosten'!H:H,'4. Ausrüstungskosten'!C:C,B44,'4. Ausrüstungskosten'!B:B,$C$25)+SUMIFS('5. Kosten für Unteraufträge'!H:H,'5. Kosten für Unteraufträge'!C:C,B44,'5. Kosten für Unteraufträge'!B:B,$C$25)","v":0},{"$f":"SUMIFS('1. Personalkosten'!S:S,'1. Personalkosten'!C:C,B44,'1. Personalkosten'!B:B,$D$25)+SUMIFS('2-3. Reise&Unterkunftskosten'!N:N,'2-3. Reise&Unterkunftskosten'!C:C,B44,'2-3. Reise&Unterkunftskosten'!B:B,$D$25)+SUMIFS('4. Ausrüstungskosten'!H:H,'4. Ausrüstungskosten'!C:C,B44,'4. Ausrüstungskosten'!B:B,$D$25)+SUMIFS('5. Kosten für Unteraufträge'!H:H,'5. Kosten für Unteraufträge'!C:C,B44,'5. Kosten für Unteraufträge'!B:B,$D$25)","v":0},{"$f":"SUMIFS('1. Personalkosten'!S:S,'1. Personalkosten'!C:C,B44,'1. Personalkosten'!B:B,$E$25)+SUMIFS('2-3. Reise&Unterkunftskosten'!N:N,'2-3. Reise&Unterkunftskosten'!C:C,B44,'2-3. Reise&Unterkunftskosten'!B:B,$E$25)+SUMIFS('4. Ausrüstungskosten'!H:H,'4. Ausrüstungskosten'!C:C,B44,'4. Ausrüstungskosten'!B:B,$E$25)+SUMIFS('5. Kosten für Unteraufträge'!H:H,'5. Kosten für Unteraufträge'!C:C,B44,'5. Kosten für Unteraufträge'!B:B,$E$25)","v":0},{"$f":"SUMIFS('1. Personalkosten'!S:S,'1. Personalkosten'!C:C,B44,'1. Personalkosten'!B:B,$B$8)+SUMIFS('2-3. Reise&Unterkunftskosten'!N:N,'2-3. Reise&Unterkunftskosten'!C:C,B44,'2-3. Reise&Unterkunftskosten'!B:B,$B$8)+SUMIFS('4. Ausrüstungskosten'!H:H,'4. Ausrüstungskosten'!C:C,B44,'4. Ausrüstungskosten'!B:B,$B$8)+SUMIFS('5. Kosten für Unteraufträge'!H:H,'5. Kosten für Unteraufträge'!C:C,B44,'5. Kosten für Unteraufträge'!B:B,$B$8)","v":0},{"$f":"SUMIFS('1. Personalkosten'!S:S,'1. Personalkosten'!C:C,B44,'1. Personalkosten'!B:B,$G$25)+SUMIFS('2-3. Reise&Unterkunftskosten'!N:N,'2-3. Reise&Unterkunftskosten'!C:C,B44,'2-3. Reise&Unterkunftskosten'!B:B,$G$25)+SUMIFS('4. Ausrüstungskosten'!H:H,'4. Ausrüstungskosten'!C:C,B44,'4. Ausrüstungskosten'!B:B,$G$25)+SUMIFS('5. Kosten für Unteraufträge'!H:H,'5. Kosten für Unteraufträge'!C:C,B44,'5. Kosten für Unteraufträge'!B:B,$G$25)","v":0},{"$f":"SUMIF('B. Spezieller Mob. - Student'!B:B,B44,'B. Spezieller Mob. - Student'!N:N)+SUMIF('B. Spezieller Mob. - Personal'!B:B,B44,'B. Spezieller Mob. - Personal'!N:N)","v":0},0]
[null,"P20",{"$f":"SUMIFS('1. Personalkosten'!S:S,'1. Personalkosten'!C:C,B45,'1. Personalkosten'!B:B,$C$25)+SUMIFS('2-3. Reise&Unterkunftskosten'!N:N,'2-3. Reise&Unterkunftskosten'!C:C,B45,'2-3. Reise&Unterkunftskosten'!B:B,$C$25)+SUMIFS('4. Ausrüstungskosten'!H:H,'4. Ausrüstungskosten'!C:C,B45,'4. Ausrüstungskosten'!B:B,$C$25)+SUMIFS('5. Kosten für Unteraufträge'!H:H,'5. Kosten für Unteraufträge'!C:C,B45,'5. Kosten für Unteraufträge'!B:B,$C$25)","v":0},{"$f":"SUMIFS('1. Personalkosten'!S:S,'1. Personalkosten'!C:C,B45,'1. Personalkosten'!B:B,$D$25)+SUMIFS('2-3. Reise&Unterkunftskosten'!N:N,'2-3. Reise&Unterkunftskosten'!C:C,B45,'2-3. Reise&Unterkunftskosten'!B:B,$D$25)+SUMIFS('4. Ausrüstungskosten'!H:H,'4. Ausrüstungskosten'!C:C,B45,'4. Ausrüstungskosten'!B:B,$D$25)+SUMIFS('5. Kosten für Unteraufträge'!H:H,'5. Kosten für Unteraufträge'!C:C,B45,'5. Kosten für Unteraufträge'!B:B,$D$25)","v":0},{"$f":"SUMIFS('1. Personalkosten'!S:S,'1. Personalkosten'!C:C,B45,'1. Personalkosten'!B:B,$E$25)+SUMIFS('2-3. Reise&Unterkunftskosten'!N:N,'2-3. Reise&Unterkunftskosten'!C:C,B45,'2-3. Reise&Unterkunftskosten'!B:B,$E$25)+SUMIFS('4. Ausrüstungskosten'!H:H,'4. Ausrüstungskosten'!C:C,B45,'4. Ausrüstungskosten'!B:B,$E$25)+SUMIFS('5. Kosten für Unteraufträge'!H:H,'5. Kosten für Unteraufträge'!C:C,B45,'5. Kosten für Unteraufträge'!B:B,$E$25)","v":0},{"$f":"SUMIFS('1. Personalkosten'!S:S,'1. Personalkosten'!C:C,B45,'1. Personalkosten'!B:B,$B$8)+SUMIFS('2-3. Reise&Unterkunftskosten'!N:N,'2-3. Reise&Unterkunftskosten'!C:C,B45,'2-3. Reise&Unterkunftskosten'!B:B,$B$8)+SUMIFS('4. Ausrüstungskosten'!H:H,'4. Ausrüstungskosten'!C:C,B45,'4. Ausrüstungskosten'!B:B,$B$8)+SUMIFS('5. Kosten für Unteraufträge'!H:H,'5. Kosten für Unteraufträge'!C:C,B45,'5. Kosten für Unteraufträge'!B:B,$B$8)","v":0},{"$f":"SUMIFS('1. Personalkosten'!S:S,'1. Personalkosten'!C:C,B45,'1. Personalkosten'!B:B,$G$25)+SUMIFS('2-3. Reise&Unterkunftskosten'!N:N,'2-3. Reise&Unterkunftskosten'!C:C,B45,'2-3. Reise&Unterkunftskosten'!B:B,$G$25)+SUMIFS('4. Ausrüstungskosten'!H:H,'4. Ausrüstungskosten'!C:C,B45,'4. Ausrüstungskosten'!B:B,$G$25)+SUMIFS('5. Kosten für Unteraufträge'!H:H,'5. Kosten für Unteraufträge'!C:C,B45,'5. Kosten für Unteraufträge'!B:B,$G$25)","v":0},{"$f":"SUMIF('B. Spezieller Mob. - Student'!B:B,B45,'B. Spezieller Mob. - Student'!N:N)+SUMIF('B. Spezieller Mob. - Personal'!B:B,B45,'B. Spezieller Mob. - Personal'!N:N)","v":0},0]
[null,"P21",{"$f":"SUMIFS('1. Personalkosten'!S:S,'1. Personalkosten'!C:C,B46,'1. Personalkosten'!B:B,$C$25)+SUMIFS('2-3. Reise&Unterkunftskosten'!N:N,'2-3. Reise&Unterkunftskosten'!C:C,B46,'2-3. Reise&Unterkunftskosten'!B:B,$C$25)+SUMIFS('4. Ausrüstungskosten'!H:H,'4. Ausrüstungskosten'!C:C,B46,'4. Ausrüstungskosten'!B:B,$C$25)+SUMIFS('5. Kosten für Unteraufträge'!H:H,'5. Kosten für Unteraufträge'!C:C,B46,'5. Kosten für Unteraufträge'!B:B,$C$25)","v":0},{"$f":"SUMIFS('1. Personalkosten'!S:S,'1. Personalkosten'!C:C,B46,'1. Personalkosten'!B:B,$D$25)+SUMIFS('2-3. Reise&Unterkunftskosten'!N:N,'2-3. Reise&Unterkunftskosten'!C:C,B46,'2-3. Reise&Unterkunftskosten'!B:B,$D$25)+SUMIFS('4. Ausrüstungskosten'!H:H,'4. Ausrüstungskosten'!C:C,B46,'4. Ausrüstungskosten'!B:B,$D$25)+SUMIFS('5. Kosten für Unteraufträge'!H:H,'5. Kosten für Unteraufträge'!C:C,B46,'5. Kosten für Unteraufträge'!B:B,$D$25)","v":0},{"$f":"SUMIFS('1. Personalkosten'!S:S,'1. Personalkosten'!C:C,B46,'1. Personalkosten'!B:B,$E$25)+SUMIFS('2-3. Reise&Unterkunftskosten'!N:N,'2-3. Reise&Unterkunftskosten'!C:C,B46,'2-3. Reise&Unterkunftskosten'!B:B,$E$25)+SUMIFS('4. Ausrüstungskosten'!H:H,'4. Ausrüstungskosten'!C:C,B46,'4. Ausrüstungskosten'!B:B,$E$25)+SUMIFS('5. Kosten für Unteraufträge'!H:H,'5. Kosten für Unteraufträge'!C:C,B46,'5. Kosten für Unteraufträge'!B:B,$E$25)","v":0},{"$f":"SUMIFS('1. Personalkosten'!S:S,'1. Personalkosten'!C:C,B46,'1. Personalkosten'!B:B,$B$8)+SUMIFS('2-3. Reise&Unterkunftskosten'!N:N,'2-3. Reise&Unterkunftskosten'!C:C,B46,'2-3. Reise&Unterkunftskosten'!B:B,$B$8)+SUMIFS('4. Ausrüstungskosten'!H:H,'4. Ausrüstungskosten'!C:C,B46,'4. Ausrüstungskosten'!B:B,$B$8)+SUMIFS('5. Kosten für Unteraufträge'!H:H,'5. Kosten für Unteraufträge'!C:C,B46,'5. Kosten für Unteraufträge'!B:B,$B$8)","v":0},{"$f":"SUMIFS('1. Personalkosten'!S:S,'1. Personalkosten'!C:C,B46,'1. Personalkosten'!B:B,$G$25)+SUMIFS('2-3. Reise&Unterkunftskosten'!N:N,'2-3. Reise&Unterkunftskosten'!C:C,B46,'2-3. Reise&Unterkunftskosten'!B:B,$G$25)+SUMIFS('4. Ausrüstungskosten'!H:H,'4. Ausrüstungskosten'!C:C,B46,'4. Ausrüstungskosten'!B:B,$G$25)+SUMIFS('5. Kosten für Unteraufträge'!H:H,'5. Kosten für Unteraufträge'!C:C,B46,'5. Kosten für Unteraufträge'!B:B,$G$25)","v":0},{"$f":"SUMIF('B. Spezieller Mob. - Student'!B:B,B46,'B. Spezieller Mob. - Student'!N:N)+SUMIF('B. Spezieller Mob. - Personal'!B:B,B46,'B. Spezieller Mob. - Personal'!N:N)","v":0},0]
[null,"P22",{"$f":"SUMIFS('1. Personalkosten'!S:S,'1. Personalkosten'!C:C,B47,'1. Personalkosten'!B:B,$C$25)+SUMIFS('2-3. Reise&Unterkunftskosten'!N:N,'2-3. Reise&Unterkunftskosten'!C:C,B47,'2-3. Reise&Unterkunftskosten'!B:B,$C$25)+SUMIFS('4. Ausrüstungskosten'!H:H,'4. Ausrüstungskosten'!C:C,B47,'4. Ausrüstungskosten'!B:B,$C$25)+SUMIFS('5. Kosten für Unteraufträge'!H:H,'5. Kosten für Unteraufträge'!C:C,B47,'5. Kosten für Unteraufträge'!B:B,$C$25)","v":0},{"$f":"SUMIFS('1. Personalkosten'!S:S,'1. Personalkosten'!C:C,B47,'1. Personalkosten'!B:B,$D$25)+SUMIFS('2-3. Reise&Unterkunftskosten'!N:N,'2-3. Reise&Unterkunftskosten'!C:C,B47,'2-3. Reise&Unterkunftskosten'!B:B,$D$25)+SUMIFS('4. Ausrüstungskosten'!H:H,'4. Ausrüstungskosten'!C:C,B47,'4. Ausrüstungskosten'!B:B,$D$25)+SUMIFS('5. Kosten für Unteraufträge'!H:H,'5. Kosten für Unteraufträge'!C:C,B47,'5. Kosten für Unteraufträge'!B:B,$D$25)","v":0},{"$f":"SUMIFS('1. Personalkosten'!S:S,'1. Personalkosten'!C:C,B47,'1. Personalkosten'!B:B,$E$25)+SUMIFS('2-3. Reise&Unterkunftskosten'!N:N,'2-3. Reise&Unterkunftskosten'!C:C,B47,'2-3. Reise&Unterkunftskosten'!B:B,$E$25)+SUMIFS('4. Ausrüstungskosten'!H:H,'4. Ausrüstungskosten'!C:C,B47,'4. Ausrüstungskosten'!B:B,$E$25)+SUMIFS('5. Kosten für Unteraufträge'!H:H,'5. Kosten für Unteraufträge'!C:C,B47,'5. Kosten für Unteraufträge'!B:B,$E$25)","v":0},{"$f":"SUMIFS('1. Personalkosten'!S:S,'1. Personalkosten'!C:C,B47,'1. Personalkosten'!B:B,$B$8)+SUMIFS('2-3. Reise&Unterkunftskosten'!N:N,'2-3. Reise&Unterkunftskosten'!C:C,B47,'2-3. Reise&Unterkunftskosten'!B:B,$B$8)+SUMIFS('4. Ausrüstungskosten'!H:H,'4. Ausrüstungskosten'!C:C,B47,'4. Ausrüstungskosten'!B:B,$B$8)+SUMIFS('5. Kosten für Unteraufträge'!H:H,'5. Kosten für Unteraufträge'!C:C,B47,'5. Kosten für Unteraufträge'!B:B,$B$8)","v":0},{"$f":"SUMIFS('1. Personalkosten'!S:S,'1. Personalkosten'!C:C,B47,'1. Personalkosten'!B:B,$G$25)+SUMIFS('2-3. Reise&Unterkunftskosten'!N:N,'2-3. Reise&Unterkunftskosten'!C:C,B47,'2-3. Reise&Unterkunftskosten'!B:B,$G$25)+SUMIFS('4. Ausrüstungskosten'!H:H,'4. Ausrüstungskosten'!C:C,B47,'4. Ausrüstungskosten'!B:B,$G$25)+SUMIFS('5. Kosten für Unteraufträge'!H:H,'5. Kosten für Unteraufträge'!C:C,B47,'5. Kosten für Unteraufträge'!B:B,$G$25)","v":0},{"$f":"SUMIF('B. Spezieller Mob. - Student'!B:B,B47,'B. Spezieller Mob. - Student'!N:N)+SUMIF('B. Spezieller Mob. - Personal'!B:B,B47,'B. Spezieller Mob. - Personal'!N:N)","v":0},0]
[null,"P23",{"$f":"SUMIFS('1. Personalkosten'!S:S,'1. Personalkosten'!C:C,B48,'1. Personalkosten'!B:B,$C$25)+SUMIFS('2-3. Reise&Unterkunftskosten'!N:N,'2-3. Reise&Unterkunftskosten'!C:C,B48,'2-3. Reise&Unterkunftskosten'!B:B,$C$25)+SUMIFS('4. Ausrüstungskosten'!H:H,'4. Ausrüstungskosten'!C:C,B48,'4. Ausrüstungskosten'!B:B,$C$25)+SUMIFS('5. Kosten für Unteraufträge'!H:H,'5. Kosten für Unteraufträge'!C:C,B48,'5. Kosten für Unteraufträge'!B:B,$C$25)","v":0},{"$f":"SUMIFS('1. Personalkosten'!S:S,'1. Personalkosten'!C:C,B48,'1. Personalkosten'!B:B,$D$25)+SUMIFS('2-3. Reise&Unterkunftskosten'!N:N,'2-3. Reise&Unterkunftskosten'!C:C,B48,'2-3. Reise&Unterkunftskosten'!B:B,$D$25)+SUMIFS('4. Ausrüstungskosten'!H:H,'4. Ausrüstungskosten'!C:C,B48,'4. Ausrüstungskosten'!B:B,$D$25)+SUMIFS('5. Kosten für Unteraufträge'!H:H,'5. Kosten für Unteraufträge'!C:C,B48,'5. Kosten für Unteraufträge'!B:B,$D$25)","v":0},{"$f":"SUMIFS('1. Personalkosten'!S:S,'1. Personalkosten'!C:C,B48,'1. Personalkosten'!B:B,$E$25)+SUMIFS('2-3. Reise&Unterkunftskosten'!N:N,'2-3. Reise&Unterkunftskosten'!C:C,B48,'2-3. Reise&Unterkunftskosten'!B:B,$E$25)+SUMIFS('4. Ausrüstungskosten'!H:H,'4. Ausrüstungskosten'!C:C,B48,'4. Ausrüstungskosten'!B:B,$E$25)+SUMIFS('5. Kosten für Unteraufträge'!H:H,'5. Kosten für Unteraufträge'!C:C,B48,'5. Kosten für Unteraufträge'!B:B,$E$25)","v":0},{"$f":"SUMIFS('1. Personalkosten'!S:S,'1. Personalkosten'!C:C,B48,'1. Personalkosten'!B:B,$B$8)+SUMIFS('2-3. Reise&Unterkunftskosten'!N:N,'2-3. Reise&Unterkunftskosten'!C:C,B48,'2-3. Reise&Unterkunftskosten'!B:B,$B$8)+SUMIFS('4. Ausrüstungskosten'!H:H,'4. Ausrüstungskosten'!C:C,B48,'4. Ausrüstungskosten'!B:B,$B$8)+SUMIFS('5. Kosten für Unteraufträge'!H:H,'5. Kosten für Unteraufträge'!C:C,B48,'5. Kosten für Unteraufträge'!B:B,$B$8)","v":0},{"$f":"SUMIFS('1. Personalkosten'!S:S,'1. Personalkosten'!C:C,B48,'1. Personalkosten'!B:B,$G$25)+SUMIFS('2-3. Reise&Unterkunftskosten'!N:N,'2-3. Reise&Unterkunftskosten'!C:C,B48,'2-3. Reise&Unterkunftskosten'!B:B,$G$25)+SUMIFS('4. Ausrüstungskosten'!H:H,'4. Ausrüstungskosten'!C:C,B48,'4. Ausrüstungskosten'!B:B,$G$25)+SUMIFS('5. Kosten für Unteraufträge'!H:H,'5. Kosten für Unteraufträge'!C:C,B48,'5. Kosten für Unteraufträge'!B:B,$G$25)","v":0},{"$f":"SUMIF('B. Spezieller Mob. - Student'!B:B,B48,'B. Spezieller Mob. - Student'!N:N)+SUMIF('B. Spezieller Mob. - Personal'!B:B,B48,'B. Spezieller Mob. - Personal'!N:N)","v":0},0]
[null,"P24",{"$f":"SUMIFS('1. Personalkosten'!S:S,'1. Personalkosten'!C:C,B49,'1. Personalkosten'!B:B,$C$25)+SUMIFS('2-3. Reise&Unterkunftskosten'!N:N,'2-3. Reise&Unterkunftskosten'!C:C,B49,'2-3. Reise&Unterkunftskosten'!B:B,$C$25)+SUMIFS('4. Ausrüstungskosten'!H:H,'4. Ausrüstungskosten'!C:C,B49,'4. Ausrüstungskosten'!B:B,$C$25)+SUMIFS('5. Kosten für Unteraufträge'!H:H,'5. Kosten für Unteraufträge'!C:C,B49,'5. Kosten für Unteraufträge'!B:B,$C$25)","v":0},{"$f":"SUMIFS('1. Personalkosten'!S:S,'1. Personalkosten'!C:C,B49,'1. Personalkosten'!B:B,$D$25)+SUMIFS('2-3. Reise&Unterkunftskosten'!N:N,'2-3. Reise&Unterkunftskosten'!C:C,B49,'2-3. Reise&Unterkunftskosten'!B:B,$D$25)+SUMIFS('4. Ausrüstungskosten'!H:H,'4. Ausrüstungskosten'!C:C,B49,'4. Ausrüstungskosten'!B:B,$D$25)+SUMIFS('5. Kosten für Unteraufträge'!H:H,'5. Kosten für Unteraufträge'!C:C,B49,'5. Kosten für Unteraufträge'!B:B,$D$25)","v":0},{"$f":"SUMIFS('1. Personalkosten'!S:S,'1. Personalkosten'!C:C,B49,'1. Personalkosten'!B:B,$E$25)+SUMIFS('2-3. Reise&Unterkunftskosten'!N:N,'2-3. Reise&Unterkunftskosten'!C:C,B49,'2-3. Reise&Unterkunftskosten'!B:B,$E$25)+SUMIFS('4. Ausrüstungskosten'!H:H,'4. Ausrüstungskosten'!C:C,B49,'4. Ausrüstungskosten'!B:B,$E$25)+SUMIFS('5. Kosten für Unteraufträge'!H:H,'5. Kosten für Unteraufträge'!C:C,B49,'5. Kosten für Unteraufträge'!B:B,$E$25)","v":0},{"$f":"SUMIFS('1. Personalkosten'!S:S,'1. Personalkosten'!C:C,B49,'1. Personalkosten'!B:B,$B$8)+SUMIFS('2-3. Reise&Unterkunftskosten'!N:N,'2-3. Reise&Unterkunftskosten'!C:C,B49,'2-3. Reise&Unterkunftskosten'!B:B,$B$8)+SUMIFS('4. Ausrüstungskosten'!H:H,'4. Ausrüstungskosten'!C:C,B49,'4. Ausrüstungskosten'!B:B,$B$8)+SUMIFS('5. Kosten für Unteraufträge'!H:H,'5. Kosten für Unteraufträge'!C:C,B49,'5. Kosten für Unteraufträge'!B:B,$B$8)","v":0},{"$f":"SUMIFS('1. Personalkosten'!S:S,'1. Personalkosten'!C:C,B49,'1. Personalkosten'!B:B,$G$25)+SUMIFS('2-3. Reise&Unterkunftskosten'!N:N,'2-3. Reise&Unterkunftskosten'!C:C,B49,'2-3. Reise&Unterkunftskosten'!B:B,$G$25)+SUMIFS('4. Ausrüstungskosten'!H:H,'4. Ausrüstungskosten'!C:C,B49,'4. Ausrüstungskosten'!B:B,$G$25)+SUMIFS('5. Kosten für Unteraufträge'!H:H,'5. Kosten für Unteraufträge'!C:C,B49,'5. Kosten für Unteraufträge'!B:B,$G$25)","v":0},{"$f":"SUMIF('B. Spezieller Mob. - Student'!B:B,B49,'B. Spezieller Mob. - Student'!N:N)+SUMIF('B. Spezieller Mob. - Personal'!B:B,B49,'B. Spezieller Mob. - Personal'!N:N)","v":0},0]
[null,"P25",{"$f":"SUMIFS('1. Personalkosten'!S:S,'1. Personalkosten'!C:C,B50,'1. Personalkosten'!B:B,$C$25)+SUMIFS('2-3. Reise&Unterkunftskosten'!N:N,'2-3. Reise&Unterkunftskosten'!C:C,B50,'2-3. Reise&Unterkunftskosten'!B:B,$C$25)+SUMIFS('4. Ausrüstungskosten'!H:H,'4. Ausrüstungskosten'!C:C,B50,'4. Ausrüstungskosten'!B:B,$C$25)+SUMIFS('5. Kosten für Unteraufträge'!H:H,'5. Kosten für Unteraufträge'!C:C,B50,'5. Kosten für Unteraufträge'!B:B,$C$25)","v":0},{"$f":"SUMIFS('1. Personalkosten'!S:S,'1. Personalkosten'!C:C,B50,'1. Personalkosten'!B:B,$D$25)+SUMIFS('2-3. Reise&Unterkunftskosten'!N:N,'2-3. Reise&Unterkunftskosten'!C:C,B50,'2-3. Reise&Unterkunftskosten'!B:B,$D$25)+SUMIFS('4. Ausrüstungskosten'!H:H,'4. Ausrüstungskosten'!C:C,B50,'4. Ausrüstungskosten'!B:B,$D$25)+SUMIFS('5. Kosten für Unteraufträge'!H:H,'5. Kosten für Unteraufträge'!C:C,B50,'5. Kosten für Unteraufträge'!B:B,$D$25)","v":0},{"$f":"SUMIFS('1. Personalkosten'!S:S,'1. Personalkosten'!C:C,B50,'1. Personalkosten'!B:B,$E$25)+SUMIFS('2-3. Reise&Unterkunftskosten'!N:N,'2-3. Reise&Unterkunftskosten'!C:C,B50,'2-3. Reise&Unterkunftskosten'!B:B,$E$25)+SUMIFS('4. Ausrüstungskosten'!H:H,'4. Ausrüstungskosten'!C:C,B50,'4. Ausrüstungskosten'!B:B,$E$25)+SUMIFS('5. Kosten für Unteraufträge'!H:H,'5. Kosten für Unteraufträge'!C:C,B50,'5. Kosten für Unteraufträge'!B:B,$E$25)","v":0},{"$f":"SUMIFS('1. Personalkosten'!S:S,'1. Personalkosten'!C:C,B50,'1. Personalkosten'!B:B,$B$8)+SUMIFS('2-3. Reise&Unterkunftskosten'!N:N,'2-3. Reise&Unterkunftskosten'!C:C,B50,'2-3. Reise&Unterkunftskosten'!B:B,$B$8)+SUMIFS('4. Ausrüstungskosten'!H:H,'4. Ausrüstungskosten'!C:C,B50,'4. Ausrüstungskosten'!B:B,$B$8)+SUMIFS('5. Kosten für Unteraufträge'!H:H,'5. Kosten für Unteraufträge'!C:C,B50,'5. Kosten für Unteraufträge'!B:B,$B$8)","v":0},{"$f":"SUMIFS('1. Personalkosten'!S:S,'1. Personalkosten'!C:C,B50,'1. Personalkosten'!B:B,$G$25)+SUMIFS('2-3. Reise&Unterkunftskosten'!N:N,'2-3. Reise&Unterkunftskosten'!C:C,B50,'2-3. Reise&Unterkunftskosten'!B:B,$G$25)+SUMIFS('4. Ausrüstungskosten'!H:H,'4. Ausrüstungskosten'!C:C,B50,'4. Ausrüstungskosten'!B:B,$G$25)+SUMIFS('5. Kosten für Unteraufträge'!H:H,'5. Kosten für Unteraufträge'!C:C,B50,'5. Kosten für Unteraufträge'!B:B,$G$25)","v":0},{"$f":"SUMIF('B. Spezieller Mob. - Student'!B:B,B50,'B. Spezieller Mob. - Student'!N:N)+SUMIF('B. Spezieller Mob. - Personal'!B:B,B50,'B. Spezieller Mob. - Personal'!N:N)","v":0},0]
[null,"P26",{"$f":"SUMIFS('1. Personalkosten'!S:S,'1. Personalkosten'!C:C,B51,'1. Personalkosten'!B:B,$C$25)+SUMIFS('2-3. Reise&Unterkunftskosten'!N:N,'2-3. Reise&Unterkunftskosten'!C:C,B51,'2-3. Reise&Unterkunftskosten'!B:B,$C$25)+SUMIFS('4. Ausrüstungskosten'!H:H,'4. Ausrüstungskosten'!C:C,B51,'4. Ausrüstungskosten'!B:B,$C$25)+SUMIFS('5. Kosten für Unteraufträge'!H:H,'5. Kosten für Unteraufträge'!C:C,B51,'5. Kosten für Unteraufträge'!B:B,$C$25)","v":0},{"$f":"SUMIFS('1. Personalkosten'!S:S,'1. Personalkosten'!C:C,B51,'1. Personalkosten'!B:B,$D$25)+SUMIFS('2-3. Reise&Unterkunftskosten'!N:N,'2-3. Reise&Unterkunftskosten'!C:C,B51,'2-3. Reise&Unterkunftskosten'!B:B,$D$25)+SUMIFS('4. Ausrüstungskosten'!H:H,'4. Ausrüstungskosten'!C:C,B51,'4. Ausrüstungskosten'!B:B,$D$25)+SUMIFS('5. Kosten für Unteraufträge'!H:H,'5. Kosten für Unteraufträge'!C:C,B51,'5. Kosten für Unteraufträge'!B:B,$D$25)","v":0},{"$f":"SUMIFS('1. Personalkosten'!S:S,'1. Personalkosten'!C:C,B51,'1. Personalkosten'!B:B,$E$25)+SUMIFS('2-3. Reise&Unterkunftskosten'!N:N,'2-3. Reise&Unterkunftskosten'!C:C,B51,'2-3. Reise&Unterkunftskosten'!B:B,$E$25)+SUMIFS('4. Ausrüstungskosten'!H:H,'4. Ausrüstungskosten'!C:C,B51,'4. Ausrüstungskosten'!B:B,$E$25)+SUMIFS('5. Kosten für Unteraufträge'!H:H,'5. Kosten für Unteraufträge'!C:C,B51,'5. Kosten für Unteraufträge'!B:B,$E$25)","v":0},{"$f":"SUMIFS('1. Personalkosten'!S:S,'1. Personalkosten'!C:C,B51,'1. Personalkosten'!B:B,$B$8)+SUMIFS('2-3. Reise&Unterkunftskosten'!N:N,'2-3. Reise&Unterkunftskosten'!C:C,B51,'2-3. Reise&Unterkunftskosten'!B:B,$B$8)+SUMIFS('4. Ausrüstungskosten'!H:H,'4. Ausrüstungskosten'!C:C,B51,'4. Ausrüstungskosten'!B:B,$B$8)+SUMIFS('5. Kosten für Unteraufträge'!H:H,'5. Kosten für Unteraufträge'!C:C,B51,'5. Kosten für Unteraufträge'!B:B,$B$8)","v":0},{"$f":"SUMIFS('1. Personalkosten'!S:S,'1. Personalkosten'!C:C,B51,'1. Personalkosten'!B:B,$G$25)+SUMIFS('2-3. Reise&Unterkunftskosten'!N:N,'2-3. Reise&Unterkunftskosten'!C:C,B51,'2-3. Reise&Unterkunftskosten'!B:B,$G$25)+SUMIFS('4. Ausrüstungskosten'!H:H,'4. Ausrüstungskosten'!C:C,B51,'4. Ausrüstungskosten'!B:B,$G$25)+SUMIFS('5. Kosten für Unteraufträge'!H:H,'5. Kosten für Unteraufträge'!C:C,B51,'5. Kosten für Unteraufträge'!B:B,$G$25)","v":0},{"$f":"SUMIF('B. Spezieller Mob. - Student'!B:B,B51,'B. Spezieller Mob. - Student'!N:N)+SUMIF('B. Spezieller Mob. - Personal'!B:B,B51,'B. Spezieller Mob. - Personal'!N:N)","v":0},0]
[null,"P27",{"$f":"SUMIFS('1. Personalkosten'!S:S,'1. Personalkosten'!C:C,B52,'1. Personalkosten'!B:B,$C$25)+SUMIFS('2-3. Reise&Unterkunftskosten'!N:N,'2-3. Reise&Unterkunftskosten'!C:C,B52,'2-3. Reise&Unterkunftskosten'!B:B,$C$25)+SUMIFS('4. Ausrüstungskosten'!H:H,'4. Ausrüstungskosten'!C:C,B52,'4. Ausrüstungskosten'!B:B,$C$25)+SUMIFS('5. Kosten für Unteraufträge'!H:H,'5. Kosten für Unteraufträge'!C:C,B52,'5. Kosten für Unteraufträge'!B:B,$C$25)","v":0},{"$f":"SUMIFS('1. Personalkosten'!S:S,'1. Personalkosten'!C:C,B52,'1. Personalkosten'!B:B,$D$25)+SUMIFS('2-3. Reise&Unterkunftskosten'!N:N,'2-3. Reise&Unterkunftskosten'!C:C,B52,'2-3. Reise&Unterkunftskosten'!B:B,$D$25)+SUMIFS('4. Ausrüstungskosten'!H:H,'4. Ausrüstungskosten'!C:C,B52,'4. Ausrüstungskosten'!B:B,$D$25)+SUMIFS('5. Kosten für Unteraufträge'!H:H,'5. Kosten für Unteraufträge'!C:C,B52,'5. Kosten für Unteraufträge'!B:B,$D$25)","v":0},{"$f":"SUMIFS('1. Personalkosten'!S:S,'1. Personalkosten'!C:C,B52,'1. Personalkosten'!B:B,$E$25)+SUMIFS('2-3. Reise&Unterkunftskosten'!N:N,'2-3. Reise&Unterkunftskosten'!C:C,B52,'2-3. Reise&Unterkunftskosten'!B:B,$E$25)+SUMIFS('4. Ausrüstungskosten'!H:H,'4. Ausrüstungskosten'!C:C,B52,'4. Ausrüstungskosten'!B:B,$E$25)+SUMIFS('5. Kosten für Unteraufträge'!H:H,'5. Kosten für Unteraufträge'!C:C,B52,'5. Kosten für Unteraufträge'!B:B,$E$25)","v":0},{"$f":"SUMIFS('1. Personalkosten'!S:S,'1. Personalkosten'!C:C,B52,'1. Personalkosten'!B:B,$B$8)+SUMIFS('2-3. Reise&Unterkunftskosten'!N:N,'2-3. Reise&Unterkunftskosten'!C:C,B52,'2-3. Reise&Unterkunftskosten'!B:B,$B$8)+SUMIFS('4. Ausrüstungskosten'!H:H,'4. Ausrüstungskosten'!C:C,B52,'4. Ausrüstungskosten'!B:B,$B$8)+SUMIFS('5. Kosten für Unteraufträge'!H:H,'5. Kosten für Unteraufträge'!C:C,B52,'5. Kosten für Unteraufträge'!B:B,$B$8)","v":0},{"$f":"SUMIFS('1. Personalkosten'!S:S,'1. Personalkosten'!C:C,B52,'1. Personalkosten'!B:B,$G$25)+SUMIFS('2-3. Reise&Unterkunftskosten'!N:N,'2-3. Reise&Unterkunftskosten'!C:C,B52,'2-3. Reise&Unterkunftskosten'!B:B,$G$25)+SUMIFS('4. Ausrüstungskosten'!H:H,'4. Ausrüstungskosten'!C:C,B52,'4. Ausrüstungskosten'!B:B,$G$25)+SUMIFS('5. Kosten für Unteraufträge'!H:H,'5. Kosten für Unteraufträge'!C:C,B52,'5. Kosten für Unteraufträge'!B:B,$G$25)","v":0},{"$f":"SUMIF('B. Spezieller Mob. - Student'!B:B,B52,'B. Spezieller Mob. - Student'!N:N)+SUMIF('B. Spezieller Mob. - Personal'!B:B,B52,'B. Spezieller Mob. - Personal'!N:N)","v":0},0]
[null,"P28",{"$f":"SUMIFS('1. Personalkosten'!S:S,'1. Personalkosten'!C:C,B53,'1. Personalkosten'!B:B,$C$25)+SUMIFS('2-3. Reise&Unterkunftskosten'!N:N,'2-3. Reise&Unterkunftskosten'!C:C,B53,'2-3. Reise&Unterkunftskosten'!B:B,$C$25)+SUMIFS('4. Ausrüstungskosten'!H:H,'4. Ausrüstungskosten'!C:C,B53,'4. Ausrüstungskosten'!B:B,$C$25)+SUMIFS('5. Kosten für Unteraufträge'!H:H,'5. Kosten für Unteraufträge'!C:C,B53,'5. Kosten für Unteraufträge'!B:B,$C$25)","v":0},{"$f":"SUMIFS('1. Personalkosten'!S:S,'1. Personalkosten'!C:C,B53,'1. Personalkosten'!B:B,$D$25)+SUMIFS('2-3. Reise&Unterkunftskosten'!N:N,'2-3. Reise&Unterkunftskosten'!C:C,B53,'2-3. Reise&Unterkunftskosten'!B:B,$D$25)+SUMIFS('4. Ausrüstungskosten'!H:H,'4. Ausrüstungskosten'!C:C,B53,'4. Ausrüstungskosten'!B:B,$D$25)+SUMIFS('5. Kosten für Unteraufträge'!H:H,'5. Kosten für Unteraufträge'!C:C,B53,'5. Kosten für Unteraufträge'!B:B,$D$25)","v":0},{"$f":"SUMIFS('1. Personalkosten'!S:S,'1. Personalkosten'!C:C,B53,'1. Personalkosten'!B:B,$E$25)+SUMIFS('2-3. Reise&Unterkunftskosten'!N:N,'2-3. Reise&Unterkunftskosten'!C:C,B53,'2-3. Reise&Unterkunftskosten'!B:B,$E$25)+SUMIFS('4. Ausrüstungskosten'!H:H,'4. Ausrüstungskosten'!C:C,B53,'4. Ausrüstungskosten'!B:B,$E$25)+SUMIFS('5. Kosten für Unteraufträge'!H:H,'5. Kosten für Unteraufträge'!C:C,B53,'5. Kosten für Unteraufträge'!B:B,$E$25)","v":0},{"$f":"SUMIFS('1. Personalkosten'!S:S,'1. Personalkosten'!C:C,B53,'1. Personalkosten'!B:B,$B$8)+SUMIFS('2-3. Reise&Unterkunftskosten'!N:N,'2-3. Reise&Unterkunftskosten'!C:C,B53,'2-3. Reise&Unterkunftskosten'!B:B,$B$8)+SUMIFS('4. Ausrüstungskosten'!H:H,'4. Ausrüstungskosten'!C:C,B53,'4. Ausrüstungskosten'!B:B,$B$8)+SUMIFS('5. Kosten für Unteraufträge'!H:H,'5. Kosten für Unteraufträge'!C:C,B53,'5. Kosten für Unteraufträge'!B:B,$B$8)","v":0},{"$f":"SUMIFS('1. Personalkosten'!S:S,'1. Personalkosten'!C:C,B53,'1. Personalkosten'!B:B,$G$25)+SUMIFS('2-3. Reise&Unterkunftskosten'!N:N,'2-3. Reise&Unterkunftskosten'!C:C,B53,'2-3. Reise&Unterkunftskosten'!B:B,$G$25)+SUMIFS('4. Ausrüstungskosten'!H:H,'4. Ausrüstungskosten'!C:C,B53,'4. Ausrüstungskosten'!B:B,$G$25)+SUMIFS('5. Kosten für Unteraufträge'!H:H,'5. Kosten für Unteraufträge'!C:C,B53,'5. Kosten für Unteraufträge'!B:B,$G$25)","v":0},{"$f":"SUMIF('B. Spezieller Mob. - Student'!B:B,B53,'B. Spezieller Mob. - Student'!N:N)+SUMIF('B. Spezieller Mob. - Personal'!B:B,B53,'B. Spezieller Mob. - Personal'!N:N)","v":0},0]
[null,"P29",{"$f":"SUMIFS('1. Personalkosten'!S:S,'1. Personalkosten'!C:C,B54,'1. Personalkosten'!B:B,$C$25)+SUMIFS('2-3. Reise&Unterkunftskosten'!N:N,'2-3. Reise&Unterkunftskosten'!C:C,B54,'2-3. Reise&Unterkunftskosten'!B:B,$C$25)+SUMIFS('4. Ausrüstungskosten'!H:H,'4. Ausrüstungskosten'!C:C,B54,'4. Ausrüstungskosten'!B:B,$C$25)+SUMIFS('5. Kosten für Unteraufträge'!H:H,'5. Kosten für Unteraufträge'!C:C,B54,'5. Kosten für Unteraufträge'!B:B,$C$25)","v":0},{"$f":"SUMIFS('1. Personalkosten'!S:S,'1. Personalkosten'!C:C,B54,'1. Personalkosten'!B:B,$D$25)+SUMIFS('2-3. Reise&Unterkunftskosten'!N:N,'2-3. Reise&Unterkunftskosten'!C:C,B54,'2-3. Reise&Unterkunftskosten'!B:B,$D$25)+SUMIFS('4. Ausrüstungskosten'!H:H,'4. Ausrüstungskosten'!C:C,B54,'4. Ausrüstungskosten'!B:B,$D$25)+SUMIFS('5. Kosten für Unteraufträge'!H:H,'5. Kosten für Unteraufträge'!C:C,B54,'5. Kosten für Unteraufträge'!B:B,$D$25)","v":0},{"$f":"SUMIFS('1. Personalkosten'!S:S,'1. Personalkosten'!C:C,B54,'1. Personalkosten'!B:B,$E$25)+SUMIFS('2-3. Reise&Unterkunftskosten'!N:N,'2-3. Reise&Unterkunftskosten'!C:C,B54,'2-3. Reise&Unterkunftskosten'!B:B,$E$25)+SUMIFS('4. Ausrüstungskosten'!H:H,'4. Ausrüstungskosten'!C:C,B54,'4. Ausrüstungskosten'!B:B,$E$25)+SUMIFS('5. Kosten für Unteraufträge'!H:H,'5. Kosten für Unteraufträge'!C:C,B54,'5. Kosten für Unteraufträge'!B:B,$E$25)","v":0},{"$f":"SUMIFS('1. Personalkosten'!S:S,'1. Personalkosten'!C:C,B54,'1. Personalkosten'!B:B,$B$8)+SUMIFS('2-3. Reise&Unterkunftskosten'!N:N,'2-3. Reise&Unterkunftskosten'!C:C,B54,'2-3. Reise&Unterkunftskosten'!B:B,$B$8)+SUMIFS('4. Ausrüstungskosten'!H:H,'4. Ausrüstungskosten'!C:C,B54,'4. Ausrüstungskosten'!B:B,$B$8)+SUMIFS('5. Kosten für Unteraufträge'!H:H,'5. Kosten für Unteraufträge'!C:C,B54,'5. Kosten für Unteraufträge'!B:B,$B$8)","v":0},{"$f":"SUMIFS('1. Personalkosten'!S:S,'1. Personalkosten'!C:C,B54,'1. Personalkosten'!B:B,$G$25)+SUMIFS('2-3. Reise&Unterkunftskosten'!N:N,'2-3. Reise&Unterkunftskosten'!C:C,B54,'2-3. Reise&Unterkunftskosten'!B:B,$G$25)+SUMIFS('4. Ausrüstungskosten'!H:H,'4. Ausrüstungskosten'!C:C,B54,'4. Ausrüstungskosten'!B:B,$G$25)+SUMIFS('5. Kosten für Unteraufträge'!H:H,'5. Kosten für Unteraufträge'!C:C,B54,'5. Kosten für Unteraufträge'!B:B,$G$25)","v":0},{"$f":"SUMIF('B. Spezieller Mob. - Student'!B:B,B54,'B. Spezieller Mob. - Student'!N:N)+SUMIF('B. Spezieller Mob. - Personal'!B:B,B54,'B. Spezieller Mob. - Personal'!N:N)","v":0},0]
[null,"P30",{"$f":"SUMIFS('1. Personalkosten'!S:S,'1. Personalkosten'!C:C,B55,'1. Personalkosten'!B:B,$C$25)+SUMIFS('2-3. Reise&Unterkunftskosten'!N:N,'2-3. Reise&Unterkunftskosten'!C:C,B55,'2-3. Reise&Unterkunftskosten'!B:B,$C$25)+SUMIFS('4. Ausrüstungskosten'!H:H,'4. Ausrüstungskosten'!C:C,B55,'4. Ausrüstungskosten'!B:B,$C$25)+SUMIFS('5. Kosten für Unteraufträge'!H:H,'5. Kosten für Unteraufträge'!C:C,B55,'5. Kosten für Unteraufträge'!B:B,$C$25)","v":0},{"$f":"SUMIFS('1. Personalkosten'!S:S,'1. Personalkosten'!C:C,B55,'1. Personalkosten'!B:B,$D$25)+SUMIFS('2-3. Reise&Unterkunftskosten'!N:N,'2-3. Reise&Unterkunftskosten'!C:C,B55,'2-3. Reise&Unterkunftskosten'!B:B,$D$25)+SUMIFS('4. Ausrüstungskosten'!H:H,'4. Ausrüstungskosten'!C:C,B55,'4. Ausrüstungskosten'!B:B,$D$25)+SUMIFS('5. Kosten für Unteraufträge'!H:H,'5. Kosten für Unteraufträge'!C:C,B55,'5. Kosten für Unteraufträge'!B:B,$D$25)","v":0},{"$f":"SUMIFS('1. Personalkosten'!S:S,'1. Personalkosten'!C:C,B55,'1. Personalkosten'!B:B,$E$25)+SUMIFS('2-3. Reise&Unterkunftskosten'!N:N,'2-3. Reise&Unterkunftskosten'!C:C,B55,'2-3. Reise&Unterkunftskosten'!B:B,$E$25)+SUMIFS('4. Ausrüstungskosten'!H:H,'4. Ausrüstungskosten'!C:C,B55,'4. Ausrüstungskosten'!B:B,$E$25)+SUMIFS('5. Kosten für Unteraufträge'!H:H,'5. Kosten für Unteraufträge'!C:C,B55,'5. Kosten für Unteraufträge'!B:B,$E$25)","v":0},{"$f":"SUMIFS('1. Personalkosten'!S:S,'1. Personalkosten'!C:C,B55,'1. Personalkosten'!B:B,$B$8)+SUMIFS('2-3. Reise&Unterkunftskosten'!N:N,'2-3. Reise&Unterkunftskosten'!C:C,B55,'2-3. Reise&Unterkunftskosten'!B:B,$B$8)+SUMIFS('4. Ausrüstungskosten'!H:H,'4. Ausrüstungskosten'!C:C,B55,'4. Ausrüstungskosten'!B:B,$B$8)+SUMIFS('5. Kosten für Unteraufträge'!H:H,'5. Kosten für Unteraufträge'!C:C,B55,'5. Kosten für Unteraufträge'!B:B,$B$8)","v":0},{"$f":"SUMIFS('1. Personalkosten'!S:S,'1. Personalkosten'!C:C,B55,'1. Personalkosten'!B:B,$G$25)+SUMIFS('2-3. Reise&Unterkunftskosten'!N:N,'2-3. Reise&Unterkunftskosten'!C:C,B55,'2-3. Reise&Unterkunftskosten'!B:B,$G$25)+SUMIFS('4. Ausrüstungskosten'!H:H,'4. Ausrüstungskosten'!C:C,B55,'4. Ausrüstungskosten'!B:B,$G$25)+SUMIFS('5. Kosten für Unteraufträge'!H:H,'5. Kosten für Unteraufträge'!C:C,B55,'5. Kosten für Unteraufträge'!B:B,$G$25)","v":0},{"$f":"SUMIF('B. Spezieller Mob. - Student'!B:B,B55,'B. Spezieller Mob. - Student'!N:N)+SUMIF('B. Spezieller Mob. - Personal'!B:B,B55,'B. Spezieller Mob. - Personal'!N:N)","v":0},0]
[null,"P31",{"$f":"SUMIFS('1. Personalkosten'!S:S,'1. Personalkosten'!C:C,B56,'1. Personalkosten'!B:B,$C$25)+SUMIFS('2-3. Reise&Unterkunftskosten'!N:N,'2-3. Reise&Unterkunftskosten'!C:C,B56,'2-3. Reise&Unterkunftskosten'!B:B,$C$25)+SUMIFS('4. Ausrüstungskosten'!H:H,'4. Ausrüstungskosten'!C:C,B56,'4. Ausrüstungskosten'!B:B,$C$25)+SUMIFS('5. Kosten für Unteraufträge'!H:H,'5. Kosten für Unteraufträge'!C:C,B56,'5. Kosten für Unteraufträge'!B:B,$C$25)","v":0},{"$f":"SUMIFS('1. Personalkosten'!S:S,'1. Personalkosten'!C:C,B56,'1. Personalkosten'!B:B,$D$25)+SUMIFS('2-3. Reise&Unterkunftskosten'!N:N,'2-3. Reise&Unterkunftskosten'!C:C,B56,'2-3. Reise&Unterkunftskosten'!B:B,$D$25)+SUMIFS('4. Ausrüstungskosten'!H:H,'4. Ausrüstungskosten'!C:C,B56,'4. Ausrüstungskosten'!B:B,$D$25)+SUMIFS('5. Kosten für Unteraufträge'!H:H,'5. Kosten für Unteraufträge'!C:C,B56,'5. Kosten für Unteraufträge'!B:B,$D$25)","v":0},{"$f":"SUMIFS('1. Personalkosten'!S:S,'1. Personalkosten'!C:C,B56,'1. Personalkosten'!B:B,$E$25)+SUMIFS('2-3. Reise&Unterkunftskosten'!N:N,'2-3. Reise&Unterkunftskosten'!C:C,B56,'2-3. Reise&Unterkunftskosten'!B:B,$E$25)+SUMIFS('4. Ausrüstungskosten'!H:H,'4. Ausrüstungskosten'!C:C,B56,'4. Ausrüstungskosten'!B:B,$E$25)+SUMIFS('5. Kosten für Unteraufträge'!H:H,'5. Kosten für Unteraufträge'!C:C,B56,'5. Kosten für Unteraufträge'!B:B,$E$25)","v":0},{"$f":"SUMIFS('1. Personalkosten'!S:S,'1. Personalkosten'!C:C,B56,'1. Personalkosten'!B:B,$B$8)+SUMIFS('2-3. Reise&Unterkunftskosten'!N:N,'2-3. Reise&Unterkunftskosten'!C:C,B56,'2-3. Reise&Unterkunftskosten'!B:B,$B$8)+SUMIFS('4. Ausrüstungskosten'!H:H,'4. Ausrüstungskosten'!C:C,B56,'4. Ausrüstungskosten'!B:B,$B$8)+SUMIFS('5. Kosten für Unteraufträge'!H:H,'5. Kosten für Unteraufträge'!C:C,B56,'5. Kosten für Unteraufträge'!B:B,$B$8)","v":0},{"$f":"SUMIFS('1. Personalkosten'!S:S,'1. Personalkosten'!C:C,B56,'1. Personalkosten'!B:B,$G$25)+SUMIFS('2-3. Reise&Unterkunftskosten'!N:N,'2-3. Reise&Unterkunftskosten'!C:C,B56,'2-3. Reise&Unterkunftskosten'!B:B,$G$25)+SUMIFS('4. Ausrüstungskosten'!H:H,'4. Ausrüstungskosten'!C:C,B56,'4. Ausrüstungskosten'!B:B,$G$25)+SUMIFS('5. Kosten für Unteraufträge'!H:H,'5. Kosten für Unteraufträge'!C:C,B56,'5. Kosten für Unteraufträge'!B:B,$G$25)","v":0},{"$f":"SUMIF('B. Spezieller Mob. - Student'!B:B,B56,'B. Spezieller Mob. - Student'!N:N)+SUMIF('B. Spezieller Mob. - Personal'!B:B,B56,'B. Spezieller Mob. - Personal'!N:N)","v":0},0]
[null,"P32",{"$f":"SUMIFS('1. Personalkosten'!S:S,'1. Personalkosten'!C:C,B57,'1. Personalkosten'!B:B,$C$25)+SUMIFS('2-3. Reise&Unterkunftskosten'!N:N,'2-3. Reise&Unterkunftskosten'!C:C,B57,'2-3. Reise&Unterkunftskosten'!B:B,$C$25)+SUMIFS('4. Ausrüstungskosten'!H:H,'4. Ausrüstungskosten'!C:C,B57,'4. Ausrüstungskosten'!B:B,$C$25)+SUMIFS('5. Kosten für Unteraufträge'!H:H,'5. Kosten für Unteraufträge'!C:C,B57,'5. Kosten für Unteraufträge'!B:B,$C$25)","v":0},{"$f":"SUMIFS('1. Personalkosten'!S:S,'1. Personalkosten'!C:C,B57,'1. Personalkosten'!B:B,$D$25)+SUMIFS('2-3. Reise&Unterkunftskosten'!N:N,'2-3. Reise&Unterkunftskosten'!C:C,B57,'2-3. Reise&Unterkunftskosten'!B:B,$D$25)+SUMIFS('4. Ausrüstungskosten'!H:H,'4. Ausrüstungskosten'!C:C,B57,'4. Ausrüstungskosten'!B:B,$D$25)+SUMIFS('5. Kosten für Unteraufträge'!H:H,'5. Kosten für Unteraufträge'!C:C,B57,'5. Kosten für Unteraufträge'!B:B,$D$25)","v":0},{"$f":"SUMIFS('1. Personalkosten'!S:S,'1. Personalkosten'!C:C,B57,'1. Personalkosten'!B:B,$E$25)+SUMIFS('2-3. Reise&Unterkunftskosten'!N:N,'2-3. Reise&Unterkunftskosten'!C:C,B57,'2-3. Reise&Unterkunftskosten'!B:B,$E$25)+SUMIFS('4. Ausrüstungskosten'!H:H,'4. Ausrüstungskosten'!C:C,B57,'4. Ausrüstungskosten'!B:B,$E$25)+SUMIFS('5. Kosten für Unteraufträge'!H:H,'5. Kosten für Unteraufträge'!C:C,B57,'5. Kosten für Unteraufträge'!B:B,$E$25)","v":0},{"$f":"SUMIFS('1. Personalkosten'!S:S,'1. Personalkosten'!C:C,B57,'1. Personalkosten'!B:B,$B$8)+SUMIFS('2-3. Reise&Unterkunftskosten'!N:N,'2-3. Reise&Unterkunftskosten'!C:C,B57,'2-3. Reise&Unterkunftskosten'!B:B,$B$8)+SUMIFS('4. Ausrüstungskosten'!H:H,'4. Ausrüstungskosten'!C:C,B57,'4. Ausrüstungskosten'!B:B,$B$8)+SUMIFS('5. Kosten für Unteraufträge'!H:H,'5. Kosten für Unteraufträge'!C:C,B57,'5. Kosten für Unteraufträge'!B:B,$B$8)","v":0},{"$f":"SUMIFS('1. Personalkosten'!S:S,'1. Personalkosten'!C:C,B57,'1. Personalkosten'!B:B,$G$25)+SUMIFS('2-3. Reise&Unterkunftskosten'!N:N,'2-3. Reise&Unterkunftskosten'!C:C,B57,'2-3. Reise&Unterkunftskosten'!B:B,$G$25)+SUMIFS('4. Ausrüstungskosten'!H:H,'4. Ausrüstungskosten'!C:C,B57,'4. Ausrüstungskosten'!B:B,$G$25)+SUMIFS('5. Kosten für Unteraufträge'!H:H,'5. Kosten für Unteraufträge'!C:C,B57,'5. Kosten für Unteraufträge'!B:B,$G$25)","v":0},{"$f":"SUMIF('B. Spezieller Mob. - Student'!B:B,B57,'B. Spezieller Mob. - Student'!N:N)+SUMIF('B. Spezieller Mob. - Personal'!B:B,B57,'B. Spezieller Mob. - Personal'!N:N)","v":0},0]
[null,"P33",{"$f":"SUMIFS('1. Personalkosten'!S:S,'1. Personalkosten'!C:C,B58,'1. Personalkosten'!B:B,$C$25)+SUMIFS('2-3. Reise&Unterkunftskosten'!N:N,'2-3. Reise&Unterkunftskosten'!C:C,B58,'2-3. Reise&Unterkunftskosten'!B:B,$C$25)+SUMIFS('4. Ausrüstungskosten'!H:H,'4. Ausrüstungskosten'!C:C,B58,'4. Ausrüstungskosten'!B:B,$C$25)+SUMIFS('5. Kosten für Unteraufträge'!H:H,'5. Kosten für Unteraufträge'!C:C,B58,'5. Kosten für Unteraufträge'!B:B,$C$25)","v":0},{"$f":"SUMIFS('1. Personalkosten'!S:S,'1. Personalkosten'!C:C,B58,'1. Personalkosten'!B:B,$D$25)+SUMIFS('2-3. Reise&Unterkunftskosten'!N:N,'2-3. Reise&Unterkunftskosten'!C:C,B58,'2-3. Reise&Unterkunftskosten'!B:B,$D$25)+SUMIFS('4. Ausrüstungskosten'!H:H,'4. Ausrüstungskosten'!C:C,B58,'4. Ausrüstungskosten'!B:B,$D$25)+SUMIFS('5. Kosten für Unteraufträge'!H:H,'5. Kosten für Unteraufträge'!C:C,B58,'5. Kosten für Unteraufträge'!B:B,$D$25)","v":0},{"$f":"SUMIFS('1. Personalkosten'!S:S,'1. Personalkosten'!C:C,B58,'1. Personalkosten'!B:B,$E$25)+SUMIFS('2-3. Reise&Unterkunftskosten'!N:N,'2-3. Reise&Unterkunftskosten'!C:C,B58,'2-3. Reise&Unterkunftskosten'!B:B,$E$25)+SUMIFS('4. Ausrüstungskosten'!H:H,'4. Ausrüstungskosten'!C:C,B58,'4. Ausrüstungskosten'!B:B,$E$25)+SUMIFS('5. Kosten für Unteraufträge'!H:H,'5. Kosten für Unteraufträge'!C:C,B58,'5. Kosten für Unteraufträge'!B:B,$E$25)","v":0},{"$f":"SUMIFS('1. Personalkosten'!S:S,'1. Personalkosten'!C:C,B58,'1. Personalkosten'!B:B,$B$8)+SUMIFS('2-3. Reise&Unterkunftskosten'!N:N,'2-3. Reise&Unterkunftskosten'!C:C,B58,'2-3. Reise&Unterkunftskosten'!B:B,$B$8)+SUMIFS('4. Ausrüstungskosten'!H:H,'4. Ausrüstungskosten'!C:C,B58,'4. Ausrüstungskosten'!B:B,$B$8)+SUMIFS('5. Kosten für Unteraufträge'!H:H,'5. Kosten für Unteraufträge'!C:C,B58,'5. Kosten für Unteraufträge'!B:B,$B$8)","v":0},{"$f":"SUMIFS('1. Personalkosten'!S:S,'1. Personalkosten'!C:C,B58,'1. Personalkosten'!B:B,$G$25)+SUMIFS('2-3. Reise&Unterkunftskosten'!N:N,'2-3. Reise&Unterkunftskosten'!C:C,B58,'2-3. Reise&Unterkunftskosten'!B:B,$G$25)+SUMIFS('4. Ausrüstungskosten'!H:H,'4. Ausrüstungskosten'!C:C,B58,'4. Ausrüstungskosten'!B:B,$G$25)+SUMIFS('5. Kosten für Unteraufträge'!H:H,'5. Kosten für Unteraufträge'!C:C,B58,'5. Kosten für Unteraufträge'!B:B,$G$25)","v":0},{"$f":"SUMIF('B. Spezieller Mob. - Student'!B:B,B58,'B. Spezieller Mob. - Student'!N:N)+SUMIF('B. Spezieller Mob. - Personal'!B:B,B58,'B. Spezieller Mob. - Personal'!N:N)","v":0},0]
[null,"P34",{"$f":"SUMIFS('1. Personalkosten'!S:S,'1. Personalkosten'!C:C,B59,'1. Personalkosten'!B:B,$C$25)+SUMIFS('2-3. Reise&Unterkunftskosten'!N:N,'2-3. Reise&Unterkunftskosten'!C:C,B59,'2-3. Reise&Unterkunftskosten'!B:B,$C$25)+SUMIFS('4. Ausrüstungskosten'!H:H,'4. Ausrüstungskosten'!C:C,B59,'4. Ausrüstungskosten'!B:B,$C$25)+SUMIFS('5. Kosten für Unteraufträge'!H:H,'5. Kosten für Unteraufträge'!C:C,B59,'5. Kosten für Unteraufträge'!B:B,$C$25)","v":0},{"$f":"SUMIFS('1. Personalkosten'!S:S,'1. Personalkosten'!C:C,B59,'1. Personalkosten'!B:B,$D$25)+SUMIFS('2-3. Reise&Unterkunftskosten'!N:N,'2-3. Reise&Unterkunftskosten'!C:C,B59,'2-3. Reise&Unterkunftskosten'!B:B,$D$25)+SUMIFS('4. Ausrüstungskosten'!H:H,'4. Ausrüstungskosten'!C:C,B59,'4. Ausrüstungskosten'!B:B,$D$25)+SUMIFS('5. Kosten für Unteraufträge'!H:H,'5. Kosten für Unteraufträge'!C:C,B59,'5. Kosten für Unteraufträge'!B:B,$D$25)","v":0},{"$f":"SUMIFS('1. Personalkosten'!S:S,'1. Personalkosten'!C:C,B59,'1. Personalkosten'!B:B,$E$25)+SUMIFS('2-3. Reise&Unterkunftskosten'!N:N,'2-3. Reise&Unterkunftskosten'!C:C,B59,'2-3. Reise&Unterkunftskosten'!B:B,$E$25)+SUMIFS('4. Ausrüstungskosten'!H:H,'4. Ausrüstungskosten'!C:C,B59,'4. Ausrüstungskosten'!B:B,$E$25)+SUMIFS('5. Kosten für Unteraufträge'!H:H,'5. Kosten für Unteraufträge'!C:C,B59,'5. Kosten für Unteraufträge'!B:B,$E$25)","v":0},{"$f":"SUMIFS('1. Personalkosten'!S:S,'1. Personalkosten'!C:C,B59,'1. Personalkosten'!B:B,$B$8)+SUMIFS('2-3. Reise&Unterkunftskosten'!N:N,'2-3. Reise&Unterkunftskosten'!C:C,B59,'2-3. Reise&Unterkunftskosten'!B:B,$B$8)+SUMIFS('4. Ausrüstungskosten'!H:H,'4. Ausrüstungskosten'!C:C,B59,'4. Ausrüstungskosten'!B:B,$B$8)+SUMIFS('5. Kosten für Unteraufträge'!H:H,'5. Kosten für Unteraufträge'!C:C,B59,'5. Kosten für Unteraufträge'!B:B,$B$8)","v":0},{"$f":"SUMIFS('1. Personalkosten'!S:S,'1. Personalkosten'!C:C,B59,'1. Personalkosten'!B:B,$G$25)+SUMIFS('2-3. Reise&Unterkunftskosten'!N:N,'2-3. Reise&Unterkunftskosten'!C:C,B59,'2-3. Reise&Unterkunftskosten'!B:B,$G$25)+SUMIFS('4. Ausrüstungskosten'!H:H,'4. Ausrüstungskosten'!C:C,B59,'4. Ausrüstungskosten'!B:B,$G$25)+SUMIFS('5. Kosten für Unteraufträge'!H:H,'5. Kosten für Unteraufträge'!C:C,B59,'5. Kosten für Unteraufträge'!B:B,$G$25)","v":0},{"$f":"SUMIF('B. Spezieller Mob. - Student'!B:B,B59,'B. Spezieller Mob. - Student'!N:N)+SUMIF('B. Spezieller Mob. - Personal'!B:B,B59,'B. Spezieller Mob. - Personal'!N:N)","v":0},0]
[null,"P35",{"$f":"SUMIFS('1. Personalkosten'!S:S,'1. Personalkosten'!C:C,B60,'1. Personalkosten'!B:B,$C$25)+SUMIFS('2-3. Reise&Unterkunftskosten'!N:N,'2-3. Reise&Unterkunftskosten'!C:C,B60,'2-3. Reise&Unterkunftskosten'!B:B,$C$25)+SUMIFS('4. Ausrüstungskosten'!H:H,'4. Ausrüstungskosten'!C:C,B60,'4. Ausrüstungskosten'!B:B,$C$25)+SUMIFS('5. Kosten für Unteraufträge'!H:H,'5. Kosten für Unteraufträge'!C:C,B60,'5. Kosten für Unteraufträge'!B:B,$C$25)","v":0},{"$f":"SUMIFS('1. Personalkosten'!S:S,'1. Personalkosten'!C:C,B60,'1. Personalkosten'!B:B,$D$25)+SUMIFS('2-3. Reise&Unterkunftskosten'!N:N,'2-3. Reise&Unterkunftskosten'!C:C,B60,'2-3. Reise&Unterkunftskosten'!B:B,$D$25)+SUMIFS('4. Ausrüstungskosten'!H:H,'4. Ausrüstungskosten'!C:C,B60,'4. Ausrüstungskosten'!B:B,$D$25)+SUMIFS('5. Kosten für Unteraufträge'!H:H,'5. Kosten für Unteraufträge'!C:C,B60,'5. Kosten für Unteraufträge'!B:B,$D$25)","v":0},{"$f":"SUMIFS('1. Personalkosten'!S:S,'1. Personalkosten'!C:C,B60,'1. Personalkosten'!B:B,$E$25)+SUMIFS('2-3. Reise&Unterkunftskosten'!N:N,'2-3. Reise&Unterkunftskosten'!C:C,B60,'2-3. Reise&Unterkunftskosten'!B:B,$E$25)+SUMIFS('4. Ausrüstungskosten'!H:H,'4. Ausrüstungskosten'!C:C,B60,'4. Ausrüstungskosten'!B:B,$E$25)+SUMIFS('5. Kosten für Unteraufträge'!H:H,'5. Kosten für Unteraufträge'!C:C,B60,'5. Kosten für Unteraufträge'!B:B,$E$25)","v":0},{"$f":"SUMIFS('1. Personalkosten'!S:S,'1. Personalkosten'!C:C,B60,'1. Personalkosten'!B:B,$B$8)+SUMIFS('2-3. Reise&Unterkunftskosten'!N:N,'2-3. Reise&Unterkunftskosten'!C:C,B60,'2-3. Reise&Unterkunftskosten'!B:B,$B$8)+SUMIFS('4. Ausrüstungskosten'!H:H,'4. Ausrüstungskosten'!C:C,B60,'4. Ausrüstungskosten'!B:B,$B$8)+SUMIFS('5. Kosten für Unteraufträge'!H:H,'5. Kosten für Unteraufträge'!C:C,B60,'5. Kosten für Unteraufträge'!B:B,$B$8)","v":0},{"$f":"SUMIFS('1. Personalkosten'!S:S,'1. Personalkosten'!C:C,B60,'1. Personalkosten'!B:B,$G$25)+SUMIFS('2-3. Reise&Unterkunftskosten'!N:N,'2-3. Reise&Unterkunftskosten'!C:C,B60,'2-3. Reise&Unterkunftskosten'!B:B,$G$25)+SUMIFS('4. Ausrüstungskosten'!H:H,'4. Ausrüstungskosten'!C:C,B60,'4. Ausrüstungskosten'!B:B,$G$25)+SUMIFS('5. Kosten für Unteraufträge'!H:H,'5. Kosten für Unteraufträge'!C:C,B60,'5. Kosten für Unteraufträge'!B:B,$G$25)","v":0},{"$f":"SUMIF('B. Spezieller Mob. - Student'!B:B,B60,'B. Spezieller Mob. - Student'!N:N)+SUMIF('B. Spezieller Mob. - Personal'!B:B,B60,'B. Spezieller Mob. - Personal'!N:N)","v":0},0]
[null,"P36",{"$f":"SUMIFS('1. Personalkosten'!S:S,'1. Personalkosten'!C:C,B61,'1. Personalkosten'!B:B,$C$25)+SUMIFS('2-3. Reise&Unterkunftskosten'!N:N,'2-3. Reise&Unterkunftskosten'!C:C,B61,'2-3. Reise&Unterkunftskosten'!B:B,$C$25)+SUMIFS('4. Ausrüstungskosten'!H:H,'4. Ausrüstungskosten'!C:C,B61,'4. Ausrüstungskosten'!B:B,$C$25)+SUMIFS('5. Kosten für Unteraufträge'!H:H,'5. Kosten für Unteraufträge'!C:C,B61,'5. Kosten für Unteraufträge'!B:B,$C$25)","v":0},{"$f":"SUMIFS('1. Personalkosten'!S:S,'1. Personalkosten'!C:C,B61,'1. Personalkosten'!B:B,$D$25)+SUMIFS('2-3. Reise&Unterkunftskosten'!N:N,'2-3. Reise&Unterkunftskosten'!C:C,B61,'2-3. Reise&Unterkunftskosten'!B:B,$D$25)+SUMIFS('4. Ausrüstungskosten'!H:H,'4. Ausrüstungskosten'!C:C,B61,'4. Ausrüstungskosten'!B:B,$D$25)+SUMIFS('5. Kosten für Unteraufträge'!H:H,'5. Kosten für Unteraufträge'!C:C,B61,'5. Kosten für Unteraufträge'!B:B,$D$25)","v":0},{"$f":"SUMIFS('1. Personalkosten'!S:S,'1. Personalkosten'!C:C,B61,'1. Personalkosten'!B:B,$E$25)+SUMIFS('2-3. Reise&Unterkunftskosten'!N:N,'2-3. Reise&Unterkunftskosten'!C:C,B61,'2-3. Reise&Unterkunftskosten'!B:B,$E$25)+SUMIFS('4. Ausrüstungskosten'!H:H,'4. Ausrüstungskosten'!C:C,B61,'4. Ausrüstungskosten'!B:B,$E$25)+SUMIFS('5. Kosten für Unteraufträge'!H:H,'5. Kosten für Unteraufträge'!C:C,B61,'5. Kosten für Unteraufträge'!B:B,$E$25)","v":0},{"$f":"SUMIFS('1. Personalkosten'!S:S,'1. Personalkosten'!C:C,B61,'1. Personalkosten'!B:B,$B$8)+SUMIFS('2-3. Reise&Unterkunftskosten'!N:N,'2-3. Reise&Unterkunftskosten'!C:C,B61,'2-3. Reise&Unterkunftskosten'!B:B,$B$8)+SUMIFS('4. Ausrüstungskosten'!H:H,'4. Ausrüstungskosten'!C:C,B61,'4. Ausrüstungskosten'!B:B,$B$8)+SUMIFS('5. Kosten für Unteraufträge'!H:H,'5. Kosten für Unteraufträge'!C:C,B61,'5. Kosten für Unteraufträge'!B:B,$B$8)","v":0},{"$f":"SUMIFS('1. Personalkosten'!S:S,'1. Personalkosten'!C:C,B61,'1. Personalkosten'!B:B,$G$25)+SUMIFS('2-3. Reise&Unterkunftskosten'!N:N,'2-3. Reise&Unterkunftskosten'!C:C,B61,'2-3. Reise&Unterkunftskosten'!B:B,$G$25)+SUMIFS('4. Ausrüstungskosten'!H:H,'4. Ausrüstungskosten'!C:C,B61,'4. Ausrüstungskosten'!B:B,$G$25)+SUMIFS('5. Kosten für Unteraufträge'!H:H,'5. Kosten für Unteraufträge'!C:C,B61,'5. Kosten für Unteraufträge'!B:B,$G$25)","v":0},{"$f":"SUMIF('B. Spezieller Mob. - Student'!B:B,B61,'B. Spezieller Mob. - Student'!N:N)+SUMIF('B. Spezieller Mob. - Personal'!B:B,B61,'B. Spezieller Mob. - Personal'!N:N)","v":0},0]
[null,"P37",{"$f":"SUMIFS('1. Personalkosten'!S:S,'1. Personalkosten'!C:C,B62,'1. Personalkosten'!B:B,$C$25)+SUMIFS('2-3. Reise&Unterkunftskosten'!N:N,'2-3. Reise&Unterkunftskosten'!C:C,B62,'2-3. Reise&Unterkunftskosten'!B:B,$C$25)+SUMIFS('4. Ausrüstungskosten'!H:H,'4. Ausrüstungskosten'!C:C,B62,'4. Ausrüstungskosten'!B:B,$C$25)+SUMIFS('5. Kosten für Unteraufträge'!H:H,'5. Kosten für Unteraufträge'!C:C,B62,'5. Kosten für Unteraufträge'!B:B,$C$25)","v":0},{"$f":"SUMIFS('1. Personalkosten'!S:S,'1. Personalkosten'!C:C,B62,'1. Personalkosten'!B:B,$D$25)+SUMIFS('2-3. Reise&Unterkunftskosten'!N:N,'2-3. Reise&Unterkunftskosten'!C:C,B62,'2-3. Reise&Unterkunftskosten'!B:B,$D$25)+SUMIFS('4. Ausrüstungskosten'!H:H,'4. Ausrüstungskosten'!C:C,B62,'4. Ausrüstungskosten'!B:B,$D$25)+SUMIFS('5. Kosten für Unteraufträge'!H:H,'5. Kosten für Unteraufträge'!C:C,B62,'5. Kosten für Unteraufträge'!B:B,$D$25)","v":0},{"$f":"SUMIFS('1. Personalkosten'!S:S,'1. Personalkosten'!C:C,B62,'1. Personalkosten'!B:B,$E$25)+SUMIFS('2-3. Reise&Unterkunftskosten'!N:N,'2-3. Reise&Unterkunftskosten'!C:C,B62,'2-3. Reise&Unterkunftskosten'!B:B,$E$25)+SUMIFS('4. Ausrüstungskosten'!H:H,'4. Ausrüstungskosten'!C:C,B62,'4. Ausrüstungskosten'!B:B,$E$25)+SUMIFS('5. Kosten für Unteraufträge'!H:H,'5. Kosten für Unteraufträge'!C:C,B62,'5. Kosten für Unteraufträge'!B:B,$E$25)","v":0},{"$f":"SUMIFS('1. Personalkosten'!S:S,'1. Personalkosten'!C:C,B62,'1. Personalkosten'!B:B,$B$8)+SUMIFS('2-3. Reise&Unterkunftskosten'!N:N,'2-3. Reise&Unterkunftskosten'!C:C,B62,'2-3. Reise&Unterkunftskosten'!B:B,$B$8)+SUMIFS('4. Ausrüstungskosten'!H:H,'4. Ausrüstungskosten'!C:C,B62,'4. Ausrüstungskosten'!B:B,$B$8)+SUMIFS('5. Kosten für Unteraufträge'!H:H,'5. Kosten für Unteraufträge'!C:C,B62,'5. Kosten für Unteraufträge'!B:B,$B$8)","v":0},{"$f":"SUMIFS('1. Personalkosten'!S:S,'1. Personalkosten'!C:C,B62,'1. Personalkosten'!B:B,$G$25)+SUMIFS('2-3. Reise&Unterkunftskosten'!N:N,'2-3. Reise&Unterkunftskosten'!C:C,B62,'2-3. Reise&Unterkunftskosten'!B:B,$G$25)+SUMIFS('4. Ausrüstungskosten'!H:H,'4. Ausrüstungskosten'!C:C,B62,'4. Ausrüstungskosten'!B:B,$G$25)+SUMIFS('5. Kosten für Unteraufträge'!H:H,'5. Kosten für Unteraufträge'!C:C,B62,'5. Kosten für Unteraufträge'!B:B,$G$25)","v":0},{"$f":"SUMIF('B. Spezieller Mob. - Student'!B:B,B62,'B. Spezieller Mob. - Student'!N:N)+SUMIF('B. Spezieller Mob. - Personal'!B:B,B62,'B. Spezieller Mob. - Personal'!N:N)","v":0},0]
[null,"P38",{"$f":"SUMIFS('1. Personalkosten'!S:S,'1. Personalkosten'!C:C,B63,'1. Personalkosten'!B:B,$C$25)+SUMIFS('2-3. Reise&Unterkunftskosten'!N:N,'2-3. Reise&Unterkunftskosten'!C:C,B63,'2-3. Reise&Unterkunftskosten'!B:B,$C$25)+SUMIFS('4. Ausrüstungskosten'!H:H,'4. Ausrüstungskosten'!C:C,B63,'4. Ausrüstungskosten'!B:B,$C$25)+SUMIFS('5. Kosten für Unteraufträge'!H:H,'5. Kosten für Unteraufträge'!C:C,B63,'5. Kosten für Unteraufträge'!B:B,$C$25)","v":0},{"$f":"SUMIFS('1. Personalkosten'!S:S,'1. Personalkosten'!C:C,B63,'1. Personalkosten'!B:B,$D$25)+SUMIFS('2-3. Reise&Unterkunftskosten'!N:N,'2-3. Reise&Unterkunftskosten'!C:C,B63,'2-3. Reise&Unterkunftskosten'!B:B,$D$25)+SUMIFS('4. Ausrüstungskosten'!H:H,'4. Ausrüstungskosten'!C:C,B63,'4. Ausrüstungskosten'!B:B,$D$25)+SUMIFS('5. Kosten für Unteraufträge'!H:H,'5. Kosten für Unteraufträge'!C:C,B63,'5. Kosten für Unteraufträge'!B:B,$D$25)","v":0},{"$f":"SUMIFS('1. Personalkosten'!S:S,'1. Personalkosten'!C:C,B63,'1. Personalkosten'!B:B,$E$25)+SUMIFS('2-3. Reise&Unterkunftskosten'!N:N,'2-3. Reise&Unterkunftskosten'!C:C,B63,'2-3. Reise&Unterkunftskosten'!B:B,$E$25)+SUMIFS('4. Ausrüstungskosten'!H:H,'4. Ausrüstungskosten'!C:C,B63,'4. Ausrüstungskosten'!B:B,$E$25)+SUMIFS('5. Kosten für Unteraufträge'!H:H,'5. Kosten für Unteraufträge'!C:C,B63,'5. Kosten für Unteraufträge'!B:B,$E$25)","v":0},{"$f":"SUMIFS('1. Personalkosten'!S:S,'1. Personalkosten'!C:C,B63,'1. Personalkosten'!B:B,$B$8)+SUMIFS('2-3. Reise&Unterkunftskosten'!N:N,'2-3. Reise&Unterkunftskosten'!C:C,B63,'2-3. Reise&Unterkunftskosten'!B:B,$B$8)+SUMIFS('4. Ausrüstungskosten'!H:H,'4. Ausrüstungskosten'!C:C,B63,'4. Ausrüstungskosten'!B:B,$B$8)+SUMIFS('5. Kosten für Unteraufträge'!H:H,'5. Kosten für Unteraufträge'!C:C,B63,'5. Kosten für Unteraufträge'!B:B,$B$8)","v":0},{"$f":"SUMIFS('1. Personalkosten'!S:S,'1. Personalkosten'!C:C,B63,'1. Personalkosten'!B:B,$G$25)+SUMIFS('2-3. Reise&Unterkunftskosten'!N:N,'2-3. Reise&Unterkunftskosten'!C:C,B63,'2-3. Reise&Unterkunftskosten'!B:B,$G$25)+SUMIFS('4. Ausrüstungskosten'!H:H,'4. Ausrüstungskosten'!C:C,B63,'4. Ausrüstungskosten'!B:B,$G$25)+SUMIFS('5. Kosten für Unteraufträge'!H:H,'5. Kosten für Unteraufträge'!C:C,B63,'5. Kosten für Unteraufträge'!B:B,$G$25)","v":0},{"$f":"SUMIF('B. Spezieller Mob. - Student'!B:B,B63,'B. Spezieller Mob. - Student'!N:N)+SUMIF('B. Spezieller Mob. - Personal'!B:B,B63,'B. Spezieller Mob. - Personal'!N:N)","v":0},0]
[null,"P39",{"$f":"SUMIFS('1. Personalkosten'!S:S,'1. Personalkosten'!C:C,B64,'1. Personalkosten'!B:B,$C$25)+SUMIFS('2-3. Reise&Unterkunftskosten'!N:N,'2-3. Reise&Unterkunftskosten'!C:C,B64,'2-3. Reise&Unterkunftskosten'!B:B,$C$25)+SUMIFS('4. Ausrüstungskosten'!H:H,'4. Ausrüstungskosten'!C:C,B64,'4. Ausrüstungskosten'!B:B,$C$25)+SUMIFS('5. Kosten für Unteraufträge'!H:H,'5. Kosten für Unteraufträge'!C:C,B64,'5. Kosten für Unteraufträge'!B:B,$C$25)","v":0},{"$f":"SUMIFS('1. Personalkosten'!S:S,'1. Personalkosten'!C:C,B64,'1. Personalkosten'!B:B,$D$25)+SUMIFS('2-3. Reise&Unterkunftskosten'!N:N,'2-3. Reise&Unterkunftskosten'!C:C,B64,'2-3. Reise&Unterkunftskosten'!B:B,$D$25)+SUMIFS('4. Ausrüstungskosten'!H:H,'4. Ausrüstungskosten'!C:C,B64,'4. Ausrüstungskosten'!B:B,$D$25)+SUMIFS('5. Kosten für Unteraufträge'!H:H,'5. Kosten für Unteraufträge'!C:C,B64,'5. Kosten für Unteraufträge'!B:B,$D$25)","v":0},{"$f":"SUMIFS('1. Personalkosten'!S:S,'1. Personalkosten'!C:C,B64,'1. Personalkosten'!B:B,$E$25)+SUMIFS('2-3. Reise&Unterkunftskosten'!N:N,'2-3. Reise&Unterkunftskosten'!C:C,B64,'2-3. Reise&Unterkunftskosten'!B:B,$E$25)+SUMIFS('4. Ausrüstungskosten'!H:H,'4. Ausrüstungskosten'!C:C,B64,'4. Ausrüstungskosten'!B:B,$E$25)+SUMIFS('5. Kosten für Unteraufträge'!H:H,'5. Kosten für Unteraufträge'!C:C,B64,'5. Kosten für Unteraufträge'!B:B,$E$25)","v":0},{"$f":"SUMIFS('1. Personalkosten'!S:S,'1. Personalkosten'!C:C,B64,'1. Personalkosten'!B:B,$B$8)+SUMIFS('2-3. Reise&Unterkunftskosten'!N:N,'2-3. Reise&Unterkunftskosten'!C:C,B64,'2-3. Reise&Unterkunftskosten'!B:B,$B$8)+SUMIFS('4. Ausrüstungskosten'!H:H,'4. Ausrüstungskosten'!C:C,B64,'4. Ausrüstungskosten'!B:B,$B$8)+SUMIFS('5. Kosten für Unteraufträge'!H:H,'5. Kosten für Unteraufträge'!C:C,B64,'5. Kosten für Unteraufträge'!B:B,$B$8)","v":0},{"$f":"SUMIFS('1. Personalkosten'!S:S,'1. Personalkosten'!C:C,B64,'1. Personalkosten'!B:B,$G$25)+SUMIFS('2-3. Reise&Unterkunftskosten'!N:N,'2-3. Reise&Unterkunftskosten'!C:C,B64,'2-3. Reise&Unterkunftskosten'!B:B,$G$25)+SUMIFS('4. Ausrüstungskosten'!H:H,'4. Ausrüstungskosten'!C:C,B64,'4. Ausrüstungskosten'!B:B,$G$25)+SUMIFS('5. Kosten für Unteraufträge'!H:H,'5. Kosten für Unteraufträge'!C:C,B64,'5. Kosten für Unteraufträge'!B:B,$G$25)","v":0},{"$f":"SUMIF('B. Spezieller Mob. - Student'!B:B,B64,'B. Spezieller Mob. - Student'!N:N)+SUMIF('B. Spezieller Mob. - Personal'!B:B,B64,'B. Spezieller Mob. - Personal'!N:N)","v":0},0]
[null,"P40",{"$f":"SUMIFS('1. Personalkosten'!S:S,'1. Personalkosten'!C:C,B65,'1. Personalkosten'!B:B,$C$25)+SUMIFS('2-3. Reise&Unterkunftskosten'!N:N,'2-3. Reise&Unterkunftskosten'!C:C,B65,'2-3. Reise&Unterkunftskosten'!B:B,$C$25)+SUMIFS('4. Ausrüstungskosten'!H:H,'4. Ausrüstungskosten'!C:C,B65,'4. Ausrüstungskosten'!B:B,$C$25)+SUMIFS('5. Kosten für Unteraufträge'!H:H,'5. Kosten für Unteraufträge'!C:C,B65,'5. Kosten für Unteraufträge'!B:B,$C$25)","v":0},{"$f":"SUMIFS('1. Personalkosten'!S:S,'1. Personalkosten'!C:C,B65,'1. Personalkosten'!B:B,$D$25)+SUMIFS('2-3. Reise&Unterkunftskosten'!N:N,'2-3. Reise&Unterkunftskosten'!C:C,B65,'2-3. Reise&Unterkunftskosten'!B:B,$D$25)+SUMIFS('4. Ausrüstungskosten'!H:H,'4. Ausrüstungskosten'!C:C,B65,'4. Ausrüstungskosten'!B:B,$D$25)+SUMIFS('5. Kosten für Unteraufträge'!H:H,'5. Kosten für Unteraufträge'!C:C,B65,'5. Kosten für Unteraufträge'!B:B,$D$25)","v":0},{"$f":"SUMIFS('1. Personalkosten'!S:S,'1. Personalkosten'!C:C,B65,'1. Personalkosten'!B:B,$E$25)+SUMIFS('2-3. Reise&Unterkunftskosten'!N:N,'2-3. Reise&Unterkunftskosten'!C:C,B65,'2-3. Reise&Unterkunftskosten'!B:B,$E$25)+SUMIFS('4. Ausrüstungskosten'!H:H,'4. Ausrüstungskosten'!C:C,B65,'4. Ausrüstungskosten'!B:B,$E$25)+SUMIFS('5. Kosten für Unteraufträge'!H:H,'5. Kosten für Unteraufträge'!C:C,B65,'5. Kosten für Unteraufträge'!B:B,$E$25)","v":0},{"$f":"SUMIFS('1. Personalkosten'!S:S,'1. Personalkosten'!C:C,B65,'1. Personalkosten'!B:B,$B$8)+SUMIFS('2-3. Reise&Unterkunftskosten'!N:N,'2-3. Reise&Unterkunftskosten'!C:C,B65,'2-3. Reise&Unterkunftskosten'!B:B,$B$8)+SUMIFS('4. Ausrüstungskosten'!H:H,'4. Ausrüstungskosten'!C:C,B65,'4. Ausrüstungskosten'!B:B,$B$8)+SUMIFS('5. Kosten für Unteraufträge'!H:H,'5. Kosten für Unteraufträge'!C:C,B65,'5. Kosten für Unteraufträge'!B:B,$B$8)","v":0},{"$f":"SUMIFS('1. Personalkosten'!S:S,'1. Personalkosten'!C:C,B65,'1. Personalkosten'!B:B,$G$25)+SUMIFS('2-3. Reise&Unterkunftskosten'!N:N,'2-3. Reise&Unterkunftskosten'!C:C,B65,'2-3. Reise&Unterkunftskosten'!B:B,$G$25)+SUMIFS('4. Ausrüstungskosten'!H:H,'4. Ausrüstungskosten'!C:C,B65,'4. Ausrüstungskosten'!B:B,$G$25)+SUMIFS('5. Kosten für Unteraufträge'!H:H,'5. Kosten für Unteraufträge'!C:C,B65,'5. Kosten für Unteraufträge'!B:B,$G$25)","v":0},{"$f":"SUMIF('B. Spezieller Mob. - Student'!B:B,B65,'B. Spezieller Mob. - Student'!N:N)+SUMIF('B. Spezieller Mob. - Personal'!B:B,B65,'B. Spezieller Mob. - Personal'!N:N)","v":0},0]
[null,"P41",{"$f":"SUMIFS('1. Personalkosten'!S:S,'1. Personalkosten'!C:C,B66,'1. Personalkosten'!B:B,$C$25)+SUMIFS('2-3. Reise&Unterkunftskosten'!N:N,'2-3. Reise&Unterkunftskosten'!C:C,B66,'2-3. Reise&Unterkunftskosten'!B:B,$C$25)+SUMIFS('4. Ausrüstungskosten'!H:H,'4. Ausrüstungskosten'!C:C,B66,'4. Ausrüstungskosten'!B:B,$C$25)+SUMIFS('5. Kosten für Unteraufträge'!H:H,'5. Kosten für Unteraufträge'!C:C,B66,'5. Kosten für Unteraufträge'!B:B,$C$25)","v":0},{"$f":"SUMIFS('1. Personalkosten'!S:S,'1. Personalkosten'!C:C,B66,'1. Personalkosten'!B:B,$D$25)+SUMIFS('2-3. Reise&Unterkunftskosten'!N:N,'2-3. Reise&Unterkunftskosten'!C:C,B66,'2-3. Reise&Unterkunftskosten'!B:B,$D$25)+SUMIFS('4. Ausrüstungskosten'!H:H,'4. Ausrüstungskosten'!C:C,B66,'4. Ausrüstungskosten'!B:B,$D$25)+SUMIFS('5. Kosten für Unteraufträge'!H:H,'5. Kosten für Unteraufträge'!C:C,B66,'5. Kosten für Unteraufträge'!B:B,$D$25)","v":0},{"$f":"SUMIFS('1. Personalkosten'!S:S,'1. Personalkosten'!C:C,B66,'1. Personalkosten'!B:B,$E$25)+SUMIFS('2-3. Reise&Unterkunftskosten'!N:N,'2-3. Reise&Unterkunftskosten'!C:C,B66,'2-3. Reise&Unterkunftskosten'!B:B,$E$25)+SUMIFS('4. Ausrüstungskosten'!H:H,'4. Ausrüstungskosten'!C:C,B66,'4. Ausrüstungskosten'!B:B,$E$25)+SUMIFS('5. Kosten für Unteraufträge'!H:H,'5. Kosten für Unteraufträge'!C:C,B66,'5. Kosten für Unteraufträge'!B:B,$E$25)","v":0},{"$f":"SUMIFS('1. Personalkosten'!S:S,'1. Personalkosten'!C:C,B66,'1. Personalkosten'!B:B,$B$8)+SUMIFS('2-3. Reise&Unterkunftskosten'!N:N,'2-3. Reise&Unterkunftskosten'!C:C,B66,'2-3. Reise&Unterkunftskosten'!B:B,$B$8)+SUMIFS('4. Ausrüstungskosten'!H:H,'4. Ausrüstungskosten'!C:C,B66,'4. Ausrüstungskosten'!B:B,$B$8)+SUMIFS('5. Kosten für Unteraufträge'!H:H,'5. Kosten für Unteraufträge'!C:C,B66,'5. Kosten für Unteraufträge'!B:B,$B$8)","v":0},{"$f":"SUMIFS('1. Personalkosten'!S:S,'1. Personalkosten'!C:C,B66,'1. Personalkosten'!B:B,$G$25)+SUMIFS('2-3. Reise&Unterkunftskosten'!N:N,'2-3. Reise&Unterkunftskosten'!C:C,B66,'2-3. Reise&Unterkunftskosten'!B:B,$G$25)+SUMIFS('4. Ausrüstungskosten'!H:H,'4. Ausrüstungskosten'!C:C,B66,'4. Ausrüstungskosten'!B:B,$G$25)+SUMIFS('5. Kosten für Unteraufträge'!H:H,'5. Kosten für Unteraufträge'!C:C,B66,'5. Kosten für Unteraufträge'!B:B,$G$25)","v":0},{"$f":"SUMIF('B. Spezieller Mob. - Student'!B:B,B66,'B. Spezieller Mob. - Student'!N:N)+SUMIF('B. Spezieller Mob. - Personal'!B:B,B66,'B. Spezieller Mob. - Personal'!N:N)","v":0},0]
[null,"P42",{"$f":"SUMIFS('1. Personalkosten'!S:S,'1. Personalkosten'!C:C,B67,'1. Personalkosten'!B:B,$C$25)+SUMIFS('2-3. Reise&Unterkunftskosten'!N:N,'2-3. Reise&Unterkunftskosten'!C:C,B67,'2-3. Reise&Unterkunftskosten'!B:B,$C$25)+SUMIFS('4. Ausrüstungskosten'!H:H,'4. Ausrüstungskosten'!C:C,B67,'4. Ausrüstungskosten'!B:B,$C$25)+SUMIFS('5. Kosten für Unteraufträge'!H:H,'5. Kosten für Unteraufträge'!C:C,B67,'5. Kosten für Unteraufträge'!B:B,$C$25)","v":0},{"$f":"SUMIFS('1. Personalkosten'!S:S,'1. Personalkosten'!C:C,B67,'1. Personalkosten'!B:B,$D$25)+SUMIFS('2-3. Reise&Unterkunftskosten'!N:N,'2-3. Reise&Unterkunftskosten'!C:C,B67,'2-3. Reise&Unterkunftskosten'!B:B,$D$25)+SUMIFS('4. Ausrüstungskosten'!H:H,'4. Ausrüstungskosten'!C:C,B67,'4. Ausrüstungskosten'!B:B,$D$25)+SUMIFS('5. Kosten für Unteraufträge'!H:H,'5. Kosten für Unteraufträge'!C:C,B67,'5. Kosten für Unteraufträge'!B:B,$D$25)","v":0},{"$f":"SUMIFS('1. Personalkosten'!S:S,'1. Personalkosten'!C:C,B67,'1. Personalkosten'!B:B,$E$25)+SUMIFS('2-3. Reise&Unterkunftskosten'!N:N,'2-3. Reise&Unterkunftskosten'!C:C,B67,'2-3. Reise&Unterkunftskosten'!B:B,$E$25)+SUMIFS('4. Ausrüstungskosten'!H:H,'4. Ausrüstungskosten'!C:C,B67,'4. Ausrüstungskosten'!B:B,$E$25)+SUMIFS('5. Kosten für Unteraufträge'!H:H,'5. Kosten für Unteraufträge'!C:C,B67,'5. Kosten für Unteraufträge'!B:B,$E$25)","v":0},{"$f":"SUMIFS('1. Personalkosten'!S:S,'1. Personalkosten'!C:C,B67,'1. Personalkosten'!B:B,$B$8)+SUMIFS('2-3. Reise&Unterkunftskosten'!N:N,'2-3. Reise&Unterkunftskosten'!C:C,B67,'2-3. Reise&Unterkunftskosten'!B:B,$B$8)+SUMIFS('4. Ausrüstungskosten'!H:H,'4. Ausrüstungskosten'!C:C,B67,'4. Ausrüstungskosten'!B:B,$B$8)+SUMIFS('5. Kosten für Unteraufträge'!H:H,'5. Kosten für Unteraufträge'!C:C,B67,'5. Kosten für Unteraufträge'!B:B,$B$8)","v":0},{"$f":"SUMIFS('1. Personalkosten'!S:S,'1. Personalkosten'!C:C,B67,'1. Personalkosten'!B:B,$G$25)+SUMIFS('2-3. Reise&Unterkunftskosten'!N:N,'2-3. Reise&Unterkunftskosten'!C:C,B67,'2-3. Reise&Unterkunftskosten'!B:B,$G$25)+SUMIFS('4. Ausrüstungskosten'!H:H,'4. Ausrüstungskosten'!C:C,B67,'4. Ausrüstungskosten'!B:B,$G$25)+SUMIFS('5. Kosten für Unteraufträge'!H:H,'5. Kosten für Unteraufträge'!C:C,B67,'5. Kosten für Unteraufträge'!B:B,$G$25)","v":0},{"$f":"SUMIF('B. Spezieller Mob. - Student'!B:B,B67,'B. Spezieller Mob. - Student'!N:N)+SUMIF('B. Spezieller Mob. - Personal'!B:B,B67,'B. Spezieller Mob. - Personal'!N:N)","v":0},0]
[null,"P43",{"$f":"SUMIFS('1. Personalkosten'!S:S,'1. Personalkosten'!C:C,B68,'1. Personalkosten'!B:B,$C$25)+SUMIFS('2-3. Reise&Unterkunftskosten'!N:N,'2-3. Reise&Unterkunftskosten'!C:C,B68,'2-3. Reise&Unterkunftskosten'!B:B,$C$25)+SUMIFS('4. Ausrüstungskosten'!H:H,'4. Ausrüstungskosten'!C:C,B68,'4. Ausrüstungskosten'!B:B,$C$25)+SUMIFS('5. Kosten für Unteraufträge'!H:H,'5. Kosten für Unteraufträge'!C:C,B68,'5. Kosten für Unteraufträge'!B:B,$C$25)","v":0},{"$f":"SUMIFS('1. Personalkosten'!S:S,'1. Personalkosten'!C:C,B68,'1. Personalkosten'!B:B,$D$25)+SUMIFS('2-3. Reise&Unterkunftskosten'!N:N,'2-3. Reise&Unterkunftskosten'!C:C,B68,'2-3. Reise&Unterkunftskosten'!B:B,$D$25)+SUMIFS('4. Ausrüstungskosten'!H:H,'4. Ausrüstungskosten'!C:C,B68,'4. Ausrüstungskosten'!B:B,$D$25)+SUMIFS('5. Kosten für Unteraufträge'!H:H,'5. Kosten für Unteraufträge'!C:C,B68,'5. Kosten für Unteraufträge'!B:B,$D$25)","v":0},{"$f":"SUMIFS('1. Personalkosten'!S:S,'1. Personalkosten'!C:C,B68,'1. Personalkosten'!B:B,$E$25)+SUMIFS('2-3. Reise&Unterkunftskosten'!N:N,'2-3. Reise&Unterkunftskosten'!C:C,B68,'2-3. Reise&Unterkunftskosten'!B:B,$E$25)+SUMIFS('4. Ausrüstungskosten'!H:H,'4. Ausrüstungskosten'!C:C,B68,'4. Ausrüstungskosten'!B:B,$E$25)+SUMIFS('5. Kosten für Unteraufträge'!H:H,'5. Kosten für Unteraufträge'!C:C,B68,'5. Kosten für Unteraufträge'!B:B,$E$25)","v":0},{"$f":"SUMIFS('1. Personalkosten'!S:S,'1. Personalkosten'!C:C,B68,'1. Personalkosten'!B:B,$B$8)+SUMIFS('2-3. Reise&Unterkunftskosten'!N:N,'2-3. Reise&Unterkunftskosten'!C:C,B68,'2-3. Reise&Unterkunftskosten'!B:B,$B$8)+SUMIFS('4. Ausrüstungskosten'!H:H,'4. Ausrüstungskosten'!C:C,B68,'4. Ausrüstungskosten'!B:B,$B$8)+SUMIFS('5. Kosten für Unteraufträge'!H:H,'5. Kosten für Unteraufträge'!C:C,B68,'5. Kosten für Unteraufträge'!B:B,$B$8)","v":0},{"$f":"SUMIFS('1. Personalkosten'!S:S,'1. Personalkosten'!C:C,B68,'1. Personalkosten'!B:B,$G$25)+SUMIFS('2-3. Reise&Unterkunftskosten'!N:N,'2-3. Reise&Unterkunftskosten'!C:C,B68,'2-3. Reise&Unterkunftskosten'!B:B,$G$25)+SUMIFS('4. Ausrüstungskosten'!H:H,'4. Ausrüstungskosten'!C:C,B68,'4. Ausrüstungskosten'!B:B,$G$25)+SUMIFS('5. Kosten für Unteraufträge'!H:H,'5. Kosten für Unteraufträge'!C:C,B68,'5. Kosten für Unteraufträge'!B:B,$G$25)","v":0},{"$f":"SUMIF('B. Spezieller Mob. - Student'!B:B,B68,'B. Spezieller Mob. - Student'!N:N)+SUMIF('B. Spezieller Mob. - Personal'!B:B,B68,'B. Spezieller Mob. - Personal'!N:N)","v":0},0]
[null,"P44",{"$f":"SUMIFS('1. Personalkosten'!S:S,'1. Personalkosten'!C:C,B69,'1. Personalkosten'!B:B,$C$25)+SUMIFS('2-3. Reise&Unterkunftskosten'!N:N,'2-3. Reise&Unterkunftskosten'!C:C,B69,'2-3. Reise&Unterkunftskosten'!B:B,$C$25)+SUMIFS('4. Ausrüstungskosten'!H:H,'4. Ausrüstungskosten'!C:C,B69,'4. Ausrüstungskosten'!B:B,$C$25)+SUMIFS('5. Kosten für Unteraufträge'!H:H,'5. Kosten für Unteraufträge'!C:C,B69,'5. Kosten für Unteraufträge'!B:B,$C$25)","v":0},{"$f":"SUMIFS('1. Personalkosten'!S:S,'1. Personalkosten'!C:C,B69,'1. Personalkosten'!B:B,$D$25)+SUMIFS('2-3. Reise&Unterkunftskosten'!N:N,'2-3. Reise&Unterkunftskosten'!C:C,B69,'2-3. Reise&Unterkunftskosten'!B:B,$D$25)+SUMIFS('4. Ausrüstungskosten'!H:H,'4. Ausrüstungskosten'!C:C,B69,'4. Ausrüstungskosten'!B:B,$D$25)+SUMIFS('5. Kosten für Unteraufträge'!H:H,'5. Kosten für Unteraufträge'!C:C,B69,'5. Kosten für Unteraufträge'!B:B,$D$25)","v":0},{"$f":"SUMIFS('1. Personalkosten'!S:S,'1. Personalkosten'!C:C,B69,'1. Personalkosten'!B:B,$E$25)+SUMIFS('2-3. Reise&Unterkunftskosten'!N:N,'2-3. Reise&Unterkunftskosten'!C:C,B69,'2-3. Reise&Unterkunftskosten'!B:B,$E$25)+SUMIFS('4. Ausrüstungskosten'!H:H,'4. Ausrüstungskosten'!C:C,B69,'4. Ausrüstungskosten'!B:B,$E$25)+SUMIFS('5. Kosten für Unteraufträge'!H:H,'5. Kosten für Unteraufträge'!C:C,B69,'5. Kosten für Unteraufträge'!B:B,$E$25)","v":0},{"$f":"SUMIFS('1. Personalkosten'!S:S,'1. Personalkosten'!C:C,B69,'1. Personalkosten'!B:B,$B$8)+SUMIFS('2-3. Reise&Unterkunftskosten'!N:N,'2-3. Reise&Unterkunftskosten'!C:C,B69,'2-3. Reise&Unterkunftskosten'!B:B,$B$8)+SUMIFS('4. Ausrüstungskosten'!H:H,'4. Ausrüstungskosten'!C:C,B69,'4. Ausrüstungskosten'!B:B,$B$8)+SUMIFS('5. Kosten für Unteraufträge'!H:H,'5. Kosten für Unteraufträge'!C:C,B69,'5. Kosten für Unteraufträge'!B:B,$B$8)","v":0},{"$f":"SUMIFS('1. Personalkosten'!S:S,'1. Personalkosten'!C:C,B69,'1. Personalkosten'!B:B,$G$25)+SUMIFS('2-3. Reise&Unterkunftskosten'!N:N,'2-3. Reise&Unterkunftskosten'!C:C,B69,'2-3. Reise&Unterkunftskosten'!B:B,$G$25)+SUMIFS('4. Ausrüstungskosten'!H:H,'4. Ausrüstungskosten'!C:C,B69,'4. Ausrüstungskosten'!B:B,$G$25)+SUMIFS('5. Kosten für Unteraufträge'!H:H,'5. Kosten für Unteraufträge'!C:C,B69,'5. Kosten für Unteraufträge'!B:B,$G$25)","v":0},{"$f":"SUMIF('B. Spezieller Mob. - Student'!B:B,B69,'B. Spezieller Mob. - Student'!N:N)+SUMIF('B. Spezieller Mob. - Personal'!B:B,B69,'B. Spezieller Mob. - Personal'!N:N)","v":0},0]
[null,"P45",{"$f":"SUMIFS('1. Personalkosten'!S:S,'1. Personalkosten'!C:C,B70,'1. Personalkosten'!B:B,$C$25)+SUMIFS('2-3. Reise&Unterkunftskosten'!N:N,'2-3. Reise&Unterkunftskosten'!C:C,B70,'2-3. Reise&Unterkunftskosten'!B:B,$C$25)+SUMIFS('4. Ausrüstungskosten'!H:H,'4. Ausrüstungskosten'!C:C,B70,'4. Ausrüstungskosten'!B:B,$C$25)+SUMIFS('5. Kosten für Unteraufträge'!H:H,'5. Kosten für Unteraufträge'!C:C,B70,'5. Kosten für Unteraufträge'!B:B,$C$25)","v":0},{"$f":"SUMIFS('1. Personalkosten'!S:S,'1. Personalkosten'!C:C,B70,'1. Personalkosten'!B:B,$D$25)+SUMIFS('2-3. Reise&Unterkunftskosten'!N:N,'2-3. Reise&Unterkunftskosten'!C:C,B70,'2-3. Reise&Unterkunftskosten'!B:B,$D$25)+SUMIFS('4. Ausrüstungskosten'!H:H,'4. Ausrüstungskosten'!C:C,B70,'4. Ausrüstungskosten'!B:B,$D$25)+SUMIFS('5. Kosten für Unteraufträge'!H:H,'5. Kosten für Unteraufträge'!C:C,B70,'5. Kosten für Unteraufträge'!B:B,$D$25)","v":0},{"$f":"SUMIFS('1. Personalkosten'!S:S,'1. Personalkosten'!C:C,B70,'1. Personalkosten'!B:B,$E$25)+SUMIFS('2-3. Reise&Unterkunftskosten'!N:N,'2-3. Reise&Unterkunftskosten'!C:C,B70,'2-3. Reise&Unterkunftskosten'!B:B,$E$25)+SUMIFS('4. Ausrüstungskosten'!H:H,'4. Ausrüstungskosten'!C:C,B70,'4. Ausrüstungskosten'!B:B,$E$25)+SUMIFS('5. Kosten für Unteraufträge'!H:H,'5. Kosten für Unteraufträge'!C:C,B70,'5. Kosten für Unteraufträge'!B:B,$E$25)","v":0},{"$f":"SUMIFS('1. Personalkosten'!S:S,'1. Personalkosten'!C:C,B70,'1. Personalkosten'!B:B,$B$8)+SUMIFS('2-3. Reise&Unterkunftskosten'!N:N,'2-3. Reise&Unterkunftskosten'!C:C,B70,'2-3. Reise&Unterkunftskosten'!B:B,$B$8)+SUMIFS('4. Ausrüstungskosten'!H:H,'4. Ausrüstungskosten'!C:C,B70,'4. Ausrüstungskosten'!B:B,$B$8)+SUMIFS('5. Kosten für Unteraufträge'!H:H,'5. Kosten für Unteraufträge'!C:C,B70,'5. Kosten für Unteraufträge'!B:B,$B$8)","v":0},{"$f":"SUMIFS('1. Personalkosten'!S:S,'1. Personalkosten'!C:C,B70,'1. Personalkosten'!B:B,$G$25)+SUMIFS('2-3. Reise&Unterkunftskosten'!N:N,'2-3. Reise&Unterkunftskosten'!C:C,B70,'2-3. Reise&Unterkunftskosten'!B:B,$G$25)+SUMIFS('4. Ausrüstungskosten'!H:H,'4. Ausrüstungskosten'!C:C,B70,'4. Ausrüstungskosten'!B:B,$G$25)+SUMIFS('5. Kosten für Unteraufträge'!H:H,'5. Kosten für Unteraufträge'!C:C,B70,'5. Kosten für Unteraufträge'!B:B,$G$25)","v":0},{"$f":"SUMIF('B. Spezieller Mob. - Student'!B:B,B70,'B. Spezieller Mob. - Student'!N:N)+SUMIF('B. Spezieller Mob. - Personal'!B:B,B70,'B. Spezieller Mob. - Personal'!N:N)","v":0},0]
[null,"P46",{"$f":"SUMIFS('1. Personalkosten'!S:S,'1. Personalkosten'!C:C,B71,'1. Personalkosten'!B:B,$C$25)+SUMIFS('2-3. Reise&Unterkunftskosten'!N:N,'2-3. Reise&Unterkunftskosten'!C:C,B71,'2-3. Reise&Unterkunftskosten'!B:B,$C$25)+SUMIFS('4. Ausrüstungskosten'!H:H,'4. Ausrüstungskosten'!C:C,B71,'4. Ausrüstungskosten'!B:B,$C$25)+SUMIFS('5. Kosten für Unteraufträge'!H:H,'5. Kosten für Unteraufträge'!C:C,B71,'5. Kosten für Unteraufträge'!B:B,$C$25)","v":0},{"$f":"SUMIFS('1. Personalkosten'!S:S,'1. Personalkosten'!C:C,B71,'1. Personalkosten'!B:B,$D$25)+SUMIFS('2-3. Reise&Unterkunftskosten'!N:N,'2-3. Reise&Unterkunftskosten'!C:C,B71,'2-3. Reise&Unterkunftskosten'!B:B,$D$25)+SUMIFS('4. Ausrüstungskosten'!H:H,'4. Ausrüstungskosten'!C:C,B71,'4. Ausrüstungskosten'!B:B,$D$25)+SUMIFS('5. Kosten für Unteraufträge'!H:H,'5. Kosten für Unteraufträge'!C:C,B71,'5. Kosten für Unteraufträge'!B:B,$D$25)","v":0},{"$f":"SUMIFS('1. Personalkosten'!S:S,'1. Personalkosten'!C:C,B71,'1. Personalkosten'!B:B,$E$25)+SUMIFS('2-3. Reise&Unterkunftskosten'!N:N,'2-3. Reise&Unterkunftskosten'!C:C,B71,'2-3. Reise&Unterkunftskosten'!B:B,$E$25)+SUMIFS('4. Ausrüstungskosten'!H:H,'4. Ausrüstungskosten'!C:C,B71,'4. Ausrüstungskosten'!B:B,$E$25)+SUMIFS('5. Kosten für Unteraufträge'!H:H,'5. Kosten für Unteraufträge'!C:C,B71,'5. Kosten für Unteraufträge'!B:B,$E$25)","v":0},{"$f":"SUMIFS('1. Personalkosten'!S:S,'1. Personalkosten'!C:C,B71,'1. Personalkosten'!B:B,$B$8)+SUMIFS('2-3. Reise&Unterkunftskosten'!N:N,'2-3. Reise&Unterkunftskosten'!C:C,B71,'2-3. Reise&Unterkunftskosten'!B:B,$B$8)+SUMIFS('4. Ausrüstungskosten'!H:H,'4. Ausrüstungskosten'!C:C,B71,'4. Ausrüstungskosten'!B:B,$B$8)+SUMIFS('5. Kosten für Unteraufträge'!H:H,'5. Kosten für Unteraufträge'!C:C,B71,'5. Kosten für Unteraufträge'!B:B,$B$8)","v":0},{"$f":"SUMIFS('1. Personalkosten'!S:S,'1. Personalkosten'!C:C,B71,'1. Personalkosten'!B:B,$G$25)+SUMIFS('2-3. Reise&Unterkunftskosten'!N:N,'2-3. Reise&Unterkunftskosten'!C:C,B71,'2-3. Reise&Unterkunftskosten'!B:B,$G$25)+SUMIFS('4. Ausrüstungskosten'!H:H,'4. Ausrüstungskosten'!C:C,B71,'4. Ausrüstungskosten'!B:B,$G$25)+SUMIFS('5. Kosten für Unteraufträge'!H:H,'5. Kosten für Unteraufträge'!C:C,B71,'5. Kosten für Unteraufträge'!B:B,$G$25)","v":0},{"$f":"SUMIF('B. Spezieller Mob. - Student'!B:B,B71,'B. Spezieller Mob. - Student'!N:N)+SUMIF('B. Spezieller Mob. - Personal'!B:B,B71,'B. Spezieller Mob. - Personal'!N:N)","v":0},0]
[null,"P47",{"$f":"SUMIFS('1. Personalkosten'!S:S,'1. Personalkosten'!C:C,B72,'1. Personalkosten'!B:B,$C$25)+SUMIFS('2-3. Reise&Unterkunftskosten'!N:N,'2-3. Reise&Unterkunftskosten'!C:C,B72,'2-3. Reise&Unterkunftskosten'!B:B,$C$25)+SUMIFS('4. Ausrüstungskosten'!H:H,'4. Ausrüstungskosten'!C:C,B72,'4. Ausrüstungskosten'!B:B,$C$25)+SUMIFS('5. Kosten für Unteraufträge'!H:H,'5. Kosten für Unteraufträge'!C:C,B72,'5. Kosten für Unteraufträge'!B:B,$C$25)","v":0},{"$f":"SUMIFS('1. Personalkosten'!S:S,'1. Personalkosten'!C:C,B72,'1. Personalkosten'!B:B,$D$25)+SUMIFS('2-3. Reise&Unterkunftskosten'!N:N,'2-3. Reise&Unterkunftskosten'!C:C,B72,'2-3. Reise&Unterkunftskosten'!B:B,$D$25)+SUMIFS('4. Ausrüstungskosten'!H:H,'4. Ausrüstungskosten'!C:C,B72,'4. Ausrüstungskosten'!B:B,$D$25)+SUMIFS('5. Kosten für Unteraufträge'!H:H,'5. Kosten für Unteraufträge'!C:C,B72,'5. Kosten für Unteraufträge'!B:B,$D$25)","v":0},{"$f":"SUMIFS('1. Personalkosten'!S:S,'1. Personalkosten'!C:C,B72,'1. Personalkosten'!B:B,$E$25)+SUMIFS('2-3. Reise&Unterkunftskosten'!N:N,'2-3. Reise&Unterkunftskosten'!C:C,B72,'2-3. Reise&Unterkunftskosten'!B:B,$E$25)+SUMIFS('4. Ausrüstungskosten'!H:H,'4. Ausrüstungskosten'!C:C,B72,'4. Ausrüstungskosten'!B:B,$E$25)+SUMIFS('5. Kosten für Unteraufträge'!H:H,'5. Kosten für Unteraufträge'!C:C,B72,'5. Kosten für Unteraufträge'!B:B,$E$25)","v":0},{"$f":"SUMIFS('1. Personalkosten'!S:S,'1. Personalkosten'!C:C,B72,'1. Personalkosten'!B:B,$B$8)+SUMIFS('2-3. Reise&Unterkunftskosten'!N:N,'2-3. Reise&Unterkunftskosten'!C:C,B72,'2-3. Reise&Unterkunftskosten'!B:B,$B$8)+SUMIFS('4. Ausrüstungskosten'!H:H,'4. Ausrüstungskosten'!C:C,B72,'4. Ausrüstungskosten'!B:B,$B$8)+SUMIFS('5. Kosten für Unteraufträge'!H:H,'5. Kosten für Unteraufträge'!C:C,B72,'5. Kosten für Unteraufträge'!B:B,$B$8)","v":0},{"$f":"SUMIFS('1. Personalkosten'!S:S,'1. Personalkosten'!C:C,B72,'1. Personalkosten'!B:B,$G$25)+SUMIFS('2-3. Reise&Unterkunftskosten'!N:N,'2-3. Reise&Unterkunftskosten'!C:C,B72,'2-3. Reise&Unterkunftskosten'!B:B,$G$25)+SUMIFS('4. Ausrüstungskosten'!H:H,'4. Ausrüstungskosten'!C:C,B72,'4. Ausrüstungskosten'!B:B,$G$25)+SUMIFS('5. Kosten für Unteraufträge'!H:H,'5. Kosten für Unteraufträge'!C:C,B72,'5. Kosten für Unteraufträge'!B:B,$G$25)","v":0},{"$f":"SUMIF('B. Spezieller Mob. - Student'!B:B,B72,'B. Spezieller Mob. - Student'!N:N)+SUMIF('B. Spezieller Mob. - Personal'!B:B,B72,'B. Spezieller Mob. - Personal'!N:N)","v":0},0]
[null,"P48",{"$f":"SUMIFS('1. Personalkosten'!S:S,'1. Personalkosten'!C:C,B73,'1. Personalkosten'!B:B,$C$25)+SUMIFS('2-3. Reise&Unterkunftskosten'!N:N,'2-3. Reise&Unterkunftskosten'!C:C,B73,'2-3. Reise&Unterkunftskosten'!B:B,$C$25)+SUMIFS('4. Ausrüstungskosten'!H:H,'4. Ausrüstungskosten'!C:C,B73,'4. Ausrüstungskosten'!B:B,$C$25)+SUMIFS('5. Kosten für Unteraufträge'!H:H,'5. Kosten für Unteraufträge'!C:C,B73,'5. Kosten für Unteraufträge'!B:B,$C$25)","v":0},{"$f":"SUMIFS('1. Personalkosten'!S:S,'1. Personalkosten'!C:C,B73,'1. Personalkosten'!B:B,$D$25)+SUMIFS('2-3. Reise&Unterkunftskosten'!N:N,'2-3. Reise&Unterkunftskosten'!C:C,B73,'2-3. Reise&Unterkunftskosten'!B:B,$D$25)+SUMIFS('4. Ausrüstungskosten'!H:H,'4. Ausrüstungskosten'!C:C,B73,'4. Ausrüstungskosten'!B:B,$D$25)+SUMIFS('5. Kosten für Unteraufträge'!H:H,'5. Kosten für Unteraufträge'!C:C,B73,'5. Kosten für Unteraufträge'!B:B,$D$25)","v":0},{"$f":"SUMIFS('1. Personalkosten'!S:S,'1. Personalkosten'!C:C,B73,'1. Personalkosten'!B:B,$E$25)+SUMIFS('2-3. Reise&Unterkunftskosten'!N:N,'2-3. Reise&Unterkunftskosten'!C:C,B73,'2-3. Reise&Unterkunftskosten'!B:B,$E$25)+SUMIFS('4. Ausrüstungskosten'!H:H,'4. Ausrüstungskosten'!C:C,B73,'4. Ausrüstungskosten'!B:B,$E$25)+SUMIFS('5. Kosten für Unteraufträge'!H:H,'5. Kosten für Unteraufträge'!C:C,B73,'5. Kosten für Unteraufträge'!B:B,$E$25)","v":0},{"$f":"SUMIFS('1. Personalkosten'!S:S,'1. Personalkosten'!C:C,B73,'1. Personalkosten'!B:B,$B$8)+SUMIFS('2-3. Reise&Unterkunftskosten'!N:N,'2-3. Reise&Unterkunftskosten'!C:C,B73,'2-3. Reise&Unterkunftskosten'!B:B,$B$8)+SUMIFS('4. Ausrüstungskosten'!H:H,'4. Ausrüstungskosten'!C:C,B73,'4. Ausrüstungskosten'!B:B,$B$8)+SUMIFS('5. Kosten für Unteraufträge'!H:H,'5. Kosten für Unteraufträge'!C:C,B73,'5. Kosten für Unteraufträge'!B:B,$B$8)","v":0},{"$f":"SUMIFS('1. Personalkosten'!S:S,'1. Personalkosten'!C:C,B73,'1. Personalkosten'!B:B,$G$25)+SUMIFS('2-3. Reise&Unterkunftskosten'!N:N,'2-3. Reise&Unterkunftskosten'!C:C,B73,'2-3. Reise&Unterkunftskosten'!B:B,$G$25)+SUMIFS('4. Ausrüstungskosten'!H:H,'4. Ausrüstungskosten'!C:C,B73,'4. Ausrüstungskosten'!B:B,$G$25)+SUMIFS('5. Kosten für Unteraufträge'!H:H,'5. Kosten für Unteraufträge'!C:C,B73,'5. Kosten für Unteraufträge'!B:B,$G$25)","v":0},{"$f":"SUMIF('B. Spezieller Mob. - Student'!B:B,B73,'B. Spezieller Mob. - Student'!N:N)+SUMIF('B. Spezieller Mob. - Personal'!B:B,B73,'B. Spezieller Mob. - Personal'!N:N)","v":0},0]
[null,"P49",{"$f":"SUMIFS('1. Personalkosten'!S:S,'1. Personalkosten'!C:C,B74,'1. Personalkosten'!B:B,$C$25)+SUMIFS('2-3. Reise&Unterkunftskosten'!N:N,'2-3. Reise&Unterkunftskosten'!C:C,B74,'2-3. Reise&Unterkunftskosten'!B:B,$C$25)+SUMIFS('4. Ausrüstungskosten'!H:H,'4. Ausrüstungskosten'!C:C,B74,'4. Ausrüstungskosten'!B:B,$C$25)+SUMIFS('5. Kosten für Unteraufträge'!H:H,'5. Kosten für Unteraufträge'!C:C,B74,'5. Kosten für Unteraufträge'!B:B,$C$25)","v":0},{"$f":"SUMIFS('1. Personalkosten'!S:S,'1. Personalkosten'!C:C,B74,'1. Personalkosten'!B:B,$D$25)+SUMIFS('2-3. Reise&Unterkunftskosten'!N:N,'2-3. Reise&Unterkunftskosten'!C:C,B74,'2-3. Reise&Unterkunftskosten'!B:B,$D$25)+SUMIFS('4. Ausrüstungskosten'!H:H,'4. Ausrüstungskosten'!C:C,B74,'4. Ausrüstungskosten'!B:B,$D$25)+SUMIFS('5. Kosten für Unteraufträge'!H:H,'5. Kosten für Unteraufträge'!C:C,B74,'5. Kosten für Unteraufträge'!B:B,$D$25)","v":0},{"$f":"SUMIFS('1. Personalkosten'!S:S,'1. Personalkosten'!C:C,B74,'1. Personalkosten'!B:B,$E$25)+SUMIFS('2-3. Reise&Unterkunftskosten'!N:N,'2-3. Reise&Unterkunftskosten'!C:C,B74,'2-3. Reise&Unterkunftskosten'!B:B,$E$25)+SUMIFS('4. Ausrüstungskosten'!H:H,'4. Ausrüstungskosten'!C:C,B74,'4. Ausrüstungskosten'!B:B,$E$25)+SUMIFS('5. Kosten für Unteraufträge'!H:H,'5. Kosten für Unteraufträge'!C:C,B74,'5. Kosten für Unteraufträge'!B:B,$E$25)","v":0},{"$f":"SUMIFS('1. Personalkosten'!S:S,'1. Personalkosten'!C:C,B74,'1. Personalkosten'!B:B,$B$8)+SUMIFS('2-3. Reise&Unterkunftskosten'!N:N,'2-3. Reise&Unterkunftskosten'!C:C,B74,'2-3. Reise&Unterkunftskosten'!B:B,$B$8)+SUMIFS('4. Ausrüstungskosten'!H:H,'4. Ausrüstungskosten'!C:C,B74,'4. Ausrüstungskosten'!B:B,$B$8)+SUMIFS('5. Kosten für Unteraufträge'!H:H,'5. Kosten für Unteraufträge'!C:C,B74,'5. Kosten für Unteraufträge'!B:B,$B$8)","v":0},{"$f":"SUMIFS('1. Personalkosten'!S:S,'1. Personalkosten'!C:C,B74,'1. Personalkosten'!B:B,$G$25)+SUMIFS('2-3. Reise&Unterkunftskosten'!N:N,'2-3. Reise&Unterkunftskosten'!C:C,B74,'2-3. Reise&Unterkunftskosten'!B:B,$G$25)+SUMIFS('4. Ausrüstungskosten'!H:H,'4. Ausrüstungskosten'!C:C,B74,'4. Ausrüstungskosten'!B:B,$G$25)+SUMIFS('5. Kosten für Unteraufträge'!H:H,'5. Kosten für Unteraufträge'!C:C,B74,'5. Kosten für Unteraufträge'!B:B,$G$25)","v":0},{"$f":"SUMIF('B. Spezieller Mob. - Student'!B:B,B74,'B. Spezieller Mob. - Student'!N:N)+SUMIF('B. Spezieller Mob. - Personal'!B:B,B74,'B. Spezieller Mob. - Personal'!N:N)","v":0},0]
[null,"P50",{"$f":"SUMIFS('1. Personalkosten'!S:S,'1. Personalkosten'!C:C,B75,'1. Personalkosten'!B:B,$C$25)+SUMIFS('2-3. Reise&Unterkunftskosten'!N:N,'2-3. Reise&Unterkunftskosten'!C:C,B75,'2-3. Reise&Unterkunftskosten'!B:B,$C$25)+SUMIFS('4. Ausrüstungskosten'!H:H,'4. Ausrüstungskosten'!C:C,B75,'4. Ausrüstungskosten'!B:B,$C$25)+SUMIFS('5. Kosten für Unteraufträge'!H:H,'5. Kosten für Unteraufträge'!C:C,B75,'5. Kosten für Unteraufträge'!B:B,$C$25)","v":0},{"$f":"SUMIFS('1. Personalkosten'!S:S,'1. Personalkosten'!C:C,B75,'1. Personalkosten'!B:B,$D$25)+SUMIFS('2-3. Reise&Unterkunftskosten'!N:N,'2-3. Reise&Unterkunftskosten'!C:C,B75,'2-3. Reise&Unterkunftskosten'!B:B,$D$25)+SUMIFS('4. Ausrüstungskosten'!H:H,'4. Ausrüstungskosten'!C:C,B75,'4. Ausrüstungskosten'!B:B,$D$25)+SUMIFS('5. Kosten für Unteraufträge'!H:H,'5. Kosten für Unteraufträge'!C:C,B75,'5. Kosten für Unteraufträge'!B:B,$D$25)","v":0},{"$f":"SUMIFS('1. Personalkosten'!S:S,'1. Personalkosten'!C:C,B75,'1. Personalkosten'!B:B,$E$25)+SUMIFS('2-3. Reise&Unterkunftskosten'!N:N,'2-3. Reise&Unterkunftskosten'!C:C,B75,'2-3. Reise&Unterkunftskosten'!B:B,$E$25)+SUMIFS('4. Ausrüstungskosten'!H:H,'4. Ausrüstungskosten'!C:C,B75,'4. Ausrüstungskosten'!B:B,$E$25)+SUMIFS('5. Kosten für Unteraufträge'!H:H,'5. Kosten für Unteraufträge'!C:C,B75,'5. Kosten für Unteraufträge'!B:B,$E$25)","v":0},{"$f":"SUMIFS('1. Personalkosten'!S:S,'1. Personalkosten'!C:C,B75,'1. Personalkosten'!B:B,$B$8)+SUMIFS('2-3. Reise&Unterkunftskosten'!N:N,'2-3. Reise&Unterkunftskosten'!C:C,B75,'2-3. Reise&Unterkunftskosten'!B:B,$B$8)+SUMIFS('4. Ausrüstungskosten'!H:H,'4. Ausrüstungskosten'!C:C,B75,'4. Ausrüstungskosten'!B:B,$B$8)+SUMIFS('5. Kosten für Unteraufträge'!H:H,'5. Kosten für Unteraufträge'!C:C,B75,'5. Kosten für Unteraufträge'!B:B,$B$8)","v":0},{"$f":"SUMIFS('1. Personalkosten'!S:S,'1. Personalkosten'!C:C,B75,'1. Personalkosten'!B:B,$G$25)+SUMIFS('2-3. Reise&Unterkunftskosten'!N:N,'2-3. Reise&Unterkunftskosten'!C:C,B75,'2-3. Reise&Unterkunftskosten'!B:B,$G$25)+SUMIFS('4. Ausrüstungskosten'!H:H,'4. Ausrüstungskosten'!C:C,B75,'4. Ausrüstungskosten'!B:B,$G$25)+SUMIFS('5. Kosten für Unteraufträge'!H:H,'5. Kosten für Unteraufträge'!C:C,B75,'5. Kosten für Unteraufträge'!B:B,$G$25)","v":0},{"$f":"SUMIF('B. Spezieller Mob. - Student'!B:B,B75,'B. Spezieller Mob. - Student'!N:N)+SUMIF('B. Spezieller Mob. - Personal'!B:B,B75,'B. Spezieller Mob. - Personal'!N:N)","v":0},0]
[null,"P51",{"$f":"SUMIFS('1. Personalkosten'!S:S,'1. Personalkosten'!C:C,B76,'1. Personalkosten'!B:B,$C$25)+SUMIFS('2-3. Reise&Unterkunftskosten'!N:N,'2-3. Reise&Unterkunftskosten'!C:C,B76,'2-3. Reise&Unterkunftskosten'!B:B,$C$25)+SUMIFS('4. Ausrüstungskosten'!H:H,'4. Ausrüstungskosten'!C:C,B76,'4. Ausrüstungskosten'!B:B,$C$25)+SUMIFS('5. Kosten für Unteraufträge'!H:H,'5. Kosten für Unteraufträge'!C:C,B76,'5. Kosten für Unteraufträge'!B:B,$C$25)","v":0},{"$f":"SUMIFS('1. Personalkosten'!S:S,'1. Personalkosten'!C:C,B76,'1. Personalkosten'!B:B,$D$25)+SUMIFS('2-3. Reise&Unterkunftskosten'!N:N,'2-3. Reise&Unterkunftskosten'!C:C,B76,'2-3. Reise&Unterkunftskosten'!B:B,$D$25)+SUMIFS('4. Ausrüstungskosten'!H:H,'4. Ausrüstungskosten'!C:C,B76,'4. Ausrüstungskosten'!B:B,$D$25)+SUMIFS('5. Kosten für Unteraufträge'!H:H,'5. Kosten für Unteraufträge'!C:C,B76,'5. Kosten für Unteraufträge'!B:B,$D$25)","v":0},{"$f":"SUMIFS('1. Personalkosten'!S:S,'1. Personalkosten'!C:C,B76,'1. Personalkosten'!B:B,$E$25)+SUMIFS('2-3. Reise&Unterkunftskosten'!N:N,'2-3. Reise&Unterkunftskosten'!C:C,B76,'2-3. Reise&Unterkunftskosten'!B:B,$E$25)+SUMIFS('4. Ausrüstungskosten'!H:H,'4. Ausrüstungskosten'!C:C,B76,'4. Ausrüstungskosten'!B:B,$E$25)+SUMIFS('5. Kosten für Unteraufträge'!H:H,'5. Kosten für Unteraufträge'!C:C,B76,'5. Kosten für Unteraufträge'!B:B,$E$25)","v":0},{"$f":"SUMIFS('1. Personalkosten'!S:S,'1. Personalkosten'!C:C,B76,'1. Personalkosten'!B:B,$B$8)+SUMIFS('2-3. Reise&Unterkunftskosten'!N:N,'2-3. Reise&Unterkunftskosten'!C:C,B76,'2-3. Reise&Unterkunftskosten'!B:B,$B$8)+SUMIFS('4. Ausrüstungskosten'!H:H,'4. Ausrüstungskosten'!C:C,B76,'4. Ausrüstungskosten'!B:B,$B$8)+SUMIFS('5. Kosten für Unteraufträge'!H:H,'5. Kosten für Unteraufträge'!C:C,B76,'5. Kosten für Unteraufträge'!B:B,$B$8)","v":0},{"$f":"SUMIFS('1. Personalkosten'!S:S,'1. Personalkosten'!C:C,B76,'1. Personalkosten'!B:B,$G$25)+SUMIFS('2-3. Reise&Unterkunftskosten'!N:N,'2-3. Reise&Unterkunftskosten'!C:C,B76,'2-3. Reise&Unterkunftskosten'!B:B,$G$25)+SUMIFS('4. Ausrüstungskosten'!H:H,'4. Ausrüstungskosten'!C:C,B76,'4. Ausrüstungskosten'!B:B,$G$25)+SUMIFS('5. Kosten für Unteraufträge'!H:H,'5. Kosten für Unteraufträge'!C:C,B76,'5. Kosten für Unteraufträge'!B:B,$G$25)","v":0},{"$f":"SUMIF('B. Spezieller Mob. - Student'!B:B,B76,'B. Spezieller Mob. - Student'!N:N)+SUMIF('B. Spezieller Mob. - Personal'!B:B,B76,'B. Spezieller Mob. - Personal'!N:N)","v":0},0]
[null,"P52",{"$f":"SUMIFS('1. Personalkosten'!S:S,'1. Personalkosten'!C:C,B77,'1. Personalkosten'!B:B,$C$25)+SUMIFS('2-3. Reise&Unterkunftskosten'!N:N,'2-3. Reise&Unterkunftskosten'!C:C,B77,'2-3. Reise&Unterkunftskosten'!B:B,$C$25)+SUMIFS('4. Ausrüstungskosten'!H:H,'4. Ausrüstungskosten'!C:C,B77,'4. Ausrüstungskosten'!B:B,$C$25)+SUMIFS('5. Kosten für Unteraufträge'!H:H,'5. Kosten für Unteraufträge'!C:C,B77,'5. Kosten für Unteraufträge'!B:B,$C$25)","v":0},{"$f":"SUMIFS('1. Personalkosten'!S:S,'1. Personalkosten'!C:C,B77,'1. Personalkosten'!B:B,$D$25)+SUMIFS('2-3. Reise&Unterkunftskosten'!N:N,'2-3. Reise&Unterkunftskosten'!C:C,B77,'2-3. Reise&Unterkunftskosten'!B:B,$D$25)+SUMIFS('4. Ausrüstungskosten'!H:H,'4. Ausrüstungskosten'!C:C,B77,'4. Ausrüstungskosten'!B:B,$D$25)+SUMIFS('5. Kosten für Unteraufträge'!H:H,'5. Kosten für Unteraufträge'!C:C,B77,'5. Kosten für Unteraufträge'!B:B,$D$25)","v":0},{"$f":"SUMIFS('1. Personalkosten'!S:S,'1. Personalkosten'!C:C,B77,'1. Personalkosten'!B:B,$E$25)+SUMIFS('2-3. Reise&Unterkunftskosten'!N:N,'2-3. Reise&Unterkunftskosten'!C:C,B77,'2-3. Reise&Unterkunftskosten'!B:B,$E$25)+SUMIFS('4. Ausrüstungskosten'!H:H,'4. Ausrüstungskosten'!C:C,B77,'4. Ausrüstungskosten'!B:B,$E$25)+SUMIFS('5. Kosten für Unteraufträge'!H:H,'5. Kosten für Unteraufträge'!C:C,B77,'5. Kosten für Unteraufträge'!B:B,$E$25)","v":0},{"$f":"SUMIFS('1. Personalkosten'!S:S,'1. Personalkosten'!C:C,B77,'1. Personalkosten'!B:B,$B$8)+SUMIFS('2-3. Reise&Unterkunftskosten'!N:N,'2-3. Reise&Unterkunftskosten'!C:C,B77,'2-3. Reise&Unterkunftskosten'!B:B,$B$8)+SUMIFS('4. Ausrüstungskosten'!H:H,'4. Ausrüstungskosten'!C:C,B77,'4. Ausrüstungskosten'!B:B,$B$8)+SUMIFS('5. Kosten für Unteraufträge'!H:H,'5. Kosten für Unteraufträge'!C:C,B77,'5. Kosten für Unteraufträge'!B:B,$B$8)","v":0},{"$f":"SUMIFS('1. Personalkosten'!S:S,'1. Personalkosten'!C:C,B77,'1. Personalkosten'!B:B,$G$25)+SUMIFS('2-3. Reise&Unterkunftskosten'!N:N,'2-3. Reise&Unterkunftskosten'!C:C,B77,'2-3. Reise&Unterkunftskosten'!B:B,$G$25)+SUMIFS('4. Ausrüstungskosten'!H:H,'4. Ausrüstungskosten'!C:C,B77,'4. Ausrüstungskosten'!B:B,$G$25)+SUMIFS('5. Kosten für Unteraufträge'!H:H,'5. Kosten für Unteraufträge'!C:C,B77,'5. Kosten für Unteraufträge'!B:B,$G$25)","v":0},{"$f":"SUMIF('B. Spezieller Mob. - Student'!B:B,B77,'B. Spezieller Mob. - Student'!N:N)+SUMIF('B. Spezieller Mob. - Personal'!B:B,B77,'B. Spezieller Mob. - Personal'!N:N)","v":0},0]
[null,"P53",{"$f":"SUMIFS('1. Personalkosten'!S:S,'1. Personalkosten'!C:C,B78,'1. Personalkosten'!B:B,$C$25)+SUMIFS('2-3. Reise&Unterkunftskosten'!N:N,'2-3. Reise&Unterkunftskosten'!C:C,B78,'2-3. Reise&Unterkunftskosten'!B:B,$C$25)+SUMIFS('4. Ausrüstungskosten'!H:H,'4. Ausrüstungskosten'!C:C,B78,'4. Ausrüstungskosten'!B:B,$C$25)+SUMIFS('5. Kosten für Unteraufträge'!H:H,'5. Kosten für Unteraufträge'!C:C,B78,'5. Kosten für Unteraufträge'!B:B,$C$25)","v":0},{"$f":"SUMIFS('1. Personalkosten'!S:S,'1. Personalkosten'!C:C,B78,'1. Personalkosten'!B:B,$D$25)+SUMIFS('2-3. Reise&Unterkunftskosten'!N:N,'2-3. Reise&Unterkunftskosten'!C:C,B78,'2-3. Reise&Unterkunftskosten'!B:B,$D$25)+SUMIFS('4. Ausrüstungskosten'!H:H,'4. Ausrüstungskosten'!C:C,B78,'4. Ausrüstungskosten'!B:B,$D$25)+SUMIFS('5. Kosten für Unteraufträge'!H:H,'5. Kosten für Unteraufträge'!C:C,B78,'5. Kosten für Unteraufträge'!B:B,$D$25)","v":0},{"$f":"SUMIFS('1. Personalkosten'!S:S,'1. Personalkosten'!C:C,B78,'1. Personalkosten'!B:B,$E$25)+SUMIFS('2-3. Reise&Unterkunftskosten'!N:N,'2-3. Reise&Unterkunftskosten'!C:C,B78,'2-3. Reise&Unterkunftskosten'!B:B,$E$25)+SUMIFS('4. Ausrüstungskosten'!H:H,'4. Ausrüstungskosten'!C:C,B78,'4. Ausrüstungskosten'!B:B,$E$25)+SUMIFS('5. Kosten für Unteraufträge'!H:H,'5. Kosten für Unteraufträge'!C:C,B78,'5. Kosten für Unteraufträge'!B:B,$E$25)","v":0},{"$f":"SUMIFS('1. Personalkosten'!S:S,'1. Personalkosten'!C:C,B78,'1. Personalkosten'!B:B,$B$8)+SUMIFS('2-3. Reise&Unterkunftskosten'!N:N,'2-3. Reise&Unterkunftskosten'!C:C,B78,'2-3. Reise&Unterkunftskosten'!B:B,$B$8)+SUMIFS('4. Ausrüstungskosten'!H:H,'4. Ausrüstungskosten'!C:C,B78,'4. Ausrüstungskosten'!B:B,$B$8)+SUMIFS('5. Kosten für Unteraufträge'!H:H,'5. Kosten für Unteraufträge'!C:C,B78,'5. Kosten für Unteraufträge'!B:B,$B$8)","v":0},{"$f":"SUMIFS('1. Personalkosten'!S:S,'1. Personalkosten'!C:C,B78,'1. Personalkosten'!B:B,$G$25)+SUMIFS('2-3. Reise&Unterkunftskosten'!N:N,'2-3. Reise&Unterkunftskosten'!C:C,B78,'2-3. Reise&Unterkunftskosten'!B:B,$G$25)+SUMIFS('4. Ausrüstungskosten'!H:H,'4. Ausrüstungskosten'!C:C,B78,'4. Ausrüstungskosten'!B:B,$G$25)+SUMIFS('5. Kosten für Unteraufträge'!H:H,'5. Kosten für Unteraufträge'!C:C,B78,'5. Kosten für Unteraufträge'!B:B,$G$25)","v":0},{"$f":"SUMIF('B. Spezieller Mob. - Student'!B:B,B78,'B. Spezieller Mob. - Student'!N:N)+SUMIF('B. Spezieller Mob. - Personal'!B:B,B78,'B. Spezieller Mob. - Personal'!N:N)","v":0},0]
[null,"P54",{"$f":"SUMIFS('1. Personalkosten'!S:S,'1. Personalkosten'!C:C,B79,'1. Personalkosten'!B:B,$C$25)+SUMIFS('2-3. Reise&Unterkunftskosten'!N:N,'2-3. Reise&Unterkunftskosten'!C:C,B79,'2-3. Reise&Unterkunftskosten'!B:B,$C$25)+SUMIFS('4. Ausrüstungskosten'!H:H,'4. Ausrüstungskosten'!C:C,B79,'4. Ausrüstungskosten'!B:B,$C$25)+SUMIFS('5. Kosten für Unteraufträge'!H:H,'5. Kosten für Unteraufträge'!C:C,B79,'5. Kosten für Unteraufträge'!B:B,$C$25)","v":0},{"$f":"SUMIFS('1. Personalkosten'!S:S,'1. Personalkosten'!C:C,B79,'1. Personalkosten'!B:B,$D$25)+SUMIFS('2-3. Reise&Unterkunftskosten'!N:N,'2-3. Reise&Unterkunftskosten'!C:C,B79,'2-3. Reise&Unterkunftskosten'!B:B,$D$25)+SUMIFS('4. Ausrüstungskosten'!H:H,'4. Ausrüstungskosten'!C:C,B79,'4. Ausrüstungskosten'!B:B,$D$25)+SUMIFS('5. Kosten für Unteraufträge'!H:H,'5. Kosten für Unteraufträge'!C:C,B79,'5. Kosten für Unteraufträge'!B:B,$D$25)","v":0},{"$f":"SUMIFS('1. Personalkosten'!S:S,'1. Personalkosten'!C:C,B79,'1. Personalkosten'!B:B,$E$25)+SUMIFS('2-3. Reise&Unterkunftskosten'!N:N,'2-3. Reise&Unterkunftskosten'!C:C,B79,'2-3. Reise&Unterkunftskosten'!B:B,$E$25)+SUMIFS('4. Ausrüstungskosten'!H:H,'4. Ausrüstungskosten'!C:C,B79,'4. Ausrüstungskosten'!B:B,$E$25)+SUMIFS('5. Kosten für Unteraufträge'!H:H,'5. Kosten für Unteraufträge'!C:C,B79,'5. Kosten für Unteraufträge'!B:B,$E$25)","v":0},{"$f":"SUMIFS('1. Personalkosten'!S:S,'1. Personalkosten'!C:C,B79,'1. Personalkosten'!B:B,$B$8)+SUMIFS('2-3. Reise&Unterkunftskosten'!N:N,'2-3. Reise&Unterkunftskosten'!C:C,B79,'2-3. Reise&Unterkunftskosten'!B:B,$B$8)+SUMIFS('4. Ausrüstungskosten'!H:H,'4. Ausrüstungskosten'!C:C,B79,'4. Ausrüstungskosten'!B:B,$B$8)+SUMIFS('5. Kosten für Unteraufträge'!H:H,'5. Kosten für Unteraufträge'!C:C,B79,'5. Kosten für Unteraufträge'!B:B,$B$8)","v":0},{"$f":"SUMIFS('1. Personalkosten'!S:S,'1. Personalkosten'!C:C,B79,'1. Personalkosten'!B:B,$G$25)+SUMIFS('2-3. Reise&Unterkunftskosten'!N:N,'2-3. Reise&Unterkunftskosten'!C:C,B79,'2-3. Reise&Unterkunftskosten'!B:B,$G$25)+SUMIFS('4. Ausrüstungskosten'!H:H,'4. Ausrüstungskosten'!C:C,B79,'4. Ausrüstungskosten'!B:B,$G$25)+SUMIFS('5. Kosten für Unteraufträge'!H:H,'5. Kosten für Unteraufträge'!C:C,B79,'5. Kosten für Unteraufträge'!B:B,$G$25)","v":0},{"$f":"SUMIF('B. Spezieller Mob. - Student'!B:B,B79,'B. Spezieller Mob. - Student'!N:N)+SUMIF('B. Spezieller Mob. - Personal'!B:B,B79,'B. Spezieller Mob. - Personal'!N:N)","v":0},0]
[null,"P55",{"$f":"SUMIFS('1. Personalkosten'!S:S,'1. Personalkosten'!C:C,B80,'1. Personalkosten'!B:B,$C$25)+SUMIFS('2-3. Reise&Unterkunftskosten'!N:N,'2-3. Reise&Unterkunftskosten'!C:C,B80,'2-3. Reise&Unterkunftskosten'!B:B,$C$25)+SUMIFS('4. Ausrüstungskosten'!H:H,'4. Ausrüstungskosten'!C:C,B80,'4. Ausrüstungskosten'!B:B,$C$25)+SUMIFS('5. Kosten für Unteraufträge'!H:H,'5. Kosten für Unteraufträge'!C:C,B80,'5. Kosten für Unteraufträge'!B:B,$C$25)","v":0},{"$f":"SUMIFS('1. Personalkosten'!S:S,'1. Personalkosten'!C:C,B80,'1. Personalkosten'!B:B,$D$25)+SUMIFS('2-3. Reise&Unterkunftskosten'!N:N,'2-3. Reise&Unterkunftskosten'!C:C,B80,'2-3. Reise&Unterkunftskosten'!B:B,$D$25)+SUMIFS('4. Ausrüstungskosten'!H:H,'4. Ausrüstungskosten'!C:C,B80,'4. Ausrüstungskosten'!B:B,$D$25)+SUMIFS('5. Kosten für Unteraufträge'!H:H,'5. Kosten für Unteraufträge'!C:C,B80,'5. Kosten für Unteraufträge'!B:B,$D$25)","v":0},{"$f":"SUMIFS('1. Personalkosten'!S:S,'1. Personalkosten'!C:C,B80,'1. Personalkosten'!B:B,$E$25)+SUMIFS('2-3. Reise&Unterkunftskosten'!N:N,'2-3. Reise&Unterkunftskosten'!C:C,B80,'2-3. Reise&Unterkunftskosten'!B:B,$E$25)+SUMIFS('4. Ausrüstungskosten'!H:H,'4. Ausrüstungskosten'!C:C,B80,'4. Ausrüstungskosten'!B:B,$E$25)+SUMIFS('5. Kosten für Unteraufträge'!H:H,'5. Kosten für Unteraufträge'!C:C,B80,'5. Kosten für Unteraufträge'!B:B,$E$25)","v":0},{"$f":"SUMIFS('1. Personalkosten'!S:S,'1. Personalkosten'!C:C,B80,'1. Personalkosten'!B:B,$B$8)+SUMIFS('2-3. Reise&Unterkunftskosten'!N:N,'2-3. Reise&Unterkunftskosten'!C:C,B80,'2-3. Reise&Unterkunftskosten'!B:B,$B$8)+SUMIFS('4. Ausrüstungskosten'!H:H,'4. Ausrüstungskosten'!C:C,B80,'4. Ausrüstungskosten'!B:B,$B$8)+SUMIFS('5. Kosten für Unteraufträge'!H:H,'5. Kosten für Unteraufträge'!C:C,B80,'5. Kosten für Unteraufträge'!B:B,$B$8)","v":0},{"$f":"SUMIFS('1. Personalkosten'!S:S,'1. Personalkosten'!C:C,B80,'1. Personalkosten'!B:B,$G$25)+SUMIFS('2-3. Reise&Unterkunftskosten'!N:N,'2-3. Reise&Unterkunftskosten'!C:C,B80,'2-3. Reise&Unterkunftskosten'!B:B,$G$25)+SUMIFS('4. Ausrüstungskosten'!H:H,'4. Ausrüstungskosten'!C:C,B80,'4. Ausrüstungskosten'!B:B,$G$25)+SUMIFS('5. Kosten für Unteraufträge'!H:H,'5. Kosten für Unteraufträge'!C:C,B80,'5. Kosten für Unteraufträge'!B:B,$G$25)","v":0},{"$f":"SUMIF('B. Spezieller Mob. - Student'!B:B,B80,'B. Spezieller Mob. - Student'!N:N)+SUMIF('B. Spezieller Mob. - Personal'!B:B,B80,'B. Spezieller Mob. - Personal'!N:N)","v":0},0]
[null,"Gesamtbetrag",{"$f":"SUM(C26:C80)","v":0},{"$f":"SUM(D26:D80)","v":0},0,0,0,0,{"$f":"SUM(C81:H81)","v":0}]

{"sheet":"Rates","index":9,"n_rows":182,"n_cols":17,"rows_kept":182,"cut":false,"hidden":true,"merged":[[1,4,1,7],[1,8,1,11]]}
[]
[null,null,null,null,"Staff Costs",null,null,null,"SMS"]
[null,null,"Land","PR/PA","Manager","Lehrkraft/Ausbilder/Forscher","Techniker","Verwaltungskraft","Student von Partnerländer","Student von Programmländer","Personal von Partnerländer","Personal von Programmländer",null,"Country\nSMS",null,"Distance","Travel \nCosts\n(EUR)"]
[null,1,"Belgien","Programmländer",280,214,162,131,800,0,140,0,null,"Belgien",null,"0 KM und 9 KM",0]
[null,2,"Bulgarien","Programmländer",88,74,55,39,750,0,140,0,null,"Bulgarien",null,"10 KM und 99 KM",20]
[null,3,"Dänemark","Programmländer",294,241,190,157,850,0,160,0,null,"Dänemark",null,"100 KM und 499 KM",180]
[null,4,"Deutschland","Programmländer",280,214,162,131,800,0,120,0,null,"Deutschland",null,"500 KM und 1999 KM",275]
[null,5,"Ehemalige jugoslawische Republik Mazedonien","Programmländer",88,74,55,39,750,0,120,0,null,"Ehemalige jugoslawische Republik Mazedonien",null,"2000 KM und 2999 KM",360]
[null,6,"Estland","Programmländer",88,74,55,39,750,0,100,0,null,"Estland",null,"3000 KM und 3999 KM",530]
[null,7,"Finnland","Programmländer",280,214,162,131,850,0,140,0,null,"Finnland",null,"4000 KM und 7999 KM",820]
[null,8,"Frankreich","Programmländer",280,214,162,131,850,0,140,0,null,"Frankreich",null,"8000 KM und mehr",1100]
[null,9,"Griechenland","Programmländer",164,137,102,78,800,0,140,0,null,"Griechenland"]
[null,10,"Irland","Programmländer",294,241,190,157,850,0,160,0,null,"Irland",null,"Work Package"]
[null,11,"Island","Programmländer",280,214,162,131,800,0,140,0,null,"Island",null,"Vorbereitung"]
[null,12,"Italien","Programmländer",280,214,162,131,850,0,140,0,null,"Italien",null,"Entwicklung"]
[null,13,"Kroatien","Programmländer",88,74,55,39,800,0,100,0,null,"Kroatien",null,"Qualitätssicherungsplan"]
[null,14,"Lettland","Programmländer",88,74,55,39,750,0,120,0,null,"Lettland",null,"Verbeitung und Nutzung der Ergebnisse"]
[null,15,"Liechtenstein","Programmländer",294,241,190,157,850,0,140,0,null,"Liechtenstein",null,"Verwaltung"]
[null,16,"Litauen","Programmländer",88,74,55,39,750,0,100,0,null,"Litauen"]
[null,17,"Luxemburg","Programmländer",294,241,190,157,800,0,140,0,null,"Luxemburg",null,"Action Type"]
[null,18,"Malta","Programmländer",164,137,102,78,750,0,120,0,null,"Malta",null,"Algemeen Projekt"]
[null,19,"Niederlande","Programmländer",294,241,190,157,800,0,160,0,null,"Niederlande",null,"Structurele Projekt"]
[null,20,"Norwegen","Programmländer",294,241,190,157,850,0,140,0,null,"Norwegen"]
[null,21,"Österreich","Programmländer",294,241,190,157,850,0,140,0,null,"Österreich",null,"Duration"]
[null,22,"Polen","Programmländer",88,74,55,39,750,0,140,0,null,"Polen",null,24]
[null,23,"Portugal","Programmländer",164,137,102,78,800,0,120,0,null,"Portugal",null,36]
[null,24,"Rumänien","Programmländer",88,74,55,39,750,0,140,0,null,"Rumänien"]
[null,25,"Schweden","Programmländer",294,241,190,157,850,0,160,0,null,"Schweden",null,"Category 2"]
[null,26,"Slowakei","Programmländer",88,74,55,39,750,0,120,0,null,"Slowakei",null,"Student"]
[null,27,"Slowenien","Programmländer",164,137,102,78,800,0,100,0,null,"Slowenien",null,"Personal"]
[null,28,"Spanien","Programmländer",164,137,102,78,800,0,120,0,null,"Spanien"]
[null,29,"Tschechische Republik","Programmländer",164,137,102,78,800,0,140,0,null,"Tschechische Republik"]
[null,30,"Türkei","Programmländer",88,74,55,39,800,0,140,0,null,"Türkei"]
[null,31,"Ungarn","Programmländer",88,74,55,39,750,0,140,0,null,"Ungarn"]
[null,32,"Vereinigtes Königreich","Programmländer",280,214,162,131,850,0,160,0,null,"Vereinigtes Königreich"]
[null,33,"Zypern","Programmländer",164,137,102,78,800,0,140,0,null,"Zypern"]
[null,34,"Afghanistan","Partnerländer",77,57,40,32,0,0,0,0,null,"Ägypten"]
[null,35,"Ägypten","Partnerländer",47,33,22,17,750,650,100,160,null,"Albanien"]
[null,36,"Albanien","Partnerländer",108,80,57,45,750,650,100,160,null,"Algerien"]
[null,37,"Algerien","Partnerländer",47,33,22,17,750,650,100,160,null,"Armenien"]
[null,38,"Angola","Partnerländer",108,80,57,45,0,0,0,0,null,"Aserbaidschan"]
[null,39,"Antigua und Barbuda","Partnerländer",108,80,57,45,0,0,0,0,null,"Belarus"]
[null,40,"Äquatorial Guinea","Partnerländer",47,33,22,17,0,0,0,0,null,"Bosnien und Herzegowina"]
[null,41,"Argentinien","Partnerländer",108,80,57,45,0,0,0,0,null,"Georgien"]
[null,42,"Armenien","Partnerländer",47,33,22,17,750,650,100,160,null,"Israel"]
[null,43,"Aserbaidschan","Partnerländer",77,57,40,32,750,650,100,160,null,"Jordanien"]
[null,44,"Äthiopien","Partnerländer",47,33,22,17,0,0,0,0,null,"Kosovo"]
[null,45,"Bahamas","Partnerländer",77,57,40,32,0,0,0,0,null,"Libanon"]
[null,46,"Bangladesch","Partnerländer",47,33,22,17,0,0,0,0,null,"Libyen"]
[null,47,"Barbados","Partnerländer",108,80,57,45,0,0,0,0,null,"Marokko"]
[null,48,"Belarus","Partnerländer",47,33,22,17,750,650,100,160,null,"Moldau"]
[null,49,"Belize","Partnerländer",47,33,22,17,0,0,0,0,null,"Montenegro"]
[null,50,"Benin","Partnerländer",47,33,22,17,0,0,0,0,null,"Palästina"]
[null,51,"Bhutan","Partnerländer",47,33,22,17,0,0,0,0,null,"Serbien"]
[null,52,"Bolivien","Partnerländer",77,57,40,32,0,0,0,0,null,"Syrien"]
[null,53,"Bosnien und Herzegowina","Partnerländer",108,80,57,45,750,650,100,160,null,"Tunesien"]
[null,54,"Botswana","Partnerländer",47,33,22,17,0,0,0,0,null,"Ukraine"]
[null,55,"Brasilien","Partnerländer",108,80,57,45,0,0,0,0]
[null,56,"Burkina Faso","Partnerländer",77,57,40,32,0,0,0,0]
[null,57,"Burundi","Partnerländer",47,33,22,17,0,0,0,0]
[null,58,"Cabo Verde","Partnerländer",47,33,22,17,0,0,0,0]
[null,59,"Chad","Partnerländer",47,33,22,17,0,0,0,0]
[null,60,"Chile","Partnerländer",108,80,57,45,0,0,0,0]
[null,61,"China","Partnerländer",77,57,40,32,0,0,0,0]
[null,62,"Congo (Brazzaville)","Partnerländer",77,57,40,32,0,0,0,0]
[null,63,"Congo (Kinshasa)","Partnerländer",47,33,22,17,0,0,0,0]
[null,64,"Cookinseln","Partnerländer",108,80,57,45,0,0,0,0]
[null,65,"Costa Rica","Partnerländer",77,57,40,32,0,0,0,0]
[null,66,"Côte d’Ivoire","Partnerländer",108,80,57,45,0,0,0,0]
[null,67,"Dominica","Partnerländer",108,80,57,45,0,0,0,0]
[null,68,"Dominikanische Republik","Partnerländer",77,57,40,32,0,0,0,0]
[null,69,"Dschibuti","Partnerländer",77,57,40,32,0,0,0,0]
[null,70,"DV Korea","Partnerländer",47,33,22,17,0,0,0,0]
[null,71,"Ecuador","Partnerländer",77,57,40,32,0,0,0,0]
[null,72,"El Salvador","Partnerländer",77,57,40,32,0,0,0,0]
[null,73,"Eritrea","Partnerländer",47,33,22,17,0,0,0,0]
[null,74,"Fidschi","Partnerländer",47,33,22,17,0,0,0,0]
[null,75,"Gabun","Partnerländer",108,80,57,45,0,0,0,0]
[null,76,"Gambia","Partnerländer",47,33,22,17,0,0,0,0]
[null,77,"Georgien","Partnerländer",77,57,40,32,750,650,100,160]
[null,78,"Ghana","Partnerländer",47,33,22,17,0,0,0,0]
[null,79,"Grenada","Partnerländer",108,80,57,45,0,0,0,0]
[null,80,"Guatemala","Partnerländer",77,57,40,32,0,0,0,0]
[null,81,"Guinea-Bissau","Partnerländer",77,57,40,32,0,0,0,0]
[null,82,"Guyana","Partnerländer",47,33,22,17,0,0,0,0]
[null,83,"Haiti","Partnerländer",77,57,40,32,0,0,0,0]
[null,84,"Honduras","Partnerländer",47,33,22,17,0,0,0,0]
[null,85,"Indien","Partnerländer",47,33,22,17,0,0,0,0]
[null,86,"Indonesien","Partnerländer",47,33,22,17,0,0,0,0]
[null,87,"Irak","Partnerländer",77,57,40,32,0,0,0,0]
[null,88,"Iran","Partnerländer",77,57,40,32,0,0,0,0]
[null,89,"Israel","Partnerländer",166,132,102,92,750,650,100,160]
[null,90,"Jamaica","Partnerländer",77,57,40,32,0,0,0,0]
[null,91,"Jemen","Partnerländer",47,33,22,17,0,0,0,0]
[null,92,"Jordanien","Partnerländer",77,57,40,32,750,650,100,160]
[null,93,"Kambodscha","Partnerländer",47,33,22,17,0,0,0,0]
[null,94,"Kamerun","Partnerländer",77,57,40,32,0,0,0,0]
[null,95,"Kasachstan","Partnerländer",77,57,40,32,0,0,0,0]
[null,96,"Kenia","Partnerländer",77,57,40,32,0,0,0,0]
[null,97,"Kirgisistan","Partnerländer",47,33,22,17,0,0,0,0]
[null,98,"Kiribati","Partnerländer",47,33,22,17,0,0,0,0]
[null,99,"Kolumbien","Partnerländer",108,80,57,45,0,0,0,0]
[null,100,"Komoren","Partnerländer",108,80,57,45,0,0,0,0]
[null,101,"Kosovo","Partnerländer",108,80,57,45,750,650,100,160]
[null,102,"Kuba","Partnerländer",47,33,22,17,0,0,0,0]
[null,103,"Laos","Partnerländer",47,33,22,17,0,0,0,0]
[null,104,"Lesotho","Partnerländer",47,33,22,17,0,0,0,0]
[null,105,"Libanon","Partnerländer",108,80,57,45,750,650,100,160]
[null,106,"Liberia","Partnerländer",47,33,22,17,0,0,0,0]
[null,107,"Libyen","Partnerländer",108,80,57,45,750,650,100,160]
[null,108,"Madagaskar","Partnerländer",47,33,22,17,0,0,0,0]
[null,109,"Malawi","Partnerländer",47,33,22,17,0,0,0,0]
[null,110,"Malaysia","Partnerländer",47,33,22,17,0,0,0,0]
[null,111,"Malediven","Partnerländer",47,33,22,17,0,0,0,0]
[null,112,"Mali","Partnerländer",47,33,22,17,0,0,0,0]
[null,113,"Marokko","Partnerländer",77,57,40,32,750,650,100,160]
[null,114,"Marshallinseln","Partnerländer",47,33,22,17,0,0,0,0]
[null,115,"Mauretanien","Partnerländer",47,33,22,17,0,0,0,0]
[null,116,"Mauritius","Partnerländer",47,33,22,17,0,0,0,0]
[null,117,"Mexiko","Partnerländer",108,80,57,45,0,0,0,0]
[null,118,"Mikronesien","Partnerländer",77,57,40,32,0,0,0,0]
[null,119,"Moldau","Partnerländer",47,33,22,17,750,650,100,160]
[null,120,"Mongolei","Partnerländer",47,33,22,17,0,0,0,0]
[null,121,"Montenegro","Partnerländer",108,80,57,45,750,650,100,160]
[null,122,"Mosambik","Partnerländer",77,57,40,32,0,0,0,0]
[null,123,"Myanmar","Partnerländer",47,33,22,17,0,0,0,0]
[null,124,"Namibia","Partnerländer",77,57,40,32,0,0,0,0]
[null,125,"Nauru","Partnerländer",47,33,22,17,0,0,0,0]
[null,126,"Nepal","Partnerländer",47,33,22,17,0,0,0,0]
[null,127,"Nicaragua","Partnerländer",47,33,22,17,0,0,0,0]
[null,128,"Niger","Partnerländer",47,33,22,17,0,0,0,0]
[null,129,"Nigeria","Partnerländer",108,80,57,45,0,0,0,0]
[null,130,"Niue","Partnerländer",47,33,22,17,0,0,0,0]
[null,131,"Osttimor","Partnerländer",47,33,22,17,0,0,0,0]
[null,132,"Pakistan","Partnerländer",47,33,22,17,0,0,0,0]
[null,133,"Palästina","Partnerländer",77,57,40,32,750,650,100,160]
[null,134,"Palau","Partnerländer",47,33,22,17,0,0,0,0]
[null,135,"Panama","Partnerländer",77,57,40,32,0,0,0,0]
[null,136,"Papua Neuguinea","Partnerländer",77,57,40,32,0,0,0,0]
[null,137,"Paraguay","Partnerländer",77,57,40,32,0,0,0,0]
[null,138,"Peru","Partnerländer",108,80,57,45,0,0,0,0]
[null,139,"Philippinen","Partnerländer",47,33,22,17,0,0,0,0]
[null,140,"Republik Guinea","Partnerländer",47,33,22,17,0,0,0,0]
[null,141,"Ruanda","Partnerländer",47,33,22,17,0,0,0,0]
[null,142,"Russlands","Partnerländer",77,57,40,32,0,0,0,0]
[null,143,"Salomonen","Partnerländer",47,33,22,17,0,0,0,0]
[null,144,"Sambia","Partnerländer",108,80,57,45,0,0,0,0]
[null,145,"Samoa","Partnerländer",47,33,22,17,0,0,0,0]
[null,146,"São Tomé und Príncipe","Partnerländer",108,80,57,45,0,0,0,0]
[null,147,"Senegal","Partnerländer",77,57,40,32,0,0,0,0]
[null,148,"Serbien","Partnerländer",108,80,57,45,750,650,100,160]
[null,149,"Seychellen","Partnerländer",108,80,57,45,0,0,0,0]
[null,150,"Sierra Leone","Partnerländer",47,33,22,17,0,0,0,0]
[null,151,"Simbabwe","Partnerländer",108,80,57,45,0,0,0,0]
[null,152,"Somalia","Partnerländer",47,33,22,17,0,0,0,0]
[null,153,"Sri Lanka","Partnerländer",47,33,22,17,0,0,0,0]
[null,154,"St. Kitts und Nevis","Partnerländer",108,80,57,45,0,0,0,0]
[null,155,"St. Lucia","Partnerländer",108,80,57,45,0,0,0,0]
[null,156,"St. Vincent und die Grenadinen","Partnerländer",108,80,57,45,0,0,0,0]
[null,157,"Südafrika","Partnerländer",77,57,40,32,0,0,0,0]
[null,158,"Sudan","Partnerländer",47,33,22,17,0,0,0,0]
[null,159,"Südsudan","Partnerländer",47,33,22,17,0,0,0,0]
[null,160,"Suriname","Partnerländer",77,57,40,32,0,0,0,0]
[null,161,"Swasiland","Partnerländer",77,57,40,32,0,0,0,0]
[null,162,"Syrien","Partnerländer",47,33,22,17,750,650,100,160]
[null,163,"Tadschikistan","Partnerländer",47,33,22,17,0,0,0,0]
[null,164,"Tansania","Partnerländer",47,33,22,17,0,0,0,0]
[null,165,"Thailand","Partnerländer",108,80,57,45,0,0,0,0]
[null,166,"Togo","Partnerländer",47,33,22,17,0,0,0,0]
[null,167,"Tonga","Partnerländer",47,33,22,17,0,0,0,0]
[null,168,"Trinidad und Tobago","Partnerländer",77,57,40,32,0,0,0,0]
[null,169,"Tunesien","Partnerländer",47,33,22,17,750,650,100,160]
[null,170,"Turkmenistan","Partnerländer",47,33,22,17,0,0,0,0]
[null,171,"Tuvalu","Partnerländer",47,33,22,17,0,0,0,0]
[null,172,"Uganda","Partnerländer",47,33,22,17,0,0,0,0]
[null,173,"Ukraine","Partnerländer",108,80,57,45,750,650,100,160]
[null,174,"Uruguay","Partnerländer",108,80,57,45,0,0,0,0]
[null,175,"Usbekistan","Partnerländer",47,33,22,17,0,0,0,0]
[null,176,"Vanuatu","Partnerländer",77,57,40,32,0,0,0,0]
[null,177,"Venezuela","Partnerländer",108,80,57,45,0,0,0,0]
[null,178,"Vietnam","Partnerländer",47,33,22,17,0,0,0,0]
[null,179,"Zentral afrikanische Republik","Partnerländer",47,33,22,17,0,0,0,0]

{"sheet":"Kosten und Finanzierung","index":10,"n_rows":186,"n_cols":28,"rows_kept":186,"cut":false,"hidden":false,"merged":[[6,15,6,16],[6,18,6,20],[4,1,5,6],[4,8,5,9],[4,11,5,13],[4,15,5,16],[4,18,5,20],[4,22,4,27],[5,22,5,27],[0,1,0,27],[3,1,3,6],[3,8,3,9],[3,11,3,13],[3,15,3,16],[3,18,3,20],[3,22,3,27],[2,2,2,7],[1,2,1,7]]}
[null,"KOSTEN JE EINHEIT UND ZUSAMMENFASSUNG DER REGELN FÜR DIE FINANZIERUNG VON GEMEINSAMEN UND STRUKTURELLEN PROJEKTEN ZUM KAPAZITÄTSAUFBAU\n\nNachstehend finden Sie die Kosten je Leistungseinheit dieser Datei für die Berechnung der Finanzhilfe.\nIm Erasmus+ Programmleitfaden 2017* finden Sie einen vollständigen Überblick über die Finanzierungsvorschriften für die gemeinsamen und strukturellen Projekte zum Kapazitätsaufbau im Hochschulbereich (Teil B und Anhang 1)."]
[null,"* Web-Link zum Erasmus+ Programmleitfaden 2017: ","http://ec.europa.eu/programmes/erasmus-plus/resources_en"]
[null,"* Web-Link zur Aufforderung zur Einreichung von Vorschlägen, Antragsformulare, Anhänge und Leitlinien: ","http://eur-lex.europa.eu/legal-content/EN/TXT/?uri=OJ:JOC_2016_386_R_0009"]
[null,"A.1 Personalkosten",null,null,null,null,null,null,"A.2 & B Reisekosten",null,null,"A. 3 Unterkunftskosten",null,null,null,"A.4 Ausrüstung",null,null,"A.5 Vergabe von Unteraufträgen",null,null,null,"B - Spezieller Mobilitätsbereich"]
[null,"Kosten je Einheit\n\nBeitrag zu den Kosten des Personals, das Aufgaben durchführt, die für die Erreichung der Projektziele direkt erforderlich sind.\n\nVoraussetzung: die Antragsteller müssen Typ und Umfang der für die Durchführung der vorgeschlagenen Aktivitäten bzw. der zur Erzielung der vorgesehenen Ergebnisse benötigten Unterstützung begründen. Der Beitrag wird unter der Bedingung gewährt, dass das Gehalt für dieselbe Aufgabe nur einmal entschädigt wird.",null,null,null,null,null,null,"Kosten je Einheit je nach Entfernung und pro Teilnehmer.\n\nDie Entfernungen müssen mit dem Entfernungsrechner der Kommission ermittelt werden. \n\nDer Antragsteller muss die Entfernung der einfachen Strecke angeben, damit die Höhe der EU-Finanzhilfe für die Reise hin und zurück berechnet werden kann.",null,null,"Kosten für Aufenthalt, Unterbringung, lokale und öffentliche Transportmittel wie Bus und Taxi, persönliche oder freiwillige Krankenversicherung.\n\nKosten je Einheit je nach Dauer des Aufenthalts der Teilnehmer:\n\nPersonal: \n120 EUR/tag von 1. Tag bis zum 14\n70 EUR/tag von 15 Tag bis zum 60\n50 EUR/tag von 61 Tag bis zum 90\n\nStudent: \n55 EUR/tag von 1. Tag bis zum 14\n40 EUR/tag von 15 Tag bis zum 90",null,null,null,"Beitrag zum Erwerb der Ausrüstung, die für die Durchführung des Projekts erforderlich ist. Unterstützung wird nur für Ausrüstung gewährt, die zugunsten von Hochschuleinrichtungen in Partnerländern beschafft wird.\n\nVoraussetzung: Der Antrag auf finanzielle Förderung zur Deckung dieser Kosten muss auf dem Antragsformular begründet werden.",null,null,"Unterstützung für die Kosten im Rahmen der Vergabe von Unteraufträgen, die für die Durchführung des Projektes erforderlich ist, insbesondere Kosten für obligatorische Finanzprüfungen (Prüfbescheinigung) und externe Verfahren zur Qualitätssicherung.\n\nDie Vergabe von Unteraufträgen für Aufgaben im Rahmen des Projektmanagement ist nicht förderfähig.        \n\nDie Vergabe von Unteraufträgen an externe Organe sollte nur ausnahmsweise erfolgen. Die spezifischen Kompetenzen und insbesondere die Erfahrung, die zur Erreichung der Projektziele benötigt werden, sollten aus dem Konsortium bezogen werden und die Zusammenstellung desselben bedingen.",null,null,null,"Reisekosten: beitrag zu den Reisekosten der am Projekt beteiligten Studierenden und des Personals, von ihrem Herkunftsort zum Ort der jeweiligen Aktivität und zurück (einschließlich Visagebühren und eine diesbezügliche obligatorische Versicherung, Reiseversicherung und gerechtfertigte Stornierungskosten).\n\nDie Aktivitäten und die damit verbundenen Reise müssen in den am Projekt beteiligten Ländern durchgeführt werden. Alle Ausnahmen von dieser Regel erfordern die Genehmigung der Agentur. Eine detaillierte Liste der förderfähigen Aktivitäten ist in Anhang I dieses Leitfadens bereitgestellt.\n\n\nAufenthaltskosten: Kosten je Einheit je nach Dauer des Aufenthalts pro Teilnehmer.\nKosten für Aufenthalt, Unterbringung, lokale und öffentliche Transportmittel wie Bus und Taxi, persönliche oder freiwillige Krankenversicherung. Je nach Dauer des Aufenthalts pro Teilnehmer."]
[null,null,null,null,null,null,null,null,null,null,null,null,null,null,null,null,null,null,null,null,null,null,"Aufenthaltskosten für den speziellen Mobilitätsbereich"]
[null,"Land","PR/PA","Manager","Lehrkraft/Ausbilder/Forscher","Techniker","Verwaltungskraft",null,"Entfernung","Reisekosten\n(EUR)",null,"Anzahl von Tagen","Student","Personal",null,"100% der förderfähigen Kosten\nMax. 30% der gesamten Finanzhilfe",null,null,"100% der förderfähigen Kosten\nMax. 10% der gesamten Finanzhilfe",null,null,null,"Land","PR/PA","Student von Partnerländer","Student von Programmländer","Personal von Partnerländer","Personal von Programmländer"]
[null,{"$f":"Rates!C4","v":"Belgien"},{"$f":"Rates!D4","v":"Programmländer"},{"$f":"Rates!E4","v":280},{"$f":"Rates!F4","v":214},{"$f":"Rates!G4","v":162},{"$f":"Rates!H4","v":131},null,{"$f":"Rates!P4","v":"0 KM und 9 KM"},{"$f":"Rates!Q4","v":0},null,1,{"$f":"L8*55","v":55},{"$f":"L8*120","v":120},null,null,null,null,null,null,null,null,{"$f":"Rates!N4","v":"Belgien"},{"$f":"VLOOKUP(W8,Rates!$C$4:$L$182,2,FALSE)","v":"Programmländer"},{"$f":"VLOOKUP(W8,Rates!$C$4:$L$182,7,FALSE)","v":800},{"$f":"VLOOKUP(W8,Rates!$C$4:$L$182,8,FALSE)","v":0},{"$f":"VLOOKUP(W8,Rates!$C$4:$L$182,9,FALSE)","v":140},{"$f":"VLOOKUP(W8,Rates!$C$4:$L$182,10,FALSE)","v":0}]
[null,{"$f":"Rates!C5","v":"Bulgarien"},{"$f":"Rates!D5","v":"Programmländer"},{"$f":"Rates!E5","v":88},{"$f":"Rates!F5","v":74},{"$f":"Rates!G5","v":55},{"$f":"Rates!H5","v":39},null,{"$f":"Rates!P5","v":"10 KM und 99 KM"},{"$f":"Rates!Q5","v":20},null,2,{"$f":"L9*55","v":110},{"$f":"L9*120","v":240},null,null,null,null,null,null,null,null,{"$f":"Rates!N5","v":"Bulgarien"},{"$f":"VLOOKUP(W9,Rates!$C$4:$L$182,2,FALSE)","v":"Programmländer"},{"$f":"VLOOKUP(W9,Rates!$C$4:$L$182,7,FALSE)","v":750},{"$f":"VLOOKUP(W9,Rates!$C$4:$L$182,8,FALSE)","v":0},{"$f":"VLOOKUP(W9,Rates!$C$4:$L$182,9,FALSE)","v":140},{"$f":"VLOOKUP(W9,Rates!$C$4:$L$182,10,FALSE)","v":0}]
[null,{"$f":"Rates!C6","v":"Dänemark"},{"$f":"Rates!D6","v":"Programmländer"},{"$f":"Rates!E6","v":294},{"$f":"Rates!F6","v":241},{"$f":"Rates!G6","v":190},{"$f":"Rates!H6","v":157},null,{"$f":"Rates!P6","v":"100 KM und 499 KM"},{"$f":"Rates!Q6","v":180},null,3,165,360,null,null,null,null,null,null,null,null,{"$f":"Rates!N6","v":"Dänemark"},{"$f":"VLOOKUP(W10,Rates!$C$4:$L$182,2,FALSE)","v":"Programmländer"},{"$f":"VLOOKUP(W10,Rates!$C$4:$L$182,7,FALSE)","v":850},{"$f":"VLOOKUP(W10,Rates!$C$4:$L$182,8,FALSE)","v":0},{"$f":"VLOOKUP(W10,Rates!$C$4:$L$182,9,FALSE)","v":160},{"$f":"VLOOKUP(W10,Rates!$C$4:$L$182,10,FALSE)","v":0}]
[null,{"$f":"Rates!C7","v":"Deutschland"},{"$f":"Rates!D7","v":"Programmländer"},{"$f":"Rates!E7","v":280},{"$f":"Rates!F7","v":214},{"$f":"Rates!G7","v":162},{"$f":"Rates!H7","v":131},null,{"$f":"Rates!P7","v":"500 KM und 1999 KM"},{"$f":"Rates!Q7","v":275},null,4,220,480,null,null,null,null,null,null,null,null,{"$f":"Rates!N7","v":"Deutschland"},{"$f":"VLOOKUP(W11,Rates!$C$4:$L$182,2,FALSE)","v":"Programmländer"},{"$f":"VLOOKUP(W11,Rates!$C$4:$L$182,7,FALSE)","v":800},{"$f":"VLOOKUP(W11,Rates!$C$4:$L$182,8,FALSE)","v":0},{"$f":"VLOOKUP(W11,Rates!$C$4:$L$182,9,FALSE)","v":120},{"$f":"VLOOKUP(W11,Rates!$C$4:$L$182,10,FALSE)","v":0}]
[null,{"$f":"Rates!C8","v":"Ehemalige jugoslawische Republik Mazedonien"},{"$f":"Rates!D8","v":"Programmländer"},{"$f":"Rates!E8","v":88},{"$f":"Rates!F8","v":74},{"$f":"Rates!G8","v":55},{"$f":"Rates!H8","v":39},null,{"$f":"Rates!P8","v":"2000 KM und 2999 KM"},{"$f":"Rates!Q8","v":360},null,5,275,600,null,null,null,null,null,null,null,null,{"$f":"Rates!N8","v":"Ehemalige jugoslawische Republik Mazedonien"},{"$f":"VLOOKUP(W12,Rates!$C$4:$L$182,2,FALSE)","v":"Programmländer"},{"$f":"VLOOKUP(W12,Rates!$C$4:$L$182,7,FALSE)","v":750},{"$f":"VLOOKUP(W12,Rates!$C$4:$L$182,8,FALSE)","v":0},{"$f":"VLOOKUP(W12,Rates!$C$4:$L$182,9,FALSE)","v":120},{"$f":"VLOOKUP(W12,Rates!$C$4:$L$182,10,FALSE)","v":0}]
[null,{"$f":"Rates!C9","v":"Estland"},{"$f":"Rates!D9","v":"Programmländer"},{"$f":"Rates!E9","v":88},{"$f":"Rates!F9","v":74},{"$f":"Rates!G9","v":55},{"$f":"Rates!H9","v":39},null,{"$f":"Rates!P9","v":"3000 KM und 3999 KM"},{"$f":"Rates!Q9","v":530},null,6,330,720,null,null,null,null,null,null,null,null,{"$f":"Rates!N9","v":"Estland"},{"$f":"VLOOKUP(W13,Rates!$C$4:$L$182,2,FALSE)","v":"Programmländer"},{"$f":"VLOOKUP(W13,Rates!$C$4:$L$182,7,FALSE)","v":750},{"$f":"VLOOKUP(W13,Rates!$C$4:$L$182,8,FALSE)","v":0},{"$f":"VLOOKUP(W13,Rates!$C$4:$L$182,9,FALSE)","v":100},{"$f":"VLOOKUP(W13,Rates!$C$4:$L$182,10,FALSE)","v":0}]
[null,{"$f":"Rates!C10","v":"Finnland"},{"$f":"Rates!D10","v":"Programmländer"},{"$f":"Rates!E10","v":280},{"$f":"Rates!F10","v":214},{"$f":"Rates!G10","v":162},{"$f":"Rates!H10","v":131},null,{"$f":"Rates!P10","v":"4000 KM und 7999 KM"},{"$f":"Rates!Q10","v":820},null,7,385,840,null,null,null,null,null,null,null,null,{"$f":"Rates!N10","v":"Finnland"},{"$f":"VLOOKUP(W14,Rates!$C$4:$L$182,2,FALSE)","v":"Programmländer"},{"$f":"VLOOKUP(W14,Rates!$C$4:$L$182,7,FALSE)","v":850},{"$f":"VLOOKUP(W14,Rates!$C$4:$L$182,8,FALSE)","v":0},{"$f":"VLOOKUP(W14,Rates!$C$4:$L$182,9,FALSE)","v":140},{"$f":"VLOOKUP(W14,Rates!$C$4:$L$182,10,FALSE)","v":0}]
[null,{"$f":"Rates!C11","v":"Frankreich"},{"$f":"Rates!D11","v":"Programmländer"},{"$f":"Rates!E11","v":280},{"$f":"Rates!F11","v":214},{"$f":"Rates!G11","v":162},{"$f":"Rates!H11","v":131},null,{"$f":"Rates!P11","v":"8000 KM und mehr"},{"$f":"Rates!Q11","v":1100},null,8,440,960,null,null,null,null,null,null,null,null,{"$f":"Rates!N11","v":"Frankreich"},{"$f":"VLOOKUP(W15,Rates!$C$4:$L$182,2,FALSE)","v":"Programmländer"},{"$f":"VLOOKUP(W15,Rates!$C$4:$L$182,7,FALSE)","v":850},{"$f":"VLOOKUP(W15,Rates!$C$4:$L$182,8,FALSE)","v":0},{"$f":"VLOOKUP(W15,Rates!$C$4:$L$182,9,FALSE)","v":140},{"$f":"VLOOKUP(W15,Rates!$C$4:$L$182,10,FALSE)","v":0}]
[null,{"$f":"Rates!C12","v":"Griechenland"},{"$f":"Rates!D12","v":"Programmländer"},{"$f":"Rates!E12","v":164},{"$f":"Rates!F12","v":137},{"$f":"Rates!G12","v":102},{"$f":"Rates!H12","v":78},null,null,null,null,9,495,1080,null,null,null,null,null,null,null,null,{"$f":"Rates!N12","v":"Griechenland"},{"$f":"VLOOKUP(W16,Rates!$C$4:$L$182,2,FALSE)","v":"Programmländer"},{"$f":"VLOOKUP(W16,Rates!$C$4:$L$182,7,FALSE)","v":800},{"$f":"VLOOKUP(W16,Rates!$C$4:$L$182,8,FALSE)","v":0},{"$f":"VLOOKUP(W16,Rates!$C$4:$L$182,9,FALSE)","v":140},{"$f":"VLOOKUP(W16,Rates!$C$4:$L$182,10,FALSE)","v":0}]
[null,{"$f":"Rates!C13","v":"Irland"},{"$f":"Rates!D13","v":"Programmländer"},{"$f":"Rates!E13","v":294},{"$f":"Rates!F13","v":241},{"$f":"Rates!G13","v":190},{"$f":"Rates!H13","v":157},null,null,null,null,10,550,1200,null,null,null,null,null,null,null,null,{"$f":"Rates!N13","v":"Irland"},{"$f":"VLOOKUP(W17,Rates!$C$4:$L$182,2,FALSE)","v":"Programmländer"},{"$f":"VLOOKUP(W17,Rates!$C$4:$L$182,7,FALSE)","v":850},{"$f":"VLOOKUP(W17,Rates!$C$4:$L$182,8,FALSE)","v":0},{"$f":"VLOOKUP(W17,Rates!$C$4:$L$182,9,FALSE)","v":160},{"$f":"VLOOKUP(W17,Rates!$C$4:$L$182,10,FALSE)","v":0}]
[null,{"$f":"Rates!C14","v":"Island"},{"$f":"Rates!D14","v":"Programmländer"},{"$f":"Rates!E14","v":280},{"$f":"Rates!F14","v":214},{"$f":"Rates!G14","v":162},{"$f":"Rates!H14","v":131},null,null,null,null,11,605,1320,null,null,null,null,null,null,null,null,{"$f":"Rates!N14","v":"Island"},{"$f":"VLOOKUP(W18,Rates!$C$4:$L$182,2,FALSE)","v":"Programmländer"},{"$f":"VLOOKUP(W18,Rates!$C$4:$L$182,7,FALSE)","v":800},{"$f":"VLOOKUP(W18,Rates!$C$4:$L$182,8,FALSE)","v":0},{"$f":"VLOOKUP(W18,Rates!$C$4:$L$182,9,FALSE)","v":140},{"$f":"VLOOKUP(W18,Rates!$C$4:$L$182,10,FALSE)","v":0}]
[null,{"$f":"Rates!C15","v":"Italien"},{"$f":"Rates!D15","v":"Programmländer"},{"$f":"Rates!E15","v":280},{"$f":"Rates!F15","v":214},{"$f":"Rates!G15","v":162},{"$f":"Rates!H15","v":131},null,null,null,null,12,660,1440,null,null,null,null,null,null,null,null,{"$f":"Rates!N15","v":"Italien"},{"$f":"VLOOKUP(W19,Rates!$C$4:$L$182,2,FALSE)","v":"Programmländer"},{"$f":"VLOOKUP(W19,Rates!$C$4:$L$182,7,FALSE)","v":850},{"$f":"VLOOKUP(W19,Rates!$C$4:$L$182,8,FALSE)","v":0},{"$f":"VLOOKUP(W19,Rates!$C$4:$L$182,9,FALSE)","v":140},{"$f":"VLOOKUP(W19,Rates!$C$4:$L$182,10,FALSE)","v":0}]
[null,{"$f":"Rates!C16","v":"Kroatien"},{"$f":"Rates!D16","v":"Programmländer"},{"$f":"Rates!E16","v":88},{"$f":"Rates!F16","v":74},{"$f":"Rates!G16","v":55},{"$f":"Rates!H16","v":39},null,null,null,null,13,715,1560,null,null,null,null,null,null,null,null,{"$f":"Rates!N16","v":"Kroatien"},{"$f":"VLOOKUP(W20,Rates!$C$4:$L$182,2,FALSE)","v":"Programmländer"},{"$f":"VLOOKUP(W20,Rates!$C$4:$L$182,7,FALSE)","v":800},{"$f":"VLOOKUP(W20,Rates!$C$4:$L$182,8,FALSE)","v":0},{"$f":"VLOOKUP(W20,Rates!$C$4:$L$182,9,FALSE)","v":100},{"$f":"VLOOKUP(W20,Rates!$C$4:$L$182,10,FALSE)","v":0}]
[null,{"$f":"Rates!C17","v":"Lettland"},{"$f":"Rates!D17","v":"Programmländer"},{"$f":"Rates!E17","v":88},{"$f":"Rates!F17","v":74},{"$f":"Rates!G17","v":55},{"$f":"Rates!H17","v":39},null,null,null,null,14,770,1680,null,null,null,null,null,null,null,null,{"$f":"Rates!N17","v":"Lettland"},{"$f":"VLOOKUP(W21,Rates!$C$4:$L$182,2,FALSE)","v":"Programmländer"},{"$f":"VLOOKUP(W21,Rates!$C$4:$L$182,7,FALSE)","v":750},{"$f":"VLOOKUP(W21,Rates!$C$4:$L$182,8,FALSE)","v":0},{"$f":"VLOOKUP(W21,Rates!$C$4:$L$182,9,FALSE)","v":120},{"$f":"VLOOKUP(W21,Rates!$C$4:$L$182,10,FALSE)","v":0}]
[null,{"$f":"Rates!C18","v":"Liechtenstein"},{"$f":"Rates!D18","v":"Programmländer"},{"$f":"Rates!E18","v":294},{"$f":"Rates!F18","v":241},{"$f":"Rates!G18","v":190},{"$f":"Rates!H18","v":157},null,null,null,null,15,{"$f":"((L22-$L$21)*40)+770","v":810},{"$f":"((L22-$L$21)*70)+1680","v":1750},null,null,null,null,null,null,null,null,{"$f":"Rates!N18","v":"Liechtenstein"},{"$f":"VLOOKUP(W22,Rates!$C$4:$L$182,2,FALSE)","v":"Programmländer"},{"$f":"VLOOKUP(W22,Rates!$C$4:$L$182,7,FALSE)","v":850},{"$f":"VLOOKUP(W22,Rates!$C$4:$L$182,8,FALSE)","v":0},{"$f":"VLOOKUP(W22,Rates!$C$4:$L$182,9,FALSE)","v":140},{"$f":"VLOOKUP(W22,Rates!$C$4:$L$182,10,FALSE)","v":0}]
[null,{"$f":"Rates!C19","v":"Litauen"},{"$f":"Rates!D19","v":"Programmländer"},{"$f":"Rates!E19","v":88},{"$f":"Rates!F19","v":74},{"$f":"Rates!G19","v":55},{"$f":"Rates!H19","v":39},null,null,null,null,16,{"$f":"((L23-$L$21)*40)+770","v":850},{"$f":"((L23-$L$21)*70)+1680","v":1820},null,null,null,null,null,null,null,null,{"$f":"Rates!N19","v":"Litauen"},{"$f":"VLOOKUP(W23,Rates!$C$4:$L$182,2,FALSE)","v":"Programmländer"},{"$f":"VLOOKUP(W23,Rates!$C$4:$L$182,7,FALSE)","v":750},{"$f":"VLOOKUP(W23,Rates!$C$4:$L$182,8,FALSE)","v":0},{"$f":"VLOOKUP(W23,Rates!$C$4:$L$182,9,FALSE)","v":100},{"$f":"VLOOKUP(W23,Rates!$C$4:$L$182,10,FALSE)","v":0}]
[null,{"$f":"Rates!C20","v":"Luxemburg"},{"$f":"Rates!D20","v":"Programmländer"},{"$f":"Rates!E20","v":294},{"$f":"Rates!F20","v":241},{"$f":"Rates!G20","v":190},{"$f":"Rates!H20","v":157},null,null,null,null,17,890,1890,null,null,null,null,null,null,null,null,{"$f":"Rates!N20","v":"Luxemburg"},{"$f":"VLOOKUP(W24,Rates!$C$4:$L$182,2,FALSE)","v":"Programmländer"},{"$f":"VLOOKUP(W24,Rates!$C$4:$L$182,7,FALSE)","v":800},{"$f":"VLOOKUP(W24,Rates!$C$4:$L$182,8,FALSE)","v":0},{"$f":"VLOOKUP(W24,Rates!$C$4:$L$182,9,FALSE)","v":140},{"$f":"VLOOKUP(W24,Rates!$C$4:$L$182,10,FALSE)","v":0}]
[null,{"$f":"Rates!C21","v":"Malta"},{"$f":"Rates!D21","v":"Programmländer"},{"$f":"Rates!E21","v":164},{"$f":"Rates!F21","v":137},{"$f":"Rates!G21","v":102},{"$f":"Rates!H21","v":78},null,null,null,null,18,930,1960,null,null,null,null,null,null,null,null,{"$f":"Rates!N21","v":"Malta"},{"$f":"VLOOKUP(W25,Rates!$C$4:$L$182,2,FALSE)","v":"Programmländer"},{"$f":"VLOOKUP(W25,Rates!$C$4:$L$182,7,FALSE)","v":750},{"$f":"VLOOKUP(W25,Rates!$C$4:$L$182,8,FALSE)","v":0},{"$f":"VLOOKUP(W25,Rates!$C$4:$L$182,9,FALSE)","v":120},{"$f":"VLOOKUP(W25,Rates!$C$4:$L$182,10,FALSE)","v":0}]
[null,{"$f":"Rates!C22","v":"Niederlande"},{"$f":"Rates!D22","v":"Programmländer"},{"$f":"Rates!E22","v":294},{"$f":"Rates!F22","v":241},{"$f":"Rates!G22","v":190},{"$f":"Rates!H22","v":157},null,null,null,null,19,970,2030,null,null,null,null,null,null,null,null,{"$f":"Rates!N22","v":"Niederlande"},{"$f":"VLOOKUP(W26,Rates!$C$4:$L$182,2,FALSE)","v":"Programmländer"},{"$f":"VLOOKUP(W26,Rates!$C$4:$L$182,7,FALSE)","v":800},{"$f":"VLOOKUP(W26,Rates!$C$4:$L$182,8,FALSE)","v":0},{"$f":"VLOOKUP(W26,Rates!$C$4:$L$182,9,FALSE)","v":160},{"$f":"VLOOKUP(W26,Rates!$C$4:$L$182,10,FALSE)","v":0}]
[null,{"$f":"Rates!C23","v":"Norwegen"},{"$f":"Rates!D23","v":"Programmländer"},{"$f":"Rates!E23","v":294},{"$f":"Rates!F23","v":241},{"$f":"Rates!G23","v":190},{"$f":"Rates!H23","v":157},null,null,null,null,20,1010,2100,null,null,null,null,null,null,null,null,{"$f":"Rates!N23","v":"Norwegen"},{"$f":"VLOOKUP(W27,Rates!$C$4:$L$182,2,FALSE)","v":"Programmländer"},{"$f":"VLOOKUP(W27,Rates!$C$4:$L$182,7,FALSE)","v":850},{"$f":"VLOOKUP(W27,Rates!$C$4:$L$182,8,FALSE)","v":0},{"$f":"VLOOKUP(W27,Rates!$C$4:$L$182,9,FALSE)","v":140},{"$f":"VLOOKUP(W27,Rates!$C$4:$L$182,10,FALSE)","v":0}]
[null,{"$f":"Rates!C24","v":"Österreich"},{"$f":"Rates!D24","v":"Programmländer"},{"$f":"Rates!E24","v":294},{"$f":"Rates!F24","v":241},{"$f":"Rates!G24","v":190},{"$f":"Rates!H24","v":157},null,null,null,null,21,1050,2170,null,null,null,null,null,null,null,null,{"$f":"Rates!N24","v":"Österreich"},{"$f":"VLOOKUP(W28,Rates!$C$4:$L$182,2,FALSE)","v":"Programmländer"},{"$f":"VLOOKUP(W28,Rates!$C$4:$L$182,7,FALSE)","v":850},{"$f":"VLOOKUP(W28,Rates!$C$4:$L$182,8,FALSE)","v":0},{"$f":"VLOOKUP(W28,Rates!$C$4:$L$182,9,FALSE)","v":140},{"$f":"VLOOKUP(W28,Rates!$C$4:$L$182,10,FALSE)","v":0}]
[null,{"$f":"Rates!C25","v":"Polen"},{"$f":"Rates!D25","v":"Programmländer"},{"$f":"Rates!E25","v":88},{"$f":"Rates!F25","v":74},{"$f":"Rates!G25","v":55},{"$f":"Rates!H25","v":39},null,null,null,null,22,1090,2240,null,null,null,null,null,null,null,null,{"$f":"Rates!N25","v":"Polen"},{"$f":"VLOOKUP(W29,Rates!$C$4:$L$182,2,FALSE)","v":"Programmländer"},{"$f":"VLOOKUP(W29,Rates!$C$4:$L$182,7,FALSE)","v":750},{"$f":"VLOOKUP(W29,Rates!$C$4:$L$182,8,FALSE)","v":0},{"$f":"VLOOKUP(W29,Rates!$C$4:$L$182,9,FALSE)","v":140},{"$f":"VLOOKUP(W29,Rates!$C$4:$L$182,10,FALSE)","v":0}]
[null,{"$f":"Rates!C26","v":"Portugal"},{"$f":"Rates!D26","v":"Programmländer"},{"$f":"Rates!E26","v":164},{"$f":"Rates!F26","v":137},{"$f":"Rates!G26","v":102},{"$f":"Rates!H26","v":78},null,null,null,null,23,1130,2310,null,null,null,null,null,null,null,null,{"$f":"Rates!N26","v":"Portugal"},{"$f":"VLOOKUP(W30,Rates!$C$4:$L$182,2,FALSE)","v":"Programmländer"},{"$f":"VLOOKUP(W30,Rates!$C$4:$L$182,7,FALSE)","v":800},{"$f":"VLOOKUP(W30,Rates!$C$4:$L$182,8,FALSE)","v":0},{"$f":"VLOOKUP(W30,Rates!$C$4:$L$182,9,FALSE)","v":120},{"$f":"VLOOKUP(W30,Rates!$C$4:$L$182,10,FALSE)","v":0}]
[null,{"$f":"Rates!C27","v":"Rumänien"},{"$f":"Rates!D27","v":"Programmländer"},{"$f":"Rates!E27","v":88},{"$f":"Rates!F27","v":74},{"$f":"Rates!G27","v":55},{"$f":"Rates!H27","v":39},null,null,null,null,24,1170,2380,null,null,null,null,null,null,null,null,{"$f":"Rates!N27","v":"Rumänien"},{"$f":"VLOOKUP(W31,Rates!$C$4:$L$182,2,FALSE)","v":"Programmländer"},{"$f":"VLOOKUP(W31,Rates!$C$4:$L$182,7,FALSE)","v":750},{"$f":"VLOOKUP(W31,Rates!$C$4:$L$182,8,FALSE)","v":0},{"$f":"VLOOKUP(W31,Rates!$C$4:$L$182,9,FALSE)","v":140},{"$f":"VLOOKUP(W31,Rates!$C$4:$L$182,10,FALSE)","v":0}]
[null,{"$f":"Rates!C28","v":"Schweden"},{"$f":"Rates!D28","v":"Programmländer"},{"$f":"Rates!E28","v":294},{"$f":"Rates!F28","v":241},{"$f":"Rates!G28","v":190},{"$f":"Rates!H28","v":157},null,null,null,null,25,1210,2450,null,null,null,null,null,null,null,null,{"$f":"Rates!N28","v":"Schweden"},{"$f":"VLOOKUP(W32,Rates!$C$4:$L$182,2,FALSE)","v":"Programmländer"},{"$f":"VLOOKUP(W32,Rates!$C$4:$L$182,7,FALSE)","v":850},{"$f":"VLOOKUP(W32,Rates!$C$4:$L$182,8,FALSE)","v":0},{"$f":"VLOOKUP(W32,Rates!$C$4:$L$182,9,FALSE)","v":160},{"$f":"VLOOKUP(W32,Rates!$C$4:$L$182,10,FALSE)","v":0}]
[null,{"$f":"Rates!C29","v":"Slowakei"},{"$f":"Rates!D29","v":"Programmländer"},{"$f":"Rates!E29","v":88},{"$f":"Rates!F29","v":74},{"$f":"Rates!G29","v":55},{"$f":"Rates!H29","v":39},null,null,null,null,26,1250,2520,null,null,null,null,null,null,null,null,{"$f":"Rates!N29","v":"Slowakei"},{"$f":"VLOOKUP(W33,Rates!$C$4:$L$182,2,FALSE)","v":"Programmländer"},{"$f":"VLOOKUP(W33,Rates!$C$4:$L$182,7,FALSE)","v":750},{"$f":"VLOOKUP(W33,Rates!$C$4:$L$182,8,FALSE)","v":0},{"$f":"VLOOKUP(W33,Rates!$C$4:$L$182,9,FALSE)","v":120},{"$f":"VLOOKUP(W33,Rates!$C$4:$L$182,10,FALSE)","v":0}]
[null,{"$f":"Rates!C30","v":"Slowenien"},{"$f":"Rates!D30","v":"Programmländer"},{"$f":"Rates!E30","v":164},{"$f":"Rates!F30","v":137},{"$f":"Rates!G30","v":102},{"$f":"Rates!H30","v":78},null,null,null,null,27,1290,2590,null,null,null,null,null,null,null,null,{"$f":"Rates!N30","v":"Slowenien"},{"$f":"VLOOKUP(W34,Rates!$C$4:$L$182,2,FALSE)","v":"Programmländer"},{"$f":"VLOOKUP(W34,Rates!$C$4:$L$182,7,FALSE)","v":800},{"$f":"VLOOKUP(W34,Rates!$C$4:$L$182,8,FALSE)","v":0},{"$f":"VLOOKUP(W34,Rates!$C$4:$L$182,9,FALSE)","v":100},{"$f":"VLOOKUP(W34,Rates!$C$4:$L$182,10,FALSE)","v":0}]
[null,{"$f":"Rates!C31","v":"Spanien"},{"$f":"Rates!D31","v":"Programmländer"},{"$f":"Rates!E31","v":164},{"$f":"Rates!F31","v":137},{"$f":"Rates!G31","v":102},{"$f":"Rates!H31","v":78},null,null,null,null,28,1330,2660,null,null,null,null,null,null,null,null,{"$f":"Rates!N31","v":"Spanien"},{"$f":"VLOOKUP(W35,Rates!$C$4:$L$182,2,FALSE)","v":"Programmländer"},{"$f":"VLOOKUP(W35,Rates!$C$4:$L$182,7,FALSE)","v":800},{"$f":"VLOOKUP(W35,Rates!$C$4:$L$182,8,FALSE)","v":0},{"$f":"VLOOKUP(W35,Rates!$C$4:$L$182,9,FALSE)","v":120},{"$f":"VLOOKUP(W35,Rates!$C$4:$L$182,10,FALSE)","v":0}]
[null,{"$f":"Rates!C32","v":"Tschechische Republik"},{"$f":"Rates!D32","v":"Programmländer"},{"$f":"Rates!E32","v":164},{"$f":"Rates!F32","v":137},{"$f":"Rates!G32","v":102},{"$f":"Rates!H32","v":78},null,null,null,null,29,1370,2730,null,null,null,null,null,null,null,null,{"$f":"Rates!N32","v":"Tschechische Republik"},{"$f":"VLOOKUP(W36,Rates!$C$4:$L$182,2,FALSE)","v":"Programmländer"},{"$f":"VLOOKUP(W36,Rates!$C$4:$L$182,7,FALSE)","v":800},{"$f":"VLOOKUP(W36,Rates!$C$4:$L$182,8,FALSE)","v":0},{"$f":"VLOOKUP(W36,Rates!$C$4:$L$182,9,FALSE)","v":140},{"$f":"VLOOKUP(W36,Rates!$C$4:$L$182,10,FALSE)","v":0}]
[null,{"$f":"Rates!C33","v":"Türkei"},{"$f":"Rates!D33","v":"Programmländer"},{"$f":"Rates!E33","v":88},{"$f":"Rates!F33","v":74},{"$f":"Rates!G33","v":55},{"$f":"Rates!H33","v":39},null,null,null,null,30,1410,2800,null,null,null,null,null,null,null,null,{"$f":"Rates!N33","v":"Türkei"},{"$f":"VLOOKUP(W37,Rates!$C$4:$L$182,2,FALSE)","v":"Programmländer"},{"$f":"VLOOKUP(W37,Rates!$C$4:$L$182,7,FALSE)","v":800},{"$f":"VLOOKUP(W37,Rates!$C$4:$L$182,8,FALSE)","v":0},{"$f":"VLOOKUP(W37,Rates!$C$4:$L$182,9,FALSE)","v":140},{"$f":"VLOOKUP(W37,Rates!$C$4:$L$182,10,FALSE)","v":0}]
[null,{"$f":"Rates!C34","v":"Ungarn"},{"$f":"Rates!D34","v":"Programmländer"},{"$f":"Rates!E34","v":88},{"$f":"Rates!F34","v":74},{"$f":"Rates!G34","v":55},{"$f":"Rates!H34","v":39},null,null,null,null,31,1450,2870,null,null,null,null,null,null,null,null,{"$f":"Rates!N34","v":"Ungarn"},{"$f":"VLOOKUP(W38,Rates!$C$4:$L$182,2,FALSE)","v":"Programmländer"},{"$f":"VLOOKUP(W38,Rates!$C$4:$L$182,7,FALSE)","v":750},{"$f":"VLOOKUP(W38,Rates!$C$4:$L$182,8,FALSE)","v":0},{"$f":"VLOOKUP(W38,Rates!$C$4:$L$182,9,FALSE)","v":140},{"$f":"VLOOKUP(W38,Rates!$C$4:$L$182,10,FALSE)","v":0}]
[null,{"$f":"Rates!C35","v":"Vereinigtes Königreich"},{"$f":"Rates!D35","v":"Programmländer"},{"$f":"Rates!E35","v":280},{"$f":"Rates!F35","v":214},{"$f":"Rates!G35","v":162},{"$f":"Rates!H35","v":131},null,null,null,null,32,1490,2940,null,null,null,null,null,null,null,null,{"$f":"Rates!N35","v":"Vereinigtes Königreich"},{"$f":"VLOOKUP(W39,Rates!$C$4:$L$182,2,FALSE)","v":"Programmländer"},{"$f":"VLOOKUP(W39,Rates!$C$4:$L$182,7,FALSE)","v":850},{"$f":"VLOOKUP(W39,Rates!$C$4:$L$182,8,FALSE)","v":0},{"$f":"VLOOKUP(W39,Rates!$C$4:$L$182,9,FALSE)","v":160},{"$f":"VLOOKUP(W39,Rates!$C$4:$L$182,10,FALSE)","v":0}]
[null,{"$f":"Rates!C36","v":"Zypern"},{"$f":"Rates!D36","v":"Programmländer"},{"$f":"Rates!E36","v":164},{"$f":"Rates!F36","v":137},{"$f":"Rates!G36","v":102},{"$f":"Rates!H36","v":78},null,null,null,null,33,1530,3010,null,null,null,null,null,null,null,null,{"$f":"Rates!N36","v":"Zypern"},{"$f":"VLOOKUP(W40,Rates!$C$4:$L$182,2,FALSE)","v":"Programmländer"},{"$f":"VLOOKUP(W40,Rates!$C$4:$L$182,7,FALSE)","v":800},{"$f":"VLOOKUP(W40,Rates!$C$4:$L$182,8,FALSE)","v":0},{"$f":"VLOOKUP(W40,Rates!$C$4:$L$182,9,FALSE)","v":140},{"$f":"VLOOKUP(W40,Rates!$C$4:$L$182,10,FALSE)","v":0}]
[null,{"$f":"Rates!C37","v":"Afghanistan"},{"$f":"Rates!D37","v":"Partnerländer"},{"$f":"Rates!E37","v":77},{"$f":"Rates!F37","v":57},{"$f":"Rates!G37","v":40},{"$f":"Rates!H37","v":32},null,null,null,null,34,1570,3080,null,null,null,null,null,null,null,null,{"$f":"Rates!N37","v":"Ägypten"},{"$f":"VLOOKUP(W41,Rates!$C$4:$L$182,2,FALSE)","v":"Partnerländer"},{"$f":"VLOOKUP(W41,Rates!$C$4:$L$182,7,FALSE)","v":750},{"$f":"VLOOKUP(W41,Rates!$C$4:$L$182,8,FALSE)","v":650},{"$f":"VLOOKUP(W41,Rates!$C$4:$L$182,9,FALSE)","v":100},{"$f":"VLOOKUP(W41,Rates!$C$4:$L$182,10,FALSE)","v":160}]
[null,{"$f":"Rates!C38","v":"Ägypten"},{"$f":"Rates!D38","v":"Partnerländer"},{"$f":"Rates!E38","v":47},{"$f":"Rates!F38","v":33},{"$f":"Rates!G38","v":22},{"$f":"Rates!H38","v":17},null,null,null,null,35,1610,3150,null,null,null,null,null,null,null,null,{"$f":"Rates!N38","v":"Albanien"},{"$f":"VLOOKUP(W42,Rates!$C$4:$L$182,2,FALSE)","v":"Partnerländer"},{"$f":"VLOOKUP(W42,Rates!$C$4:$L$182,7,FALSE)","v":750},{"$f":"VLOOKUP(W42,Rates!$C$4:$L$182,8,FALSE)","v":650},{"$f":"VLOOKUP(W42,Rates!$C$4:$L$182,9,FALSE)","v":100},{"$f":"VLOOKUP(W42,Rates!$C$4:$L$182,10,FALSE)","v":160}]
[null,{"$f":"Rates!C39","v":"Albanien"},{"$f":"Rates!D39","v":"Partnerländer"},{"$f":"Rates!E39","v":108},{"$f":"Rates!F39","v":80},{"$f":"Rates!G39","v":57},{"$f":"Rates!H39","v":45},null,null,null,null,36,1650,3220,null,null,null,null,null,null,null,null,{"$f":"Rates!N39","v":"Algerien"},{"$f":"VLOOKUP(W43,Rates!$C$4:$L$182,2,FALSE)","v":"Partnerländer"},{"$f":"VLOOKUP(W43,Rates!$C$4:$L$182,7,FALSE)","v":750},{"$f":"VLOOKUP(W43,Rates!$C$4:$L$182,8,FALSE)","v":650},{"$f":"VLOOKUP(W43,Rates!$C$4:$L$182,9,FALSE)","v":100},{"$f":"VLOOKUP(W43,Rates!$C$4:$L$182,10,FALSE)","v":160}]
[null,{"$f":"Rates!C40","v":"Algerien"},{"$f":"Rates!D40","v":"Partnerländer"},{"$f":"Rates!E40","v":47},{"$f":"Rates!F40","v":33},{"$f":"Rates!G40","v":22},{"$f":"Rates!H40","v":17},null,null,null,null,37,1690,3290,null,null,null,null,null,null,null,null,{"$f":"Rates!N40","v":"Armenien"},{"$f":"VLOOKUP(W44,Rates!$C$4:$L$182,2,FALSE)","v":"Partnerländer"},{"$f":"VLOOKUP(W44,Rates!$C$4:$L$182,7,FALSE)","v":750},{"$f":"VLOOKUP(W44,Rates!$C$4:$L$182,8,FALSE)","v":650},{"$f":"VLOOKUP(W44,Rates!$C$4:$L$182,9,FALSE)","v":100},{"$f":"VLOOKUP(W44,Rates!$C$4:$L$182,10,FALSE)","v":160}]
[null,{"$f":"Rates!C41","v":"Angola"},{"$f":"Rates!D41","v":"Partnerländer"},{"$f":"Rates!E41","v":108},{"$f":"Rates!F41","v":80},{"$f":"Rates!G41","v":57},{"$f":"Rates!H41","v":45},null,null,null,null,38,1730,3360,null,null,null,null,null,null,null,null,{"$f":"Rates!N41","v":"Aserbaidschan"},{"$f":"VLOOKUP(W45,Rates!$C$4:$L$182,2,FALSE)","v":"Partnerländer"},{"$f":"VLOOKUP(W45,Rates!$C$4:$L$182,7,FALSE)","v":750},{"$f":"VLOOKUP(W45,Rates!$C$4:$L$182,8,FALSE)","v":650},{"$f":"VLOOKUP(W45,Rates!$C$4:$L$182,9,FALSE)","v":100},{"$f":"VLOOKUP(W45,Rates!$C$4:$L$182,10,FALSE)","v":160}]
[null,{"$f":"Rates!C42","v":"Antigua und Barbuda"},{"$f":"Rates!D42","v":"Partnerländer"},{"$f":"Rates!E42","v":108},{"$f":"Rates!F42","v":80},{"$f":"Rates!G42","v":57},{"$f":"Rates!H42","v":45},null,null,null,null,39,1770,3430,null,null,null,null,null,null,null,null,{"$f":"Rates!N42","v":"Belarus"},{"$f":"VLOOKUP(W46,Rates!$C$4:$L$182,2,FALSE)","v":"Partnerländer"},{"$f":"VLOOKUP(W46,Rates!$C$4:$L$182,7,FALSE)","v":750},{"$f":"VLOOKUP(W46,Rates!$C$4:$L$182,8,FALSE)","v":650},{"$f":"VLOOKUP(W46,Rates!$C$4:$L$182,9,FALSE)","v":100},{"$f":"VLOOKUP(W46,Rates!$C$4:$L$182,10,FALSE)","v":160}]
[null,{"$f":"Rates!C43","v":"Äquatorial Guinea"},{"$f":"Rates!D43","v":"Partnerländer"},{"$f":"Rates!E43","v":47},{"$f":"Rates!F43","v":33},{"$f":"Rates!G43","v":22},{"$f":"Rates!H43","v":17},null,null,null,null,40,1810,3500,null,null,null,null,null,null,null,null,{"$f":"Rates!N43","v":"Bosnien und Herzegowina"},{"$f":"VLOOKUP(W47,Rates!$C$4:$L$182,2,FALSE)","v":"Partnerländer"},{"$f":"VLOOKUP(W47,Rates!$C$4:$L$182,7,FALSE)","v":750},{"$f":"VLOOKUP(W47,Rates!$C$4:$L$182,8,FALSE)","v":650},{"$f":"VLOOKUP(W47,Rates!$C$4:$L$182,9,FALSE)","v":100},{"$f":"VLOOKUP(W47,Rates!$C$4:$L$182,10,FALSE)","v":160}]
[null,{"$f":"Rates!C44","v":"Argentinien"},{"$f":"Rates!D44","v":"Partnerländer"},{"$f":"Rates!E44","v":108},{"$f":"Rates!F44","v":80},{"$f":"Rates!G44","v":57},{"$f":"Rates!H44","v":45},null,null,null,null,41,1850,3570,null,null,null,null,null,null,null,null,{"$f":"Rates!N44","v":"Georgien"},{"$f":"VLOOKUP(W48,Rates!$C$4:$L$182,2,FALSE)","v":"Partnerländer"},{"$f":"VLOOKUP(W48,Rates!$C$4:$L$182,7,FALSE)","v":750},{"$f":"VLOOKUP(W48,Rates!$C$4:$L$182,8,FALSE)","v":650},{"$f":"VLOOKUP(W48,Rates!$C$4:$L$182,9,FALSE)","v":100},{"$f":"VLOOKUP(W48,Rates!$C$4:$L$182,10,FALSE)","v":160}]
[null,{"$f":"Rates!C45","v":"Armenien"},{"$f":"Rates!D45","v":"Partnerländer"},{"$f":"Rates!E45","v":47},{"$f":"Rates!F45","v":33},{"$f":"Rates!G45","v":22},{"$f":"Rates!H45","v":17},null,null,null,null,42,1890,3640,null,null,null,null,null,null,null,null,{"$f":"Rates!N45","v":"Israel"},{"$f":"VLOOKUP(W49,Rates!$C$4:$L$182,2,FALSE)","v":"Partnerländer"},{"$f":"VLOOKUP(W49,Rates!$C$4:$L$182,7,FALSE)","v":750},{"$f":"VLOOKUP(W49,Rates!$C$4:$L$182,8,FALSE)","v":650},{"$f":"VLOOKUP(W49,Rates!$C$4:$L$182,9,FALSE)","v":100},{"$f":"VLOOKUP(W49,Rates!$C$4:$L$182,10,FALSE)","v":160}]
[null,{"$f":"Rates!C46","v":"Aserbaidschan"},{"$f":"Rates!D46","v":"Partnerländer"},{"$f":"Rates!E46","v":77},{"$f":"Rates!F46","v":57},{"$f":"Rates!G46","v":40},{"$f":"Rates!H46","v":32},null,null,null,null,43,1930,3710,null,null,null,null,null,null,null,null,{"$f":"Rates!N46","v":"Jordanien"},{"$f":"VLOOKUP(W50,Rates!$C$4:$L$182,2,FALSE)","v":"Partnerländer"},{"$f":"VLOOKUP(W50,Rates!$C$4:$L$182,7,FALSE)","v":750},{"$f":"VLOOKUP(W50,Rates!$C$4:$L$182,8,FALSE)","v":650},{"$f":"VLOOKUP(W50,Rates!$C$4:$L$182,9,FALSE)","v":100},{"$f":"VLOOKUP(W50,Rates!$C$4:$L$182,10,FALSE)","v":160}]
[null,{"$f":"Rates!C47","v":"Äthiopien"},{"$f":"Rates!D47","v":"Partnerländer"},{"$f":"Rates!E47","v":47},{"$f":"Rates!F47","v":33},{"$f":"Rates!G47","v":22},{"$f":"Rates!H47","v":17},null,null,null,null,44,1970,3780,null,null,null,null,null,null,null,null,{"$f":"Rates!N47","v":"Kosovo"},{"$f":"VLOOKUP(W51,Rates!$C$4:$L$182,2,FALSE)","v":"Partnerländer"},{"$f":"VLOOKUP(W51,Rates!$C$4:$L$182,7,FALSE)","v":750},{"$f":"VLOOKUP(W51,Rates!$C$4:$L$182,8,FALSE)","v":650},{"$f":"VLOOKUP(W51,Rates!$C$4:$L$182,9,FALSE)","v":100},{"$f":"VLOOKUP(W51,Rates!$C$4:$L$182,10,FALSE)","v":160}]
[null,{"$f":"Rates!C48","v":"Bahamas"},{"$f":"Rates!D48","v":"Partnerländer"},{"$f":"Rates!E48","v":77},{"$f":"Rates!F48","v":57},{"$f":"Rates!G48","v":40},{"$f":"Rates!H48","v":32},null,null,null,null,45,2010,3850,null,null,null,null,null,null,null,null,{"$f":"Rates!N48","v":"Libanon"},{"$f":"VLOOKUP(W52,Rates!$C$4:$L$182,2,FALSE)","v":"Partnerländer"},{"$f":"VLOOKUP(W52,Rates!$C$4:$L$182,7,FALSE)","v":750},{"$f":"VLOOKUP(W52,Rates!$C$4:$L$182,8,FALSE)","v":650},{"$f":"VLOOKUP(W52,Rates!$C$4:$L$182,9,FALSE)","v":100},{"$f":"VLOOKUP(W52,Rates!$C$4:$L$182,10,FALSE)","v":160}]
[null,{"$f":"Rates!C49","v":"Bangladesch"},{"$f":"Rates!D49","v":"Partnerländer"},{"$f":"Rates!E49","v":47},{"$f":"Rates!F49","v":33},{"$f":"Rates!G49","v":22},{"$f":"Rates!H49","v":17},null,null,null,null,46,2050,3920,null,null,null,null,null,null,null,null,{"$f":"Rates!N49","v":"Libyen"},{"$f":"VLOOKUP(W53,Rates!$C$4:$L$182,2,FALSE)","v":"Partnerländer"},{"$f":"VLOOKUP(W53,Rates!$C$4:$L$182,7,FALSE)","v":750},{"$f":"VLOOKUP(W53,Rates!$C$4:$L$182,8,FALSE)","v":650},{"$f":"VLOOKUP(W53,Rates!$C$4:$L$182,9,FALSE)","v":100},{"$f":"VLOOKUP(W53,Rates!$C$4:$L$182,10,FALSE)","v":160}]
[null,{"$f":"Rates!C50","v":"Barbados"},{"$f":"Rates!D50","v":"Partnerländer"},{"$f":"Rates!E50","v":108},{"$f":"Rates!F50","v":80},{"$f":"Rates!G50","v":57},{"$f":"Rates!H50","v":45},null,null,null,null,47,2090,3990,null,null,null,null,null,null,null,null,{"$f":"Rates!N50","v":"Marokko"},{"$f":"VLOOKUP(W54,Rates!$C$4:$L$182,2,FALSE)","v":"Partnerländer"},{"$f":"VLOOKUP(W54,Rates!$C$4:$L$182,7,FALSE)","v":750},{"$f":"VLOOKUP(W54,Rates!$C$4:$L$182,8,FALSE)","v":650},{"$f":"VLOOKUP(W54,Rates!$C$4:$L$182,9,FALSE)","v":100},{"$f":"VLOOKUP(W54,Rates!$C$4:$L$182,10,FALSE)","v":160}]
[null,{"$f":"Rates!C51","v":"Belarus"},{"$f":"Rates!D51","v":"Partnerländer"},{"$f":"Rates!E51","v":47},{"$f":"Rates!F51","v":33},{"$f":"Rates!G51","v":22},{"$f":"Rates!H51","v":17},null,null,null,null,48,2130,4060,null,null,null,null,null,null,null,null,{"$f":"Rates!N51","v":"Moldau"},{"$f":"VLOOKUP(W55,Rates!$C$4:$L$182,2,FALSE)","v":"Partnerländer"},{"$f":"VLOOKUP(W55,Rates!$C$4:$L$182,7,FALSE)","v":750},{"$f":"VLOOKUP(W55,Rates!$C$4:$L$182,8,FALSE)","v":650},{"$f":"VLOOKUP(W55,Rates!$C$4:$L$182,9,FALSE)","v":100},{"$f":"VLOOKUP(W55,Rates!$C$4:$L$182,10,FALSE)","v":160}]
[null,{"$f":"Rates!C52","v":"Belize"},{"$f":"Rates!D52","v":"Partnerländer"},{"$f":"Rates!E52","v":47},{"$f":"Rates!F52","v":33},{"$f":"Rates!G52","v":22},{"$f":"Rates!H52","v":17},null,null,null,null,49,2170,4130,null,null,null,null,null,null,null,null,{"$f":"Rates!N52","v":"Montenegro"},{"$f":"VLOOKUP(W56,Rates!$C$4:$L$182,2,FALSE)","v":"Partnerländer"},{"$f":"VLOOKUP(W56,Rates!$C$4:$L$182,7,FALSE)","v":750},{"$f":"VLOOKUP(W56,Rates!$C$4:$L$182,8,FALSE)","v":650},{"$f":"VLOOKUP(W56,Rates!$C$4:$L$182,9,FALSE)","v":100},{"$f":"VLOOKUP(W56,Rates!$C$4:$L$182,10,FALSE)","v":160}]
[null,{"$f":"Rates!C53","v":"Benin"},{"$f":"Rates!D53","v":"Partnerländer"},{"$f":"Rates!E53","v":47},{"$f":"Rates!F53","v":33},{"$f":"Rates!G53","v":22},{"$f":"Rates!H53","v":17},null,null,null,null,50,2210,4200,null,null,null,null,null,null,null,null,{"$f":"Rates!N53","v":"Palästina"},{"$f":"VLOOKUP(W57,Rates!$C$4:$L$182,2,FALSE)","v":"Partnerländer"},{"$f":"VLOOKUP(W57,Rates!$C$4:$L$182,7,FALSE)","v":750},{"$f":"VLOOKUP(W57,Rates!$C$4:$L$182,8,FALSE)","v":650},{"$f":"VLOOKUP(W57,Rates!$C$4:$L$182,9,FALSE)","v":100},{"$f":"VLOOKUP(W57,Rates!$C$4:$L$182,10,FALSE)","v":160}]
[null,{"$f":"Rates!C54","v":"Bhutan"},{"$f":"Rates!D54","v":"Partnerländer"},{"$f":"Rates!E54","v":47},{"$f":"Rates!F54","v":33},{"$f":"Rates!G54","v":22},{"$f":"Rates!H54","v":17},null,null,null,null,51,2250,4270,null,null,null,null,null,null,null,null,{"$f":"Rates!N54","v":"Serbien"},{"$f":"VLOOKUP(W58,Rates!$C$4:$L$182,2,FALSE)","v":"Partnerländer"},{"$f":"VLOOKUP(W58,Rates!$C$4:$L$182,7,FALSE)","v":750},{"$f":"VLOOKUP(W58,Rates!$C$4:$L$182,8,FALSE)","v":650},{"$f":"VLOOKUP(W58,Rates!$C$4:$L$182,9,FALSE)","v":100},{"$f":"VLOOKUP(W58,Rates!$C$4:$L$182,10,FALSE)","v":160}]
[null,{"$f":"Rates!C55","v":"Bolivien"},{"$f":"Rates!D55","v":"Partnerländer"},{"$f":"Rates!E55","v":77},{"$f":"Rates!F55","v":57},{"$f":"Rates!G55","v":40},{"$f":"Rates!H55","v":32},null,null,null,null,52,2290,4340,null,null,null,null,null,null,null,null,{"$f":"Rates!N55","v":"Syrien"},{"$f":"VLOOKUP(W59,Rates!$C$4:$L$182,2,FALSE)","v":"Partnerländer"},{"$f":"VLOOKUP(W59,Rates!$C$4:$L$182,7,FALSE)","v":750},{"$f":"VLOOKUP(W59,Rates!$C$4:$L$182,8,FALSE)","v":650},{"$f":"VLOOKUP(W59,Rates!$C$4:$L$182,9,FALSE)","v":100},{"$f":"VLOOKUP(W59,Rates!$C$4:$L$182,10,FALSE)","v":160}]
[null,{"$f":"Rates!C56","v":"Bosnien und Herzegowina"},{"$f":"Rates!D56","v":"Partnerländer"},{"$f":"Rates!E56","v":108},{"$f":"Rates!F56","v":80},{"$f":"Rates!G56","v":57},{"$f":"Rates!H56","v":45},null,null,null,null,53,2330,4410,null,null,null,null,null,null,null,null,{"$f":"Rates!N56","v":"Tunesien"},{"$f":"VLOOKUP(W60,Rates!$C$4:$L$182,2,FALSE)","v":"Partnerländer"},{"$f":"VLOOKUP(W60,Rates!$C$4:$L$182,7,FALSE)","v":750},{"$f":"VLOOKUP(W60,Rates!$C$4:$L$182,8,FALSE)","v":650},{"$f":"VLOOKUP(W60,Rates!$C$4:$L$182,9,FALSE)","v":100},{"$f":"VLOOKUP(W60,Rates!$C$4:$L$182,10,FALSE)","v":160}]
[null,{"$f":"Rates!C57","v":"Botswana"},{"$f":"Rates!D57","v":"Partnerländer"},{"$f":"Rates!E57","v":47},{"$f":"Rates!F57","v":33},{"$f":"Rates!G57","v":22},{"$f":"Rates!H57","v":17},null,null,null,null,54,2370,4480,null,null,null,null,null,null,null,null,{"$f":"Rates!N57","v":"Ukraine"},{"$f":"VLOOKUP(W61,Rates!$C$4:$L$182,2,FALSE)","v":"Partnerländer"},{"$f":"VLOOKUP(W61,Rates!$C$4:$L$182,7,FALSE)","v":750},{"$f":"VLOOKUP(W61,Rates!$C$4:$L$182,8,FALSE)","v":650},{"$f":"VLOOKUP(W61,Rates!$C$4:$L$182,9,FALSE)","v":100},{"$f":"VLOOKUP(W61,Rates!$C$4:$L$182,10,FALSE)","v":160}]
[null,{"$f":"Rates!C58","v":"Brasilien"},{"$f":"Rates!D58","v":"Partnerländer"},{"$f":"Rates!E58","v":108},{"$f":"Rates!F58","v":80},{"$f":"Rates!G58","v":57},{"$f":"Rates!H58","v":45},null,null,null,null,55,2410,4550]
[null,{"$f":"Rates!C59","v":"Burkina Faso"},{"$f":"Rates!D59","v":"Partnerländer"},{"$f":"Rates!E59","v":77},{"$f":"Rates!F59","v":57},{"$f":"Rates!G59","v":40},{"$f":"Rates!H59","v":32},null,null,null,null,56,2450,4620]
[null,{"$f":"Rates!C60","v":"Burundi"},{"$f":"Rates!D60","v":"Partnerländer"},{"$f":"Rates!E60","v":47},{"$f":"Rates!F60","v":33},{"$f":"Rates!G60","v":22},{"$f":"Rates!H60","v":17},null,null,null,null,57,2490,4690]
[null,{"$f":"Rates!C61","v":"Cabo Verde"},{"$f":"Rates!D61","v":"Partnerländer"},{"$f":"Rates!E61","v":47},{"$f":"Rates!F61","v":33},{"$f":"Rates!G61","v":22},{"$f":"Rates!H61","v":17},null,null,null,null,58,2530,4760]
[null,{"$f":"Rates!C62","v":"Chad"},{"$f":"Rates!D62","v":"Partnerländer"},{"$f":"Rates!E62","v":47},{"$f":"Rates!F62","v":33},{"$f":"Rates!G62","v":22},{"$f":"Rates!H62","v":17},null,null,null,null,59,2570,4830]
[null,{"$f":"Rates!C63","v":"Chile"},{"$f":"Rates!D63","v":"Partnerländer"},{"$f":"Rates!E63","v":108},{"$f":"Rates!F63","v":80},{"$f":"Rates!G63","v":57},{"$f":"Rates!H63","v":45},null,null,null,null,60,2610,4900]
[null,{"$f":"Rates!C64","v":"China"},{"$f":"Rates!D64","v":"Partnerländer"},{"$f":"Rates!E64","v":77},{"$f":"Rates!F64","v":57},{"$f":"Rates!G64","v":40},{"$f":"Rates!H64","v":32},null,null,null,null,61,2650,{"$f":"((L68-$L$67)*50)+4900","v":4950}]
[null,{"$f":"Rates!C65","v":"Congo (Brazzaville)"},{"$f":"Rates!D65","v":"Partnerländer"},{"$f":"Rates!E65","v":77},{"$f":"Rates!F65","v":57},{"$f":"Rates!G65","v":40},{"$f":"Rates!H65","v":32},null,null,null,null,62,2690,{"$f":"((L69-$L$67)*50)+4900","v":5000}]
[null,{"$f":"Rates!C66","v":"Congo (Kinshasa)"},{"$f":"Rates!D66","v":"Partnerländer"},{"$f":"Rates!E66","v":47},{"$f":"Rates!F66","v":33},{"$f":"Rates!G66","v":22},{"$f":"Rates!H66","v":17},null,null,null,null,63,2730,5050]
[null,{"$f":"Rates!C67","v":"Cookinseln"},{"$f":"Rates!D67","v":"Partnerländer"},{"$f":"Rates!E67","v":108},{"$f":"Rates!F67","v":80},{"$f":"Rates!G67","v":57},{"$f":"Rates!H67","v":45},null,null,null,null,64,2770,5100]
[null,{"$f":"Rates!C68","v":"Costa Rica"},{"$f":"Rates!D68","v":"Partnerländer"},{"$f":"Rates!E68","v":77},{"$f":"Rates!F68","v":57},{"$f":"Rates!G68","v":40},{"$f":"Rates!H68","v":32},null,null,null,null,65,2810,5150]
[null,{"$f":"Rates!C69","v":"Côte d’Ivoire"},{"$f":"Rates!D69","v":"Partnerländer"},{"$f":"Rates!E69","v":108},{"$f":"Rates!F69","v":80},{"$f":"Rates!G69","v":57},{"$f":"Rates!H69","v":45},null,null,null,null,66,2850,5200]
[null,{"$f":"Rates!C70","v":"Dominica"},{"$f":"Rates!D70","v":"Partnerländer"},{"$f":"Rates!E70","v":108},{"$f":"Rates!F70","v":80},{"$f":"Rates!G70","v":57},{"$f":"Rates!H70","v":45},null,null,null,null,67,2890,5250]
[null,{"$f":"Rates!C71","v":"Dominikanische Republik"},{"$f":"Rates!D71","v":"Partnerländer"},{"$f":"Rates!E71","v":77},{"$f":"Rates!F71","v":57},{"$f":"Rates!G71","v":40},{"$f":"Rates!H71","v":32},null,null,null,null,68,2930,5300]
[null,{"$f":"Rates!C72","v":"Dschibuti"},{"$f":"Rates!D72","v":"Partnerländer"},{"$f":"Rates!E72","v":77},{"$f":"Rates!F72","v":57},{"$f":"Rates!G72","v":40},{"$f":"Rates!H72","v":32},null,null,null,null,69,2970,5350]
[null,{"$f":"Rates!C73","v":"DV Korea"},{"$f":"Rates!D73","v":"Partnerländer"},{"$f":"Rates!E73","v":47},{"$f":"Rates!F73","v":33},{"$f":"Rates!G73","v":22},{"$f":"Rates!H73","v":17},null,null,null,null,70,3010,5400]
[null,{"$f":"Rates!C74","v":"Ecuador"},{"$f":"Rates!D74","v":"Partnerländer"},{"$f":"Rates!E74","v":77},{"$f":"Rates!F74","v":57},{"$f":"Rates!G74","v":40},{"$f":"Rates!H74","v":32},null,null,null,null,71,3050,5450]
[null,{"$f":"Rates!C75","v":"El Salvador"},{"$f":"Rates!D75","v":"Partnerländer"},{"$f":"Rates!E75","v":77},{"$f":"Rates!F75","v":57},{"$f":"Rates!G75","v":40},{"$f":"Rates!H75","v":32},null,null,null,null,72,3090,5500]
[null,{"$f":"Rates!C76","v":"Eritrea"},{"$f":"Rates!D76","v":"Partnerländer"},{"$f":"Rates!E76","v":47},{"$f":"Rates!F76","v":33},{"$f":"Rates!G76","v":22},{"$f":"Rates!H76","v":17},null,null,null,null,73,3130,5550]
[null,{"$f":"Rates!C77","v":"Fidschi"},{"$f":"Rates!D77","v":"Partnerländer"},{"$f":"Rates!E77","v":47},{"$f":"Rates!F77","v":33},{"$f":"Rates!G77","v":22},{"$f":"Rates!H77","v":17},null,null,null,null,74,3170,5600]
[null,{"$f":"Rates!C78","v":"Gabun"},{"$f":"Rates!D78","v":"Partnerländer"},{"$f":"Rates!E78","v":108},{"$f":"Rates!F78","v":80},{"$f":"Rates!G78","v":57},{"$f":"Rates!H78","v":45},null,null,null,null,75,3210,5650]
[null,{"$f":"Rates!C79","v":"Gambia"},{"$f":"Rates!D79","v":"Partnerländer"},{"$f":"Rates!E79","v":47},{"$f":"Rates!F79","v":33},{"$f":"Rates!G79","v":22},{"$f":"Rates!H79","v":17},null,null,null,null,76,3250,5700]
[null,{"$f":"Rates!C80","v":"Georgien"},{"$f":"Rates!D80","v":"Partnerländer"},{"$f":"Rates!E80","v":77},{"$f":"Rates!F80","v":57},{"$f":"Rates!G80","v":40},{"$f":"Rates!H80","v":32},null,null,null,null,77,3290,5750]
[null,{"$f":"Rates!C81","v":"Ghana"},{"$f":"Rates!D81","v":"Partnerländer"},{"$f":"Rates!E81","v":47},{"$f":"Rates!F81","v":33},{"$f":"Rates!G81","v":22},{"$f":"Rates!H81","v":17},null,null,null,null,78,3330,5800]
[null,{"$f":"Rates!C82","v":"Grenada"},{"$f":"Rates!D82","v":"Partnerländer"},{"$f":"Rates!E82","v":108},{"$f":"Rates!F82","v":80},{"$f":"Rates!G82","v":57},{"$f":"Rates!H82","v":45},null,null,null,null,79,3370,5850]
[null,{"$f":"Rates!C83","v":"Guatemala"},{"$f":"Rates!D83","v":"Partnerländer"},{"$f":"Rates!E83","v":77},{"$f":"Rates!F83","v":57},{"$f":"Rates!G83","v":40},{"$f":"Rates!H83","v":32},null,null,null,null,80,{"$f":"((L87-$L$21)*40)+770","v":3410},5900]
[null,{"$f":"Rates!C84","v":"Guinea-Bissau"},{"$f":"Rates!D84","v":"Partnerländer"},{"$f":"Rates!E84","v":77},{"$f":"Rates!F84","v":57},{"$f":"Rates!G84","v":40},{"$f":"Rates!H84","v":32},null,null,null,null,81,3450,5950]
[null,{"$f":"Rates!C85","v":"Guyana"},{"$f":"Rates!D85","v":"Partnerländer"},{"$f":"Rates!E85","v":47},{"$f":"Rates!F85","v":33},{"$f":"Rates!G85","v":22},{"$f":"Rates!H85","v":17},null,null,null,null,82,3490,6000]
[null,{"$f":"Rates!C86","v":"Haiti"},{"$f":"Rates!D86","v":"Partnerländer"},{"$f":"Rates!E86","v":77},{"$f":"Rates!F86","v":57},{"$f":"Rates!G86","v":40},{"$f":"Rates!H86","v":32},null,null,null,null,83,3530,6050]
[null,{"$f":"Rates!C87","v":"Honduras"},{"$f":"Rates!D87","v":"Partnerländer"},{"$f":"Rates!E87","v":47},{"$f":"Rates!F87","v":33},{"$f":"Rates!G87","v":22},{"$f":"Rates!H87","v":17},null,null,null,null,84,3570,6100]
[null,{"$f":"Rates!C88","v":"Indien"},{"$f":"Rates!D88","v":"Partnerländer"},{"$f":"Rates!E88","v":47},{"$f":"Rates!F88","v":33},{"$f":"Rates!G88","v":22},{"$f":"Rates!H88","v":17},null,null,null,null,85,3610,6150]
[null,{"$f":"Rates!C89","v":"Indonesien"},{"$f":"Rates!D89","v":"Partnerländer"},{"$f":"Rates!E89","v":47},{"$f":"Rates!F89","v":33},{"$f":"Rates!G89","v":22},{"$f":"Rates!H89","v":17},null,null,null,null,86,3650,6200]
[null,{"$f":"Rates!C90","v":"Irak"},{"$f":"Rates!D90","v":"Partnerländer"},{"$f":"Rates!E90","v":77},{"$f":"Rates!F90","v":57},{"$f":"Rates!G90","v":40},{"$f":"Rates!H90","v":32},null,null,null,null,87,3690,6250]
[null,{"$f":"Rates!C91","v":"Iran"},{"$f":"Rates!D91","v":"Partnerländer"},{"$f":"Rates!E91","v":77},{"$f":"Rates!F91","v":57},{"$f":"Rates!G91","v":40},{"$f":"Rates!H91","v":32},null,null,null,null,88,3730,6300]
[null,{"$f":"Rates!C92","v":"Israel"},{"$f":"Rates!D92","v":"Partnerländer"},{"$f":"Rates!E92","v":166},{"$f":"Rates!F92","v":132},{"$f":"Rates!G92","v":102},{"$f":"Rates!H92","v":92},null,null,null,null,89,3770,6350]
[null,{"$f":"Rates!C93","v":"Jamaica"},{"$f":"Rates!D93","v":"Partnerländer"},{"$f":"Rates!E93","v":77},{"$f":"Rates!F93","v":57},{"$f":"Rates!G93","v":40},{"$f":"Rates!H93","v":32},null,null,null,null,90,3810,6400]
[null,{"$f":"Rates!C94","v":"Jemen"},{"$f":"Rates!D94","v":"Partnerländer"},{"$f":"Rates!E94","v":47},{"$f":"Rates!F94","v":33},{"$f":"Rates!G94","v":22},{"$f":"Rates!H94","v":17}]
[null,{"$f":"Rates!C95","v":"Jordanien"},{"$f":"Rates!D95","v":"Partnerländer"},{"$f":"Rates!E95","v":77},{"$f":"Rates!F95","v":57},{"$f":"Rates!G95","v":40},{"$f":"Rates!H95","v":32}]
[null,{"$f":"Rates!C96","v":"Kambodscha"},{"$f":"Rates!D96","v":"Partnerländer"},{"$f":"Rates!E96","v":47},{"$f":"Rates!F96","v":33},{"$f":"Rates!G96","v":22},{"$f":"Rates!H96","v":17}]
[null,{"$f":"Rates!C97","v":"Kamerun"},{"$f":"Rates!D97","v":"Partnerländer"},{"$f":"Rates!E97","v":77},{"$f":"Rates!F97","v":57},{"$f":"Rates!G97","v":40},{"$f":"Rates!H97","v":32}]
[null,{"$f":"Rates!C98","v":"Kasachstan"},{"$f":"Rates!D98","v":"Partnerländer"},{"$f":"Rates!E98","v":77},{"$f":"Rates!F98","v":57},{"$f":"Rates!G98","v":40},{"$f":"Rates!H98","v":32}]
[null,{"$f":"Rates!C99","v":"Kenia"},{"$f":"Rates!D99","v":"Partnerländer"},{"$f":"Rates!E99","v":77},{"$f":"Rates!F99","v":57},{"$f":"Rates!G99","v":40},{"$f":"Rates!H99","v":32}]
[null,{"$f":"Rates!C100","v":"Kirgisistan"},{"$f":"Rates!D100","v":"Partnerländer"},{"$f":"Rates!E100","v":47},{"$f":"Rates!F100","v":33},{"$f":"Rates!G100","v":22},{"$f":"Rates!H100","v":17}]
[null,{"$f":"Rates!C101","v":"Kiribati"},{"$f":"Rates!D101","v":"Partnerländer"},{"$f":"Rates!E101","v":47},{"$f":"Rates!F101","v":33},{"$f":"Rates!G101","v":22},{"$f":"Rates!H101","v":17}]
[null,{"$f":"Rates!C102","v":"Kolumbien"},{"$f":"Rates!D102","v":"Partnerländer"},{"$f":"Rates!E102","v":108},{"$f":"Rates!F102","v":80},{"$f":"Rates!G102","v":57},{"$f":"Rates!H102","v":45}]
[null,{"$f":"Rates!C103","v":"Komoren"},{"$f":"Rates!D103","v":"Partnerländer"},{"$f":"Rates!E103","v":108},{"$f":"Rates!F103","v":80},{"$f":"Rates!G103","v":57},{"$f":"Rates!H103","v":45}]
[null,{"$f":"Rates!C104","v":"Kosovo"},{"$f":"Rates!D104","v":"Partnerländer"},{"$f":"Rates!E104","v":108},{"$f":"Rates!F104","v":80},{"$f":"Rates!G104","v":57},{"$f":"Rates!H104","v":45}]
[null,{"$f":"Rates!C105","v":"Kuba"},{"$f":"Rates!D105","v":"Partnerländer"},{"$f":"Rates!E105","v":47},{"$f":"Rates!F105","v":33},{"$f":"Rates!G105","v":22},{"$f":"Rates!H105","v":17}]
[null,{"$f":"Rates!C106","v":"Laos"},{"$f":"Rates!D106","v":"Partnerländer"},{"$f":"Rates!E106","v":47},{"$f":"Rates!F106","v":33},{"$f":"Rates!G106","v":22},{"$f":"Rates!H106","v":17}]
[null,{"$f":"Rates!C107","v":"Lesotho"},{"$f":"Rates!D107","v":"Partnerländer"},{"$f":"Rates!E107","v":47},{"$f":"Rates!F107","v":33},{"$f":"Rates!G107","v":22},{"$f":"Rates!H107","v":17}]
[null,{"$f":"Rates!C108","v":"Libanon"},{"$f":"Rates!D108","v":"Partnerländer"},{"$f":"Rates!E108","v":108},{"$f":"Rates!F108","v":80},{"$f":"Rates!G108","v":57},{"$f":"Rates!H108","v":45}]
[null,{"$f":"Rates!C109","v":"Liberia"},{"$f":"Rates!D109","v":"Partnerländer"},{"$f":"Rates!E109","v":47},{"$f":"Rates!F109","v":33},{"$f":"Rates!G109","v":22},{"$f":"Rates!H109","v":17}]
[null,{"$f":"Rates!C110","v":"Libyen"},{"$f":"Rates!D110","v":"Partnerländer"},{"$f":"Rates!E110","v":108},{"$f":"Rates!F110","v":80},{"$f":"Rates!G110","v":57},{"$f":"Rates!H110","v":45}]
[null,{"$f":"Rates!C111","v":"Madagaskar"},{"$f":"Rates!D111","v":"Partnerländer"},{"$f":"Rates!E111","v":47},{"$f":"Rates!F111","v":33},{"$f":"Rates!G111","v":22},{"$f":"Rates!H111","v":17}]
[null,{"$f":"Rates!C112","v":"Malawi"},{"$f":"Rates!D112","v":"Partnerländer"},{"$f":"Rates!E112","v":47},{"$f":"Rates!F112","v":33},{"$f":"Rates!G112","v":22},{"$f":"Rates!H112","v":17}]
[null,{"$f":"Rates!C113","v":"Malaysia"},{"$f":"Rates!D113","v":"Partnerländer"},{"$f":"Rates!E113","v":47},{"$f":"Rates!F113","v":33},{"$f":"Rates!G113","v":22},{"$f":"Rates!H113","v":17}]
[null,{"$f":"Rates!C114","v":"Malediven"},{"$f":"Rates!D114","v":"Partnerländer"},{"$f":"Rates!E114","v":47},{"$f":"Rates!F114","v":33},{"$f":"Rates!G114","v":22},{"$f":"Rates!H114","v":17}]
[null,{"$f":"Rates!C115","v":"Mali"},{"$f":"Rates!D115","v":"Partnerländer"},{"$f":"Rates!E115","v":47},{"$f":"Rates!F115","v":33},{"$f":"Rates!G115","v":22},{"$f":"Rates!H115","v":17}]
[null,{"$f":"Rates!C116","v":"Marokko"},{"$f":"Rates!D116","v":"Partnerländer"},{"$f":"Rates!E116","v":77},{"$f":"Rates!F116","v":57},{"$f":"Rates!G116","v":40},{"$f":"Rates!H116","v":32}]
[null,{"$f":"Rates!C117","v":"Marshallinseln"},{"$f":"Rates!D117","v":"Partnerländer"},{"$f":"Rates!E117","v":47},{"$f":"Rates!F117","v":33},{"$f":"Rates!G117","v":22},{"$f":"Rates!H117","v":17}]
[null,{"$f":"Rates!C118","v":"Mauretanien"},{"$f":"Rates!D118","v":"Partnerländer"},{"$f":"Rates!E118","v":47},{"$f":"Rates!F118","v":33},{"$f":"Rates!G118","v":22},{"$f":"Rates!H118","v":17}]
[null,{"$f":"Rates!C119","v":"Mauritius"},{"$f":"Rates!D119","v":"Partnerländer"},{"$f":"Rates!E119","v":47},{"$f":"Rates!F119","v":33},{"$f":"Rates!G119","v":22},{"$f":"Rates!H119","v":17}]
[null,{"$f":"Rates!C120","v":"Mexiko"},{"$f":"Rates!D120","v":"Partnerländer"},{"$f":"Rates!E120","v":108},{"$f":"Rates!F120","v":80},{"$f":"Rates!G120","v":57},{"$f":"Rates!H120","v":45}]
[null,{"$f":"Rates!C121","v":"Mikronesien"},{"$f":"Rates!D121","v":"Partnerländer"},{"$f":"Rates!E121","v":77},{"$f":"Rates!F121","v":57},{"$f":"Rates!G121","v":40},{"$f":"Rates!H121","v":32}]
[null,{"$f":"Rates!C122","v":"Moldau"},{"$f":"Rates!D122","v":"Partnerländer"},{"$f":"Rates!E122","v":47},{"$f":"Rates!F122","v":33},{"$f":"Rates!G122","v":22},{"$f":"Rates!H122","v":17}]
[null,{"$f":"Rates!C123","v":"Mongolei"},{"$f":"Rates!D123","v":"Partnerländer"},{"$f":"Rates!E123","v":47},{"$f":"Rates!F123","v":33},{"$f":"Rates!G123","v":22},{"$f":"Rates!H123","v":17}]
[null,{"$f":"Rates!C124","v":"Montenegro"},{"$f":"Rates!D124","v":"Partnerländer"},{"$f":"Rates!E124","v":108},{"$f":"Rates!F124","v":80},{"$f":"Rates!G124","v":57},{"$f":"Rates!H124","v":45}]
[null,{"$f":"Rates!C125","v":"Mosambik"},{"$f":"Rates!D125","v":"Partnerländer"},{"$f":"Rates!E125","v":77},{"$f":"Rates!F125","v":57},{"$f":"Rates!G125","v":40},{"$f":"Rates!H125","v":32}]
[null,{"$f":"Rates!C126","v":"Myanmar"},{"$f":"Rates!D126","v":"Partnerländer"},{"$f":"Rates!E126","v":47},{"$f":"Rates!F126","v":33},{"$f":"Rates!G126","v":22},{"$f":"Rates!H126","v":17}]
[null,{"$f":"Rates!C127","v":"Namibia"},{"$f":"Rates!D127","v":"Partnerländer"},{"$f":"Rates!E127","v":77},{"$f":"Rates!F127","v":57},{"$f":"Rates!G127","v":40},{"$f":"Rates!H127","v":32}]
[null,{"$f":"Rates!C128","v":"Nauru"},{"$f":"Rates!D128","v":"Partnerländer"},{"$f":"Rates!E128","v":47},{"$f":"Rates!F128","v":33},{"$f":"Rates!G128","v":22},{"$f":"Rates!H128","v":17}]
[null,{"$f":"Rates!C129","v":"Nepal"},{"$f":"Rates!D129","v":"Partnerländer"},{"$f":"Rates!E129","v":47},{"$f":"Rates!F129","v":33},{"$f":"Rates!G129","v":22},{"$f":"Rates!H129","v":17}]
[null,{"$f":"Rates!C130","v":"Nicaragua"},{"$f":"Rates!D130","v":"Partnerländer"},{"$f":"Rates!E130","v":47},{"$f":"Rates!F130","v":33},{"$f":"Rates!G130","v":22},{"$f":"Rates!H130","v":17}]
[null,{"$f":"Rates!C131","v":"Niger"},{"$f":"Rates!D131","v":"Partnerländer"},{"$f":"Rates!E131","v":47},{"$f":"Rates!F131","v":33},{"$f":"Rates!G131","v":22},{"$f":"Rates!H131","v":17}]
[null,{"$f":"Rates!C132","v":"Nigeria"},{"$f":"Rates!D132","v":"Partnerländer"},{"$f":"Rates!E132","v":108},{"$f":"Rates!F132","v":80},{"$f":"Rates!G132","v":57},{"$f":"Rates!H132","v":45}]
[null,{"$f":"Rates!C133","v":"Niue"},{"$f":"Rates!D133","v":"Partnerländer"},{"$f":"Rates!E133","v":47},{"$f":"Rates!F133","v":33},{"$f":"Rates!G133","v":22},{"$f":"Rates!H133","v":17}]
[null,{"$f":"Rates!C134","v":"Osttimor"},{"$f":"Rates!D134","v":"Partnerländer"},{"$f":"Rates!E134","v":47},{"$f":"Rates!F134","v":33},{"$f":"Rates!G134","v":22},{"$f":"Rates!H134","v":17}]
[null,{"$f":"Rates!C135","v":"Pakistan"},{"$f":"Rates!D135","v":"Partnerländer"},{"$f":"Rates!E135","v":47},{"$f":"Rates!F135","v":33},{"$f":"Rates!G135","v":22},{"$f":"Rates!H135","v":17}]
[null,{"$f":"Rates!C136","v":"Palästina"},{"$f":"Rates!D136","v":"Partnerländer"},{"$f":"Rates!E136","v":77},{"$f":"Rates!F136","v":57},{"$f":"Rates!G136","v":40},{"$f":"Rates!H136","v":32}]
[null,{"$f":"Rates!C137","v":"Palau"},{"$f":"Rates!D137","v":"Partnerländer"},{"$f":"Rates!E137","v":47},{"$f":"Rates!F137","v":33},{"$f":"Rates!G137","v":22},{"$f":"Rates!H137","v":17}]
[null,{"$f":"Rates!C138","v":"Panama"},{"$f":"Rates!D138","v":"Partnerländer"},{"$f":"Rates!E138","v":77},{"$f":"Rates!F138","v":57},{"$f":"Rates!G138","v":40},{"$f":"Rates!H138","v":32}]
[null,{"$f":"Rates!C139","v":"Papua Neuguinea"},{"$f":"Rates!D139","v":"Partnerländer"},{"$f":"Rates!E139","v":77},{"$f":"Rates!F139","v":57},{"$f":"Rates!G139","v":40},{"$f":"Rates!H139","v":32}]
[null,{"$f":"Rates!C140","v":"Paraguay"},{"$f":"Rates!D140","v":"Partnerländer"},{"$f":"Rates!E140","v":77},{"$f":"Rates!F140","v":57},{"$f":"Rates!G140","v":40},{"$f":"Rates!H140","v":32}]
[null,{"$f":"Rates!C141","v":"Peru"},{"$f":"Rates!D141","v":"Partnerländer"},{"$f":"Rates!E141","v":108},{"$f":"Rates!F141","v":80},{"$f":"Rates!G141","v":57},{"$f":"Rates!H141","v":45}]
[null,{"$f":"Rates!C142","v":"Philippinen"},{"$f":"Rates!D142","v":"Partnerländer"},{"$f":"Rates!E142","v":47},{"$f":"Rates!F142","v":33},{"$f":"Rates!G142","v":22},{"$f":"Rates!H142","v":17}]
[null,{"$f":"Rates!C143","v":"Republik Guinea"},{"$f":"Rates!D143","v":"Partnerländer"},{"$f":"Rates!E143","v":47},{"$f":"Rates!F143","v":33},{"$f":"Rates!G143","v":22},{"$f":"Rates!H143","v":17}]
[null,{"$f":"Rates!C144","v":"Ruanda"},{"$f":"Rates!D144","v":"Partnerländer"},{"$f":"Rates!E144","v":47},{"$f":"Rates!F144","v":33},{"$f":"Rates!G144","v":22},{"$f":"Rates!H144","v":17}]
[null,{"$f":"Rates!C145","v":"Russlands"},{"$f":"Rates!D145","v":"Partnerländer"},{"$f":"Rates!E145","v":77},{"$f":"Rates!F145","v":57},{"$f":"Rates!G145","v":40},{"$f":"Rates!H145","v":32}]
[null,{"$f":"Rates!C146","v":"Salomonen"},{"$f":"Rates!D146","v":"Partnerländer"},{"$f":"Rates!E146","v":47},{"$f":"Rates!F146","v":33},{"$f":"Rates!G146","v":22},{"$f":"Rates!H146","v":17}]
[null,{"$f":"Rates!C147","v":"Sambia"},{"$f":"Rates!D147","v":"Partnerländer"},{"$f":"Rates!E147","v":108},{"$f":"Rates!F147","v":80},{"$f":"Rates!G147","v":57},{"$f":"Rates!H147","v":45}]
[null,{"$f":"Rates!C148","v":"Samoa"},{"$f":"Rates!D148","v":"Partnerländer"},{"$f":"Rates!E148","v":47},{"$f":"Rates!F148","v":33},{"$f":"Rates!G148","v":22},{"$f":"Rates!H148","v":17}]
[null,{"$f":"Rates!C149","v":"São Tomé und Príncipe"},{"$f":"Rates!D149","v":"Partnerländer"},{"$f":"Rates!E149","v":108},{"$f":"Rates!F149","v":80},{"$f":"Rates!G149","v":57},{"$f":"Rates!H149","v":45}]
[null,{"$f":"Rates!C150","v":"Senegal"},{"$f":"Rates!D150","v":"Partnerländer"},{"$f":"Rates!E150","v":77},{"$f":"Rates!F150","v":57},{"$f":"Rates!G150","v":40},{"$f":"Rates!H150","v":32}]
[null,{"$f":"Rates!C151","v":"Serbien"},{"$f":"Rates!D151","v":"Partnerländer"},{"$f":"Rates!E151","v":108},{"$f":"Rates!F151","v":80},{"$f":"Rates!G151","v":57},{"$f":"Rates!H151","v":45}]
[null,{"$f":"Rates!C152","v":"Seychellen"},{"$f":"Rates!D152","v":"Partnerländer"},{"$f":"Rates!E152","v":108},{"$f":"Rates!F152","v":80},{"$f":"Rates!G152","v":57},{"$f":"Rates!H152","v":45}]
[null,{"$f":"Rates!C153","v":"Sierra Leone"},{"$f":"Rates!D153","v":"Partnerländer"},{"$f":"Rates!E153","v":47},{"$f":"Rates!F153","v":33},{"$f":"Rates!G153","v":22},{"$f":"Rates!H153","v":17}]
[null,{"$f":"Rates!C154","v":"Simbabwe"},{"$f":"Rates!D154","v":"Partnerländer"},{"$f":"Rates!E154","v":108},{"$f":"Rates!F154","v":80},{"$f":"Rates!G154","v":57},{"$f":"Rates!H154","v":45}]
[null,{"$f":"Rates!C155","v":"Somalia"},{"$f":"Rates!D155","v":"Partnerländer"},{"$f":"Rates!E155","v":47},{"$f":"Rates!F155","v":33},{"$f":"Rates!G155","v":22},{"$f":"Rates!H155","v":17}]
[null,{"$f":"Rates!C156","v":"Sri Lanka"},{"$f":"Rates!D156","v":"Partnerländer"},{"$f":"Rates!E156","v":47},{"$f":"Rates!F156","v":33},{"$f":"Rates!G156","v":22},{"$f":"Rates!H156","v":17}]
[null,{"$f":"Rates!C157","v":"St. Kitts und Nevis"},{"$f":"Rates!D157","v":"Partnerländer"},{"$f":"Rates!E157","v":108},{"$f":"Rates!F157","v":80},{"$f":"Rates!G157","v":57},{"$f":"Rates!H157","v":45}]
[null,{"$f":"Rates!C158","v":"St. Lucia"},{"$f":"Rates!D158","v":"Partnerländer"},{"$f":"Rates!E158","v":108},{"$f":"Rates!F158","v":80},{"$f":"Rates!G158","v":57},{"$f":"Rates!H158","v":45}]
[null,{"$f":"Rates!C159","v":"St. Vincent und die Grenadinen"},{"$f":"Rates!D159","v":"Partnerländer"},{"$f":"Rates!E159","v":108},{"$f":"Rates!F159","v":80},{"$f":"Rates!G159","v":57},{"$f":"Rates!H159","v":45}]
[null,{"$f":"Rates!C160","v":"Südafrika"},{"$f":"Rates!D160","v":"Partnerländer"},{"$f":"Rates!E160","v":77},{"$f":"Rates!F160","v":57},{"$f":"Rates!G160","v":40},{"$f":"Rates!H160","v":32}]
[null,{"$f":"Rates!C161","v":"Sudan"},{"$f":"Rates!D161","v":"Partnerländer"},{"$f":"Rates!E161","v":47},{"$f":"Rates!F161","v":33},{"$f":"Rates!G161","v":22},{"$f":"Rates!H161","v":17}]
[null,{"$f":"Rates!C162","v":"Südsudan"},{"$f":"Rates!D162","v":"Partnerländer"},{"$f":"Rates!E162","v":47},{"$f":"Rates!F162","v":33},{"$f":"Rates!G162","v":22},{"$f":"Rates!H162","v":17}]
[null,{"$f":"Rates!C163","v":"Suriname"},{"$f":"Rates!D163","v":"Partnerländer"},{"$f":"Rates!E163","v":77},{"$f":"Rates!F163","v":57},{"$f":"Rates!G163","v":40},{"$f":"Rates!H163","v":32}]
[null,{"$f":"Rates!C164","v":"Swasiland"},{"$f":"Rates!D164","v":"Partnerländer"},{"$f":"Rates!E164","v":77},{"$f":"Rates!F164","v":57},{"$f":"Rates!G164","v":40},{"$f":"Rates!H164","v":32}]
[null,{"$f":"Rates!C165","v":"Syrien"},{"$f":"Rates!D165","v":"Partnerländer"},{"$f":"Rates!E165","v":47},{"$f":"Rates!F165","v":33},{"$f":"Rates!G165","v":22},{"$f":"Rates!H165","v":17}]
[null,{"$f":"Rates!C166","v":"Tadschikistan"},{"$f":"Rates!D166","v":"Partnerländer"},{"$f":"Rates!E166","v":47},{"$f":"Rates!F166","v":33},{"$f":"Rates!G166","v":22},{"$f":"Rates!H166","v":17}]
[null,{"$f":"Rates!C167","v":"Tansania"},{"$f":"Rates!D167","v":"Partnerländer"},{"$f":"Rates!E167","v":47},{"$f":"Rates!F167","v":33},{"$f":"Rates!G167","v":22},{"$f":"Rates!H167","v":17}]
[null,{"$f":"Rates!C168","v":"Thailand"},{"$f":"Rates!D168","v":"Partnerländer"},{"$f":"Rates!E168","v":108},{"$f":"Rates!F168","v":80},{"$f":"Rates!G168","v":57},{"$f":"Rates!H168","v":45}]
[null,{"$f":"Rates!C169","v":"Togo"},{"$f":"Rates!D169","v":"Partnerländer"},{"$f":"Rates!E169","v":47},{"$f":"Rates!F169","v":33},{"$f":"Rates!G169","v":22},{"$f":"Rates!H169","v":17}]
[null,{"$f":"Rates!C170","v":"Tonga"},{"$f":"Rates!D170","v":"Partnerländer"},{"$f":"Rates!E170","v":47},{"$f":"Rates!F170","v":33},{"$f":"Rates!G170","v":22},{"$f":"Rates!H170","v":17}]
[null,{"$f":"Rates!C171","v":"Trinidad und Tobago"},{"$f":"Rates!D171","v":"Partnerländer"},{"$f":"Rates!E171","v":77},{"$f":"Rates!F171","v":57},{"$f":"Rates!G171","v":40},{"$f":"Rates!H171","v":32}]
[null,{"$f":"Rates!C172","v":"Tunesien"},{"$f":"Rates!D172","v":"Partnerländer"},{"$f":"Rates!E172","v":47},{"$f":"Rates!F172","v":33},{"$f":"Rates!G172","v":22},{"$f":"Rates!H172","v":17}]
[null,{"$f":"Rates!C173","v":"Turkmenistan"},{"$f":"Rates!D173","v":"Partnerländer"},{"$f":"Rates!E173","v":47},{"$f":"Rates!F173","v":33},{"$f":"Rates!G173","v":22},{"$f":"Rates!H173","v":17}]
[null,{"$f":"Rates!C174","v":"Tuvalu"},{"$f":"Rates!D174","v":"Partnerländer"},{"$f":"Rates!E174","v":47},{"$f":"Rates!F174","v":33},{"$f":"Rates!G174","v":22},{"$f":"Rates!H174","v":17}]
[null,{"$f":"Rates!C175","v":"Uganda"},{"$f":"Rates!D175","v":"Partnerländer"},{"$f":"Rates!E175","v":47},{"$f":"Rates!F175","v":33},{"$f":"Rates!G175","v":22},{"$f":"Rates!H175","v":17}]
[null,{"$f":"Rates!C176","v":"Ukraine"},{"$f":"Rates!D176","v":"Partnerländer"},{"$f":"Rates!E176","v":108},{"$f":"Rates!F176","v":80},{"$f":"Rates!G176","v":57},{"$f":"Rates!H176","v":45}]
[null,{"$f":"Rates!C177","v":"Uruguay"},{"$f":"Rates!D177","v":"Partnerländer"},{"$f":"Rates!E177","v":108},{"$f":"Rates!F177","v":80},{"$f":"Rates!G177","v":57},{"$f":"Rates!H177","v":45}]
[null,{"$f":"Rates!C178","v":"Usbekistan"},{"$f":"Rates!D178","v":"Partnerländer"},{"$f":"Rates!E178","v":47},{"$f":"Rates!F178","v":33},{"$f":"Rates!G178","v":22},{"$f":"Rates!H178","v":17}]
[null,{"$f":"Rates!C179","v":"Vanuatu"},{"$f":"Rates!D179","v":"Partnerländer"},{"$f":"Rates!E179","v":77},{"$f":"Rates!F179","v":57},{"$f":"Rates!G179","v":40},{"$f":"Rates!H179","v":32}]
[null,{"$f":"Rates!C180","v":"Venezuela"},{"$f":"Rates!D180","v":"Partnerländer"},{"$f":"Rates!E180","v":108},{"$f":"Rates!F180","v":80},{"$f":"Rates!G180","v":57},{"$f":"Rates!H180","v":45}]
[null,{"$f":"Rates!C181","v":"Vietnam"},{"$f":"Rates!D181","v":"Partnerländer"},{"$f":"Rates!E181","v":47},{"$f":"Rates!F181","v":33},{"$f":"Rates!G181","v":22},{"$f":"Rates!H181","v":17}]
[null,{"$f":"Rates!C182","v":"Zentral afrikanische Republik"},{"$f":"Rates!D182","v":"Partnerländer"},{"$f":"Rates!E182","v":47},{"$f":"Rates!F182","v":33},{"$f":"Rates!G182","v":22},{"$f":"Rates!H182","v":17}]